Workbook

Sheet Control
A1: Sheets | B1: Text File Names | C1: Description | E1: Notes: 50 sheets maximum
A2: P_Ex_PM13 | B2: Project_PM13.txt | C2: Fraction of realizations exceeding standards in the Embarrass River at PM-13 | E2: Referenced text files must be in same root folder as this spreadsheet
A3: P_Ex_MLC3 | B3: Project_MLC3.txt | C3: Fraction of realizations exceeding standards in Mud Lake Creek at MLC-3
A4: P_Ex_TC1 | B4: Project_TC1.txt | C4: Fraction of realizations exceeding standards in Trimble Creek at TC-1
A5: P_Ex_PM11 | B5: Project_PM11.txt | C5: Fraction of realizations exceeding standards in Unnamed Creek at PM-11
A6: P_Ex_PM12 | B6: Project_PM12.txt | C6: Fraction of realizations exceeding standards in Unnamed Creek at PM-12
A7: P_notNA_PM13 | B7: P_notNA_Exceed_PM13_Output.txt | C7: Fraction of realizations exceeding standards in the Embarrass River at PM-13 when the no-action model did not exceed
A8: P_notNA_MLC3 | B8: P_notNA_Exceed_MLC3_Output.txt | C8: Fraction of realizations exceeding standards in Mud Lake Creek at MLC-3 when the no-action model did not exceed | F8: Run Time Min: | G8: =MIN(P_Ex_PM13!B5,P_Ex_MLC3!B5,P_Ex_TC1!B5,P_Ex_PM11!B5,P_notNA_MLC3!B5,P_notNA_PM13!B5,P_notNA_TC1!B5,AssimCap_PM13!B5,AssimCap_MLC3!B5,AssimCap_TC1!B5,AssimCap_PM11!B5) -> 2014-12-15T16:12:17
A9: P_notNA_TC1 | B9: P_notNA_Exceed_TC1_Output.txt | C9: Fraction of realizations exceeding standards in Trimble Creek at TC-1 when the no-action model did not exceed
A10: P_notNA_PM11 | B10: P_notNA_Exceed_PM11_Output.txt | C10: Fraction of realizations exceeding standards in Unnamed Creek at PM-11 when the no-action model did not exceed | F10: Run Time Max: | G10: =MAX(P_Ex_PM13!B5,P_Ex_MLC3!B5,P_Ex_TC1!B5,P_Ex_PM11!B5,P_notNA_MLC3!B5,P_notNA_PM13!B5,P_notNA_TC1!B5,AssimCap_PM13!B5,AssimCap_MLC3!B5,AssimCap_TC1!B5,AssimCap_PM11!B5) -> 2014-12-15T16:12:17
A11: P_notNA_PM12 | B11: P_notNA_Exceed_PM12_Output.txt | C11: Fraction of realizations exceeding standards in Unnamed Creek at PM-12 when the no-action model did not exceed
A12: AssimCap_PM13 | B12: AssimCap_PM13_Output.txt | C12: Assimilative capacity used by the project at PM-13
A13: AssimCap_MLC3 | B13: AssimCap_MLC3_Output.txt | C13: Assimilative capacity used by the project at MLC-3
A14: AssimCap_TC1 | B14: AssimCap_TC1_Output.txt | C14: Assimilative capacity used by the project at TC-1
A15: AssimCap_PM11 | B15: AssimCap_PM11_Output.txt | C15: Assimilative capacity used by the project at PM-11
A16: AssimCap_PM12 | B16: AssimCap_PM12_Output.txt | C16: Assimilative capacity used by the project at PM-12

Sheet PlotControl
A2: Model Name: | B2: Plant Site Version 6.0 | C2: =B2 & " Model " & "Monthly Exceedance Probability " & $B$6 & " in " & VLOOKUP($B$8, $A$15:$B$19, 2, FALSE) & " at " & B8 -> Plant Site Version 6.0 Model Monthly Exceedance Probability Ag in the Embarrass River at PM-13
C3: =B2 & " Model " & IF(B4="Annual Max", "Annual Maximum", B4) & " of Exceedance Probability " & $B$6 & " in " & VLOOKUP($B$8, $A$15:$B$19, 2, FALSE) & " at " & B8 -> Plant Site Version 6.0 Model Annual Maximum of Exceedance Probability Ag in the Embarrass River at PM-13
A4: Plot: | B4: Annual Max | C4: =B2 & " Model " & IF(B4="Annual Max", "Annual Maximum", B4) & " of 'Assimilative Capacity Used' Statistics " & $B$6 & " in " & VLOOKUP($B$8, $A$15:$B$19, 2, FALSE) & " at " & B8 -> Plant Site Version 6.0 Model Annual Maximum of 'Assimilative Capacity Used' Statistics Ag in the Embarrass River at PM-13 | V4: Directory to save PDFs to: | W4: C:\Users\jem4\Desktop\temp
C5: =B2 & " Model Monthly 'Assimilative Capacity Used' Statistics " & $B$6 & " in " & VLOOKUP($B$8, $A$15:$B$19, 2, FALSE) & " at " & B8 -> Plant Site Version 6.0 Model Monthly 'Assimilative Capacity Used' Statistics Ag in the Embarrass River at PM-13 | V5: Starting figure caption | W5: Figure J-05-28.2
A6: Constituent to Plot (dropdown): | B6: Ag | C6: =MATCH(B6,$A$36:$A$63,0) -> 1
V7: NOTE: you will have to change the "Plot" option manually.
A8: Location to Plot (dropdown): | B8: PM-13 | C8: =MATCH(B8,$A$15:$A$19,0) -> 1
A10: Initial Time for Monthly Plot (yr): | B10: 0
B11: =B10+20 -> 20
A14: Locations
A15: PM-13 | B15: the Embarrass River
A16: MLC-3 | B16: Mud Lake Creek
A17: TC-1 | B17: Trimble Creek
A18: PM-11 | B18: Unnamed Creek
A19: PM-12 | B19: the Embarrass River
A28: Plot
A29: Annual Max
A30: Annual Average
I34: Annual Project Results | R34: Monthly Project Results
A35: Constituent | B35: Partridge Standard (ug/L) | C35: Colby Standard (ug/L) | D35: Hardness Based "A" | E35: Hardness Based "B" | F35: Hardness Based at 100 mg/L hardness (ug/L) | H35: Time | I35: % Exceeding in Project Model | J35: % Exceeding in Project Model when No Action Model does not Exceed | K35: % Assim. Cap. Used P10 | L35: % Assim. Cap. Used P50 | M35: % Assim. Cap. Used P90 | O35: Time | P35: % Exceeding in Project Model | Q35: % Exceeding in Project Model when not in No Action Model | R35: % Assim. Cap. Used P10 | S35: % Assim. Cap. Used P50 | T35: % Assim. Cap. Used P90
A36: Ag | B36: 1 | C36: 1 | F36: =EXP(D36*LN(100)+E36) ->  | H36: 0 | I36: =VLOOKUP($H36,P_All!$A$5:$F$204,($C$8-1)+2) -> 0 | J36: =VLOOKUP($H36,P_All!$H$5:$M$204,($C$8-1)+2) -> 0 | K36: =VLOOKUP($H36,P_All!$O$5:$AD$204,3*($C$8-1)+2) -> 0.00063505 | L36: =VLOOKUP($H36,P_All!$O$5:$AD$204,3*($C$8-1)+3) -> 0.002043 | M36: =VLOOKUP($H36,P_All!$O$5:$AD$204,3*($C$8-1)+4) -> 0.0043621 | O36: =B10 -> 0 | P36: =VLOOKUP($O36,P_All!$AF$5:$AP$244,$C$8+1) -> 0 | Q36: =VLOOKUP($O36,P_All!$AF$5:$AP$244,$C$8+6) -> 0 | R36: =VLOOKUP($O36,P_All!$AR$5:$BG$244,3*($C$8-1)+2) -> 0.00012364 | S36: =VLOOKUP($O36,P_All!$AR$5:$BG$244,3*($C$8-1)+3) -> 0.00042026 | T36: =VLOOKUP($O36,P_All!$AR$5:$BG$244,3*($C$8-1)+4) -> 0.0010629
A37: Al | B37: 125 | C37: 125 | F37: =EXP(D37*LN(100)+E37) ->  | H37: 1 | I37: =VLOOKUP($H37,P_All!$A$5:$F$204,($C$8-1)+2) -> 0 | J37: =VLOOKUP($H37,P_All!$H$5:$M$204,($C$8-1)+2) -> 0 | K37: =VLOOKUP($H37,P_All!$O$5:$AD$204,3*($C$8-1)+2) -> 0.00055812 | L37: =VLOOKUP($H37,P_All!$O$5:$AD$204,3*($C$8-1)+3) -> 0.0020543 | M37: =VLOOKUP($H37,P_All!$O$5:$AD$204,3*($C$8-1)+4) -> 0.00459 | O37: =O36+1/12 -> 0.08333333333 | P37: =VLOOKUP($O37,P_All!$AF$5:$AP$244,$C$8+1) -> 0 | Q37: =VLOOKUP($O37,P_All!$AF$5:$AP$244,$C$8+6) -> 0 | R37: =VLOOKUP($O37,P_All!$AR$5:$BG$244,3*($C$8-1)+2) -> -0.014232 | S37: =VLOOKUP($O37,P_All!$AR$5:$BG$244,3*($C$8-1)+3) -> -0.013437 | T37: =VLOOKUP($O37,P_All!$AR$5:$BG$244,3*($C$8-1)+4) -> -0.012066
A38: Alkalinity | H38: 2 | I38: =VLOOKUP($H38,P_All!$A$5:$F$204,($C$8-1)+2) -> 0 | J38: =VLOOKUP($H38,P_All!$H$5:$M$204,($C$8-1)+2) -> 0 | K38: =VLOOKUP($H38,P_All!$O$5:$AD$204,3*($C$8-1)+2) -> 0.00049832 | L38: =VLOOKUP($H38,P_All!$O$5:$AD$204,3*($C$8-1)+3) -> 0.0019449 | M38: =VLOOKUP($H38,P_All!$O$5:$AD$204,3*($C$8-1)+4) -> 0.0045779 | O38: =O37+1/12 -> 0.1666666667 | P38: =VLOOKUP($O38,P_All!$AF$5:$AP$244,$C$8+1) -> 0 | Q38: =VLOOKUP($O38,P_All!$AF$5:$AP$244,$C$8+6) -> 0 | R38: =VLOOKUP($O38,P_All!$AR$5:$BG$244,3*($C$8-1)+2) -> -0.036865 | S38: =VLOOKUP($O38,P_All!$AR$5:$BG$244,3*($C$8-1)+3) -> -0.031597 | T38: =VLOOKUP($O38,P_All!$AR$5:$BG$244,3*($C$8-1)+4) -> -0.026374
A39: As | B39: 53 | C39: 2 | H39: 3 | I39: =VLOOKUP($H39,P_All!$A$5:$F$204,($C$8-1)+2) -> 0 | J39: =VLOOKUP($H39,P_All!$H$5:$M$204,($C$8-1)+2) -> 0 | K39: =VLOOKUP($H39,P_All!$O$5:$AD$204,3*($C$8-1)+2) -> 0.0005847 | L39: =VLOOKUP($H39,P_All!$O$5:$AD$204,3*($C$8-1)+3) -> 0.0021478 | M39: =VLOOKUP($H39,P_All!$O$5:$AD$204,3*($C$8-1)+4) -> 0.0046153 | O39: 0.25 | P39: =VLOOKUP($O39,P_All!$AF$5:$AP$244,$C$8+1) -> 0 | Q39: =VLOOKUP($O39,P_All!$AF$5:$AP$244,$C$8+6) -> 0 | R39: =VLOOKUP($O39,P_All!$AR$5:$BG$244,3*($C$8-1)+2) -> -0.026749 | S39: =VLOOKUP($O39,P_All!$AR$5:$BG$244,3*($C$8-1)+3) -> -0.018556 | T39: =VLOOKUP($O39,P_All!$AR$5:$BG$244,3*($C$8-1)+4) -> -0.001479
A40: B | B40: 500 | C40: 500 | H40: 4 | I40: =VLOOKUP($H40,P_All!$A$5:$F$204,($C$8-1)+2) -> 0 | J40: =VLOOKUP($H40,P_All!$H$5:$M$204,($C$8-1)+2) -> 0 | K40: =VLOOKUP($H40,P_All!$O$5:$AD$204,3*($C$8-1)+2) -> 0.0027625 | L40: =VLOOKUP($H40,P_All!$O$5:$AD$204,3*($C$8-1)+3) -> 0.0056258 | M40: =VLOOKUP($H40,P_All!$O$5:$AD$204,3*($C$8-1)+4) -> 0.011724 | O40: 0.3333333333 | P40: =VLOOKUP($O40,P_All!$AF$5:$AP$244,$C$8+1) -> 0 | Q40: =VLOOKUP($O40,P_All!$AF$5:$AP$244,$C$8+6) -> 0 | R40: =VLOOKUP($O40,P_All!$AR$5:$BG$244,3*($C$8-1)+2) -> -0.0013485 | S40: =VLOOKUP($O40,P_All!$AR$5:$BG$244,3*($C$8-1)+3) -> 0.00017192 | T40: =VLOOKUP($O40,P_All!$AR$5:$BG$244,3*($C$8-1)+4) -> 0.00059883
A41: Ba | C41: 2000 | H41: 5 | I41: =VLOOKUP($H41,P_All!$A$5:$F$204,($C$8-1)+2) -> 0 | J41: =VLOOKUP($H41,P_All!$H$5:$M$204,($C$8-1)+2) -> 0 | K41: =VLOOKUP($H41,P_All!$O$5:$AD$204,3*($C$8-1)+2) -> 0.015572 | L41: =VLOOKUP($H41,P_All!$O$5:$AD$204,3*($C$8-1)+3) -> 0.019712 | M41: =VLOOKUP($H41,P_All!$O$5:$AD$204,3*($C$8-1)+4) -> 0.031467 | O41: 0.4166666667 | P41: =VLOOKUP($O41,P_All!$AF$5:$AP$244,$C$8+1) -> 0 | Q41: =VLOOKUP($O41,P_All!$AF$5:$AP$244,$C$8+6) -> 0 | R41: =VLOOKUP($O41,P_All!$AR$5:$BG$244,3*($C$8-1)+2) -> 0.00012364 | S41: =VLOOKUP($O41,P_All!$AR$5:$BG$244,3*($C$8-1)+3) -> 0.00042026 | T41: =VLOOKUP($O41,P_All!$AR$5:$BG$244,3*($C$8-1)+4) -> 0.0010629
A42: Be | C42: 4 | H42: 6 | I42: =VLOOKUP($H42,P_All!$A$5:$F$204,($C$8-1)+2) -> 0 | J42: =VLOOKUP($H42,P_All!$H$5:$M$204,($C$8-1)+2) -> 0 | K42: =VLOOKUP($H42,P_All!$O$5:$AD$204,3*($C$8-1)+2) -> 0.038621 | L42: =VLOOKUP($H42,P_All!$O$5:$AD$204,3*($C$8-1)+3) -> 0.051749 | M42: =VLOOKUP($H42,P_All!$O$5:$AD$204,3*($C$8-1)+4) -> 0.064486 | O42: 0.5 | P42: =VLOOKUP($O42,P_All!$AF$5:$AP$244,$C$8+1) -> 0 | Q42: =VLOOKUP($O42,P_All!$AF$5:$AP$244,$C$8+6) -> 0 | R42: =VLOOKUP($O42,P_All!$AR$5:$BG$244,3*($C$8-1)+2) -> 0.00012364 | S42: =VLOOKUP($O42,P_All!$AR$5:$BG$244,3*($C$8-1)+3) -> 0.00042026 | T42: =VLOOKUP($O42,P_All!$AR$5:$BG$244,3*($C$8-1)+4) -> 0.0010629
A43: Ca | H43: 7 | I43: =VLOOKUP($H43,P_All!$A$5:$F$204,($C$8-1)+2) -> 0 | J43: =VLOOKUP($H43,P_All!$H$5:$M$204,($C$8-1)+2) -> 0 | K43: =VLOOKUP($H43,P_All!$O$5:$AD$204,3*($C$8-1)+2) -> 0.051311 | L43: =VLOOKUP($H43,P_All!$O$5:$AD$204,3*($C$8-1)+3) -> 0.06842 | M43: =VLOOKUP($H43,P_All!$O$5:$AD$204,3*($C$8-1)+4) -> 0.085308 | O43: 0.5833333333 | P43: =VLOOKUP($O43,P_All!$AF$5:$AP$244,$C$8+1) -> 0 | Q43: =VLOOKUP($O43,P_All!$AF$5:$AP$244,$C$8+6) -> 0 | R43: =VLOOKUP($O43,P_All!$AR$5:$BG$244,3*($C$8-1)+2) -> 0.00029701 | S43: =VLOOKUP($O43,P_All!$AR$5:$BG$244,3*($C$8-1)+3) -> 0.00097125 | T43: =VLOOKUP($O43,P_All!$AR$5:$BG$244,3*($C$8-1)+4) -> 0.0027733
A44: Cd | C44: 5 | D44: 0.7852 | E44: -2.715 | F44: 2.462013793 | H44: 8 | I44: =VLOOKUP($H44,P_All!$A$5:$F$204,($C$8-1)+2) -> 0 | J44: =VLOOKUP($H44,P_All!$H$5:$M$204,($C$8-1)+2) -> 0 | K44: =VLOOKUP($H44,P_All!$O$5:$AD$204,3*($C$8-1)+2) -> 0.044072 | L44: =VLOOKUP($H44,P_All!$O$5:$AD$204,3*($C$8-1)+3) -> 0.059796 | M44: =VLOOKUP($H44,P_All!$O$5:$AD$204,3*($C$8-1)+4) -> 0.078352 | O44: 0.6666666667 | P44: =VLOOKUP($O44,P_All!$AF$5:$AP$244,$C$8+1) -> 0 | Q44: =VLOOKUP($O44,P_All!$AF$5:$AP$244,$C$8+6) -> 0 | R44: =VLOOKUP($O44,P_All!$AR$5:$BG$244,3*($C$8-1)+2) -> 0.00063505 | S44: =VLOOKUP($O44,P_All!$AR$5:$BG$244,3*($C$8-1)+3) -> 0.002043 | T44: =VLOOKUP($O44,P_All!$AR$5:$BG$244,3*($C$8-1)+4) -> 0.0043621
A45: Cl | B45: 230000 | C45: 230000 | H45: 9 | I45: =VLOOKUP($H45,P_All!$A$5:$F$204,($C$8-1)+2) -> 0 | J45: =VLOOKUP($H45,P_All!$H$5:$M$204,($C$8-1)+2) -> 0 | K45: =VLOOKUP($H45,P_All!$O$5:$AD$204,3*($C$8-1)+2) -> 0.035488 | L45: =VLOOKUP($H45,P_All!$O$5:$AD$204,3*($C$8-1)+3) -> 0.047504 | M45: =VLOOKUP($H45,P_All!$O$5:$AD$204,3*($C$8-1)+4) -> 0.060855 | O45: 0.75 | P45: =VLOOKUP($O45,P_All!$AF$5:$AP$244,$C$8+1) -> 0 | Q45: =VLOOKUP($O45,P_All!$AF$5:$AP$244,$C$8+6) -> 0 | R45: =VLOOKUP($O45,P_All!$AR$5:$BG$244,3*($C$8-1)+2) -> 0.00034272 | S45: =VLOOKUP($O45,P_All!$AR$5:$BG$244,3*($C$8-1)+3) -> 0.0015683 | T45: =VLOOKUP($O45,P_All!$AR$5:$BG$244,3*($C$8-1)+4) -> 0.0039396
A46: Co | B46: 5 | C46: 2.8 | H46: 10 | I46: =VLOOKUP($H46,P_All!$A$5:$F$204,($C$8-1)+2) -> 0 | J46: =VLOOKUP($H46,P_All!$H$5:$M$204,($C$8-1)+2) -> 0 | K46: =VLOOKUP($H46,P_All!$O$5:$AD$204,3*($C$8-1)+2) -> 0.024869 | L46: =VLOOKUP($H46,P_All!$O$5:$AD$204,3*($C$8-1)+3) -> 0.034737 | M46: =VLOOKUP($H46,P_All!$O$5:$AD$204,3*($C$8-1)+4) -> 0.044475 | O46: 0.8333333333 | P46: =VLOOKUP($O46,P_All!$AF$5:$AP$244,$C$8+1) -> 0 | Q46: =VLOOKUP($O46,P_All!$AF$5:$AP$244,$C$8+6) -> 0 | R46: =VLOOKUP($O46,P_All!$AR$5:$BG$244,3*($C$8-1)+2) -> 0.00026261 | S46: =VLOOKUP($O46,P_All!$AR$5:$BG$244,3*($C$8-1)+3) -> 0.0010036 | T46: =VLOOKUP($O46,P_All!$AR$5:$BG$244,3*($C$8-1)+4) -> 0.002393
A47: Cr | B47: 11 | C47: 11 | H47: 11 | I47: =VLOOKUP($H47,P_All!$A$5:$F$204,($C$8-1)+2) -> 0 | J47: =VLOOKUP($H47,P_All!$H$5:$M$204,($C$8-1)+2) -> 0 | K47: =VLOOKUP($H47,P_All!$O$5:$AD$204,3*($C$8-1)+2) -> 0.023852 | L47: =VLOOKUP($H47,P_All!$O$5:$AD$204,3*($C$8-1)+3) -> 0.034574 | M47: =VLOOKUP($H47,P_All!$O$5:$AD$204,3*($C$8-1)+4) -> 0.04468 | O47: 0.9166666667 | P47: =VLOOKUP($O47,P_All!$AF$5:$AP$244,$C$8+1) -> 0 | Q47: =VLOOKUP($O47,P_All!$AF$5:$AP$244,$C$8+6) -> 0 | R47: =VLOOKUP($O47,P_All!$AR$5:$BG$244,3*($C$8-1)+2) -> 4.2919e-05 | S47: =VLOOKUP($O47,P_All!$AR$5:$BG$244,3*($C$8-1)+3) -> 0.00047924 | T47: =VLOOKUP($O47,P_All!$AR$5:$BG$244,3*($C$8-1)+4) -> 0.0011136
A48: Cu | D48: 0.8545 | E48: -1.702 | F48: 9.328907606 | H48: 12 | I48: =VLOOKUP($H48,P_All!$A$5:$F$204,($C$8-1)+2) -> 0 | J48: =VLOOKUP($H48,P_All!$H$5:$M$204,($C$8-1)+2) -> 0 | K48: =VLOOKUP($H48,P_All!$O$5:$AD$204,3*($C$8-1)+2) -> 0.023942 | L48: =VLOOKUP($H48,P_All!$O$5:$AD$204,3*($C$8-1)+3) -> 0.033002 | M48: =VLOOKUP($H48,P_All!$O$5:$AD$204,3*($C$8-1)+4) -> 0.042828 | O48: 1 | P48: =VLOOKUP($O48,P_All!$AF$5:$AP$244,$C$8+1) -> 0 | Q48: =VLOOKUP($O48,P_All!$AF$5:$AP$244,$C$8+6) -> 0 | R48: =VLOOKUP($O48,P_All!$AR$5:$BG$244,3*($C$8-1)+2) -> -3.6775e-05 | S48: =VLOOKUP($O48,P_All!$AR$5:$BG$244,3*($C$8-1)+3) -> 0.00050129 | T48: =VLOOKUP($O48,P_All!$AR$5:$BG$244,3*($C$8-1)+4) -> 0.0012574
A49: F | C49: 4000 | H49: 13 | I49: =VLOOKUP($H49,P_All!$A$5:$F$204,($C$8-1)+2) -> 0 | J49: =VLOOKUP($H49,P_All!$H$5:$M$204,($C$8-1)+2) -> 0 | K49: =VLOOKUP($H49,P_All!$O$5:$AD$204,3*($C$8-1)+2) -> 0.02372 | L49: =VLOOKUP($H49,P_All!$O$5:$AD$204,3*($C$8-1)+3) -> 0.033555 | M49: =VLOOKUP($H49,P_All!$O$5:$AD$204,3*($C$8-1)+4) -> 0.043227 | O49: 1.083333333 | P49: =VLOOKUP($O49,P_All!$AF$5:$AP$244,$C$8+1) -> 0 | Q49: =VLOOKUP($O49,P_All!$AF$5:$AP$244,$C$8+6) -> 0 | R49: =VLOOKUP($O49,P_All!$AR$5:$BG$244,3*($C$8-1)+2) -> -9.334e-05 | S49: =VLOOKUP($O49,P_All!$AR$5:$BG$244,3*($C$8-1)+3) -> 0.00067958 | T49: =VLOOKUP($O49,P_All!$AR$5:$BG$244,3*($C$8-1)+4) -> 0.0016433
A50: Fe | C50: 300 | H50: 14 | I50: =VLOOKUP($H50,P_All!$A$5:$F$204,($C$8-1)+2) -> 0 | J50: =VLOOKUP($H50,P_All!$H$5:$M$204,($C$8-1)+2) -> 0 | K50: =VLOOKUP($H50,P_All!$O$5:$AD$204,3*($C$8-1)+2) -> 0.0225 | L50: =VLOOKUP($H50,P_All!$O$5:$AD$204,3*($C$8-1)+3) -> 0.031025 | M50: =VLOOKUP($H50,P_All!$O$5:$AD$204,3*($C$8-1)+4) -> 0.041991 | O50: 1.166666667 | P50: =VLOOKUP($O50,P_All!$AF$5:$AP$244,$C$8+1) -> 0 | Q50: =VLOOKUP($O50,P_All!$AF$5:$AP$244,$C$8+6) -> 0 | R50: =VLOOKUP($O50,P_All!$AR$5:$BG$244,3*($C$8-1)+2) -> -9.334e-05 | S50: =VLOOKUP($O50,P_All!$AR$5:$BG$244,3*($C$8-1)+3) -> 0.00067958 | T50: =VLOOKUP($O50,P_All!$AR$5:$BG$244,3*($C$8-1)+4) -> 0.0016433
A51: K | H51: 15 | I51: =VLOOKUP($H51,P_All!$A$5:$F$204,($C$8-1)+2) -> 0 | J51: =VLOOKUP($H51,P_All!$H$5:$M$204,($C$8-1)+2) -> 0 | K51: =VLOOKUP($H51,P_All!$O$5:$AD$204,3*($C$8-1)+2) -> 0.012566 | L51: =VLOOKUP($H51,P_All!$O$5:$AD$204,3*($C$8-1)+3) -> 0.024172 | M51: =VLOOKUP($H51,P_All!$O$5:$AD$204,3*($C$8-1)+4) -> 0.033328 | O51: 1.25 | P51: =VLOOKUP($O51,P_All!$AF$5:$AP$244,$C$8+1) -> 0 | Q51: =VLOOKUP($O51,P_All!$AF$5:$AP$244,$C$8+6) -> 0 | R51: =VLOOKUP($O51,P_All!$AR$5:$BG$244,3*($C$8-1)+2) -> -0.00044175 | S51: =VLOOKUP($O51,P_All!$AR$5:$BG$244,3*($C$8-1)+3) -> 0.00046321 | T51: =VLOOKUP($O51,P_All!$AR$5:$BG$244,3*($C$8-1)+4) -> 0.0014831
A52: Mg | H52: 16 | I52: =VLOOKUP($H52,P_All!$A$5:$F$204,($C$8-1)+2) -> 0 | J52: =VLOOKUP($H52,P_All!$H$5:$M$204,($C$8-1)+2) -> 0 | K52: =VLOOKUP($H52,P_All!$O$5:$AD$204,3*($C$8-1)+2) -> 0.011894 | L52: =VLOOKUP($H52,P_All!$O$5:$AD$204,3*($C$8-1)+3) -> 0.025118 | M52: =VLOOKUP($H52,P_All!$O$5:$AD$204,3*($C$8-1)+4) -> 0.036774 | O52: 1.333333333 | P52: =VLOOKUP($O52,P_All!$AF$5:$AP$244,$C$8+1) -> 0 | Q52: =VLOOKUP($O52,P_All!$AF$5:$AP$244,$C$8+6) -> 0 | R52: =VLOOKUP($O52,P_All!$AR$5:$BG$244,3*($C$8-1)+2) -> -0.00030448 | S52: =VLOOKUP($O52,P_All!$AR$5:$BG$244,3*($C$8-1)+3) -> 0.00044338 | T52: =VLOOKUP($O52,P_All!$AR$5:$BG$244,3*($C$8-1)+4) -> 0.0013876
A53: Mn | C53: 50 | H53: 17 | I53: =VLOOKUP($H53,P_All!$A$5:$F$204,($C$8-1)+2) -> 0 | J53: =VLOOKUP($H53,P_All!$H$5:$M$204,($C$8-1)+2) -> 0 | K53: =VLOOKUP($H53,P_All!$O$5:$AD$204,3*($C$8-1)+2) -> 0.007537 | L53: =VLOOKUP($H53,P_All!$O$5:$AD$204,3*($C$8-1)+3) -> 0.024285 | M53: =VLOOKUP($H53,P_All!$O$5:$AD$204,3*($C$8-1)+4) -> 0.035185 | O53: 1.416666667 | P53: =VLOOKUP($O53,P_All!$AF$5:$AP$244,$C$8+1) -> 0 | Q53: =VLOOKUP($O53,P_All!$AF$5:$AP$244,$C$8+6) -> 0 | R53: =VLOOKUP($O53,P_All!$AR$5:$BG$244,3*($C$8-1)+2) -> 7.4778e-05 | S53: =VLOOKUP($O53,P_All!$AR$5:$BG$244,3*($C$8-1)+3) -> 0.00026183 | T53: =VLOOKUP($O53,P_All!$AR$5:$BG$244,3*($C$8-1)+4) -> 0.0011239
A54: Na | H54: 18 | I54: =VLOOKUP($H54,P_All!$A$5:$F$204,($C$8-1)+2) -> 0 | J54: =VLOOKUP($H54,P_All!$H$5:$M$204,($C$8-1)+2) -> 0 | K54: =VLOOKUP($H54,P_All!$O$5:$AD$204,3*($C$8-1)+2) -> 0.017997 | L54: =VLOOKUP($H54,P_All!$O$5:$AD$204,3*($C$8-1)+3) -> 0.035861 | M54: =VLOOKUP($H54,P_All!$O$5:$AD$204,3*($C$8-1)+4) -> 0.047719 | O54: 1.5 | P54: =VLOOKUP($O54,P_All!$AF$5:$AP$244,$C$8+1) -> 0 | Q54: =VLOOKUP($O54,P_All!$AF$5:$AP$244,$C$8+6) -> 0 | R54: =VLOOKUP($O54,P_All!$AR$5:$BG$244,3*($C$8-1)+2) -> 0.00013013 | S54: =VLOOKUP($O54,P_All!$AR$5:$BG$244,3*($C$8-1)+3) -> 0.00043704 | T54: =VLOOKUP($O54,P_All!$AR$5:$BG$244,3*($C$8-1)+4) -> 0.0011205
A55: Ni | D55: 0.846 | E55: 0.0584 | F55: 52.16302848 | H55: 19 | I55: =VLOOKUP($H55,P_All!$A$5:$F$204,($C$8-1)+2) -> 0 | J55: =VLOOKUP($H55,P_All!$H$5:$M$204,($C$8-1)+2) -> 0 | K55: =VLOOKUP($H55,P_All!$O$5:$AD$204,3*($C$8-1)+2) -> 0.0041448 | L55: =VLOOKUP($H55,P_All!$O$5:$AD$204,3*($C$8-1)+3) -> 0.022289 | M55: =VLOOKUP($H55,P_All!$O$5:$AD$204,3*($C$8-1)+4) -> 0.03488 | O55: 1.583333333 | P55: =VLOOKUP($O55,P_All!$AF$5:$AP$244,$C$8+1) -> 0 | Q55: =VLOOKUP($O55,P_All!$AF$5:$AP$244,$C$8+6) -> 0 | R55: =VLOOKUP($O55,P_All!$AR$5:$BG$244,3*($C$8-1)+2) -> 0.00027693 | S55: =VLOOKUP($O55,P_All!$AR$5:$BG$244,3*($C$8-1)+3) -> 0.00087183 | T55: =VLOOKUP($O55,P_All!$AR$5:$BG$244,3*($C$8-1)+4) -> 0.0030524
A56: Pb | D56: 1.273 | E56: -4.705 | F56: 3.181591829 | H56: 20 | I56: =VLOOKUP($H56,P_All!$A$5:$F$204,($C$8-1)+2) -> 0 | J56: =VLOOKUP($H56,P_All!$H$5:$M$204,($C$8-1)+2) -> 0 | K56: =VLOOKUP($H56,P_All!$O$5:$AD$204,3*($C$8-1)+2) -> 0.0017176 | L56: =VLOOKUP($H56,P_All!$O$5:$AD$204,3*($C$8-1)+3) -> 0.023144 | M56: =VLOOKUP($H56,P_All!$O$5:$AD$204,3*($C$8-1)+4) -> 0.033562 | O56: 1.666666667 | P56: =VLOOKUP($O56,P_All!$AF$5:$AP$244,$C$8+1) -> 0 | Q56: =VLOOKUP($O56,P_All!$AF$5:$AP$244,$C$8+6) -> 0 | R56: =VLOOKUP($O56,P_All!$AR$5:$BG$244,3*($C$8-1)+2) -> 0.00038904 | S56: =VLOOKUP($O56,P_All!$AR$5:$BG$244,3*($C$8-1)+3) -> 0.001673 | T56: =VLOOKUP($O56,P_All!$AR$5:$BG$244,3*($C$8-1)+4) -> 0.004125
A57: Sb | B57: 31 | C57: 5.5 | H57: 21 | I57: =VLOOKUP($H57,P_All!$A$5:$F$204,($C$8-1)+2) -> 0 | J57: =VLOOKUP($H57,P_All!$H$5:$M$204,($C$8-1)+2) -> 0 | K57: =VLOOKUP($H57,P_All!$O$5:$AD$204,3*($C$8-1)+2) -> 0.00093559 | L57: =VLOOKUP($H57,P_All!$O$5:$AD$204,3*($C$8-1)+3) -> 0.017628 | M57: =VLOOKUP($H57,P_All!$O$5:$AD$204,3*($C$8-1)+4) -> 0.026624 | O57: 1.75 | P57: =VLOOKUP($O57,P_All!$AF$5:$AP$244,$C$8+1) -> 0 | Q57: =VLOOKUP($O57,P_All!$AF$5:$AP$244,$C$8+6) -> 0 | R57: =VLOOKUP($O57,P_All!$AR$5:$BG$244,3*($C$8-1)+2) -> 0.00055812 | S57: =VLOOKUP($O57,P_All!$AR$5:$BG$244,3*($C$8-1)+3) -> 0.0020543 | T57: =VLOOKUP($O57,P_All!$AR$5:$BG$244,3*($C$8-1)+4) -> 0.00459
A58: Se | B58: 5 | C58: 5 | H58: 22 | I58: =VLOOKUP($H58,P_All!$A$5:$F$204,($C$8-1)+2) -> 0 | J58: =VLOOKUP($H58,P_All!$H$5:$M$204,($C$8-1)+2) -> 0 | K58: =VLOOKUP($H58,P_All!$O$5:$AD$204,3*($C$8-1)+2) -> 0.00028144 | L58: =VLOOKUP($H58,P_All!$O$5:$AD$204,3*($C$8-1)+3) -> 0.016663 | M58: =VLOOKUP($H58,P_All!$O$5:$AD$204,3*($C$8-1)+4) -> 0.024884 | O58: 1.833333333 | P58: =VLOOKUP($O58,P_All!$AF$5:$AP$244,$C$8+1) -> 0 | Q58: =VLOOKUP($O58,P_All!$AF$5:$AP$244,$C$8+6) -> 0 | R58: =VLOOKUP($O58,P_All!$AR$5:$BG$244,3*($C$8-1)+2) -> 0.00037745 | S58: =VLOOKUP($O58,P_All!$AR$5:$BG$244,3*($C$8-1)+3) -> 0.0014607 | T58: =VLOOKUP($O58,P_All!$AR$5:$BG$244,3*($C$8-1)+4) -> 0.0039748
A59: SO4 | C59: 250000 | H59: 23 | I59: =VLOOKUP($H59,P_All!$A$5:$F$204,($C$8-1)+2) -> 0 | J59: =VLOOKUP($H59,P_All!$H$5:$M$204,($C$8-1)+2) -> 0 | K59: =VLOOKUP($H59,P_All!$O$5:$AD$204,3*($C$8-1)+2) -> 0.00011701 | L59: =VLOOKUP($H59,P_All!$O$5:$AD$204,3*($C$8-1)+3) -> 0.016757 | M59: =VLOOKUP($H59,P_All!$O$5:$AD$204,3*($C$8-1)+4) -> 0.024807 | O59: 1.916666667 | P59: =VLOOKUP($O59,P_All!$AF$5:$AP$244,$C$8+1) -> 0 | Q59: =VLOOKUP($O59,P_All!$AF$5:$AP$244,$C$8+6) -> 0 | R59: =VLOOKUP($O59,P_All!$AR$5:$BG$244,3*($C$8-1)+2) -> 0.00026942 | S59: =VLOOKUP($O59,P_All!$AR$5:$BG$244,3*($C$8-1)+3) -> 0.00096952 | T59: =VLOOKUP($O59,P_All!$AR$5:$BG$244,3*($C$8-1)+4) -> 0.0023564
A60: Tl | B60: 0.56 | C60: 0.28 | H60: 24 | I60: =VLOOKUP($H60,P_All!$A$5:$F$204,($C$8-1)+2) -> 0 | J60: =VLOOKUP($H60,P_All!$H$5:$M$204,($C$8-1)+2) -> 0 | K60: =VLOOKUP($H60,P_All!$O$5:$AD$204,3*($C$8-1)+2) -> 8.9154e-05 | L60: =VLOOKUP($H60,P_All!$O$5:$AD$204,3*($C$8-1)+3) -> 0.015255 | M60: =VLOOKUP($H60,P_All!$O$5:$AD$204,3*($C$8-1)+4) -> 0.024005 | O60: 2 | P60: =VLOOKUP($O60,P_All!$AF$5:$AP$244,$C$8+1) -> 0 | Q60: =VLOOKUP($O60,P_All!$AF$5:$AP$244,$C$8+6) -> 0 | R60: =VLOOKUP($O60,P_All!$AR$5:$BG$244,3*($C$8-1)+2) -> 4.2582e-05 | S60: =VLOOKUP($O60,P_All!$AR$5:$BG$244,3*($C$8-1)+3) -> 0.00048858 | T60: =VLOOKUP($O60,P_All!$AR$5:$BG$244,3*($C$8-1)+4) -> 0.0011545
A61: V | H61: 25 | I61: =VLOOKUP($H61,P_All!$A$5:$F$204,($C$8-1)+2) -> 0 | J61: =VLOOKUP($H61,P_All!$H$5:$M$204,($C$8-1)+2) -> 0 | K61: =VLOOKUP($H61,P_All!$O$5:$AD$204,3*($C$8-1)+2) -> 1.6968e-05 | L61: =VLOOKUP($H61,P_All!$O$5:$AD$204,3*($C$8-1)+3) -> 0.013892 | M61: =VLOOKUP($H61,P_All!$O$5:$AD$204,3*($C$8-1)+4) -> 0.02243 | O61: 2.083333333 | P61: =VLOOKUP($O61,P_All!$AF$5:$AP$244,$C$8+1) -> 0 | Q61: =VLOOKUP($O61,P_All!$AF$5:$AP$244,$C$8+6) -> 0 | R61: =VLOOKUP($O61,P_All!$AR$5:$BG$244,3*($C$8-1)+2) -> -5.3026e-05 | S61: =VLOOKUP($O61,P_All!$AR$5:$BG$244,3*($C$8-1)+3) -> 0.00053625 | T61: =VLOOKUP($O61,P_All!$AR$5:$BG$244,3*($C$8-1)+4) -> 0.0013594
A62: Zn | D62: 0.8473 | E62: 0.884 | F62: 119.8164153 | H62: 26 | I62: =VLOOKUP($H62,P_All!$A$5:$F$204,($C$8-1)+2) -> 0 | J62: =VLOOKUP($H62,P_All!$H$5:$M$204,($C$8-1)+2) -> 0 | K62: =VLOOKUP($H62,P_All!$O$5:$AD$204,3*($C$8-1)+2) -> -7.1022e-05 | L62: =VLOOKUP($H62,P_All!$O$5:$AD$204,3*($C$8-1)+3) -> 0.011587 | M62: =VLOOKUP($H62,P_All!$O$5:$AD$204,3*($C$8-1)+4) -> 0.019246 | O62: 2.166666667 | P62: =VLOOKUP($O62,P_All!$AF$5:$AP$244,$C$8+1) -> 0 | Q62: =VLOOKUP($O62,P_All!$AF$5:$AP$244,$C$8+6) -> 0 | R62: =VLOOKUP($O62,P_All!$AR$5:$BG$244,3*($C$8-1)+2) -> -7.5632e-05 | S62: =VLOOKUP($O62,P_All!$AR$5:$BG$244,3*($C$8-1)+3) -> 0.00069852 | T62: =VLOOKUP($O62,P_All!$AR$5:$BG$244,3*($C$8-1)+4) -> 0.0018482
A63: Hardness | B63: 500000 | C63: 500000 | H63: 27 | I63: =VLOOKUP($H63,P_All!$A$5:$F$204,($C$8-1)+2) -> 0 | J63: =VLOOKUP($H63,P_All!$H$5:$M$204,($C$8-1)+2) -> 0 | K63: =VLOOKUP($H63,P_All!$O$5:$AD$204,3*($C$8-1)+2) -> -0.00036428 | L63: =VLOOKUP($H63,P_All!$O$5:$AD$204,3*($C$8-1)+3) -> 0.0094313 | M63: =VLOOKUP($H63,P_All!$O$5:$AD$204,3*($C$8-1)+4) -> 0.016793 | O63: 2.25 | P63: =VLOOKUP($O63,P_All!$AF$5:$AP$244,$C$8+1) -> 0 | Q63: =VLOOKUP($O63,P_All!$AF$5:$AP$244,$C$8+6) -> 0 | R63: =VLOOKUP($O63,P_All!$AR$5:$BG$244,3*($C$8-1)+2) -> -0.00044344 | S63: =VLOOKUP($O63,P_All!$AR$5:$BG$244,3*($C$8-1)+3) -> 0.00047497 | T63: =VLOOKUP($O63,P_All!$AR$5:$BG$244,3*($C$8-1)+4) -> 0.0015711
H64: 28 | I64: =VLOOKUP($H64,P_All!$A$5:$F$204,($C$8-1)+2) -> 0 | J64: =VLOOKUP($H64,P_All!$H$5:$M$204,($C$8-1)+2) -> 0 | K64: =VLOOKUP($H64,P_All!$O$5:$AD$204,3*($C$8-1)+2) -> -0.00051823 | L64: =VLOOKUP($H64,P_All!$O$5:$AD$204,3*($C$8-1)+3) -> 0.0057697 | M64: =VLOOKUP($H64,P_All!$O$5:$AD$204,3*($C$8-1)+4) -> 0.012772 | O64: 2.333333333 | P64: =VLOOKUP($O64,P_All!$AF$5:$AP$244,$C$8+1) -> 0 | Q64: =VLOOKUP($O64,P_All!$AF$5:$AP$244,$C$8+6) -> 0 | R64: =VLOOKUP($O64,P_All!$AR$5:$BG$244,3*($C$8-1)+2) -> -0.00028954 | S64: =VLOOKUP($O64,P_All!$AR$5:$BG$244,3*($C$8-1)+3) -> 0.00045378 | T64: =VLOOKUP($O64,P_All!$AR$5:$BG$244,3*($C$8-1)+4) -> 0.0015098
H65: 29 | I65: =VLOOKUP($H65,P_All!$A$5:$F$204,($C$8-1)+2) -> 0 | J65: =VLOOKUP($H65,P_All!$H$5:$M$204,($C$8-1)+2) -> 0 | K65: =VLOOKUP($H65,P_All!$O$5:$AD$204,3*($C$8-1)+2) -> -0.00069159 | L65: =VLOOKUP($H65,P_All!$O$5:$AD$204,3*($C$8-1)+3) -> 0.0039128 | M65: =VLOOKUP($H65,P_All!$O$5:$AD$204,3*($C$8-1)+4) -> 0.010714 | O65: 2.416666667 | P65: =VLOOKUP($O65,P_All!$AF$5:$AP$244,$C$8+1) -> 0 | Q65: =VLOOKUP($O65,P_All!$AF$5:$AP$244,$C$8+6) -> 0 | R65: =VLOOKUP($O65,P_All!$AR$5:$BG$244,3*($C$8-1)+2) -> 0.00012378 | S65: =VLOOKUP($O65,P_All!$AR$5:$BG$244,3*($C$8-1)+3) -> 0.00041406 | T65: =VLOOKUP($O65,P_All!$AR$5:$BG$244,3*($C$8-1)+4) -> 0.0010628
H66: 30 | I66: =VLOOKUP($H66,P_All!$A$5:$F$204,($C$8-1)+2) -> 0 | J66: =VLOOKUP($H66,P_All!$H$5:$M$204,($C$8-1)+2) -> 0 | K66: =VLOOKUP($H66,P_All!$O$5:$AD$204,3*($C$8-1)+2) -> -0.00082134 | L66: =VLOOKUP($H66,P_All!$O$5:$AD$204,3*($C$8-1)+3) -> 0.002642 | M66: =VLOOKUP($H66,P_All!$O$5:$AD$204,3*($C$8-1)+4) -> 0.0091324 | O66: 2.5 | P66: =VLOOKUP($O66,P_All!$AF$5:$AP$244,$C$8+1) -> 0 | Q66: =VLOOKUP($O66,P_All!$AF$5:$AP$244,$C$8+6) -> 0 | R66: =VLOOKUP($O66,P_All!$AR$5:$BG$244,3*($C$8-1)+2) -> 0.00027151 | S66: =VLOOKUP($O66,P_All!$AR$5:$BG$244,3*($C$8-1)+3) -> 0.00089972 | T66: =VLOOKUP($O66,P_All!$AR$5:$BG$244,3*($C$8-1)+4) -> 0.0027047
H67: 31 | I67: =VLOOKUP($H67,P_All!$A$5:$F$204,($C$8-1)+2) -> 0 | J67: =VLOOKUP($H67,P_All!$H$5:$M$204,($C$8-1)+2) -> 0 | K67: =VLOOKUP($H67,P_All!$O$5:$AD$204,3*($C$8-1)+2) -> -0.0010196 | L67: =VLOOKUP($H67,P_All!$O$5:$AD$204,3*($C$8-1)+3) -> 0.001575 | M67: =VLOOKUP($H67,P_All!$O$5:$AD$204,3*($C$8-1)+4) -> 0.0085376 | O67: 2.583333333 | P67: =VLOOKUP($O67,P_All!$AF$5:$AP$244,$C$8+1) -> 0 | Q67: =VLOOKUP($O67,P_All!$AF$5:$AP$244,$C$8+6) -> 0 | R67: =VLOOKUP($O67,P_All!$AR$5:$BG$244,3*($C$8-1)+2) -> 0.00040675 | S67: =VLOOKUP($O67,P_All!$AR$5:$BG$244,3*($C$8-1)+3) -> 0.0015836 | T67: =VLOOKUP($O67,P_All!$AR$5:$BG$244,3*($C$8-1)+4) -> 0.0038696
H68: 32 | I68: =VLOOKUP($H68,P_All!$A$5:$F$204,($C$8-1)+2) -> 0 | J68: =VLOOKUP($H68,P_All!$H$5:$M$204,($C$8-1)+2) -> 0 | K68: =VLOOKUP($H68,P_All!$O$5:$AD$204,3*($C$8-1)+2) -> -0.0011711 | L68: =VLOOKUP($H68,P_All!$O$5:$AD$204,3*($C$8-1)+3) -> 0.0012978 | M68: =VLOOKUP($H68,P_All!$O$5:$AD$204,3*($C$8-1)+4) -> 0.0077767 | O68: 2.666666667 | P68: =VLOOKUP($O68,P_All!$AF$5:$AP$244,$C$8+1) -> 0 | Q68: =VLOOKUP($O68,P_All!$AF$5:$AP$244,$C$8+6) -> 0 | R68: =VLOOKUP($O68,P_All!$AR$5:$BG$244,3*($C$8-1)+2) -> 0.00049832 | S68: =VLOOKUP($O68,P_All!$AR$5:$BG$244,3*($C$8-1)+3) -> 0.0019449 | T68: =VLOOKUP($O68,P_All!$AR$5:$BG$244,3*($C$8-1)+4) -> 0.0045779
H69: 33 | I69: =VLOOKUP($H69,P_All!$A$5:$F$204,($C$8-1)+2) -> 0 | J69: =VLOOKUP($H69,P_All!$H$5:$M$204,($C$8-1)+2) -> 0 | K69: =VLOOKUP($H69,P_All!$O$5:$AD$204,3*($C$8-1)+2) -> -0.0013007 | L69: =VLOOKUP($H69,P_All!$O$5:$AD$204,3*($C$8-1)+3) -> 0.0011481 | M69: =VLOOKUP($H69,P_All!$O$5:$AD$204,3*($C$8-1)+4) -> 0.0077012 | O69: 2.75 | P69: =VLOOKUP($O69,P_All!$AF$5:$AP$244,$C$8+1) -> 0 | Q69: =VLOOKUP($O69,P_All!$AF$5:$AP$244,$C$8+6) -> 0 | R69: =VLOOKUP($O69,P_All!$AR$5:$BG$244,3*($C$8-1)+2) -> 0.00039522 | S69: =VLOOKUP($O69,P_All!$AR$5:$BG$244,3*($C$8-1)+3) -> 0.0015441 | T69: =VLOOKUP($O69,P_All!$AR$5:$BG$244,3*($C$8-1)+4) -> 0.0040134
H70: 34 | I70: =VLOOKUP($H70,P_All!$A$5:$F$204,($C$8-1)+2) -> 0 | J70: =VLOOKUP($H70,P_All!$H$5:$M$204,($C$8-1)+2) -> 0 | K70: =VLOOKUP($H70,P_All!$O$5:$AD$204,3*($C$8-1)+2) -> -0.0012286 | L70: =VLOOKUP($H70,P_All!$O$5:$AD$204,3*($C$8-1)+3) -> 0.00087882 | M70: =VLOOKUP($H70,P_All!$O$5:$AD$204,3*($C$8-1)+4) -> 0.0072022 | O70: 2.833333333 | P70: =VLOOKUP($O70,P_All!$AF$5:$AP$244,$C$8+1) -> 0 | Q70: =VLOOKUP($O70,P_All!$AF$5:$AP$244,$C$8+6) -> 0 | R70: =VLOOKUP($O70,P_All!$AR$5:$BG$244,3*($C$8-1)+2) -> 0.00027588 | S70: =VLOOKUP($O70,P_All!$AR$5:$BG$244,3*($C$8-1)+3) -> 0.00095135 | T70: =VLOOKUP($O70,P_All!$AR$5:$BG$244,3*($C$8-1)+4) -> 0.002274
H71: 35 | I71: =VLOOKUP($H71,P_All!$A$5:$F$204,($C$8-1)+2) -> 0 | J71: =VLOOKUP($H71,P_All!$H$5:$M$204,($C$8-1)+2) -> 0 | K71: =VLOOKUP($H71,P_All!$O$5:$AD$204,3*($C$8-1)+2) -> -0.0013947 | L71: =VLOOKUP($H71,P_All!$O$5:$AD$204,3*($C$8-1)+3) -> 0.00067934 | M71: =VLOOKUP($H71,P_All!$O$5:$AD$204,3*($C$8-1)+4) -> 0.0056348 | O71: 2.916666667 | P71: =VLOOKUP($O71,P_All!$AF$5:$AP$244,$C$8+1) -> 0 | Q71: =VLOOKUP($O71,P_All!$AF$5:$AP$244,$C$8+6) -> 0 | R71: =VLOOKUP($O71,P_All!$AR$5:$BG$244,3*($C$8-1)+2) -> -7.2897e-05 | S71: =VLOOKUP($O71,P_All!$AR$5:$BG$244,3*($C$8-1)+3) -> 0.00037757 | T71: =VLOOKUP($O71,P_All!$AR$5:$BG$244,3*($C$8-1)+4) -> 0.0010892
H72: 36 | I72: =VLOOKUP($H72,P_All!$A$5:$F$204,($C$8-1)+2) -> 0 | J72: =VLOOKUP($H72,P_All!$H$5:$M$204,($C$8-1)+2) -> 0 | K72: =VLOOKUP($H72,P_All!$O$5:$AD$204,3*($C$8-1)+2) -> -0.0017056 | L72: =VLOOKUP($H72,P_All!$O$5:$AD$204,3*($C$8-1)+3) -> 0.00040345 | M72: =VLOOKUP($H72,P_All!$O$5:$AD$204,3*($C$8-1)+4) -> 0.0046577 | O72: 3 | P72: =VLOOKUP($O72,P_All!$AF$5:$AP$244,$C$8+1) -> 0 | Q72: =VLOOKUP($O72,P_All!$AF$5:$AP$244,$C$8+6) -> 0 | R72: =VLOOKUP($O72,P_All!$AR$5:$BG$244,3*($C$8-1)+2) -> -0.00018514 | S72: =VLOOKUP($O72,P_All!$AR$5:$BG$244,3*($C$8-1)+3) -> 0.00045667 | T72: =VLOOKUP($O72,P_All!$AR$5:$BG$244,3*($C$8-1)+4) -> 0.0012454
H73: 37 | I73: =VLOOKUP($H73,P_All!$A$5:$F$204,($C$8-1)+2) -> 0 | J73: =VLOOKUP($H73,P_All!$H$5:$M$204,($C$8-1)+2) -> 0 | K73: =VLOOKUP($H73,P_All!$O$5:$AD$204,3*($C$8-1)+2) -> -0.0015773 | L73: =VLOOKUP($H73,P_All!$O$5:$AD$204,3*($C$8-1)+3) -> 0.00038091 | M73: =VLOOKUP($H73,P_All!$O$5:$AD$204,3*($C$8-1)+4) -> 0.0045952 | O73: 3.083333333 | P73: =VLOOKUP($O73,P_All!$AF$5:$AP$244,$C$8+1) -> 0 | Q73: =VLOOKUP($O73,P_All!$AF$5:$AP$244,$C$8+6) -> 0 | R73: =VLOOKUP($O73,P_All!$AR$5:$BG$244,3*($C$8-1)+2) -> -0.00058857 | S73: =VLOOKUP($O73,P_All!$AR$5:$BG$244,3*($C$8-1)+3) -> 0.00031772 | T73: =VLOOKUP($O73,P_All!$AR$5:$BG$244,3*($C$8-1)+4) -> 0.0015225
H74: 38 | I74: =VLOOKUP($H74,P_All!$A$5:$F$204,($C$8-1)+2) -> 0 | J74: =VLOOKUP($H74,P_All!$H$5:$M$204,($C$8-1)+2) -> 0 | K74: =VLOOKUP($H74,P_All!$O$5:$AD$204,3*($C$8-1)+2) -> -0.0016229 | L74: =VLOOKUP($H74,P_All!$O$5:$AD$204,3*($C$8-1)+3) -> 0.00032234 | M74: =VLOOKUP($H74,P_All!$O$5:$AD$204,3*($C$8-1)+4) -> 0.003919 | O74: 3.166666667 | P74: =VLOOKUP($O74,P_All!$AF$5:$AP$244,$C$8+1) -> 0 | Q74: =VLOOKUP($O74,P_All!$AF$5:$AP$244,$C$8+6) -> 0 | R74: =VLOOKUP($O74,P_All!$AR$5:$BG$244,3*($C$8-1)+2) -> -0.0011346 | S74: =VLOOKUP($O74,P_All!$AR$5:$BG$244,3*($C$8-1)+3) -> -0.00015749 | T74: =VLOOKUP($O74,P_All!$AR$5:$BG$244,3*($C$8-1)+4) -> 0.00084241
H75: 39 | I75: =VLOOKUP($H75,P_All!$A$5:$F$204,($C$8-1)+2) -> 0 | J75: =VLOOKUP($H75,P_All!$H$5:$M$204,($C$8-1)+2) -> 0 | K75: =VLOOKUP($H75,P_All!$O$5:$AD$204,3*($C$8-1)+2) -> -0.0018348 | L75: =VLOOKUP($H75,P_All!$O$5:$AD$204,3*($C$8-1)+3) -> 0.00032413 | M75: =VLOOKUP($H75,P_All!$O$5:$AD$204,3*($C$8-1)+4) -> 0.0042521 | O75: 3.25 | P75: =VLOOKUP($O75,P_All!$AF$5:$AP$244,$C$8+1) -> 0 | Q75: =VLOOKUP($O75,P_All!$AF$5:$AP$244,$C$8+6) -> 0 | R75: =VLOOKUP($O75,P_All!$AR$5:$BG$244,3*($C$8-1)+2) -> -0.00057265 | S75: =VLOOKUP($O75,P_All!$AR$5:$BG$244,3*($C$8-1)+3) -> 0.00029066 | T75: =VLOOKUP($O75,P_All!$AR$5:$BG$244,3*($C$8-1)+4) -> 0.0012582
H76: 40 | I76: =VLOOKUP($H76,P_All!$A$5:$F$204,($C$8-1)+2) -> 0 | J76: =VLOOKUP($H76,P_All!$H$5:$M$204,($C$8-1)+2) -> 0 | K76: =VLOOKUP($H76,P_All!$O$5:$AD$204,3*($C$8-1)+2) -> -0.0015786 | L76: =VLOOKUP($H76,P_All!$O$5:$AD$204,3*($C$8-1)+3) -> 0.00024242 | M76: =VLOOKUP($H76,P_All!$O$5:$AD$204,3*($C$8-1)+4) -> 0.0039439 | O76: 3.333333333 | P76: =VLOOKUP($O76,P_All!$AF$5:$AP$244,$C$8+1) -> 0 | Q76: =VLOOKUP($O76,P_All!$AF$5:$AP$244,$C$8+6) -> 0 | R76: =VLOOKUP($O76,P_All!$AR$5:$BG$244,3*($C$8-1)+2) -> 8.9255e-05 | S76: =VLOOKUP($O76,P_All!$AR$5:$BG$244,3*($C$8-1)+3) -> 0.00030181 | T76: =VLOOKUP($O76,P_All!$AR$5:$BG$244,3*($C$8-1)+4) -> 0.0011053
H77: 41 | I77: =VLOOKUP($H77,P_All!$A$5:$F$204,($C$8-1)+2) -> 0 | J77: =VLOOKUP($H77,P_All!$H$5:$M$204,($C$8-1)+2) -> 0 | K77: =VLOOKUP($H77,P_All!$O$5:$AD$204,3*($C$8-1)+2) -> -0.0020263 | L77: =VLOOKUP($H77,P_All!$O$5:$AD$204,3*($C$8-1)+3) -> 0.00022528 | M77: =VLOOKUP($H77,P_All!$O$5:$AD$204,3*($C$8-1)+4) -> 0.0038199 | O77: 3.416666667 | P77: =VLOOKUP($O77,P_All!$AF$5:$AP$244,$C$8+1) -> 0 | Q77: =VLOOKUP($O77,P_All!$AF$5:$AP$244,$C$8+6) -> 0 | R77: =VLOOKUP($O77,P_All!$AR$5:$BG$244,3*($C$8-1)+2) -> 0.00016706 | S77: =VLOOKUP($O77,P_All!$AR$5:$BG$244,3*($C$8-1)+3) -> 0.00049127 | T77: =VLOOKUP($O77,P_All!$AR$5:$BG$244,3*($C$8-1)+4) -> 0.0012452
H78: 42 | I78: =VLOOKUP($H78,P_All!$A$5:$F$204,($C$8-1)+2) -> 0 | J78: =VLOOKUP($H78,P_All!$H$5:$M$204,($C$8-1)+2) -> 0 | K78: =VLOOKUP($H78,P_All!$O$5:$AD$204,3*($C$8-1)+2) -> -0.0020154 | L78: =VLOOKUP($H78,P_All!$O$5:$AD$204,3*($C$8-1)+3) -> 0.00016948 | M78: =VLOOKUP($H78,P_All!$O$5:$AD$204,3*($C$8-1)+4) -> 0.0038192 | O78: 3.5 | P78: =VLOOKUP($O78,P_All!$AF$5:$AP$244,$C$8+1) -> 0 | Q78: =VLOOKUP($O78,P_All!$AF$5:$AP$244,$C$8+6) -> 0 | R78: =VLOOKUP($O78,P_All!$AR$5:$BG$244,3*($C$8-1)+2) -> 0.00028079 | S78: =VLOOKUP($O78,P_All!$AR$5:$BG$244,3*($C$8-1)+3) -> 0.00088667 | T78: =VLOOKUP($O78,P_All!$AR$5:$BG$244,3*($C$8-1)+4) -> 0.0031603
H79: 43 | I79: =VLOOKUP($H79,P_All!$A$5:$F$204,($C$8-1)+2) -> 0 | J79: =VLOOKUP($H79,P_All!$H$5:$M$204,($C$8-1)+2) -> 0 | K79: =VLOOKUP($H79,P_All!$O$5:$AD$204,3*($C$8-1)+2) -> -0.0021055 | L79: =VLOOKUP($H79,P_All!$O$5:$AD$204,3*($C$8-1)+3) -> 0.00015015 | M79: =VLOOKUP($H79,P_All!$O$5:$AD$204,3*($C$8-1)+4) -> 0.0035122 | O79: 3.583333333 | P79: =VLOOKUP($O79,P_All!$AF$5:$AP$244,$C$8+1) -> 0 | Q79: =VLOOKUP($O79,P_All!$AF$5:$AP$244,$C$8+6) -> 0 | R79: =VLOOKUP($O79,P_All!$AR$5:$BG$244,3*($C$8-1)+2) -> 0.00037558 | S79: =VLOOKUP($O79,P_All!$AR$5:$BG$244,3*($C$8-1)+3) -> 0.0016371 | T79: =VLOOKUP($O79,P_All!$AR$5:$BG$244,3*($C$8-1)+4) -> 0.0042853
H80: 44 | I80: =VLOOKUP($H80,P_All!$A$5:$F$204,($C$8-1)+2) -> 0 | J80: =VLOOKUP($H80,P_All!$H$5:$M$204,($C$8-1)+2) -> 0 | K80: =VLOOKUP($H80,P_All!$O$5:$AD$204,3*($C$8-1)+2) -> -0.0024105 | L80: =VLOOKUP($H80,P_All!$O$5:$AD$204,3*($C$8-1)+3) -> 0.00014842 | M80: =VLOOKUP($H80,P_All!$O$5:$AD$204,3*($C$8-1)+4) -> 0.0035977 | O80: 3.666666667 | P80: =VLOOKUP($O80,P_All!$AF$5:$AP$244,$C$8+1) -> 0 | Q80: =VLOOKUP($O80,P_All!$AF$5:$AP$244,$C$8+6) -> 0 | R80: =VLOOKUP($O80,P_All!$AR$5:$BG$244,3*($C$8-1)+2) -> 0.0005847 | S80: =VLOOKUP($O80,P_All!$AR$5:$BG$244,3*($C$8-1)+3) -> 0.0021478 | T80: =VLOOKUP($O80,P_All!$AR$5:$BG$244,3*($C$8-1)+4) -> 0.0046153
H81: 45 | I81: =VLOOKUP($H81,P_All!$A$5:$F$204,($C$8-1)+2) -> 0 | J81: =VLOOKUP($H81,P_All!$H$5:$M$204,($C$8-1)+2) -> 0 | K81: =VLOOKUP($H81,P_All!$O$5:$AD$204,3*($C$8-1)+2) -> -0.0018479 | L81: =VLOOKUP($H81,P_All!$O$5:$AD$204,3*($C$8-1)+3) -> 0.00011922 | M81: =VLOOKUP($H81,P_All!$O$5:$AD$204,3*($C$8-1)+4) -> 0.0035624 | O81: 3.75 | P81: =VLOOKUP($O81,P_All!$AF$5:$AP$244,$C$8+1) -> 0 | Q81: =VLOOKUP($O81,P_All!$AF$5:$AP$244,$C$8+6) -> 0 | R81: =VLOOKUP($O81,P_All!$AR$5:$BG$244,3*($C$8-1)+2) -> 0.00046908 | S81: =VLOOKUP($O81,P_All!$AR$5:$BG$244,3*($C$8-1)+3) -> 0.0018011 | T81: =VLOOKUP($O81,P_All!$AR$5:$BG$244,3*($C$8-1)+4) -> 0.0043393
H82: 46 | I82: =VLOOKUP($H82,P_All!$A$5:$F$204,($C$8-1)+2) -> 0 | J82: =VLOOKUP($H82,P_All!$H$5:$M$204,($C$8-1)+2) -> 0 | K82: =VLOOKUP($H82,P_All!$O$5:$AD$204,3*($C$8-1)+2) -> -0.0017774 | L82: =VLOOKUP($H82,P_All!$O$5:$AD$204,3*($C$8-1)+3) -> 0.00012878 | M82: =VLOOKUP($H82,P_All!$O$5:$AD$204,3*($C$8-1)+4) -> 0.0029586 | O82: 3.833333333 | P82: =VLOOKUP($O82,P_All!$AF$5:$AP$244,$C$8+1) -> 0 | Q82: =VLOOKUP($O82,P_All!$AF$5:$AP$244,$C$8+6) -> 0 | R82: =VLOOKUP($O82,P_All!$AR$5:$BG$244,3*($C$8-1)+2) -> -0.00052792 | S82: =VLOOKUP($O82,P_All!$AR$5:$BG$244,3*($C$8-1)+3) -> 1.0976e-05 | T82: =VLOOKUP($O82,P_All!$AR$5:$BG$244,3*($C$8-1)+4) -> 0.0008174
H83: 47 | I83: =VLOOKUP($H83,P_All!$A$5:$F$204,($C$8-1)+2) -> 0 | J83: =VLOOKUP($H83,P_All!$H$5:$M$204,($C$8-1)+2) -> 0 | K83: =VLOOKUP($H83,P_All!$O$5:$AD$204,3*($C$8-1)+2) -> -0.002311 | L83: =VLOOKUP($H83,P_All!$O$5:$AD$204,3*($C$8-1)+3) -> 0.00014026 | M83: =VLOOKUP($H83,P_All!$O$5:$AD$204,3*($C$8-1)+4) -> 0.0036171 | O83: 3.916666667 | P83: =VLOOKUP($O83,P_All!$AF$5:$AP$244,$C$8+1) -> 0 | Q83: =VLOOKUP($O83,P_All!$AF$5:$AP$244,$C$8+6) -> 0 | R83: =VLOOKUP($O83,P_All!$AR$5:$BG$244,3*($C$8-1)+2) -> -6.7277e-05 | S83: =VLOOKUP($O83,P_All!$AR$5:$BG$244,3*($C$8-1)+3) -> 0.00048789 | T83: =VLOOKUP($O83,P_All!$AR$5:$BG$244,3*($C$8-1)+4) -> 0.0012351
H84: 48 | I84: =VLOOKUP($H84,P_All!$A$5:$F$204,($C$8-1)+2) -> 0 | J84: =VLOOKUP($H84,P_All!$H$5:$M$204,($C$8-1)+2) -> 0 | K84: =VLOOKUP($H84,P_All!$O$5:$AD$204,3*($C$8-1)+2) -> -0.0019302 | L84: =VLOOKUP($H84,P_All!$O$5:$AD$204,3*($C$8-1)+3) -> 0.00013016 | M84: =VLOOKUP($H84,P_All!$O$5:$AD$204,3*($C$8-1)+4) -> 0.0031188 | O84: 4 | P84: =VLOOKUP($O84,P_All!$AF$5:$AP$244,$C$8+1) -> 0 | Q84: =VLOOKUP($O84,P_All!$AF$5:$AP$244,$C$8+6) -> 0 | R84: =VLOOKUP($O84,P_All!$AR$5:$BG$244,3*($C$8-1)+2) -> 0.0006787 | S84: =VLOOKUP($O84,P_All!$AR$5:$BG$244,3*($C$8-1)+3) -> 0.0013933 | T84: =VLOOKUP($O84,P_All!$AR$5:$BG$244,3*($C$8-1)+4) -> 0.0027801
H85: 49 | I85: =VLOOKUP($H85,P_All!$A$5:$F$204,($C$8-1)+2) -> 0 | J85: =VLOOKUP($H85,P_All!$H$5:$M$204,($C$8-1)+2) -> 0 | K85: =VLOOKUP($H85,P_All!$O$5:$AD$204,3*($C$8-1)+2) -> -0.0019365 | L85: =VLOOKUP($H85,P_All!$O$5:$AD$204,3*($C$8-1)+3) -> 0.00011012 | M85: =VLOOKUP($H85,P_All!$O$5:$AD$204,3*($C$8-1)+4) -> 0.0035853 | O85: 4.083333333 | P85: =VLOOKUP($O85,P_All!$AF$5:$AP$244,$C$8+1) -> 0 | Q85: =VLOOKUP($O85,P_All!$AF$5:$AP$244,$C$8+6) -> 0 | R85: =VLOOKUP($O85,P_All!$AR$5:$BG$244,3*($C$8-1)+2) -> 0.0017811 | S85: =VLOOKUP($O85,P_All!$AR$5:$BG$244,3*($C$8-1)+3) -> 0.0028115 | T85: =VLOOKUP($O85,P_All!$AR$5:$BG$244,3*($C$8-1)+4) -> 0.0041977
H86: 50 | I86: =VLOOKUP($H86,P_All!$A$5:$F$204,($C$8-1)+2) -> 0 | J86: =VLOOKUP($H86,P_All!$H$5:$M$204,($C$8-1)+2) -> 0 | K86: =VLOOKUP($H86,P_All!$O$5:$AD$204,3*($C$8-1)+2) -> -0.0020214 | L86: =VLOOKUP($H86,P_All!$O$5:$AD$204,3*($C$8-1)+3) -> 6.9705e-05 | M86: =VLOOKUP($H86,P_All!$O$5:$AD$204,3*($C$8-1)+4) -> 0.0033145 | O86: 4.166666667 | P86: =VLOOKUP($O86,P_All!$AF$5:$AP$244,$C$8+1) -> 0 | Q86: =VLOOKUP($O86,P_All!$AF$5:$AP$244,$C$8+6) -> 0 | R86: =VLOOKUP($O86,P_All!$AR$5:$BG$244,3*($C$8-1)+2) -> 0.0027625 | S86: =VLOOKUP($O86,P_All!$AR$5:$BG$244,3*($C$8-1)+3) -> 0.0039979 | T86: =VLOOKUP($O86,P_All!$AR$5:$BG$244,3*($C$8-1)+4) -> 0.0054569
H87: 51 | I87: =VLOOKUP($H87,P_All!$A$5:$F$204,($C$8-1)+2) -> 0 | J87: =VLOOKUP($H87,P_All!$H$5:$M$204,($C$8-1)+2) -> 0 | K87: =VLOOKUP($H87,P_All!$O$5:$AD$204,3*($C$8-1)+2) -> -0.0019898 | L87: =VLOOKUP($H87,P_All!$O$5:$AD$204,3*($C$8-1)+3) -> 0.0001091 | M87: =VLOOKUP($H87,P_All!$O$5:$AD$204,3*($C$8-1)+4) -> 0.0032831 | O87: 4.25 | P87: =VLOOKUP($O87,P_All!$AF$5:$AP$244,$C$8+1) -> 0 | Q87: =VLOOKUP($O87,P_All!$AF$5:$AP$244,$C$8+6) -> 0 | R87: =VLOOKUP($O87,P_All!$AR$5:$BG$244,3*($C$8-1)+2) -> 0.0019927 | S87: =VLOOKUP($O87,P_All!$AR$5:$BG$244,3*($C$8-1)+3) -> 0.0047644 | T87: =VLOOKUP($O87,P_All!$AR$5:$BG$244,3*($C$8-1)+4) -> 0.0065851
H88: 52 | I88: =VLOOKUP($H88,P_All!$A$5:$F$204,($C$8-1)+2) -> 0 | J88: =VLOOKUP($H88,P_All!$H$5:$M$204,($C$8-1)+2) -> 0 | K88: =VLOOKUP($H88,P_All!$O$5:$AD$204,3*($C$8-1)+2) -> -0.0018726 | L88: =VLOOKUP($H88,P_All!$O$5:$AD$204,3*($C$8-1)+3) -> 8.5033e-05 | M88: =VLOOKUP($H88,P_All!$O$5:$AD$204,3*($C$8-1)+4) -> 0.0028834 | O88: 4.333333333 | P88: =VLOOKUP($O88,P_All!$AF$5:$AP$244,$C$8+1) -> 0 | Q88: =VLOOKUP($O88,P_All!$AF$5:$AP$244,$C$8+6) -> 0 | R88: =VLOOKUP($O88,P_All!$AR$5:$BG$244,3*($C$8-1)+2) -> 0.00021584 | S88: =VLOOKUP($O88,P_All!$AR$5:$BG$244,3*($C$8-1)+3) -> 0.00074081 | T88: =VLOOKUP($O88,P_All!$AR$5:$BG$244,3*($C$8-1)+4) -> 0.0047313
H89: 53 | I89: =VLOOKUP($H89,P_All!$A$5:$F$204,($C$8-1)+2) -> 0 | J89: =VLOOKUP($H89,P_All!$H$5:$M$204,($C$8-1)+2) -> 0 | K89: =VLOOKUP($H89,P_All!$O$5:$AD$204,3*($C$8-1)+2) -> -0.0013721 | L89: =VLOOKUP($H89,P_All!$O$5:$AD$204,3*($C$8-1)+3) -> 0.00011462 | M89: =VLOOKUP($H89,P_All!$O$5:$AD$204,3*($C$8-1)+4) -> 0.0034963 | O89: 4.416666667 | P89: =VLOOKUP($O89,P_All!$AF$5:$AP$244,$C$8+1) -> 0 | Q89: =VLOOKUP($O89,P_All!$AF$5:$AP$244,$C$8+6) -> 0 | R89: =VLOOKUP($O89,P_All!$AR$5:$BG$244,3*($C$8-1)+2) -> 0.00031459 | S89: =VLOOKUP($O89,P_All!$AR$5:$BG$244,3*($C$8-1)+3) -> 0.0010193 | T89: =VLOOKUP($O89,P_All!$AR$5:$BG$244,3*($C$8-1)+4) -> 0.0024267
H90: 54 | I90: =VLOOKUP($H90,P_All!$A$5:$F$204,($C$8-1)+2) -> 0 | J90: =VLOOKUP($H90,P_All!$H$5:$M$204,($C$8-1)+2) -> 0 | K90: =VLOOKUP($H90,P_All!$O$5:$AD$204,3*($C$8-1)+2) -> -0.0012531 | L90: =VLOOKUP($H90,P_All!$O$5:$AD$204,3*($C$8-1)+3) -> 0.00012965 | M90: =VLOOKUP($H90,P_All!$O$5:$AD$204,3*($C$8-1)+4) -> 0.0028697 | O90: 4.5 | P90: =VLOOKUP($O90,P_All!$AF$5:$AP$244,$C$8+1) -> 0 | Q90: =VLOOKUP($O90,P_All!$AF$5:$AP$244,$C$8+6) -> 0 | R90: =VLOOKUP($O90,P_All!$AR$5:$BG$244,3*($C$8-1)+2) -> 0.00036275 | S90: =VLOOKUP($O90,P_All!$AR$5:$BG$244,3*($C$8-1)+3) -> 0.0012719 | T90: =VLOOKUP($O90,P_All!$AR$5:$BG$244,3*($C$8-1)+4) -> 0.0037004
H91: 55 | I91: =VLOOKUP($H91,P_All!$A$5:$F$204,($C$8-1)+2) -> 0 | J91: =VLOOKUP($H91,P_All!$H$5:$M$204,($C$8-1)+2) -> 0 | K91: =VLOOKUP($H91,P_All!$O$5:$AD$204,3*($C$8-1)+2) -> -0.001125 | L91: =VLOOKUP($H91,P_All!$O$5:$AD$204,3*($C$8-1)+3) -> 0.00011581 | M91: =VLOOKUP($H91,P_All!$O$5:$AD$204,3*($C$8-1)+4) -> 0.0029317 | O91: 4.583333333 | P91: =VLOOKUP($O91,P_All!$AF$5:$AP$244,$C$8+1) -> 0 | Q91: =VLOOKUP($O91,P_All!$AF$5:$AP$244,$C$8+6) -> 0 | R91: =VLOOKUP($O91,P_All!$AR$5:$BG$244,3*($C$8-1)+2) -> 0.00066959 | S91: =VLOOKUP($O91,P_All!$AR$5:$BG$244,3*($C$8-1)+3) -> 0.0028423 | T91: =VLOOKUP($O91,P_All!$AR$5:$BG$244,3*($C$8-1)+4) -> 0.0065949
H92: 56 | I92: =VLOOKUP($H92,P_All!$A$5:$F$204,($C$8-1)+2) -> 0 | J92: =VLOOKUP($H92,P_All!$H$5:$M$204,($C$8-1)+2) -> 0 | K92: =VLOOKUP($H92,P_All!$O$5:$AD$204,3*($C$8-1)+2) -> -0.0010263 | L92: =VLOOKUP($H92,P_All!$O$5:$AD$204,3*($C$8-1)+3) -> 0.00015424 | M92: =VLOOKUP($H92,P_All!$O$5:$AD$204,3*($C$8-1)+4) -> 0.0026836 | O92: 4.666666667 | P92: =VLOOKUP($O92,P_All!$AF$5:$AP$244,$C$8+1) -> 0 | Q92: =VLOOKUP($O92,P_All!$AF$5:$AP$244,$C$8+6) -> 0 | R92: =VLOOKUP($O92,P_All!$AR$5:$BG$244,3*($C$8-1)+2) -> 0.0015572 | S92: =VLOOKUP($O92,P_All!$AR$5:$BG$244,3*($C$8-1)+3) -> 0.0056258 | T92: =VLOOKUP($O92,P_All!$AR$5:$BG$244,3*($C$8-1)+4) -> 0.010177
H93: 57 | I93: =VLOOKUP($H93,P_All!$A$5:$F$204,($C$8-1)+2) -> 0 | J93: =VLOOKUP($H93,P_All!$H$5:$M$204,($C$8-1)+2) -> 0 | K93: =VLOOKUP($H93,P_All!$O$5:$AD$204,3*($C$8-1)+2) -> -0.00075086 | L93: =VLOOKUP($H93,P_All!$O$5:$AD$204,3*($C$8-1)+3) -> 0.00021607 | M93: =VLOOKUP($H93,P_All!$O$5:$AD$204,3*($C$8-1)+4) -> 0.0032452 | O93: 4.75 | P93: =VLOOKUP($O93,P_All!$AF$5:$AP$244,$C$8+1) -> 0 | Q93: =VLOOKUP($O93,P_All!$AF$5:$AP$244,$C$8+6) -> 0 | R93: =VLOOKUP($O93,P_All!$AR$5:$BG$244,3*($C$8-1)+2) -> 0.0014457 | S93: =VLOOKUP($O93,P_All!$AR$5:$BG$244,3*($C$8-1)+3) -> 0.0054099 | T93: =VLOOKUP($O93,P_All!$AR$5:$BG$244,3*($C$8-1)+4) -> 0.011724
H94: 58 | I94: =VLOOKUP($H94,P_All!$A$5:$F$204,($C$8-1)+2) -> 0 | J94: =VLOOKUP($H94,P_All!$H$5:$M$204,($C$8-1)+2) -> 0 | K94: =VLOOKUP($H94,P_All!$O$5:$AD$204,3*($C$8-1)+2) -> -0.00064946 | L94: =VLOOKUP($H94,P_All!$O$5:$AD$204,3*($C$8-1)+3) -> 0.00025646 | M94: =VLOOKUP($H94,P_All!$O$5:$AD$204,3*($C$8-1)+4) -> 0.0028531 | O94: 4.833333333 | P94: =VLOOKUP($O94,P_All!$AF$5:$AP$244,$C$8+1) -> 0 | Q94: =VLOOKUP($O94,P_All!$AF$5:$AP$244,$C$8+6) -> 0 | R94: =VLOOKUP($O94,P_All!$AR$5:$BG$244,3*($C$8-1)+2) -> 0.001668 | S94: =VLOOKUP($O94,P_All!$AR$5:$BG$244,3*($C$8-1)+3) -> 0.0049048 | T94: =VLOOKUP($O94,P_All!$AR$5:$BG$244,3*($C$8-1)+4) -> 0.010104
H95: 59 | I95: =VLOOKUP($H95,P_All!$A$5:$F$204,($C$8-1)+2) -> 0 | J95: =VLOOKUP($H95,P_All!$H$5:$M$204,($C$8-1)+2) -> 0 | K95: =VLOOKUP($H95,P_All!$O$5:$AD$204,3*($C$8-1)+2) -> -0.0004361 | L95: =VLOOKUP($H95,P_All!$O$5:$AD$204,3*($C$8-1)+3) -> 0.00035375 | M95: =VLOOKUP($H95,P_All!$O$5:$AD$204,3*($C$8-1)+4) -> 0.0025913 | O95: 4.916666667 | P95: =VLOOKUP($O95,P_All!$AF$5:$AP$244,$C$8+1) -> 0 | Q95: =VLOOKUP($O95,P_All!$AF$5:$AP$244,$C$8+6) -> 0 | R95: =VLOOKUP($O95,P_All!$AR$5:$BG$244,3*($C$8-1)+2) -> 0.001668 | S95: =VLOOKUP($O95,P_All!$AR$5:$BG$244,3*($C$8-1)+3) -> 0.0049048 | T95: =VLOOKUP($O95,P_All!$AR$5:$BG$244,3*($C$8-1)+4) -> 0.010104
H96: 60 | I96: =VLOOKUP($H96,P_All!$A$5:$F$204,($C$8-1)+2) -> 0 | J96: =VLOOKUP($H96,P_All!$H$5:$M$204,($C$8-1)+2) -> 0 | K96: =VLOOKUP($H96,P_All!$O$5:$AD$204,3*($C$8-1)+2) -> -0.000366 | L96: =VLOOKUP($H96,P_All!$O$5:$AD$204,3*($C$8-1)+3) -> 0.00039235 | M96: =VLOOKUP($H96,P_All!$O$5:$AD$204,3*($C$8-1)+4) -> 0.0029775 | O96: 5 | P96: =VLOOKUP($O96,P_All!$AF$5:$AP$244,$C$8+1) -> 0 | Q96: =VLOOKUP($O96,P_All!$AF$5:$AP$244,$C$8+6) -> 0 | R96: =VLOOKUP($O96,P_All!$AR$5:$BG$244,3*($C$8-1)+2) -> 0.0021383 | S96: =VLOOKUP($O96,P_All!$AR$5:$BG$244,3*($C$8-1)+3) -> 0.0050299 | T96: =VLOOKUP($O96,P_All!$AR$5:$BG$244,3*($C$8-1)+4) -> 0.0092401
H97: 61 | I97: =VLOOKUP($H97,P_All!$A$5:$F$204,($C$8-1)+2) -> 0 | J97: =VLOOKUP($H97,P_All!$H$5:$M$204,($C$8-1)+2) -> 0 | K97: =VLOOKUP($H97,P_All!$O$5:$AD$204,3*($C$8-1)+2) -> -0.00017193 | L97: =VLOOKUP($H97,P_All!$O$5:$AD$204,3*($C$8-1)+3) -> 0.00040812 | M97: =VLOOKUP($H97,P_All!$O$5:$AD$204,3*($C$8-1)+4) -> 0.0034206 | O97: 5.083333333 | P97: =VLOOKUP($O97,P_All!$AF$5:$AP$244,$C$8+1) -> 0 | Q97: =VLOOKUP($O97,P_All!$AF$5:$AP$244,$C$8+6) -> 0 | R97: =VLOOKUP($O97,P_All!$AR$5:$BG$244,3*($C$8-1)+2) -> 0.0053006 | S97: =VLOOKUP($O97,P_All!$AR$5:$BG$244,3*($C$8-1)+3) -> 0.0092048 | T97: =VLOOKUP($O97,P_All!$AR$5:$BG$244,3*($C$8-1)+4) -> 0.012843
H98: 62 | I98: =VLOOKUP($H98,P_All!$A$5:$F$204,($C$8-1)+2) -> 0 | J98: =VLOOKUP($H98,P_All!$H$5:$M$204,($C$8-1)+2) -> 0 | K98: =VLOOKUP($H98,P_All!$O$5:$AD$204,3*($C$8-1)+2) -> -0.00022761 | L98: =VLOOKUP($H98,P_All!$O$5:$AD$204,3*($C$8-1)+3) -> 0.00043131 | M98: =VLOOKUP($H98,P_All!$O$5:$AD$204,3*($C$8-1)+4) -> 0.0036372 | O98: 5.166666667 | P98: =VLOOKUP($O98,P_All!$AF$5:$AP$244,$C$8+1) -> 0 | Q98: =VLOOKUP($O98,P_All!$AF$5:$AP$244,$C$8+6) -> 0 | R98: =VLOOKUP($O98,P_All!$AR$5:$BG$244,3*($C$8-1)+2) -> 0.011683 | S98: =VLOOKUP($O98,P_All!$AR$5:$BG$244,3*($C$8-1)+3) -> 0.014779 | T98: =VLOOKUP($O98,P_All!$AR$5:$BG$244,3*($C$8-1)+4) -> 0.01833
H99: 63 | I99: =VLOOKUP($H99,P_All!$A$5:$F$204,($C$8-1)+2) -> 0 | J99: =VLOOKUP($H99,P_All!$H$5:$M$204,($C$8-1)+2) -> 0 | K99: =VLOOKUP($H99,P_All!$O$5:$AD$204,3*($C$8-1)+2) -> -9.5857e-05 | L99: =VLOOKUP($H99,P_All!$O$5:$AD$204,3*($C$8-1)+3) -> 0.00048081 | M99: =VLOOKUP($H99,P_All!$O$5:$AD$204,3*($C$8-1)+4) -> 0.0035849 | O99: 5.25 | P99: =VLOOKUP($O99,P_All!$AF$5:$AP$244,$C$8+1) -> 0 | Q99: =VLOOKUP($O99,P_All!$AF$5:$AP$244,$C$8+6) -> 0 | R99: =VLOOKUP($O99,P_All!$AR$5:$BG$244,3*($C$8-1)+2) -> 0.015572 | S99: =VLOOKUP($O99,P_All!$AR$5:$BG$244,3*($C$8-1)+3) -> 0.019267 | T99: =VLOOKUP($O99,P_All!$AR$5:$BG$244,3*($C$8-1)+4) -> 0.023643
H100: 64 | I100: =VLOOKUP($H100,P_All!$A$5:$F$204,($C$8-1)+2) -> 0 | J100: =VLOOKUP($H100,P_All!$H$5:$M$204,($C$8-1)+2) -> 0 | K100: =VLOOKUP($H100,P_All!$O$5:$AD$204,3*($C$8-1)+2) -> -3.8974e-05 | L100: =VLOOKUP($H100,P_All!$O$5:$AD$204,3*($C$8-1)+3) -> 0.00049789 | M100: =VLOOKUP($H100,P_All!$O$5:$AD$204,3*($C$8-1)+4) -> 0.0038233 | O100: 5.333333333 | P100: =VLOOKUP($O100,P_All!$AF$5:$AP$244,$C$8+1) -> 0 | Q100: =VLOOKUP($O100,P_All!$AF$5:$AP$244,$C$8+6) -> 0 | R100: =VLOOKUP($O100,P_All!$AR$5:$BG$244,3*($C$8-1)+2) -> 0.007276 | S100: =VLOOKUP($O100,P_All!$AR$5:$BG$244,3*($C$8-1)+3) -> 0.019712 | T100: =VLOOKUP($O100,P_All!$AR$5:$BG$244,3*($C$8-1)+4) -> 0.024653
H101: 65 | I101: =VLOOKUP($H101,P_All!$A$5:$F$204,($C$8-1)+2) -> 0 | J101: =VLOOKUP($H101,P_All!$H$5:$M$204,($C$8-1)+2) -> 0 | K101: =VLOOKUP($H101,P_All!$O$5:$AD$204,3*($C$8-1)+2) -> 1.3886e-05 | L101: =VLOOKUP($H101,P_All!$O$5:$AD$204,3*($C$8-1)+3) -> 0.00057085 | M101: =VLOOKUP($H101,P_All!$O$5:$AD$204,3*($C$8-1)+4) -> 0.0039364 | O101: 5.416666667 | P101: =VLOOKUP($O101,P_All!$AF$5:$AP$244,$C$8+1) -> 0 | Q101: =VLOOKUP($O101,P_All!$AF$5:$AP$244,$C$8+6) -> 0 | R101: =VLOOKUP($O101,P_All!$AR$5:$BG$244,3*($C$8-1)+2) -> 0.0007346 | S101: =VLOOKUP($O101,P_All!$AR$5:$BG$244,3*($C$8-1)+3) -> 0.0021241 | T101: =VLOOKUP($O101,P_All!$AR$5:$BG$244,3*($C$8-1)+4) -> 0.018276
H102: 66 | I102: =VLOOKUP($H102,P_All!$A$5:$F$204,($C$8-1)+2) -> 0 | J102: =VLOOKUP($H102,P_All!$H$5:$M$204,($C$8-1)+2) -> 0 | K102: =VLOOKUP($H102,P_All!$O$5:$AD$204,3*($C$8-1)+2) -> 3.2168e-05 | L102: =VLOOKUP($H102,P_All!$O$5:$AD$204,3*($C$8-1)+3) -> 0.00060727 | M102: =VLOOKUP($H102,P_All!$O$5:$AD$204,3*($C$8-1)+4) -> 0.0037206 | O102: =O101+1/12 -> 5.5 | P102: =VLOOKUP($O102,P_All!$AF$5:$AP$244,$C$8+1) -> 0 | Q102: =VLOOKUP($O102,P_All!$AF$5:$AP$244,$C$8+6) -> 0 | R102: =VLOOKUP($O102,P_All!$AR$5:$BG$244,3*($C$8-1)+2) -> 0.00078569 | S102: =VLOOKUP($O102,P_All!$AR$5:$BG$244,3*($C$8-1)+3) -> 0.0022431 | T102: =VLOOKUP($O102,P_All!$AR$5:$BG$244,3*($C$8-1)+4) -> 0.0064087
H103: 67 | I103: =VLOOKUP($H103,P_All!$A$5:$F$204,($C$8-1)+2) -> 0 | J103: =VLOOKUP($H103,P_All!$H$5:$M$204,($C$8-1)+2) -> 0 | K103: =VLOOKUP($H103,P_All!$O$5:$AD$204,3*($C$8-1)+2) -> 3.7051e-05 | L103: =VLOOKUP($H103,P_All!$O$5:$AD$204,3*($C$8-1)+3) -> 0.00056554 | M103: =VLOOKUP($H103,P_All!$O$5:$AD$204,3*($C$8-1)+4) -> 0.0040204 | O103: 5.583333333 | P103: =VLOOKUP($O103,P_All!$AF$5:$AP$244,$C$8+1) -> 0 | Q103: =VLOOKUP($O103,P_All!$AF$5:$AP$244,$C$8+6) -> 0 | R103: =VLOOKUP($O103,P_All!$AR$5:$BG$244,3*($C$8-1)+2) -> 0.001566 | S103: =VLOOKUP($O103,P_All!$AR$5:$BG$244,3*($C$8-1)+3) -> 0.0050076 | T103: =VLOOKUP($O103,P_All!$AR$5:$BG$244,3*($C$8-1)+4) -> 0.01442
H104: 68 | I104: =VLOOKUP($H104,P_All!$A$5:$F$204,($C$8-1)+2) -> 0 | J104: =VLOOKUP($H104,P_All!$H$5:$M$204,($C$8-1)+2) -> 0 | K104: =VLOOKUP($H104,P_All!$O$5:$AD$204,3*($C$8-1)+2) -> 9.6312e-06 | L104: =VLOOKUP($H104,P_All!$O$5:$AD$204,3*($C$8-1)+3) -> 0.00055012 | M104: =VLOOKUP($H104,P_All!$O$5:$AD$204,3*($C$8-1)+4) -> 0.0038014 | O104: 5.666666667 | P104: =VLOOKUP($O104,P_All!$AF$5:$AP$244,$C$8+1) -> 0 | Q104: =VLOOKUP($O104,P_All!$AF$5:$AP$244,$C$8+6) -> 0 | R104: =VLOOKUP($O104,P_All!$AR$5:$BG$244,3*($C$8-1)+2) -> 0.0025022 | S104: =VLOOKUP($O104,P_All!$AR$5:$BG$244,3*($C$8-1)+3) -> 0.010899 | T104: =VLOOKUP($O104,P_All!$AR$5:$BG$244,3*($C$8-1)+4) -> 0.023555
H105: 69 | I105: =VLOOKUP($H105,P_All!$A$5:$F$204,($C$8-1)+2) -> 0 | J105: =VLOOKUP($H105,P_All!$H$5:$M$204,($C$8-1)+2) -> 0 | K105: =VLOOKUP($H105,P_All!$O$5:$AD$204,3*($C$8-1)+2) -> 6.5168e-05 | L105: =VLOOKUP($H105,P_All!$O$5:$AD$204,3*($C$8-1)+3) -> 0.00063817 | M105: =VLOOKUP($H105,P_All!$O$5:$AD$204,3*($C$8-1)+4) -> 0.004282 | O105: 5.75 | P105: =VLOOKUP($O105,P_All!$AF$5:$AP$244,$C$8+1) -> 0 | Q105: =VLOOKUP($O105,P_All!$AF$5:$AP$244,$C$8+6) -> 0 | R105: =VLOOKUP($O105,P_All!$AR$5:$BG$244,3*($C$8-1)+2) -> 0.0036165 | S105: =VLOOKUP($O105,P_All!$AR$5:$BG$244,3*($C$8-1)+3) -> 0.018263 | T105: =VLOOKUP($O105,P_All!$AR$5:$BG$244,3*($C$8-1)+4) -> 0.030282
H106: 70 | I106: =VLOOKUP($H106,P_All!$A$5:$F$204,($C$8-1)+2) -> 0 | J106: =VLOOKUP($H106,P_All!$H$5:$M$204,($C$8-1)+2) -> 0 | K106: =VLOOKUP($H106,P_All!$O$5:$AD$204,3*($C$8-1)+2) -> 6.5115e-05 | L106: =VLOOKUP($H106,P_All!$O$5:$AD$204,3*($C$8-1)+3) -> 0.00064906 | M106: =VLOOKUP($H106,P_All!$O$5:$AD$204,3*($C$8-1)+4) -> 0.0042424 | O106: 5.833333333 | P106: =VLOOKUP($O106,P_All!$AF$5:$AP$244,$C$8+1) -> 0 | Q106: =VLOOKUP($O106,P_All!$AF$5:$AP$244,$C$8+6) -> 0 | R106: =VLOOKUP($O106,P_All!$AR$5:$BG$244,3*($C$8-1)+2) -> 0.0033443 | S106: =VLOOKUP($O106,P_All!$AR$5:$BG$244,3*($C$8-1)+3) -> 0.015168 | T106: =VLOOKUP($O106,P_All!$AR$5:$BG$244,3*($C$8-1)+4) -> 0.031467
H107: 71 | I107: =VLOOKUP($H107,P_All!$A$5:$F$204,($C$8-1)+2) -> 0 | J107: =VLOOKUP($H107,P_All!$H$5:$M$204,($C$8-1)+2) -> 0 | K107: =VLOOKUP($H107,P_All!$O$5:$AD$204,3*($C$8-1)+2) -> 5.0303e-05 | L107: =VLOOKUP($H107,P_All!$O$5:$AD$204,3*($C$8-1)+3) -> 0.00062122 | M107: =VLOOKUP($H107,P_All!$O$5:$AD$204,3*($C$8-1)+4) -> 0.0041878 | O107: 5.916666667 | P107: =VLOOKUP($O107,P_All!$AF$5:$AP$244,$C$8+1) -> 0 | Q107: =VLOOKUP($O107,P_All!$AF$5:$AP$244,$C$8+6) -> 0 | R107: =VLOOKUP($O107,P_All!$AR$5:$BG$244,3*($C$8-1)+2) -> 0.0033774 | S107: =VLOOKUP($O107,P_All!$AR$5:$BG$244,3*($C$8-1)+3) -> 0.013608 | T107: =VLOOKUP($O107,P_All!$AR$5:$BG$244,3*($C$8-1)+4) -> 0.027639
H108: 72 | I108: =VLOOKUP($H108,P_All!$A$5:$F$204,($C$8-1)+2) -> 0 | J108: =VLOOKUP($H108,P_All!$H$5:$M$204,($C$8-1)+2) -> 0 | K108: =VLOOKUP($H108,P_All!$O$5:$AD$204,3*($C$8-1)+2) -> 5.6273e-05 | L108: =VLOOKUP($H108,P_All!$O$5:$AD$204,3*($C$8-1)+3) -> 0.00066887 | M108: =VLOOKUP($H108,P_All!$O$5:$AD$204,3*($C$8-1)+4) -> 0.004084 | O108: 6 | P108: =VLOOKUP($O108,P_All!$AF$5:$AP$244,$C$8+1) -> 0 | Q108: =VLOOKUP($O108,P_All!$AF$5:$AP$244,$C$8+6) -> 0 | R108: =VLOOKUP($O108,P_All!$AR$5:$BG$244,3*($C$8-1)+2) -> 0.0067675 | S108: =VLOOKUP($O108,P_All!$AR$5:$BG$244,3*($C$8-1)+3) -> 0.015833 | T108: =VLOOKUP($O108,P_All!$AR$5:$BG$244,3*($C$8-1)+4) -> 0.026673
H109: 73 | I109: =VLOOKUP($H109,P_All!$A$5:$F$204,($C$8-1)+2) -> 0 | J109: =VLOOKUP($H109,P_All!$H$5:$M$204,($C$8-1)+2) -> 0 | K109: =VLOOKUP($H109,P_All!$O$5:$AD$204,3*($C$8-1)+2) -> 2.1674e-05 | L109: =VLOOKUP($H109,P_All!$O$5:$AD$204,3*($C$8-1)+3) -> 0.00062448 | M109: =VLOOKUP($H109,P_All!$O$5:$AD$204,3*($C$8-1)+4) -> 0.0043209 | O109: 6.083333333 | P109: =VLOOKUP($O109,P_All!$AF$5:$AP$244,$C$8+1) -> 0 | Q109: =VLOOKUP($O109,P_All!$AF$5:$AP$244,$C$8+6) -> 0 | R109: =VLOOKUP($O109,P_All!$AR$5:$BG$244,3*($C$8-1)+2) -> 0.015322 | S109: =VLOOKUP($O109,P_All!$AR$5:$BG$244,3*($C$8-1)+3) -> 0.026321 | T109: =VLOOKUP($O109,P_All!$AR$5:$BG$244,3*($C$8-1)+4) -> 0.035997
H110: 74 | I110: =VLOOKUP($H110,P_All!$A$5:$F$204,($C$8-1)+2) -> 0 | J110: =VLOOKUP($H110,P_All!$H$5:$M$204,($C$8-1)+2) -> 0 | K110: =VLOOKUP($H110,P_All!$O$5:$AD$204,3*($C$8-1)+2) -> 7.7e-05 | L110: =VLOOKUP($H110,P_All!$O$5:$AD$204,3*($C$8-1)+3) -> 0.0006167 | M110: =VLOOKUP($H110,P_All!$O$5:$AD$204,3*($C$8-1)+4) -> 0.0041847 | O110: 6.166666667 | P110: =VLOOKUP($O110,P_All!$AF$5:$AP$244,$C$8+1) -> 0 | Q110: =VLOOKUP($O110,P_All!$AF$5:$AP$244,$C$8+6) -> 0 | R110: =VLOOKUP($O110,P_All!$AR$5:$BG$244,3*($C$8-1)+2) -> 0.029594 | S110: =VLOOKUP($O110,P_All!$AR$5:$BG$244,3*($C$8-1)+3) -> 0.037433 | T110: =VLOOKUP($O110,P_All!$AR$5:$BG$244,3*($C$8-1)+4) -> 0.046666
H111: 75 | I111: =VLOOKUP($H111,P_All!$A$5:$F$204,($C$8-1)+2) -> 0 | J111: =VLOOKUP($H111,P_All!$H$5:$M$204,($C$8-1)+2) -> 0 | K111: =VLOOKUP($H111,P_All!$O$5:$AD$204,3*($C$8-1)+2) -> 9.3209e-05 | L111: =VLOOKUP($H111,P_All!$O$5:$AD$204,3*($C$8-1)+3) -> 0.00064487 | M111: =VLOOKUP($H111,P_All!$O$5:$AD$204,3*($C$8-1)+4) -> 0.0041693 | O111: 6.25 | P111: =VLOOKUP($O111,P_All!$AF$5:$AP$244,$C$8+1) -> 0 | Q111: =VLOOKUP($O111,P_All!$AF$5:$AP$244,$C$8+6) -> 0 | R111: =VLOOKUP($O111,P_All!$AR$5:$BG$244,3*($C$8-1)+2) -> 0.038621 | S111: =VLOOKUP($O111,P_All!$AR$5:$BG$244,3*($C$8-1)+3) -> 0.048172 | T111: =VLOOKUP($O111,P_All!$AR$5:$BG$244,3*($C$8-1)+4) -> 0.058751
H112: 76 | I112: =VLOOKUP($H112,P_All!$A$5:$F$204,($C$8-1)+2) -> 0 | J112: =VLOOKUP($H112,P_All!$H$5:$M$204,($C$8-1)+2) -> 0 | K112: =VLOOKUP($H112,P_All!$O$5:$AD$204,3*($C$8-1)+2) -> 9.5907e-05 | L112: =VLOOKUP($H112,P_All!$O$5:$AD$204,3*($C$8-1)+3) -> 0.00063998 | M112: =VLOOKUP($H112,P_All!$O$5:$AD$204,3*($C$8-1)+4) -> 0.0042515 | O112: 6.333333333 | P112: =VLOOKUP($O112,P_All!$AF$5:$AP$244,$C$8+1) -> 0 | Q112: =VLOOKUP($O112,P_All!$AF$5:$AP$244,$C$8+6) -> 0 | R112: =VLOOKUP($O112,P_All!$AR$5:$BG$244,3*($C$8-1)+2) -> 0.015198 | S112: =VLOOKUP($O112,P_All!$AR$5:$BG$244,3*($C$8-1)+3) -> 0.051749 | T112: =VLOOKUP($O112,P_All!$AR$5:$BG$244,3*($C$8-1)+4) -> 0.064486
H113: 77 | I113: =VLOOKUP($H113,P_All!$A$5:$F$204,($C$8-1)+2) -> 0 | J113: =VLOOKUP($H113,P_All!$H$5:$M$204,($C$8-1)+2) -> 0 | K113: =VLOOKUP($H113,P_All!$O$5:$AD$204,3*($C$8-1)+2) -> 7.9039e-05 | L113: =VLOOKUP($H113,P_All!$O$5:$AD$204,3*($C$8-1)+3) -> 0.00071412 | M113: =VLOOKUP($H113,P_All!$O$5:$AD$204,3*($C$8-1)+4) -> 0.0044548 | O113: 6.416666667 | P113: =VLOOKUP($O113,P_All!$AF$5:$AP$244,$C$8+1) -> 0 | Q113: =VLOOKUP($O113,P_All!$AF$5:$AP$244,$C$8+6) -> 0 | R113: =VLOOKUP($O113,P_All!$AR$5:$BG$244,3*($C$8-1)+2) -> 0.0015433 | S113: =VLOOKUP($O113,P_All!$AR$5:$BG$244,3*($C$8-1)+3) -> 0.0040902 | T113: =VLOOKUP($O113,P_All!$AR$5:$BG$244,3*($C$8-1)+4) -> 0.030888
H114: 78 | I114: =VLOOKUP($H114,P_All!$A$5:$F$204,($C$8-1)+2) -> 0 | J114: =VLOOKUP($H114,P_All!$H$5:$M$204,($C$8-1)+2) -> 0 | K114: =VLOOKUP($H114,P_All!$O$5:$AD$204,3*($C$8-1)+2) -> 9.845e-05 | L114: =VLOOKUP($H114,P_All!$O$5:$AD$204,3*($C$8-1)+3) -> 0.00074175 | M114: =VLOOKUP($H114,P_All!$O$5:$AD$204,3*($C$8-1)+4) -> 0.0046235 | O114: 6.5 | P114: =VLOOKUP($O114,P_All!$AF$5:$AP$244,$C$8+1) -> 0 | Q114: =VLOOKUP($O114,P_All!$AF$5:$AP$244,$C$8+6) -> 0 | R114: =VLOOKUP($O114,P_All!$AR$5:$BG$244,3*($C$8-1)+2) -> 0.0018145 | S114: =VLOOKUP($O114,P_All!$AR$5:$BG$244,3*($C$8-1)+3) -> 0.0046326 | T114: =VLOOKUP($O114,P_All!$AR$5:$BG$244,3*($C$8-1)+4) -> 0.010958
H115: 79 | I115: =VLOOKUP($H115,P_All!$A$5:$F$204,($C$8-1)+2) -> 0 | J115: =VLOOKUP($H115,P_All!$H$5:$M$204,($C$8-1)+2) -> 0 | K115: =VLOOKUP($H115,P_All!$O$5:$AD$204,3*($C$8-1)+2) -> 8.6332e-05 | L115: =VLOOKUP($H115,P_All!$O$5:$AD$204,3*($C$8-1)+3) -> 0.00069904 | M115: =VLOOKUP($H115,P_All!$O$5:$AD$204,3*($C$8-1)+4) -> 0.004544 | O115: 6.583333333 | P115: =VLOOKUP($O115,P_All!$AF$5:$AP$244,$C$8+1) -> 0 | Q115: =VLOOKUP($O115,P_All!$AF$5:$AP$244,$C$8+6) -> 0 | R115: =VLOOKUP($O115,P_All!$AR$5:$BG$244,3*($C$8-1)+2) -> 0.0026175 | S115: =VLOOKUP($O115,P_All!$AR$5:$BG$244,3*($C$8-1)+3) -> 0.0081613 | T115: =VLOOKUP($O115,P_All!$AR$5:$BG$244,3*($C$8-1)+4) -> 0.02736
H116: 80 | I116: =VLOOKUP($H116,P_All!$A$5:$F$204,($C$8-1)+2) -> 0 | J116: =VLOOKUP($H116,P_All!$H$5:$M$204,($C$8-1)+2) -> 0 | K116: =VLOOKUP($H116,P_All!$O$5:$AD$204,3*($C$8-1)+2) -> 9.6736e-05 | L116: =VLOOKUP($H116,P_All!$O$5:$AD$204,3*($C$8-1)+3) -> 0.00070053 | M116: =VLOOKUP($H116,P_All!$O$5:$AD$204,3*($C$8-1)+4) -> 0.0046826 | O116: 6.666666667 | P116: =VLOOKUP($O116,P_All!$AF$5:$AP$244,$C$8+1) -> 0 | Q116: =VLOOKUP($O116,P_All!$AF$5:$AP$244,$C$8+6) -> 0 | R116: =VLOOKUP($O116,P_All!$AR$5:$BG$244,3*($C$8-1)+2) -> 0.0042513 | S116: =VLOOKUP($O116,P_All!$AR$5:$BG$244,3*($C$8-1)+3) -> 0.017943 | T116: =VLOOKUP($O116,P_All!$AR$5:$BG$244,3*($C$8-1)+4) -> 0.04106
H117: 81 | I117: =VLOOKUP($H117,P_All!$A$5:$F$204,($C$8-1)+2) -> 0 | J117: =VLOOKUP($H117,P_All!$H$5:$M$204,($C$8-1)+2) -> 0 | K117: =VLOOKUP($H117,P_All!$O$5:$AD$204,3*($C$8-1)+2) -> 7.8697e-05 | L117: =VLOOKUP($H117,P_All!$O$5:$AD$204,3*($C$8-1)+3) -> 0.00066508 | M117: =VLOOKUP($H117,P_All!$O$5:$AD$204,3*($C$8-1)+4) -> 0.0045562 | O117: 6.75 | P117: =VLOOKUP($O117,P_All!$AF$5:$AP$244,$C$8+1) -> 0 | Q117: =VLOOKUP($O117,P_All!$AF$5:$AP$244,$C$8+6) -> 0 | R117: =VLOOKUP($O117,P_All!$AR$5:$BG$244,3*($C$8-1)+2) -> 0.0074649 | S117: =VLOOKUP($O117,P_All!$AR$5:$BG$244,3*($C$8-1)+3) -> 0.0304 | T117: =VLOOKUP($O117,P_All!$AR$5:$BG$244,3*($C$8-1)+4) -> 0.053855
H118: 82 | I118: =VLOOKUP($H118,P_All!$A$5:$F$204,($C$8-1)+2) -> 0 | J118: =VLOOKUP($H118,P_All!$H$5:$M$204,($C$8-1)+2) -> 0 | K118: =VLOOKUP($H118,P_All!$O$5:$AD$204,3*($C$8-1)+2) -> 8.2625e-05 | L118: =VLOOKUP($H118,P_All!$O$5:$AD$204,3*($C$8-1)+3) -> 0.00065812 | M118: =VLOOKUP($H118,P_All!$O$5:$AD$204,3*($C$8-1)+4) -> 0.0046582 | O118: 6.833333333 | P118: =VLOOKUP($O118,P_All!$AF$5:$AP$244,$C$8+1) -> 0 | Q118: =VLOOKUP($O118,P_All!$AF$5:$AP$244,$C$8+6) -> 0 | R118: =VLOOKUP($O118,P_All!$AR$5:$BG$244,3*($C$8-1)+2) -> 0.0048735 | S118: =VLOOKUP($O118,P_All!$AR$5:$BG$244,3*($C$8-1)+3) -> 0.021193 | T118: =VLOOKUP($O118,P_All!$AR$5:$BG$244,3*($C$8-1)+4) -> 0.052168
H119: 83 | I119: =VLOOKUP($H119,P_All!$A$5:$F$204,($C$8-1)+2) -> 0 | J119: =VLOOKUP($H119,P_All!$H$5:$M$204,($C$8-1)+2) -> 0 | K119: =VLOOKUP($H119,P_All!$O$5:$AD$204,3*($C$8-1)+2) -> 0.00011681 | L119: =VLOOKUP($H119,P_All!$O$5:$AD$204,3*($C$8-1)+3) -> 0.00067921 | M119: =VLOOKUP($H119,P_All!$O$5:$AD$204,3*($C$8-1)+4) -> 0.0048106 | O119: 6.916666667 | P119: =VLOOKUP($O119,P_All!$AF$5:$AP$244,$C$8+1) -> 0 | Q119: =VLOOKUP($O119,P_All!$AF$5:$AP$244,$C$8+6) -> 0 | R119: =VLOOKUP($O119,P_All!$AR$5:$BG$244,3*($C$8-1)+2) -> 0.0062485 | S119: =VLOOKUP($O119,P_All!$AR$5:$BG$244,3*($C$8-1)+3) -> 0.019062 | T119: =VLOOKUP($O119,P_All!$AR$5:$BG$244,3*($C$8-1)+4) -> 0.040086
H120: 84 | I120: =VLOOKUP($H120,P_All!$A$5:$F$204,($C$8-1)+2) -> 0 | J120: =VLOOKUP($H120,P_All!$H$5:$M$204,($C$8-1)+2) -> 0 | K120: =VLOOKUP($H120,P_All!$O$5:$AD$204,3*($C$8-1)+2) -> 0.00013728 | L120: =VLOOKUP($H120,P_All!$O$5:$AD$204,3*($C$8-1)+3) -> 0.00077863 | M120: =VLOOKUP($H120,P_All!$O$5:$AD$204,3*($C$8-1)+4) -> 0.0046868 | O120: 7 | P120: =VLOOKUP($O120,P_All!$AF$5:$AP$244,$C$8+1) -> 0 | Q120: =VLOOKUP($O120,P_All!$AF$5:$AP$244,$C$8+6) -> 0 | R120: =VLOOKUP($O120,P_All!$AR$5:$BG$244,3*($C$8-1)+2) -> 0.0079918 | S120: =VLOOKUP($O120,P_All!$AR$5:$BG$244,3*($C$8-1)+3) -> 0.019831 | T120: =VLOOKUP($O120,P_All!$AR$5:$BG$244,3*($C$8-1)+4) -> 0.034674
H121: 85 | I121: =VLOOKUP($H121,P_All!$A$5:$F$204,($C$8-1)+2) -> 0 | J121: =VLOOKUP($H121,P_All!$H$5:$M$204,($C$8-1)+2) -> 0 | K121: =VLOOKUP($H121,P_All!$O$5:$AD$204,3*($C$8-1)+2) -> 9.152e-05 | L121: =VLOOKUP($H121,P_All!$O$5:$AD$204,3*($C$8-1)+3) -> 0.00067496 | M121: =VLOOKUP($H121,P_All!$O$5:$AD$204,3*($C$8-1)+4) -> 0.0045978 | O121: 7.083333333 | P121: =VLOOKUP($O121,P_All!$AF$5:$AP$244,$C$8+1) -> 0 | Q121: =VLOOKUP($O121,P_All!$AF$5:$AP$244,$C$8+6) -> 0 | R121: =VLOOKUP($O121,P_All!$AR$5:$BG$244,3*($C$8-1)+2) -> 0.019767 | S121: =VLOOKUP($O121,P_All!$AR$5:$BG$244,3*($C$8-1)+3) -> 0.033764 | T121: =VLOOKUP($O121,P_All!$AR$5:$BG$244,3*($C$8-1)+4) -> 0.046127
H122: 86 | I122: =VLOOKUP($H122,P_All!$A$5:$F$204,($C$8-1)+2) -> 0 | J122: =VLOOKUP($H122,P_All!$H$5:$M$204,($C$8-1)+2) -> 0 | K122: =VLOOKUP($H122,P_All!$O$5:$AD$204,3*($C$8-1)+2) -> 0.00014025 | L122: =VLOOKUP($H122,P_All!$O$5:$AD$204,3*($C$8-1)+3) -> 0.00072949 | M122: =VLOOKUP($H122,P_All!$O$5:$AD$204,3*($C$8-1)+4) -> 0.0050593 | O122: 7.166666667 | P122: =VLOOKUP($O122,P_All!$AF$5:$AP$244,$C$8+1) -> 0 | Q122: =VLOOKUP($O122,P_All!$AF$5:$AP$244,$C$8+6) -> 0 | R122: =VLOOKUP($O122,P_All!$AR$5:$BG$244,3*($C$8-1)+2) -> 0.038366 | S122: =VLOOKUP($O122,P_All!$AR$5:$BG$244,3*($C$8-1)+3) -> 0.049402 | T122: =VLOOKUP($O122,P_All!$AR$5:$BG$244,3*($C$8-1)+4) -> 0.061839
H123: 87 | I123: =VLOOKUP($H123,P_All!$A$5:$F$204,($C$8-1)+2) -> 0 | J123: =VLOOKUP($H123,P_All!$H$5:$M$204,($C$8-1)+2) -> 0 | K123: =VLOOKUP($H123,P_All!$O$5:$AD$204,3*($C$8-1)+2) -> 0.00011404 | L123: =VLOOKUP($H123,P_All!$O$5:$AD$204,3*($C$8-1)+3) -> 0.00074608 | M123: =VLOOKUP($H123,P_All!$O$5:$AD$204,3*($C$8-1)+4) -> 0.0050235 | O123: 7.25 | P123: =VLOOKUP($O123,P_All!$AF$5:$AP$244,$C$8+1) -> 0 | Q123: =VLOOKUP($O123,P_All!$AF$5:$AP$244,$C$8+6) -> 0 | R123: =VLOOKUP($O123,P_All!$AR$5:$BG$244,3*($C$8-1)+2) -> 0.051311 | S123: =VLOOKUP($O123,P_All!$AR$5:$BG$244,3*($C$8-1)+3) -> 0.064825 | T123: =VLOOKUP($O123,P_All!$AR$5:$BG$244,3*($C$8-1)+4) -> 0.080415
H124: 88 | I124: =VLOOKUP($H124,P_All!$A$5:$F$204,($C$8-1)+2) -> 0 | J124: =VLOOKUP($H124,P_All!$H$5:$M$204,($C$8-1)+2) -> 0 | K124: =VLOOKUP($H124,P_All!$O$5:$AD$204,3*($C$8-1)+2) -> 0.00016285 | L124: =VLOOKUP($H124,P_All!$O$5:$AD$204,3*($C$8-1)+3) -> 0.00085863 | M124: =VLOOKUP($H124,P_All!$O$5:$AD$204,3*($C$8-1)+4) -> 0.0051878 | O124: 7.333333333 | P124: =VLOOKUP($O124,P_All!$AF$5:$AP$244,$C$8+1) -> 0 | Q124: =VLOOKUP($O124,P_All!$AF$5:$AP$244,$C$8+6) -> 0 | R124: =VLOOKUP($O124,P_All!$AR$5:$BG$244,3*($C$8-1)+2) -> 0.028153 | S124: =VLOOKUP($O124,P_All!$AR$5:$BG$244,3*($C$8-1)+3) -> 0.06842 | T124: =VLOOKUP($O124,P_All!$AR$5:$BG$244,3*($C$8-1)+4) -> 0.085308
H125: 89 | I125: =VLOOKUP($H125,P_All!$A$5:$F$204,($C$8-1)+2) -> 0 | J125: =VLOOKUP($H125,P_All!$H$5:$M$204,($C$8-1)+2) -> 0 | K125: =VLOOKUP($H125,P_All!$O$5:$AD$204,3*($C$8-1)+2) -> 0.00013978 | L125: =VLOOKUP($H125,P_All!$O$5:$AD$204,3*($C$8-1)+3) -> 0.00077714 | M125: =VLOOKUP($H125,P_All!$O$5:$AD$204,3*($C$8-1)+4) -> 0.0050057 | O125: 7.416666667 | P125: =VLOOKUP($O125,P_All!$AF$5:$AP$244,$C$8+1) -> 0 | Q125: =VLOOKUP($O125,P_All!$AF$5:$AP$244,$C$8+6) -> 0 | R125: =VLOOKUP($O125,P_All!$AR$5:$BG$244,3*($C$8-1)+2) -> 0.0023163 | S125: =VLOOKUP($O125,P_All!$AR$5:$BG$244,3*($C$8-1)+3) -> 0.0059893 | T125: =VLOOKUP($O125,P_All!$AR$5:$BG$244,3*($C$8-1)+4) -> 0.053076
H126: 90 | I126: =VLOOKUP($H126,P_All!$A$5:$F$204,($C$8-1)+2) -> 0 | J126: =VLOOKUP($H126,P_All!$H$5:$M$204,($C$8-1)+2) -> 0 | K126: =VLOOKUP($H126,P_All!$O$5:$AD$204,3*($C$8-1)+2) -> 0.0001223 | L126: =VLOOKUP($H126,P_All!$O$5:$AD$204,3*($C$8-1)+3) -> 0.00082035 | M126: =VLOOKUP($H126,P_All!$O$5:$AD$204,3*($C$8-1)+4) -> 0.005051 | O126: 7.5 | P126: =VLOOKUP($O126,P_All!$AF$5:$AP$244,$C$8+1) -> 0 | Q126: =VLOOKUP($O126,P_All!$AF$5:$AP$244,$C$8+6) -> 0 | R126: =VLOOKUP($O126,P_All!$AR$5:$BG$244,3*($C$8-1)+2) -> 0.0022572 | S126: =VLOOKUP($O126,P_All!$AR$5:$BG$244,3*($C$8-1)+3) -> 0.0050907 | T126: =VLOOKUP($O126,P_All!$AR$5:$BG$244,3*($C$8-1)+4) -> 0.012105
H127: 91 | I127: =VLOOKUP($H127,P_All!$A$5:$F$204,($C$8-1)+2) -> 0 | J127: =VLOOKUP($H127,P_All!$H$5:$M$204,($C$8-1)+2) -> 0 | K127: =VLOOKUP($H127,P_All!$O$5:$AD$204,3*($C$8-1)+2) -> 0.00013148 | L127: =VLOOKUP($H127,P_All!$O$5:$AD$204,3*($C$8-1)+3) -> 0.00079167 | M127: =VLOOKUP($H127,P_All!$O$5:$AD$204,3*($C$8-1)+4) -> 0.0051609 | O127: 7.583333333 | P127: =VLOOKUP($O127,P_All!$AF$5:$AP$244,$C$8+1) -> 0 | Q127: =VLOOKUP($O127,P_All!$AF$5:$AP$244,$C$8+6) -> 0 | R127: =VLOOKUP($O127,P_All!$AR$5:$BG$244,3*($C$8-1)+2) -> 0.0032429 | S127: =VLOOKUP($O127,P_All!$AR$5:$BG$244,3*($C$8-1)+3) -> 0.010088 | T127: =VLOOKUP($O127,P_All!$AR$5:$BG$244,3*($C$8-1)+4) -> 0.032486
H128: 92 | I128: =VLOOKUP($H128,P_All!$A$5:$F$204,($C$8-1)+2) -> 0 | J128: =VLOOKUP($H128,P_All!$H$5:$M$204,($C$8-1)+2) -> 0 | K128: =VLOOKUP($H128,P_All!$O$5:$AD$204,3*($C$8-1)+2) -> 0.00014846 | L128: =VLOOKUP($H128,P_All!$O$5:$AD$204,3*($C$8-1)+3) -> 0.00084559 | M128: =VLOOKUP($H128,P_All!$O$5:$AD$204,3*($C$8-1)+4) -> 0.0050633 | O128: 7.666666667 | P128: =VLOOKUP($O128,P_All!$AF$5:$AP$244,$C$8+1) -> 0 | Q128: =VLOOKUP($O128,P_All!$AF$5:$AP$244,$C$8+6) -> 0 | R128: =VLOOKUP($O128,P_All!$AR$5:$BG$244,3*($C$8-1)+2) -> 0.0037273 | S128: =VLOOKUP($O128,P_All!$AR$5:$BG$244,3*($C$8-1)+3) -> 0.016003 | T128: =VLOOKUP($O128,P_All!$AR$5:$BG$244,3*($C$8-1)+4) -> 0.039042
H129: 93 | I129: =VLOOKUP($H129,P_All!$A$5:$F$204,($C$8-1)+2) -> 0 | J129: =VLOOKUP($H129,P_All!$H$5:$M$204,($C$8-1)+2) -> 0 | K129: =VLOOKUP($H129,P_All!$O$5:$AD$204,3*($C$8-1)+2) -> 0.00011009 | L129: =VLOOKUP($H129,P_All!$O$5:$AD$204,3*($C$8-1)+3) -> 0.00091549 | M129: =VLOOKUP($H129,P_All!$O$5:$AD$204,3*($C$8-1)+4) -> 0.0052038 | O129: 7.75 | P129: =VLOOKUP($O129,P_All!$AF$5:$AP$244,$C$8+1) -> 0 | Q129: =VLOOKUP($O129,P_All!$AF$5:$AP$244,$C$8+6) -> 0 | R129: =VLOOKUP($O129,P_All!$AR$5:$BG$244,3*($C$8-1)+2) -> 0.0058519 | S129: =VLOOKUP($O129,P_All!$AR$5:$BG$244,3*($C$8-1)+3) -> 0.025932 | T129: =VLOOKUP($O129,P_All!$AR$5:$BG$244,3*($C$8-1)+4) -> 0.044875
H130: 94 | I130: =VLOOKUP($H130,P_All!$A$5:$F$204,($C$8-1)+2) -> 0 | J130: =VLOOKUP($H130,P_All!$H$5:$M$204,($C$8-1)+2) -> 0 | K130: =VLOOKUP($H130,P_All!$O$5:$AD$204,3*($C$8-1)+2) -> 0.00012204 | L130: =VLOOKUP($H130,P_All!$O$5:$AD$204,3*($C$8-1)+3) -> 0.00083891 | M130: =VLOOKUP($H130,P_All!$O$5:$AD$204,3*($C$8-1)+4) -> 0.0051313 | O130: 7.833333333 | P130: =VLOOKUP($O130,P_All!$AF$5:$AP$244,$C$8+1) -> 0 | Q130: =VLOOKUP($O130,P_All!$AF$5:$AP$244,$C$8+6) -> 0 | R130: =VLOOKUP($O130,P_All!$AR$5:$BG$244,3*($C$8-1)+2) -> 0.0060634 | S130: =VLOOKUP($O130,P_All!$AR$5:$BG$244,3*($C$8-1)+3) -> 0.022115 | T130: =VLOOKUP($O130,P_All!$AR$5:$BG$244,3*($C$8-1)+4) -> 0.049819
H131: 95 | I131: =VLOOKUP($H131,P_All!$A$5:$F$204,($C$8-1)+2) -> 0 | J131: =VLOOKUP($H131,P_All!$H$5:$M$204,($C$8-1)+2) -> 0 | K131: =VLOOKUP($H131,P_All!$O$5:$AD$204,3*($C$8-1)+2) -> 0.00018523 | L131: =VLOOKUP($H131,P_All!$O$5:$AD$204,3*($C$8-1)+3) -> 0.00088447 | M131: =VLOOKUP($H131,P_All!$O$5:$AD$204,3*($C$8-1)+4) -> 0.0049928 | O131: 7.916666667 | P131: =VLOOKUP($O131,P_All!$AF$5:$AP$244,$C$8+1) -> 0 | Q131: =VLOOKUP($O131,P_All!$AF$5:$AP$244,$C$8+6) -> 0 | R131: =VLOOKUP($O131,P_All!$AR$5:$BG$244,3*($C$8-1)+2) -> 0.0062454 | S131: =VLOOKUP($O131,P_All!$AR$5:$BG$244,3*($C$8-1)+3) -> 0.020409 | T131: =VLOOKUP($O131,P_All!$AR$5:$BG$244,3*($C$8-1)+4) -> 0.040731
H132: 96 | I132: =VLOOKUP($H132,P_All!$A$5:$F$204,($C$8-1)+2) -> 0 | J132: =VLOOKUP($H132,P_All!$H$5:$M$204,($C$8-1)+2) -> 0 | K132: =VLOOKUP($H132,P_All!$O$5:$AD$204,3*($C$8-1)+2) -> 0.00018257 | L132: =VLOOKUP($H132,P_All!$O$5:$AD$204,3*($C$8-1)+3) -> 0.00088147 | M132: =VLOOKUP($H132,P_All!$O$5:$AD$204,3*($C$8-1)+4) -> 0.0056203 | O132: 8 | P132: =VLOOKUP($O132,P_All!$AF$5:$AP$244,$C$8+1) -> 0 | Q132: =VLOOKUP($O132,P_All!$AF$5:$AP$244,$C$8+6) -> 0 | R132: =VLOOKUP($O132,P_All!$AR$5:$BG$244,3*($C$8-1)+2) -> 0.0088376 | S132: =VLOOKUP($O132,P_All!$AR$5:$BG$244,3*($C$8-1)+3) -> 0.019742 | T132: =VLOOKUP($O132,P_All!$AR$5:$BG$244,3*($C$8-1)+4) -> 0.034051
H133: 97 | I133: =VLOOKUP($H133,P_All!$A$5:$F$204,($C$8-1)+2) -> 0 | J133: =VLOOKUP($H133,P_All!$H$5:$M$204,($C$8-1)+2) -> 0 | K133: =VLOOKUP($H133,P_All!$O$5:$AD$204,3*($C$8-1)+2) -> 0.00022807 | L133: =VLOOKUP($H133,P_All!$O$5:$AD$204,3*($C$8-1)+3) -> 0.00094617 | M133: =VLOOKUP($H133,P_All!$O$5:$AD$204,3*($C$8-1)+4) -> 0.0052317 | O133: 8.083333333 | P133: =VLOOKUP($O133,P_All!$AF$5:$AP$244,$C$8+1) -> 0 | Q133: =VLOOKUP($O133,P_All!$AF$5:$AP$244,$C$8+6) -> 0 | R133: =VLOOKUP($O133,P_All!$AR$5:$BG$244,3*($C$8-1)+2) -> 0.020588 | S133: =VLOOKUP($O133,P_All!$AR$5:$BG$244,3*($C$8-1)+3) -> 0.035351 | T133: =VLOOKUP($O133,P_All!$AR$5:$BG$244,3*($C$8-1)+4) -> 0.049445
H134: 98 | I134: =VLOOKUP($H134,P_All!$A$5:$F$204,($C$8-1)+2) -> 0 | J134: =VLOOKUP($H134,P_All!$H$5:$M$204,($C$8-1)+2) -> 0 | K134: =VLOOKUP($H134,P_All!$O$5:$AD$204,3*($C$8-1)+2) -> 0.00021124 | L134: =VLOOKUP($H134,P_All!$O$5:$AD$204,3*($C$8-1)+3) -> 0.0010138 | M134: =VLOOKUP($H134,P_All!$O$5:$AD$204,3*($C$8-1)+4) -> 0.0052938 | O134: 8.166666667 | P134: =VLOOKUP($O134,P_All!$AF$5:$AP$244,$C$8+1) -> 0 | Q134: =VLOOKUP($O134,P_All!$AF$5:$AP$244,$C$8+6) -> 0 | R134: =VLOOKUP($O134,P_All!$AR$5:$BG$244,3*($C$8-1)+2) -> 0.03834 | S134: =VLOOKUP($O134,P_All!$AR$5:$BG$244,3*($C$8-1)+3) -> 0.054135 | T134: =VLOOKUP($O134,P_All!$AR$5:$BG$244,3*($C$8-1)+4) -> 0.067808
H135: 99 | I135: =VLOOKUP($H135,P_All!$A$5:$F$204,($C$8-1)+2) -> 0 | J135: =VLOOKUP($H135,P_All!$H$5:$M$204,($C$8-1)+2) -> 0 | K135: =VLOOKUP($H135,P_All!$O$5:$AD$204,3*($C$8-1)+2) -> 0.00017261 | L135: =VLOOKUP($H135,P_All!$O$5:$AD$204,3*($C$8-1)+3) -> 0.00084448 | M135: =VLOOKUP($H135,P_All!$O$5:$AD$204,3*($C$8-1)+4) -> 0.0054903 | O135: 8.25 | P135: =VLOOKUP($O135,P_All!$AF$5:$AP$244,$C$8+1) -> 0 | Q135: =VLOOKUP($O135,P_All!$AF$5:$AP$244,$C$8+6) -> 0 | R135: =VLOOKUP($O135,P_All!$AR$5:$BG$244,3*($C$8-1)+2) -> 0.044072 | S135: =VLOOKUP($O135,P_All!$AR$5:$BG$244,3*($C$8-1)+3) -> 0.059796 | T135: =VLOOKUP($O135,P_All!$AR$5:$BG$244,3*($C$8-1)+4) -> 0.078352
H136: 100 | I136: =VLOOKUP($H136,P_All!$A$5:$F$204,($C$8-1)+2) -> 0 | J136: =VLOOKUP($H136,P_All!$H$5:$M$204,($C$8-1)+2) -> 0 | K136: =VLOOKUP($H136,P_All!$O$5:$AD$204,3*($C$8-1)+2) -> 0.00014446 | L136: =VLOOKUP($H136,P_All!$O$5:$AD$204,3*($C$8-1)+3) -> 0.0010063 | M136: =VLOOKUP($H136,P_All!$O$5:$AD$204,3*($C$8-1)+4) -> 0.0057485 | O136: 8.333333333 | P136: =VLOOKUP($O136,P_All!$AF$5:$AP$244,$C$8+1) -> 0 | Q136: =VLOOKUP($O136,P_All!$AF$5:$AP$244,$C$8+6) -> 0 | R136: =VLOOKUP($O136,P_All!$AR$5:$BG$244,3*($C$8-1)+2) -> 0.025739 | S136: =VLOOKUP($O136,P_All!$AR$5:$BG$244,3*($C$8-1)+3) -> 0.056278 | T136: =VLOOKUP($O136,P_All!$AR$5:$BG$244,3*($C$8-1)+4) -> 0.071209
H137: 101 | I137: =VLOOKUP($H137,P_All!$A$5:$F$204,($C$8-1)+2) -> 0 | J137: =VLOOKUP($H137,P_All!$H$5:$M$204,($C$8-1)+2) -> 0 | K137: =VLOOKUP($H137,P_All!$O$5:$AD$204,3*($C$8-1)+2) -> 0.00019494 | L137: =VLOOKUP($H137,P_All!$O$5:$AD$204,3*($C$8-1)+3) -> 0.0013 | M137: =VLOOKUP($H137,P_All!$O$5:$AD$204,3*($C$8-1)+4) -> 0.0055762 | O137: 8.416666667 | P137: =VLOOKUP($O137,P_All!$AF$5:$AP$244,$C$8+1) -> 0 | Q137: =VLOOKUP($O137,P_All!$AF$5:$AP$244,$C$8+6) -> 0 | R137: =VLOOKUP($O137,P_All!$AR$5:$BG$244,3*($C$8-1)+2) -> 0.0017522 | S137: =VLOOKUP($O137,P_All!$AR$5:$BG$244,3*($C$8-1)+3) -> 0.0038022 | T137: =VLOOKUP($O137,P_All!$AR$5:$BG$244,3*($C$8-1)+4) -> 0.03859
H138: 102 | I138: =VLOOKUP($H138,P_All!$A$5:$F$204,($C$8-1)+2) -> 0 | J138: =VLOOKUP($H138,P_All!$H$5:$M$204,($C$8-1)+2) -> 0 | K138: =VLOOKUP($H138,P_All!$O$5:$AD$204,3*($C$8-1)+2) -> 0.0001754 | L138: =VLOOKUP($H138,P_All!$O$5:$AD$204,3*($C$8-1)+3) -> 0.0012234 | M138: =VLOOKUP($H138,P_All!$O$5:$AD$204,3*($C$8-1)+4) -> 0.0056884 | O138: 8.5 | P138: =VLOOKUP($O138,P_All!$AF$5:$AP$244,$C$8+1) -> 0 | Q138: =VLOOKUP($O138,P_All!$AF$5:$AP$244,$C$8+6) -> 0 | R138: =VLOOKUP($O138,P_All!$AR$5:$BG$244,3*($C$8-1)+2) -> 0.0021518 | S138: =VLOOKUP($O138,P_All!$AR$5:$BG$244,3*($C$8-1)+3) -> 0.0044775 | T138: =VLOOKUP($O138,P_All!$AR$5:$BG$244,3*($C$8-1)+4) -> 0.011017
H139: 103 | I139: =VLOOKUP($H139,P_All!$A$5:$F$204,($C$8-1)+2) -> 0 | J139: =VLOOKUP($H139,P_All!$H$5:$M$204,($C$8-1)+2) -> 0 | K139: =VLOOKUP($H139,P_All!$O$5:$AD$204,3*($C$8-1)+2) -> 0.00019634 | L139: =VLOOKUP($H139,P_All!$O$5:$AD$204,3*($C$8-1)+3) -> 0.0011439 | M139: =VLOOKUP($H139,P_All!$O$5:$AD$204,3*($C$8-1)+4) -> 0.005555 | O139: 8.583333333 | P139: =VLOOKUP($O139,P_All!$AF$5:$AP$244,$C$8+1) -> 0 | Q139: =VLOOKUP($O139,P_All!$AF$5:$AP$244,$C$8+6) -> 0 | R139: =VLOOKUP($O139,P_All!$AR$5:$BG$244,3*($C$8-1)+2) -> 0.0032082 | S139: =VLOOKUP($O139,P_All!$AR$5:$BG$244,3*($C$8-1)+3) -> 0.0082201 | T139: =VLOOKUP($O139,P_All!$AR$5:$BG$244,3*($C$8-1)+4) -> 0.024388
H140: 104 | I140: =VLOOKUP($H140,P_All!$A$5:$F$204,($C$8-1)+2) -> 0 | J140: =VLOOKUP($H140,P_All!$H$5:$M$204,($C$8-1)+2) -> 0 | K140: =VLOOKUP($H140,P_All!$O$5:$AD$204,3*($C$8-1)+2) -> 0.00020757 | L140: =VLOOKUP($H140,P_All!$O$5:$AD$204,3*($C$8-1)+3) -> 0.0010033 | M140: =VLOOKUP($H140,P_All!$O$5:$AD$204,3*($C$8-1)+4) -> 0.0058246 | O140: 8.666666667 | P140: =VLOOKUP($O140,P_All!$AF$5:$AP$244,$C$8+1) -> 0 | Q140: =VLOOKUP($O140,P_All!$AF$5:$AP$244,$C$8+6) -> 0 | R140: =VLOOKUP($O140,P_All!$AR$5:$BG$244,3*($C$8-1)+2) -> 0.0032023 | S140: =VLOOKUP($O140,P_All!$AR$5:$BG$244,3*($C$8-1)+3) -> 0.014519 | T140: =VLOOKUP($O140,P_All!$AR$5:$BG$244,3*($C$8-1)+4) -> 0.033902
H141: 105 | I141: =VLOOKUP($H141,P_All!$A$5:$F$204,($C$8-1)+2) -> 0 | J141: =VLOOKUP($H141,P_All!$H$5:$M$204,($C$8-1)+2) -> 0 | K141: =VLOOKUP($H141,P_All!$O$5:$AD$204,3*($C$8-1)+2) -> 0.00016299 | L141: =VLOOKUP($H141,P_All!$O$5:$AD$204,3*($C$8-1)+3) -> 0.0011671 | M141: =VLOOKUP($H141,P_All!$O$5:$AD$204,3*($C$8-1)+4) -> 0.0058711 | O141: 8.75 | P141: =VLOOKUP($O141,P_All!$AF$5:$AP$244,$C$8+1) -> 0 | Q141: =VLOOKUP($O141,P_All!$AF$5:$AP$244,$C$8+6) -> 0 | R141: =VLOOKUP($O141,P_All!$AR$5:$BG$244,3*($C$8-1)+2) -> 0.006734 | S141: =VLOOKUP($O141,P_All!$AR$5:$BG$244,3*($C$8-1)+3) -> 0.021685 | T141: =VLOOKUP($O141,P_All!$AR$5:$BG$244,3*($C$8-1)+4) -> 0.037326
H142: 106 | I142: =VLOOKUP($H142,P_All!$A$5:$F$204,($C$8-1)+2) -> 0 | J142: =VLOOKUP($H142,P_All!$H$5:$M$204,($C$8-1)+2) -> 0 | K142: =VLOOKUP($H142,P_All!$O$5:$AD$204,3*($C$8-1)+2) -> 0.000161 | L142: =VLOOKUP($H142,P_All!$O$5:$AD$204,3*($C$8-1)+3) -> 0.00105 | M142: =VLOOKUP($H142,P_All!$O$5:$AD$204,3*($C$8-1)+4) -> 0.0058674 | O142: 8.833333333 | P142: =VLOOKUP($O142,P_All!$AF$5:$AP$244,$C$8+1) -> 0 | Q142: =VLOOKUP($O142,P_All!$AF$5:$AP$244,$C$8+6) -> 0 | R142: =VLOOKUP($O142,P_All!$AR$5:$BG$244,3*($C$8-1)+2) -> 0.0053324 | S142: =VLOOKUP($O142,P_All!$AR$5:$BG$244,3*($C$8-1)+3) -> 0.01804 | T142: =VLOOKUP($O142,P_All!$AR$5:$BG$244,3*($C$8-1)+4) -> 0.044364
H143: 107 | I143: =VLOOKUP($H143,P_All!$A$5:$F$204,($C$8-1)+2) -> 0 | J143: =VLOOKUP($H143,P_All!$H$5:$M$204,($C$8-1)+2) -> 0 | K143: =VLOOKUP($H143,P_All!$O$5:$AD$204,3*($C$8-1)+2) -> 0.00019719 | L143: =VLOOKUP($H143,P_All!$O$5:$AD$204,3*($C$8-1)+3) -> 0.0011881 | M143: =VLOOKUP($H143,P_All!$O$5:$AD$204,3*($C$8-1)+4) -> 0.0060279 | O143: 8.916666667 | P143: =VLOOKUP($O143,P_All!$AF$5:$AP$244,$C$8+1) -> 0 | Q143: =VLOOKUP($O143,P_All!$AF$5:$AP$244,$C$8+6) -> 0 | R143: =VLOOKUP($O143,P_All!$AR$5:$BG$244,3*($C$8-1)+2) -> 0.0062795 | S143: =VLOOKUP($O143,P_All!$AR$5:$BG$244,3*($C$8-1)+3) -> 0.017634 | T143: =VLOOKUP($O143,P_All!$AR$5:$BG$244,3*($C$8-1)+4) -> 0.036066
H144: 108 | I144: =VLOOKUP($H144,P_All!$A$5:$F$204,($C$8-1)+2) -> 0 | J144: =VLOOKUP($H144,P_All!$H$5:$M$204,($C$8-1)+2) -> 0 | K144: =VLOOKUP($H144,P_All!$O$5:$AD$204,3*($C$8-1)+2) -> 0.00022912 | L144: =VLOOKUP($H144,P_All!$O$5:$AD$204,3*($C$8-1)+3) -> 0.0012215 | M144: =VLOOKUP($H144,P_All!$O$5:$AD$204,3*($C$8-1)+4) -> 0.0059659 | O144: 9 | P144: =VLOOKUP($O144,P_All!$AF$5:$AP$244,$C$8+1) -> 0 | Q144: =VLOOKUP($O144,P_All!$AF$5:$AP$244,$C$8+6) -> 0 | R144: =VLOOKUP($O144,P_All!$AR$5:$BG$244,3*($C$8-1)+2) -> 0.0073467 | S144: =VLOOKUP($O144,P_All!$AR$5:$BG$244,3*($C$8-1)+3) -> 0.016852 | T144: =VLOOKUP($O144,P_All!$AR$5:$BG$244,3*($C$8-1)+4) -> 0.02879
H145: 109 | I145: =VLOOKUP($H145,P_All!$A$5:$F$204,($C$8-1)+2) -> 0 | J145: =VLOOKUP($H145,P_All!$H$5:$M$204,($C$8-1)+2) -> 0 | K145: =VLOOKUP($H145,P_All!$O$5:$AD$204,3*($C$8-1)+2) -> 0.00019958 | L145: =VLOOKUP($H145,P_All!$O$5:$AD$204,3*($C$8-1)+3) -> 0.0011631 | M145: =VLOOKUP($H145,P_All!$O$5:$AD$204,3*($C$8-1)+4) -> 0.0060363 | O145: 9.083333333 | P145: =VLOOKUP($O145,P_All!$AF$5:$AP$244,$C$8+1) -> 0 | Q145: =VLOOKUP($O145,P_All!$AF$5:$AP$244,$C$8+6) -> 0 | R145: =VLOOKUP($O145,P_All!$AR$5:$BG$244,3*($C$8-1)+2) -> 0.016936 | S145: =VLOOKUP($O145,P_All!$AR$5:$BG$244,3*($C$8-1)+3) -> 0.028507 | T145: =VLOOKUP($O145,P_All!$AR$5:$BG$244,3*($C$8-1)+4) -> 0.040218
H146: 110 | I146: =VLOOKUP($H146,P_All!$A$5:$F$204,($C$8-1)+2) -> 0 | J146: =VLOOKUP($H146,P_All!$H$5:$M$204,($C$8-1)+2) -> 0 | K146: =VLOOKUP($H146,P_All!$O$5:$AD$204,3*($C$8-1)+2) -> 0.00024702 | L146: =VLOOKUP($H146,P_All!$O$5:$AD$204,3*($C$8-1)+3) -> 0.0013731 | M146: =VLOOKUP($H146,P_All!$O$5:$AD$204,3*($C$8-1)+4) -> 0.0061054 | O146: 9.166666667 | P146: =VLOOKUP($O146,P_All!$AF$5:$AP$244,$C$8+1) -> 0 | Q146: =VLOOKUP($O146,P_All!$AF$5:$AP$244,$C$8+6) -> 0 | R146: =VLOOKUP($O146,P_All!$AR$5:$BG$244,3*($C$8-1)+2) -> 0.030424 | S146: =VLOOKUP($O146,P_All!$AR$5:$BG$244,3*($C$8-1)+3) -> 0.041475 | T146: =VLOOKUP($O146,P_All!$AR$5:$BG$244,3*($C$8-1)+4) -> 0.053412
H147: 111 | I147: =VLOOKUP($H147,P_All!$A$5:$F$204,($C$8-1)+2) -> 0 | J147: =VLOOKUP($H147,P_All!$H$5:$M$204,($C$8-1)+2) -> 0 | K147: =VLOOKUP($H147,P_All!$O$5:$AD$204,3*($C$8-1)+2) -> 0.00023794 | L147: =VLOOKUP($H147,P_All!$O$5:$AD$204,3*($C$8-1)+3) -> 0.0011609 | M147: =VLOOKUP($H147,P_All!$O$5:$AD$204,3*($C$8-1)+4) -> 0.0060255 | O147: 9.25 | P147: =VLOOKUP($O147,P_All!$AF$5:$AP$244,$C$8+1) -> 0 | Q147: =VLOOKUP($O147,P_All!$AF$5:$AP$244,$C$8+6) -> 0 | R147: =VLOOKUP($O147,P_All!$AR$5:$BG$244,3*($C$8-1)+2) -> 0.035488 | S147: =VLOOKUP($O147,P_All!$AR$5:$BG$244,3*($C$8-1)+3) -> 0.047504 | T147: =VLOOKUP($O147,P_All!$AR$5:$BG$244,3*($C$8-1)+4) -> 0.060855
H148: 112 | I148: =VLOOKUP($H148,P_All!$A$5:$F$204,($C$8-1)+2) -> 0 | J148: =VLOOKUP($H148,P_All!$H$5:$M$204,($C$8-1)+2) -> 0 | K148: =VLOOKUP($H148,P_All!$O$5:$AD$204,3*($C$8-1)+2) -> 0.00021001 | L148: =VLOOKUP($H148,P_All!$O$5:$AD$204,3*($C$8-1)+3) -> 0.0015246 | M148: =VLOOKUP($H148,P_All!$O$5:$AD$204,3*($C$8-1)+4) -> 0.0062251 | O148: 9.333333333 | P148: =VLOOKUP($O148,P_All!$AF$5:$AP$244,$C$8+1) -> 0 | Q148: =VLOOKUP($O148,P_All!$AF$5:$AP$244,$C$8+6) -> 0 | R148: =VLOOKUP($O148,P_All!$AR$5:$BG$244,3*($C$8-1)+2) -> 0.014225 | S148: =VLOOKUP($O148,P_All!$AR$5:$BG$244,3*($C$8-1)+3) -> 0.043911 | T148: =VLOOKUP($O148,P_All!$AR$5:$BG$244,3*($C$8-1)+4) -> 0.056065
H149: 113 | I149: =VLOOKUP($H149,P_All!$A$5:$F$204,($C$8-1)+2) -> 0 | J149: =VLOOKUP($H149,P_All!$H$5:$M$204,($C$8-1)+2) -> 0 | K149: =VLOOKUP($H149,P_All!$O$5:$AD$204,3*($C$8-1)+2) -> 0.00018358 | L149: =VLOOKUP($H149,P_All!$O$5:$AD$204,3*($C$8-1)+3) -> 0.0016298 | M149: =VLOOKUP($H149,P_All!$O$5:$AD$204,3*($C$8-1)+4) -> 0.0062851 | O149: 9.416666667 | P149: =VLOOKUP($O149,P_All!$AF$5:$AP$244,$C$8+1) -> 0 | Q149: =VLOOKUP($O149,P_All!$AF$5:$AP$244,$C$8+6) -> 0 | R149: =VLOOKUP($O149,P_All!$AR$5:$BG$244,3*($C$8-1)+2) -> 0.0013916 | S149: =VLOOKUP($O149,P_All!$AR$5:$BG$244,3*($C$8-1)+3) -> 0.0032673 | T149: =VLOOKUP($O149,P_All!$AR$5:$BG$244,3*($C$8-1)+4) -> 0.027696
H150: 114 | I150: =VLOOKUP($H150,P_All!$A$5:$F$204,($C$8-1)+2) -> 0 | J150: =VLOOKUP($H150,P_All!$H$5:$M$204,($C$8-1)+2) -> 0 | K150: =VLOOKUP($H150,P_All!$O$5:$AD$204,3*($C$8-1)+2) -> 0.00021165 | L150: =VLOOKUP($H150,P_All!$O$5:$AD$204,3*($C$8-1)+3) -> 0.0013638 | M150: =VLOOKUP($H150,P_All!$O$5:$AD$204,3*($C$8-1)+4) -> 0.0060764 | O150: 9.5 | P150: =VLOOKUP($O150,P_All!$AF$5:$AP$244,$C$8+1) -> 0 | Q150: =VLOOKUP($O150,P_All!$AF$5:$AP$244,$C$8+6) -> 0 | R150: =VLOOKUP($O150,P_All!$AR$5:$BG$244,3*($C$8-1)+2) -> 0.001455 | S150: =VLOOKUP($O150,P_All!$AR$5:$BG$244,3*($C$8-1)+3) -> 0.003319 | T150: =VLOOKUP($O150,P_All!$AR$5:$BG$244,3*($C$8-1)+4) -> 0.0081133
H151: 115 | I151: =VLOOKUP($H151,P_All!$A$5:$F$204,($C$8-1)+2) -> 0 | J151: =VLOOKUP($H151,P_All!$H$5:$M$204,($C$8-1)+2) -> 0 | K151: =VLOOKUP($H151,P_All!$O$5:$AD$204,3*($C$8-1)+2) -> 0.00023674 | L151: =VLOOKUP($H151,P_All!$O$5:$AD$204,3*($C$8-1)+3) -> 0.0014724 | M151: =VLOOKUP($H151,P_All!$O$5:$AD$204,3*($C$8-1)+4) -> 0.0062747 | O151: 9.583333333 | P151: =VLOOKUP($O151,P_All!$AF$5:$AP$244,$C$8+1) -> 0 | Q151: =VLOOKUP($O151,P_All!$AF$5:$AP$244,$C$8+6) -> 0 | R151: =VLOOKUP($O151,P_All!$AR$5:$BG$244,3*($C$8-1)+2) -> 0.0025044 | S151: =VLOOKUP($O151,P_All!$AR$5:$BG$244,3*($C$8-1)+3) -> 0.0064952 | T151: =VLOOKUP($O151,P_All!$AR$5:$BG$244,3*($C$8-1)+4) -> 0.019943
H152: 116 | I152: =VLOOKUP($H152,P_All!$A$5:$F$204,($C$8-1)+2) -> 0 | J152: =VLOOKUP($H152,P_All!$H$5:$M$204,($C$8-1)+2) -> 0 | K152: =VLOOKUP($H152,P_All!$O$5:$AD$204,3*($C$8-1)+2) -> 0.00020785 | L152: =VLOOKUP($H152,P_All!$O$5:$AD$204,3*($C$8-1)+3) -> 0.0017852 | M152: =VLOOKUP($H152,P_All!$O$5:$AD$204,3*($C$8-1)+4) -> 0.0061947 | O152: 9.666666667 | P152: =VLOOKUP($O152,P_All!$AF$5:$AP$244,$C$8+1) -> 0 | Q152: =VLOOKUP($O152,P_All!$AF$5:$AP$244,$C$8+6) -> 0 | R152: =VLOOKUP($O152,P_All!$AR$5:$BG$244,3*($C$8-1)+2) -> 0.0041143 | S152: =VLOOKUP($O152,P_All!$AR$5:$BG$244,3*($C$8-1)+3) -> 0.0183 | T152: =VLOOKUP($O152,P_All!$AR$5:$BG$244,3*($C$8-1)+4) -> 0.03035
H153: 117 | I153: =VLOOKUP($H153,P_All!$A$5:$F$204,($C$8-1)+2) -> 0 | J153: =VLOOKUP($H153,P_All!$H$5:$M$204,($C$8-1)+2) -> 0 | K153: =VLOOKUP($H153,P_All!$O$5:$AD$204,3*($C$8-1)+2) -> 0.00024307 | L153: =VLOOKUP($H153,P_All!$O$5:$AD$204,3*($C$8-1)+3) -> 0.0014929 | M153: =VLOOKUP($H153,P_All!$O$5:$AD$204,3*($C$8-1)+4) -> 0.0059749 | O153: 9.75 | P153: =VLOOKUP($O153,P_All!$AF$5:$AP$244,$C$8+1) -> 0 | Q153: =VLOOKUP($O153,P_All!$AF$5:$AP$244,$C$8+6) -> 0 | R153: =VLOOKUP($O153,P_All!$AR$5:$BG$244,3*($C$8-1)+2) -> 0.0042844 | S153: =VLOOKUP($O153,P_All!$AR$5:$BG$244,3*($C$8-1)+3) -> 0.015754 | T153: =VLOOKUP($O153,P_All!$AR$5:$BG$244,3*($C$8-1)+4) -> 0.037043
H154: 118 | I154: =VLOOKUP($H154,P_All!$A$5:$F$204,($C$8-1)+2) -> 0 | J154: =VLOOKUP($H154,P_All!$H$5:$M$204,($C$8-1)+2) -> 0 | K154: =VLOOKUP($H154,P_All!$O$5:$AD$204,3*($C$8-1)+2) -> 0.00017974 | L154: =VLOOKUP($H154,P_All!$O$5:$AD$204,3*($C$8-1)+3) -> 0.0013269 | M154: =VLOOKUP($H154,P_All!$O$5:$AD$204,3*($C$8-1)+4) -> 0.0061921 | O154: 9.833333333 | P154: =VLOOKUP($O154,P_All!$AF$5:$AP$244,$C$8+1) -> 0 | Q154: =VLOOKUP($O154,P_All!$AF$5:$AP$244,$C$8+6) -> 0 | R154: =VLOOKUP($O154,P_All!$AR$5:$BG$244,3*($C$8-1)+2) -> 0.0048615 | S154: =VLOOKUP($O154,P_All!$AR$5:$BG$244,3*($C$8-1)+3) -> 0.014695 | T154: =VLOOKUP($O154,P_All!$AR$5:$BG$244,3*($C$8-1)+4) -> 0.031306
H155: 119 | I155: =VLOOKUP($H155,P_All!$A$5:$F$204,($C$8-1)+2) -> 0 | J155: =VLOOKUP($H155,P_All!$H$5:$M$204,($C$8-1)+2) -> 0 | K155: =VLOOKUP($H155,P_All!$O$5:$AD$204,3*($C$8-1)+2) -> 0.00022948 | L155: =VLOOKUP($H155,P_All!$O$5:$AD$204,3*($C$8-1)+3) -> 0.001665 | M155: =VLOOKUP($H155,P_All!$O$5:$AD$204,3*($C$8-1)+4) -> 0.0061862 | O155: 9.916666667 | P155: =VLOOKUP($O155,P_All!$AF$5:$AP$244,$C$8+1) -> 0 | Q155: =VLOOKUP($O155,P_All!$AF$5:$AP$244,$C$8+6) -> 0 | R155: =VLOOKUP($O155,P_All!$AR$5:$BG$244,3*($C$8-1)+2) -> 0.0056702 | S155: =VLOOKUP($O155,P_All!$AR$5:$BG$244,3*($C$8-1)+3) -> 0.013246 | T155: =VLOOKUP($O155,P_All!$AR$5:$BG$244,3*($C$8-1)+4) -> 0.02359
H156: 120 | I156: =VLOOKUP($H156,P_All!$A$5:$F$204,($C$8-1)+2) -> 0 | J156: =VLOOKUP($H156,P_All!$H$5:$M$204,($C$8-1)+2) -> 0 | K156: =VLOOKUP($H156,P_All!$O$5:$AD$204,3*($C$8-1)+2) -> 0.00018984 | L156: =VLOOKUP($H156,P_All!$O$5:$AD$204,3*($C$8-1)+3) -> 0.0018284 | M156: =VLOOKUP($H156,P_All!$O$5:$AD$204,3*($C$8-1)+4) -> 0.0065129 | O156: 10 | P156: =VLOOKUP($O156,P_All!$AF$5:$AP$244,$C$8+1) -> 0 | Q156: =VLOOKUP($O156,P_All!$AF$5:$AP$244,$C$8+6) -> 0 | R156: =VLOOKUP($O156,P_All!$AR$5:$BG$244,3*($C$8-1)+2) -> 0.012302 | S156: =VLOOKUP($O156,P_All!$AR$5:$BG$244,3*($C$8-1)+3) -> 0.022965 | T156: =VLOOKUP($O156,P_All!$AR$5:$BG$244,3*($C$8-1)+4) -> 0.032569
H157: 121 | I157: =VLOOKUP($H157,P_All!$A$5:$F$204,($C$8-1)+2) -> 0 | J157: =VLOOKUP($H157,P_All!$H$5:$M$204,($C$8-1)+2) -> 0 | K157: =VLOOKUP($H157,P_All!$O$5:$AD$204,3*($C$8-1)+2) -> 0.00023394 | L157: =VLOOKUP($H157,P_All!$O$5:$AD$204,3*($C$8-1)+3) -> 0.0018861 | M157: =VLOOKUP($H157,P_All!$O$5:$AD$204,3*($C$8-1)+4) -> 0.0064217 | O157: 10.08333333 | P157: =VLOOKUP($O157,P_All!$AF$5:$AP$244,$C$8+1) -> 0 | Q157: =VLOOKUP($O157,P_All!$AF$5:$AP$244,$C$8+6) -> 0 | R157: =VLOOKUP($O157,P_All!$AR$5:$BG$244,3*($C$8-1)+2) -> 0.022025 | S157: =VLOOKUP($O157,P_All!$AR$5:$BG$244,3*($C$8-1)+3) -> 0.030781 | T157: =VLOOKUP($O157,P_All!$AR$5:$BG$244,3*($C$8-1)+4) -> 0.040431
H158: 122 | I158: =VLOOKUP($H158,P_All!$A$5:$F$204,($C$8-1)+2) -> 0 | J158: =VLOOKUP($H158,P_All!$H$5:$M$204,($C$8-1)+2) -> 0 | K158: =VLOOKUP($H158,P_All!$O$5:$AD$204,3*($C$8-1)+2) -> 0.00022503 | L158: =VLOOKUP($H158,P_All!$O$5:$AD$204,3*($C$8-1)+3) -> 0.0019649 | M158: =VLOOKUP($H158,P_All!$O$5:$AD$204,3*($C$8-1)+4) -> 0.0067476 | O158: 10.16666667 | P158: =VLOOKUP($O158,P_All!$AF$5:$AP$244,$C$8+1) -> 0 | Q158: =VLOOKUP($O158,P_All!$AF$5:$AP$244,$C$8+6) -> 0 | R158: =VLOOKUP($O158,P_All!$AR$5:$BG$244,3*($C$8-1)+2) -> 0.024869 | S158: =VLOOKUP($O158,P_All!$AR$5:$BG$244,3*($C$8-1)+3) -> 0.034737 | T158: =VLOOKUP($O158,P_All!$AR$5:$BG$244,3*($C$8-1)+4) -> 0.043814
H159: 123 | I159: =VLOOKUP($H159,P_All!$A$5:$F$204,($C$8-1)+2) -> 0 | J159: =VLOOKUP($H159,P_All!$H$5:$M$204,($C$8-1)+2) -> 0 | K159: =VLOOKUP($H159,P_All!$O$5:$AD$204,3*($C$8-1)+2) -> 0.00023353 | L159: =VLOOKUP($H159,P_All!$O$5:$AD$204,3*($C$8-1)+3) -> 0.0016319 | M159: =VLOOKUP($H159,P_All!$O$5:$AD$204,3*($C$8-1)+4) -> 0.00651 | O159: 10.25 | P159: =VLOOKUP($O159,P_All!$AF$5:$AP$244,$C$8+1) -> 0 | Q159: =VLOOKUP($O159,P_All!$AF$5:$AP$244,$C$8+6) -> 0 | R159: =VLOOKUP($O159,P_All!$AR$5:$BG$244,3*($C$8-1)+2) -> 0.013364 | S159: =VLOOKUP($O159,P_All!$AR$5:$BG$244,3*($C$8-1)+3) -> 0.033804 | T159: =VLOOKUP($O159,P_All!$AR$5:$BG$244,3*($C$8-1)+4) -> 0.044475
H160: 124 | I160: =VLOOKUP($H160,P_All!$A$5:$F$204,($C$8-1)+2) -> 0 | J160: =VLOOKUP($H160,P_All!$H$5:$M$204,($C$8-1)+2) -> 0 | K160: =VLOOKUP($H160,P_All!$O$5:$AD$204,3*($C$8-1)+2) -> 0.00024582 | L160: =VLOOKUP($H160,P_All!$O$5:$AD$204,3*($C$8-1)+3) -> 0.0018465 | M160: =VLOOKUP($H160,P_All!$O$5:$AD$204,3*($C$8-1)+4) -> 0.0069141 | O160: 10.33333333 | P160: =VLOOKUP($O160,P_All!$AF$5:$AP$244,$C$8+1) -> 0 | Q160: =VLOOKUP($O160,P_All!$AF$5:$AP$244,$C$8+6) -> 0 | R160: =VLOOKUP($O160,P_All!$AR$5:$BG$244,3*($C$8-1)+2) -> 0.0010733 | S160: =VLOOKUP($O160,P_All!$AR$5:$BG$244,3*($C$8-1)+3) -> 0.0027974 | T160: =VLOOKUP($O160,P_All!$AR$5:$BG$244,3*($C$8-1)+4) -> 0.023229
H161: 125 | I161: =VLOOKUP($H161,P_All!$A$5:$F$204,($C$8-1)+2) -> 0 | J161: =VLOOKUP($H161,P_All!$H$5:$M$204,($C$8-1)+2) -> 0 | K161: =VLOOKUP($H161,P_All!$O$5:$AD$204,3*($C$8-1)+2) -> 0.00027293 | L161: =VLOOKUP($H161,P_All!$O$5:$AD$204,3*($C$8-1)+3) -> 0.0018042 | M161: =VLOOKUP($H161,P_All!$O$5:$AD$204,3*($C$8-1)+4) -> 0.0068451 | O161: 10.41666667 | P161: =VLOOKUP($O161,P_All!$AF$5:$AP$244,$C$8+1) -> 0 | Q161: =VLOOKUP($O161,P_All!$AF$5:$AP$244,$C$8+6) -> 0 | R161: =VLOOKUP($O161,P_All!$AR$5:$BG$244,3*($C$8-1)+2) -> 0.0012657 | S161: =VLOOKUP($O161,P_All!$AR$5:$BG$244,3*($C$8-1)+3) -> 0.0030495 | T161: =VLOOKUP($O161,P_All!$AR$5:$BG$244,3*($C$8-1)+4) -> 0.0074811
H162: 126 | I162: =VLOOKUP($H162,P_All!$A$5:$F$204,($C$8-1)+2) -> 0 | J162: =VLOOKUP($H162,P_All!$H$5:$M$204,($C$8-1)+2) -> 0 | K162: =VLOOKUP($H162,P_All!$O$5:$AD$204,3*($C$8-1)+2) -> 0.00024542 | L162: =VLOOKUP($H162,P_All!$O$5:$AD$204,3*($C$8-1)+3) -> 0.0020268 | M162: =VLOOKUP($H162,P_All!$O$5:$AD$204,3*($C$8-1)+4) -> 0.0069186 | O162: 10.5 | P162: =VLOOKUP($O162,P_All!$AF$5:$AP$244,$C$8+1) -> 0 | Q162: =VLOOKUP($O162,P_All!$AF$5:$AP$244,$C$8+6) -> 0 | R162: =VLOOKUP($O162,P_All!$AR$5:$BG$244,3*($C$8-1)+2) -> 0.001893 | S162: =VLOOKUP($O162,P_All!$AR$5:$BG$244,3*($C$8-1)+3) -> 0.005074 | T162: =VLOOKUP($O162,P_All!$AR$5:$BG$244,3*($C$8-1)+4) -> 0.0163
H163: 127 | I163: =VLOOKUP($H163,P_All!$A$5:$F$204,($C$8-1)+2) -> 0 | J163: =VLOOKUP($H163,P_All!$H$5:$M$204,($C$8-1)+2) -> 0 | K163: =VLOOKUP($H163,P_All!$O$5:$AD$204,3*($C$8-1)+2) -> 0.00021179 | L163: =VLOOKUP($H163,P_All!$O$5:$AD$204,3*($C$8-1)+3) -> 0.0019713 | M163: =VLOOKUP($H163,P_All!$O$5:$AD$204,3*($C$8-1)+4) -> 0.0067968 | O163: 10.58333333 | P163: =VLOOKUP($O163,P_All!$AF$5:$AP$244,$C$8+1) -> 0 | Q163: =VLOOKUP($O163,P_All!$AF$5:$AP$244,$C$8+6) -> 0 | R163: =VLOOKUP($O163,P_All!$AR$5:$BG$244,3*($C$8-1)+2) -> 0.0024231 | S163: =VLOOKUP($O163,P_All!$AR$5:$BG$244,3*($C$8-1)+3) -> 0.0096199 | T163: =VLOOKUP($O163,P_All!$AR$5:$BG$244,3*($C$8-1)+4) -> 0.022831
H164: 128 | I164: =VLOOKUP($H164,P_All!$A$5:$F$204,($C$8-1)+2) -> 0 | J164: =VLOOKUP($H164,P_All!$H$5:$M$204,($C$8-1)+2) -> 0 | K164: =VLOOKUP($H164,P_All!$O$5:$AD$204,3*($C$8-1)+2) -> 0.00029011 | L164: =VLOOKUP($H164,P_All!$O$5:$AD$204,3*($C$8-1)+3) -> 0.0018615 | M164: =VLOOKUP($H164,P_All!$O$5:$AD$204,3*($C$8-1)+4) -> 0.0067374 | O164: 10.66666667 | P164: =VLOOKUP($O164,P_All!$AF$5:$AP$244,$C$8+1) -> 0 | Q164: =VLOOKUP($O164,P_All!$AF$5:$AP$244,$C$8+6) -> 0 | R164: =VLOOKUP($O164,P_All!$AR$5:$BG$244,3*($C$8-1)+2) -> 0.0037799 | S164: =VLOOKUP($O164,P_All!$AR$5:$BG$244,3*($C$8-1)+3) -> 0.014344 | T164: =VLOOKUP($O164,P_All!$AR$5:$BG$244,3*($C$8-1)+4) -> 0.026579
H165: 129 | I165: =VLOOKUP($H165,P_All!$A$5:$F$204,($C$8-1)+2) -> 0 | J165: =VLOOKUP($H165,P_All!$H$5:$M$204,($C$8-1)+2) -> 0 | K165: =VLOOKUP($H165,P_All!$O$5:$AD$204,3*($C$8-1)+2) -> 0.00023757 | L165: =VLOOKUP($H165,P_All!$O$5:$AD$204,3*($C$8-1)+3) -> 0.0019295 | M165: =VLOOKUP($H165,P_All!$O$5:$AD$204,3*($C$8-1)+4) -> 0.0071146 | O165: 10.75 | P165: =VLOOKUP($O165,P_All!$AF$5:$AP$244,$C$8+1) -> 0 | Q165: =VLOOKUP($O165,P_All!$AF$5:$AP$244,$C$8+6) -> 0 | R165: =VLOOKUP($O165,P_All!$AR$5:$BG$244,3*($C$8-1)+2) -> 0.0034906 | S165: =VLOOKUP($O165,P_All!$AR$5:$BG$244,3*($C$8-1)+3) -> 0.013085 | T165: =VLOOKUP($O165,P_All!$AR$5:$BG$244,3*($C$8-1)+4) -> 0.030727
H166: 130 | I166: =VLOOKUP($H166,P_All!$A$5:$F$204,($C$8-1)+2) -> 0 | J166: =VLOOKUP($H166,P_All!$H$5:$M$204,($C$8-1)+2) -> 0 | K166: =VLOOKUP($H166,P_All!$O$5:$AD$204,3*($C$8-1)+2) -> 0.00020683 | L166: =VLOOKUP($H166,P_All!$O$5:$AD$204,3*($C$8-1)+3) -> 0.0018558 | M166: =VLOOKUP($H166,P_All!$O$5:$AD$204,3*($C$8-1)+4) -> 0.0069563 | O166: =O165+1/12 -> 10.83333333 | P166: =VLOOKUP($O166,P_All!$AF$5:$AP$244,$C$8+1) -> 0 | Q166: =VLOOKUP($O166,P_All!$AF$5:$AP$244,$C$8+6) -> 0 | R166: =VLOOKUP($O166,P_All!$AR$5:$BG$244,3*($C$8-1)+2) -> 0.0035468 | S166: =VLOOKUP($O166,P_All!$AR$5:$BG$244,3*($C$8-1)+3) -> 0.010758 | T166: =VLOOKUP($O166,P_All!$AR$5:$BG$244,3*($C$8-1)+4) -> 0.022258
H167: 131 | I167: =VLOOKUP($H167,P_All!$A$5:$F$204,($C$8-1)+2) -> 0 | J167: =VLOOKUP($H167,P_All!$H$5:$M$204,($C$8-1)+2) -> 0 | K167: =VLOOKUP($H167,P_All!$O$5:$AD$204,3*($C$8-1)+2) -> 0.00024795 | L167: =VLOOKUP($H167,P_All!$O$5:$AD$204,3*($C$8-1)+3) -> 0.0018919 | M167: =VLOOKUP($H167,P_All!$O$5:$AD$204,3*($C$8-1)+4) -> 0.0067293 | O167: 10.91666667 | P167: =VLOOKUP($O167,P_All!$AF$5:$AP$244,$C$8+1) -> 0 | Q167: =VLOOKUP($O167,P_All!$AF$5:$AP$244,$C$8+6) -> 0 | R167: =VLOOKUP($O167,P_All!$AR$5:$BG$244,3*($C$8-1)+2) -> 0.0048013 | S167: =VLOOKUP($O167,P_All!$AR$5:$BG$244,3*($C$8-1)+3) -> 0.010908 | T167: =VLOOKUP($O167,P_All!$AR$5:$BG$244,3*($C$8-1)+4) -> 0.019335
H168: 132 | I168: =VLOOKUP($H168,P_All!$A$5:$F$204,($C$8-1)+2) -> 0 | J168: =VLOOKUP($H168,P_All!$H$5:$M$204,($C$8-1)+2) -> 0 | K168: =VLOOKUP($H168,P_All!$O$5:$AD$204,3*($C$8-1)+2) -> 0.00024174 | L168: =VLOOKUP($H168,P_All!$O$5:$AD$204,3*($C$8-1)+3) -> 0.0018105 | M168: =VLOOKUP($H168,P_All!$O$5:$AD$204,3*($C$8-1)+4) -> 0.007437 | O168: 11 | P168: =VLOOKUP($O168,P_All!$AF$5:$AP$244,$C$8+1) -> 0 | Q168: =VLOOKUP($O168,P_All!$AF$5:$AP$244,$C$8+6) -> 0 | R168: =VLOOKUP($O168,P_All!$AR$5:$BG$244,3*($C$8-1)+2) -> 0.011265 | S168: =VLOOKUP($O168,P_All!$AR$5:$BG$244,3*($C$8-1)+3) -> 0.019999 | T168: =VLOOKUP($O168,P_All!$AR$5:$BG$244,3*($C$8-1)+4) -> 0.028602
H169: 133 | I169: =VLOOKUP($H169,P_All!$A$5:$F$204,($C$8-1)+2) -> 0 | J169: =VLOOKUP($H169,P_All!$H$5:$M$204,($C$8-1)+2) -> 0 | K169: =VLOOKUP($H169,P_All!$O$5:$AD$204,3*($C$8-1)+2) -> 0.00027946 | L169: =VLOOKUP($H169,P_All!$O$5:$AD$204,3*($C$8-1)+3) -> 0.0022469 | M169: =VLOOKUP($H169,P_All!$O$5:$AD$204,3*($C$8-1)+4) -> 0.0071504 | O169: 11.08333333 | P169: =VLOOKUP($O169,P_All!$AF$5:$AP$244,$C$8+1) -> 0 | Q169: =VLOOKUP($O169,P_All!$AF$5:$AP$244,$C$8+6) -> 0 | R169: =VLOOKUP($O169,P_All!$AR$5:$BG$244,3*($C$8-1)+2) -> 0.020322 | S169: =VLOOKUP($O169,P_All!$AR$5:$BG$244,3*($C$8-1)+3) -> 0.029605 | T169: =VLOOKUP($O169,P_All!$AR$5:$BG$244,3*($C$8-1)+4) -> 0.038317
H170: 134 | I170: =VLOOKUP($H170,P_All!$A$5:$F$204,($C$8-1)+2) -> 0 | J170: =VLOOKUP($H170,P_All!$H$5:$M$204,($C$8-1)+2) -> 0 | K170: =VLOOKUP($H170,P_All!$O$5:$AD$204,3*($C$8-1)+2) -> 0.00024527 | L170: =VLOOKUP($H170,P_All!$O$5:$AD$204,3*($C$8-1)+3) -> 0.0020043 | M170: =VLOOKUP($H170,P_All!$O$5:$AD$204,3*($C$8-1)+4) -> 0.0071183 | O170: 11.16666667 | P170: =VLOOKUP($O170,P_All!$AF$5:$AP$244,$C$8+1) -> 0 | Q170: =VLOOKUP($O170,P_All!$AF$5:$AP$244,$C$8+6) -> 0 | R170: =VLOOKUP($O170,P_All!$AR$5:$BG$244,3*($C$8-1)+2) -> 0.023852 | S170: =VLOOKUP($O170,P_All!$AR$5:$BG$244,3*($C$8-1)+3) -> 0.034574 | T170: =VLOOKUP($O170,P_All!$AR$5:$BG$244,3*($C$8-1)+4) -> 0.04468
H171: 135 | I171: =VLOOKUP($H171,P_All!$A$5:$F$204,($C$8-1)+2) -> 0 | J171: =VLOOKUP($H171,P_All!$H$5:$M$204,($C$8-1)+2) -> 0 | K171: =VLOOKUP($H171,P_All!$O$5:$AD$204,3*($C$8-1)+2) -> 0.00025915 | L171: =VLOOKUP($H171,P_All!$O$5:$AD$204,3*($C$8-1)+3) -> 0.0022133 | M171: =VLOOKUP($H171,P_All!$O$5:$AD$204,3*($C$8-1)+4) -> 0.007248 | O171: 11.25 | P171: =VLOOKUP($O171,P_All!$AF$5:$AP$244,$C$8+1) -> 0 | Q171: =VLOOKUP($O171,P_All!$AF$5:$AP$244,$C$8+6) -> 0 | R171: =VLOOKUP($O171,P_All!$AR$5:$BG$244,3*($C$8-1)+2) -> 0.014906 | S171: =VLOOKUP($O171,P_All!$AR$5:$BG$244,3*($C$8-1)+3) -> 0.031866 | T171: =VLOOKUP($O171,P_All!$AR$5:$BG$244,3*($C$8-1)+4) -> 0.041968
H172: 136 | I172: =VLOOKUP($H172,P_All!$A$5:$F$204,($C$8-1)+2) -> 0 | J172: =VLOOKUP($H172,P_All!$H$5:$M$204,($C$8-1)+2) -> 0 | K172: =VLOOKUP($H172,P_All!$O$5:$AD$204,3*($C$8-1)+2) -> 0.00022481 | L172: =VLOOKUP($H172,P_All!$O$5:$AD$204,3*($C$8-1)+3) -> 0.0022733 | M172: =VLOOKUP($H172,P_All!$O$5:$AD$204,3*($C$8-1)+4) -> 0.0070986 | O172: 11.33333333 | P172: =VLOOKUP($O172,P_All!$AF$5:$AP$244,$C$8+1) -> 0 | Q172: =VLOOKUP($O172,P_All!$AF$5:$AP$244,$C$8+6) -> 0 | R172: =VLOOKUP($O172,P_All!$AR$5:$BG$244,3*($C$8-1)+2) -> 0.00096061 | S172: =VLOOKUP($O172,P_All!$AR$5:$BG$244,3*($C$8-1)+3) -> 0.002334 | T172: =VLOOKUP($O172,P_All!$AR$5:$BG$244,3*($C$8-1)+4) -> 0.020512
H173: 137 | I173: =VLOOKUP($H173,P_All!$A$5:$F$204,($C$8-1)+2) -> 0 | J173: =VLOOKUP($H173,P_All!$H$5:$M$204,($C$8-1)+2) -> 0 | K173: =VLOOKUP($H173,P_All!$O$5:$AD$204,3*($C$8-1)+2) -> 0.00027936 | L173: =VLOOKUP($H173,P_All!$O$5:$AD$204,3*($C$8-1)+3) -> 0.0021908 | M173: =VLOOKUP($H173,P_All!$O$5:$AD$204,3*($C$8-1)+4) -> 0.0072583 | O173: 11.41666667 | P173: =VLOOKUP($O173,P_All!$AF$5:$AP$244,$C$8+1) -> 0 | Q173: =VLOOKUP($O173,P_All!$AF$5:$AP$244,$C$8+6) -> 0 | R173: =VLOOKUP($O173,P_All!$AR$5:$BG$244,3*($C$8-1)+2) -> 0.0011178 | S173: =VLOOKUP($O173,P_All!$AR$5:$BG$244,3*($C$8-1)+3) -> 0.0028323 | T173: =VLOOKUP($O173,P_All!$AR$5:$BG$244,3*($C$8-1)+4) -> 0.0065345
H174: 138 | I174: =VLOOKUP($H174,P_All!$A$5:$F$204,($C$8-1)+2) -> 0 | J174: =VLOOKUP($H174,P_All!$H$5:$M$204,($C$8-1)+2) -> 0 | K174: =VLOOKUP($H174,P_All!$O$5:$AD$204,3*($C$8-1)+2) -> 0.00027997 | L174: =VLOOKUP($H174,P_All!$O$5:$AD$204,3*($C$8-1)+3) -> 0.0023637 | M174: =VLOOKUP($H174,P_All!$O$5:$AD$204,3*($C$8-1)+4) -> 0.0072562 | O174: 11.5 | P174: =VLOOKUP($O174,P_All!$AF$5:$AP$244,$C$8+1) -> 0 | Q174: =VLOOKUP($O174,P_All!$AF$5:$AP$244,$C$8+6) -> 0 | R174: =VLOOKUP($O174,P_All!$AR$5:$BG$244,3*($C$8-1)+2) -> 0.001907 | S174: =VLOOKUP($O174,P_All!$AR$5:$BG$244,3*($C$8-1)+3) -> 0.0056625 | T174: =VLOOKUP($O174,P_All!$AR$5:$BG$244,3*($C$8-1)+4) -> 0.015873
H175: 139 | I175: =VLOOKUP($H175,P_All!$A$5:$F$204,($C$8-1)+2) -> 0 | J175: =VLOOKUP($H175,P_All!$H$5:$M$204,($C$8-1)+2) -> 0 | K175: =VLOOKUP($H175,P_All!$O$5:$AD$204,3*($C$8-1)+2) -> 0.00026467 | L175: =VLOOKUP($H175,P_All!$O$5:$AD$204,3*($C$8-1)+3) -> 0.0019848 | M175: =VLOOKUP($H175,P_All!$O$5:$AD$204,3*($C$8-1)+4) -> 0.0071607 | O175: 11.58333333 | P175: =VLOOKUP($O175,P_All!$AF$5:$AP$244,$C$8+1) -> 0 | Q175: =VLOOKUP($O175,P_All!$AF$5:$AP$244,$C$8+6) -> 0 | R175: =VLOOKUP($O175,P_All!$AR$5:$BG$244,3*($C$8-1)+2) -> 0.0018097 | S175: =VLOOKUP($O175,P_All!$AR$5:$BG$244,3*($C$8-1)+3) -> 0.0081505 | T175: =VLOOKUP($O175,P_All!$AR$5:$BG$244,3*($C$8-1)+4) -> 0.021087
H176: 140 | I176: =VLOOKUP($H176,P_All!$A$5:$F$204,($C$8-1)+2) -> 0 | J176: =VLOOKUP($H176,P_All!$H$5:$M$204,($C$8-1)+2) -> 0 | K176: =VLOOKUP($H176,P_All!$O$5:$AD$204,3*($C$8-1)+2) -> 0.00027911 | L176: =VLOOKUP($H176,P_All!$O$5:$AD$204,3*($C$8-1)+3) -> 0.0022656 | M176: =VLOOKUP($H176,P_All!$O$5:$AD$204,3*($C$8-1)+4) -> 0.0071735 | O176: 11.66666667 | P176: =VLOOKUP($O176,P_All!$AF$5:$AP$244,$C$8+1) -> 0 | Q176: =VLOOKUP($O176,P_All!$AF$5:$AP$244,$C$8+6) -> 0 | R176: =VLOOKUP($O176,P_All!$AR$5:$BG$244,3*($C$8-1)+2) -> 0.0037693 | S176: =VLOOKUP($O176,P_All!$AR$5:$BG$244,3*($C$8-1)+3) -> 0.013066 | T176: =VLOOKUP($O176,P_All!$AR$5:$BG$244,3*($C$8-1)+4) -> 0.023717
H177: 141 | I177: =VLOOKUP($H177,P_All!$A$5:$F$204,($C$8-1)+2) -> 0 | J177: =VLOOKUP($H177,P_All!$H$5:$M$204,($C$8-1)+2) -> 0 | K177: =VLOOKUP($H177,P_All!$O$5:$AD$204,3*($C$8-1)+2) -> 0.00025916 | L177: =VLOOKUP($H177,P_All!$O$5:$AD$204,3*($C$8-1)+3) -> 0.0021363 | M177: =VLOOKUP($H177,P_All!$O$5:$AD$204,3*($C$8-1)+4) -> 0.0071007 | O177: 11.75 | P177: =VLOOKUP($O177,P_All!$AF$5:$AP$244,$C$8+1) -> 0 | Q177: =VLOOKUP($O177,P_All!$AF$5:$AP$244,$C$8+6) -> 0 | R177: =VLOOKUP($O177,P_All!$AR$5:$BG$244,3*($C$8-1)+2) -> 0.0031728 | S177: =VLOOKUP($O177,P_All!$AR$5:$BG$244,3*($C$8-1)+3) -> 0.012957 | T177: =VLOOKUP($O177,P_All!$AR$5:$BG$244,3*($C$8-1)+4) -> 0.028899
H178: 142 | I178: =VLOOKUP($H178,P_All!$A$5:$F$204,($C$8-1)+2) -> 0 | J178: =VLOOKUP($H178,P_All!$H$5:$M$204,($C$8-1)+2) -> 0 | K178: =VLOOKUP($H178,P_All!$O$5:$AD$204,3*($C$8-1)+2) -> 0.00027656 | L178: =VLOOKUP($H178,P_All!$O$5:$AD$204,3*($C$8-1)+3) -> 0.0022372 | M178: =VLOOKUP($H178,P_All!$O$5:$AD$204,3*($C$8-1)+4) -> 0.0072485 | O178: 11.83333333 | P178: =VLOOKUP($O178,P_All!$AF$5:$AP$244,$C$8+1) -> 0 | Q178: =VLOOKUP($O178,P_All!$AF$5:$AP$244,$C$8+6) -> 0 | R178: =VLOOKUP($O178,P_All!$AR$5:$BG$244,3*($C$8-1)+2) -> 0.0035935 | S178: =VLOOKUP($O178,P_All!$AR$5:$BG$244,3*($C$8-1)+3) -> 0.011659 | T178: =VLOOKUP($O178,P_All!$AR$5:$BG$244,3*($C$8-1)+4) -> 0.02359
H179: 143 | I179: =VLOOKUP($H179,P_All!$A$5:$F$204,($C$8-1)+2) -> 0 | J179: =VLOOKUP($H179,P_All!$H$5:$M$204,($C$8-1)+2) -> 0 | K179: =VLOOKUP($H179,P_All!$O$5:$AD$204,3*($C$8-1)+2) -> 0.00025815 | L179: =VLOOKUP($H179,P_All!$O$5:$AD$204,3*($C$8-1)+3) -> 0.0024458 | M179: =VLOOKUP($H179,P_All!$O$5:$AD$204,3*($C$8-1)+4) -> 0.0069653 | O179: 11.91666667 | P179: =VLOOKUP($O179,P_All!$AF$5:$AP$244,$C$8+1) -> 0 | Q179: =VLOOKUP($O179,P_All!$AF$5:$AP$244,$C$8+6) -> 0 | R179: =VLOOKUP($O179,P_All!$AR$5:$BG$244,3*($C$8-1)+2) -> 0.004351 | S179: =VLOOKUP($O179,P_All!$AR$5:$BG$244,3*($C$8-1)+3) -> 0.0099834 | T179: =VLOOKUP($O179,P_All!$AR$5:$BG$244,3*($C$8-1)+4) -> 0.019607
H180: 144 | I180: =VLOOKUP($H180,P_All!$A$5:$F$204,($C$8-1)+2) -> 0 | J180: =VLOOKUP($H180,P_All!$H$5:$M$204,($C$8-1)+2) -> 0 | K180: =VLOOKUP($H180,P_All!$O$5:$AD$204,3*($C$8-1)+2) -> 0.00030117 | L180: =VLOOKUP($H180,P_All!$O$5:$AD$204,3*($C$8-1)+3) -> 0.0022335 | M180: =VLOOKUP($H180,P_All!$O$5:$AD$204,3*($C$8-1)+4) -> 0.0071635 | O180: 12 | P180: =VLOOKUP($O180,P_All!$AF$5:$AP$244,$C$8+1) -> 0 | Q180: =VLOOKUP($O180,P_All!$AF$5:$AP$244,$C$8+6) -> 0 | R180: =VLOOKUP($O180,P_All!$AR$5:$BG$244,3*($C$8-1)+2) -> 0.011277 | S180: =VLOOKUP($O180,P_All!$AR$5:$BG$244,3*($C$8-1)+3) -> 0.019229 | T180: =VLOOKUP($O180,P_All!$AR$5:$BG$244,3*($C$8-1)+4) -> 0.02773
H181: 145 | I181: =VLOOKUP($H181,P_All!$A$5:$F$204,($C$8-1)+2) -> 0 | J181: =VLOOKUP($H181,P_All!$H$5:$M$204,($C$8-1)+2) -> 0 | K181: =VLOOKUP($H181,P_All!$O$5:$AD$204,3*($C$8-1)+2) -> 0.00030368 | L181: =VLOOKUP($H181,P_All!$O$5:$AD$204,3*($C$8-1)+3) -> 0.0021925 | M181: =VLOOKUP($H181,P_All!$O$5:$AD$204,3*($C$8-1)+4) -> 0.0070826 | O181: 12.08333333 | P181: =VLOOKUP($O181,P_All!$AF$5:$AP$244,$C$8+1) -> 0 | Q181: =VLOOKUP($O181,P_All!$AF$5:$AP$244,$C$8+6) -> 0 | R181: =VLOOKUP($O181,P_All!$AR$5:$BG$244,3*($C$8-1)+2) -> 0.019476 | S181: =VLOOKUP($O181,P_All!$AR$5:$BG$244,3*($C$8-1)+3) -> 0.028733 | T181: =VLOOKUP($O181,P_All!$AR$5:$BG$244,3*($C$8-1)+4) -> 0.037531
H182: 146 | I182: =VLOOKUP($H182,P_All!$A$5:$F$204,($C$8-1)+2) -> 0 | J182: =VLOOKUP($H182,P_All!$H$5:$M$204,($C$8-1)+2) -> 0 | K182: =VLOOKUP($H182,P_All!$O$5:$AD$204,3*($C$8-1)+2) -> 0.00031068 | L182: =VLOOKUP($H182,P_All!$O$5:$AD$204,3*($C$8-1)+3) -> 0.0028732 | M182: =VLOOKUP($H182,P_All!$O$5:$AD$204,3*($C$8-1)+4) -> 0.0068901 | O182: 12.16666667 | P182: =VLOOKUP($O182,P_All!$AF$5:$AP$244,$C$8+1) -> 0 | Q182: =VLOOKUP($O182,P_All!$AF$5:$AP$244,$C$8+6) -> 0 | R182: =VLOOKUP($O182,P_All!$AR$5:$BG$244,3*($C$8-1)+2) -> 0.023942 | S182: =VLOOKUP($O182,P_All!$AR$5:$BG$244,3*($C$8-1)+3) -> 0.033002 | T182: =VLOOKUP($O182,P_All!$AR$5:$BG$244,3*($C$8-1)+4) -> 0.042828
H183: 147 | I183: =VLOOKUP($H183,P_All!$A$5:$F$204,($C$8-1)+2) -> 0 | J183: =VLOOKUP($H183,P_All!$H$5:$M$204,($C$8-1)+2) -> 0 | K183: =VLOOKUP($H183,P_All!$O$5:$AD$204,3*($C$8-1)+2) -> 0.00031744 | L183: =VLOOKUP($H183,P_All!$O$5:$AD$204,3*($C$8-1)+3) -> 0.0026428 | M183: =VLOOKUP($H183,P_All!$O$5:$AD$204,3*($C$8-1)+4) -> 0.007202 | O183: 12.25 | P183: =VLOOKUP($O183,P_All!$AF$5:$AP$244,$C$8+1) -> 0 | Q183: =VLOOKUP($O183,P_All!$AF$5:$AP$244,$C$8+6) -> 0 | R183: =VLOOKUP($O183,P_All!$AR$5:$BG$244,3*($C$8-1)+2) -> 0.013244 | S183: =VLOOKUP($O183,P_All!$AR$5:$BG$244,3*($C$8-1)+3) -> 0.031098 | T183: =VLOOKUP($O183,P_All!$AR$5:$BG$244,3*($C$8-1)+4) -> 0.040265
H184: 148 | I184: =VLOOKUP($H184,P_All!$A$5:$F$204,($C$8-1)+2) -> 0 | J184: =VLOOKUP($H184,P_All!$H$5:$M$204,($C$8-1)+2) -> 0 | K184: =VLOOKUP($H184,P_All!$O$5:$AD$204,3*($C$8-1)+2) -> 0.00026337 | L184: =VLOOKUP($H184,P_All!$O$5:$AD$204,3*($C$8-1)+3) -> 0.0022661 | M184: =VLOOKUP($H184,P_All!$O$5:$AD$204,3*($C$8-1)+4) -> 0.0072532 | O184: 12.33333333 | P184: =VLOOKUP($O184,P_All!$AF$5:$AP$244,$C$8+1) -> 0 | Q184: =VLOOKUP($O184,P_All!$AF$5:$AP$244,$C$8+6) -> 0 | R184: =VLOOKUP($O184,P_All!$AR$5:$BG$244,3*($C$8-1)+2) -> 0.00096505 | S184: =VLOOKUP($O184,P_All!$AR$5:$BG$244,3*($C$8-1)+3) -> 0.0022905 | T184: =VLOOKUP($O184,P_All!$AR$5:$BG$244,3*($C$8-1)+4) -> 0.016721
H185: 149 | I185: =VLOOKUP($H185,P_All!$A$5:$F$204,($C$8-1)+2) -> 0 | J185: =VLOOKUP($H185,P_All!$H$5:$M$204,($C$8-1)+2) -> 0 | K185: =VLOOKUP($H185,P_All!$O$5:$AD$204,3*($C$8-1)+2) -> 0.00022881 | L185: =VLOOKUP($H185,P_All!$O$5:$AD$204,3*($C$8-1)+3) -> 0.0022118 | M185: =VLOOKUP($H185,P_All!$O$5:$AD$204,3*($C$8-1)+4) -> 0.0073322 | O185: 12.41666667 | P185: =VLOOKUP($O185,P_All!$AF$5:$AP$244,$C$8+1) -> 0 | Q185: =VLOOKUP($O185,P_All!$AF$5:$AP$244,$C$8+6) -> 0 | R185: =VLOOKUP($O185,P_All!$AR$5:$BG$244,3*($C$8-1)+2) -> 0.0011261 | S185: =VLOOKUP($O185,P_All!$AR$5:$BG$244,3*($C$8-1)+3) -> 0.0027996 | T185: =VLOOKUP($O185,P_All!$AR$5:$BG$244,3*($C$8-1)+4) -> 0.0066793
H186: 150 | I186: =VLOOKUP($H186,P_All!$A$5:$F$204,($C$8-1)+2) -> 0 | J186: =VLOOKUP($H186,P_All!$H$5:$M$204,($C$8-1)+2) -> 0 | K186: =VLOOKUP($H186,P_All!$O$5:$AD$204,3*($C$8-1)+2) -> 0.00025448 | L186: =VLOOKUP($H186,P_All!$O$5:$AD$204,3*($C$8-1)+3) -> 0.0025011 | M186: =VLOOKUP($H186,P_All!$O$5:$AD$204,3*($C$8-1)+4) -> 0.0071942 | O186: 12.5 | P186: =VLOOKUP($O186,P_All!$AF$5:$AP$244,$C$8+1) -> 0 | Q186: =VLOOKUP($O186,P_All!$AF$5:$AP$244,$C$8+6) -> 0 | R186: =VLOOKUP($O186,P_All!$AR$5:$BG$244,3*($C$8-1)+2) -> 0.00173 | S186: =VLOOKUP($O186,P_All!$AR$5:$BG$244,3*($C$8-1)+3) -> 0.0057914 | T186: =VLOOKUP($O186,P_All!$AR$5:$BG$244,3*($C$8-1)+4) -> 0.018901
H187: 151 | I187: =VLOOKUP($H187,P_All!$A$5:$F$204,($C$8-1)+2) -> 0 | J187: =VLOOKUP($H187,P_All!$H$5:$M$204,($C$8-1)+2) -> 0 | K187: =VLOOKUP($H187,P_All!$O$5:$AD$204,3*($C$8-1)+2) -> 0.00025447 | L187: =VLOOKUP($H187,P_All!$O$5:$AD$204,3*($C$8-1)+3) -> 0.0022164 | M187: =VLOOKUP($H187,P_All!$O$5:$AD$204,3*($C$8-1)+4) -> 0.0074368 | O187: 12.58333333 | P187: =VLOOKUP($O187,P_All!$AF$5:$AP$244,$C$8+1) -> 0 | Q187: =VLOOKUP($O187,P_All!$AF$5:$AP$244,$C$8+6) -> 0 | R187: =VLOOKUP($O187,P_All!$AR$5:$BG$244,3*($C$8-1)+2) -> 0.0018983 | S187: =VLOOKUP($O187,P_All!$AR$5:$BG$244,3*($C$8-1)+3) -> 0.0088238 | T187: =VLOOKUP($O187,P_All!$AR$5:$BG$244,3*($C$8-1)+4) -> 0.021135
H188: 152 | I188: =VLOOKUP($H188,P_All!$A$5:$F$204,($C$8-1)+2) -> 0 | J188: =VLOOKUP($H188,P_All!$H$5:$M$204,($C$8-1)+2) -> 0 | K188: =VLOOKUP($H188,P_All!$O$5:$AD$204,3*($C$8-1)+2) -> 0.00026783 | L188: =VLOOKUP($H188,P_All!$O$5:$AD$204,3*($C$8-1)+3) -> 0.0023738 | M188: =VLOOKUP($H188,P_All!$O$5:$AD$204,3*($C$8-1)+4) -> 0.0077204 | O188: 12.66666667 | P188: =VLOOKUP($O188,P_All!$AF$5:$AP$244,$C$8+1) -> 0 | Q188: =VLOOKUP($O188,P_All!$AF$5:$AP$244,$C$8+6) -> 0 | R188: =VLOOKUP($O188,P_All!$AR$5:$BG$244,3*($C$8-1)+2) -> 0.0035039 | S188: =VLOOKUP($O188,P_All!$AR$5:$BG$244,3*($C$8-1)+3) -> 0.013477 | T188: =VLOOKUP($O188,P_All!$AR$5:$BG$244,3*($C$8-1)+4) -> 0.024226
H189: 153 | I189: =VLOOKUP($H189,P_All!$A$5:$F$204,($C$8-1)+2) -> 0 | J189: =VLOOKUP($H189,P_All!$H$5:$M$204,($C$8-1)+2) -> 0 | K189: =VLOOKUP($H189,P_All!$O$5:$AD$204,3*($C$8-1)+2) -> 0.00032391 | L189: =VLOOKUP($H189,P_All!$O$5:$AD$204,3*($C$8-1)+3) -> 0.0023029 | M189: =VLOOKUP($H189,P_All!$O$5:$AD$204,3*($C$8-1)+4) -> 0.0077064 | O189: 12.75 | P189: =VLOOKUP($O189,P_All!$AF$5:$AP$244,$C$8+1) -> 0 | Q189: =VLOOKUP($O189,P_All!$AF$5:$AP$244,$C$8+6) -> 0 | R189: =VLOOKUP($O189,P_All!$AR$5:$BG$244,3*($C$8-1)+2) -> 0.0031434 | S189: =VLOOKUP($O189,P_All!$AR$5:$BG$244,3*($C$8-1)+3) -> 0.012903 | T189: =VLOOKUP($O189,P_All!$AR$5:$BG$244,3*($C$8-1)+4) -> 0.02882
H190: 154 | I190: =VLOOKUP($H190,P_All!$A$5:$F$204,($C$8-1)+2) -> 0 | J190: =VLOOKUP($H190,P_All!$H$5:$M$204,($C$8-1)+2) -> 0 | K190: =VLOOKUP($H190,P_All!$O$5:$AD$204,3*($C$8-1)+2) -> 0.00029076 | L190: =VLOOKUP($H190,P_All!$O$5:$AD$204,3*($C$8-1)+3) -> 0.0025813 | M190: =VLOOKUP($H190,P_All!$O$5:$AD$204,3*($C$8-1)+4) -> 0.0073099 | O190: 12.83333333 | P190: =VLOOKUP($O190,P_All!$AF$5:$AP$244,$C$8+1) -> 0 | Q190: =VLOOKUP($O190,P_All!$AF$5:$AP$244,$C$8+6) -> 0 | R190: =VLOOKUP($O190,P_All!$AR$5:$BG$244,3*($C$8-1)+2) -> 0.0034627 | S190: =VLOOKUP($O190,P_All!$AR$5:$BG$244,3*($C$8-1)+3) -> 0.010857 | T190: =VLOOKUP($O190,P_All!$AR$5:$BG$244,3*($C$8-1)+4) -> 0.022843
H191: 155 | I191: =VLOOKUP($H191,P_All!$A$5:$F$204,($C$8-1)+2) -> 0 | J191: =VLOOKUP($H191,P_All!$H$5:$M$204,($C$8-1)+2) -> 0 | K191: =VLOOKUP($H191,P_All!$O$5:$AD$204,3*($C$8-1)+2) -> 0.00031187 | L191: =VLOOKUP($H191,P_All!$O$5:$AD$204,3*($C$8-1)+3) -> 0.0023892 | M191: =VLOOKUP($H191,P_All!$O$5:$AD$204,3*($C$8-1)+4) -> 0.0075215 | O191: 12.91666667 | P191: =VLOOKUP($O191,P_All!$AF$5:$AP$244,$C$8+1) -> 0 | Q191: =VLOOKUP($O191,P_All!$AF$5:$AP$244,$C$8+6) -> 0 | R191: =VLOOKUP($O191,P_All!$AR$5:$BG$244,3*($C$8-1)+2) -> 0.0040874 | S191: =VLOOKUP($O191,P_All!$AR$5:$BG$244,3*($C$8-1)+3) -> 0.0096552 | T191: =VLOOKUP($O191,P_All!$AR$5:$BG$244,3*($C$8-1)+4) -> 0.018074
H192: 156 | I192: =VLOOKUP($H192,P_All!$A$5:$F$204,($C$8-1)+2) -> 0 | J192: =VLOOKUP($H192,P_All!$H$5:$M$204,($C$8-1)+2) -> 0 | K192: =VLOOKUP($H192,P_All!$O$5:$AD$204,3*($C$8-1)+2) -> 0.00032955 | L192: =VLOOKUP($H192,P_All!$O$5:$AD$204,3*($C$8-1)+3) -> 0.0024896 | M192: =VLOOKUP($H192,P_All!$O$5:$AD$204,3*($C$8-1)+4) -> 0.0076241 | O192: 13 | P192: =VLOOKUP($O192,P_All!$AF$5:$AP$244,$C$8+1) -> 0 | Q192: =VLOOKUP($O192,P_All!$AF$5:$AP$244,$C$8+6) -> 0 | R192: =VLOOKUP($O192,P_All!$AR$5:$BG$244,3*($C$8-1)+2) -> 0.010022 | S192: =VLOOKUP($O192,P_All!$AR$5:$BG$244,3*($C$8-1)+3) -> 0.018599 | T192: =VLOOKUP($O192,P_All!$AR$5:$BG$244,3*($C$8-1)+4) -> 0.02678
H193: 157 | I193: =VLOOKUP($H193,P_All!$A$5:$F$204,($C$8-1)+2) -> 0 | J193: =VLOOKUP($H193,P_All!$H$5:$M$204,($C$8-1)+2) -> 0 | K193: =VLOOKUP($H193,P_All!$O$5:$AD$204,3*($C$8-1)+2) -> 0.0002791 | L193: =VLOOKUP($H193,P_All!$O$5:$AD$204,3*($C$8-1)+3) -> 0.0023692 | M193: =VLOOKUP($H193,P_All!$O$5:$AD$204,3*($C$8-1)+4) -> 0.0075291 | O193: 13.08333333 | P193: =VLOOKUP($O193,P_All!$AF$5:$AP$244,$C$8+1) -> 0 | Q193: =VLOOKUP($O193,P_All!$AF$5:$AP$244,$C$8+6) -> 0 | R193: =VLOOKUP($O193,P_All!$AR$5:$BG$244,3*($C$8-1)+2) -> 0.020208 | S193: =VLOOKUP($O193,P_All!$AR$5:$BG$244,3*($C$8-1)+3) -> 0.028892 | T193: =VLOOKUP($O193,P_All!$AR$5:$BG$244,3*($C$8-1)+4) -> 0.037343
H194: 158 | I194: =VLOOKUP($H194,P_All!$A$5:$F$204,($C$8-1)+2) -> 0 | J194: =VLOOKUP($H194,P_All!$H$5:$M$204,($C$8-1)+2) -> 0 | K194: =VLOOKUP($H194,P_All!$O$5:$AD$204,3*($C$8-1)+2) -> 0.00024785 | L194: =VLOOKUP($H194,P_All!$O$5:$AD$204,3*($C$8-1)+3) -> 0.0027443 | M194: =VLOOKUP($H194,P_All!$O$5:$AD$204,3*($C$8-1)+4) -> 0.0075415 | O194: 13.16666667 | P194: =VLOOKUP($O194,P_All!$AF$5:$AP$244,$C$8+1) -> 0 | Q194: =VLOOKUP($O194,P_All!$AF$5:$AP$244,$C$8+6) -> 0 | R194: =VLOOKUP($O194,P_All!$AR$5:$BG$244,3*($C$8-1)+2) -> 0.02372 | S194: =VLOOKUP($O194,P_All!$AR$5:$BG$244,3*($C$8-1)+3) -> 0.033555 | T194: =VLOOKUP($O194,P_All!$AR$5:$BG$244,3*($C$8-1)+4) -> 0.043227
H195: 159 | I195: =VLOOKUP($H195,P_All!$A$5:$F$204,($C$8-1)+2) -> 0 | J195: =VLOOKUP($H195,P_All!$H$5:$M$204,($C$8-1)+2) -> 0 | K195: =VLOOKUP($H195,P_All!$O$5:$AD$204,3*($C$8-1)+2) -> 0.00025976 | L195: =VLOOKUP($H195,P_All!$O$5:$AD$204,3*($C$8-1)+3) -> 0.0027187 | M195: =VLOOKUP($H195,P_All!$O$5:$AD$204,3*($C$8-1)+4) -> 0.0072261 | O195: 13.25 | P195: =VLOOKUP($O195,P_All!$AF$5:$AP$244,$C$8+1) -> 0 | Q195: =VLOOKUP($O195,P_All!$AF$5:$AP$244,$C$8+6) -> 0 | R195: =VLOOKUP($O195,P_All!$AR$5:$BG$244,3*($C$8-1)+2) -> 0.0095815 | S195: =VLOOKUP($O195,P_All!$AR$5:$BG$244,3*($C$8-1)+3) -> 0.031102 | T195: =VLOOKUP($O195,P_All!$AR$5:$BG$244,3*($C$8-1)+4) -> 0.041044
H196: 160 | I196: =VLOOKUP($H196,P_All!$A$5:$F$204,($C$8-1)+2) -> 0 | J196: =VLOOKUP($H196,P_All!$H$5:$M$204,($C$8-1)+2) -> 0 | K196: =VLOOKUP($H196,P_All!$O$5:$AD$204,3*($C$8-1)+2) -> 0.00026628 | L196: =VLOOKUP($H196,P_All!$O$5:$AD$204,3*($C$8-1)+3) -> 0.0024102 | M196: =VLOOKUP($H196,P_All!$O$5:$AD$204,3*($C$8-1)+4) -> 0.0074816 | O196: 13.33333333 | P196: =VLOOKUP($O196,P_All!$AF$5:$AP$244,$C$8+1) -> 0 | Q196: =VLOOKUP($O196,P_All!$AF$5:$AP$244,$C$8+6) -> 0 | R196: =VLOOKUP($O196,P_All!$AR$5:$BG$244,3*($C$8-1)+2) -> 0.00087833 | S196: =VLOOKUP($O196,P_All!$AR$5:$BG$244,3*($C$8-1)+3) -> 0.0021555 | T196: =VLOOKUP($O196,P_All!$AR$5:$BG$244,3*($C$8-1)+4) -> 0.016404
H197: 161 | I197: =VLOOKUP($H197,P_All!$A$5:$F$204,($C$8-1)+2) -> 0 | J197: =VLOOKUP($H197,P_All!$H$5:$M$204,($C$8-1)+2) -> 0 | K197: =VLOOKUP($H197,P_All!$O$5:$AD$204,3*($C$8-1)+2) -> 0.00029358 | L197: =VLOOKUP($H197,P_All!$O$5:$AD$204,3*($C$8-1)+3) -> 0.0027662 | M197: =VLOOKUP($H197,P_All!$O$5:$AD$204,3*($C$8-1)+4) -> 0.0073398 | O197: 13.41666667 | P197: =VLOOKUP($O197,P_All!$AF$5:$AP$244,$C$8+1) -> 0 | Q197: =VLOOKUP($O197,P_All!$AF$5:$AP$244,$C$8+6) -> 0 | R197: =VLOOKUP($O197,P_All!$AR$5:$BG$244,3*($C$8-1)+2) -> 0.0012599 | S197: =VLOOKUP($O197,P_All!$AR$5:$BG$244,3*($C$8-1)+3) -> 0.0026479 | T197: =VLOOKUP($O197,P_All!$AR$5:$BG$244,3*($C$8-1)+4) -> 0.0070431
H198: 162 | I198: =VLOOKUP($H198,P_All!$A$5:$F$204,($C$8-1)+2) -> 0 | J198: =VLOOKUP($H198,P_All!$H$5:$M$204,($C$8-1)+2) -> 0 | K198: =VLOOKUP($H198,P_All!$O$5:$AD$204,3*($C$8-1)+2) -> 0.00030283 | L198: =VLOOKUP($H198,P_All!$O$5:$AD$204,3*($C$8-1)+3) -> 0.0025508 | M198: =VLOOKUP($H198,P_All!$O$5:$AD$204,3*($C$8-1)+4) -> 0.0076079 | O198: 13.5 | P198: =VLOOKUP($O198,P_All!$AF$5:$AP$244,$C$8+1) -> 0 | Q198: =VLOOKUP($O198,P_All!$AF$5:$AP$244,$C$8+6) -> 0 | R198: =VLOOKUP($O198,P_All!$AR$5:$BG$244,3*($C$8-1)+2) -> 0.0017537 | S198: =VLOOKUP($O198,P_All!$AR$5:$BG$244,3*($C$8-1)+3) -> 0.0053488 | T198: =VLOOKUP($O198,P_All!$AR$5:$BG$244,3*($C$8-1)+4) -> 0.016138
H199: 163 | I199: =VLOOKUP($H199,P_All!$A$5:$F$204,($C$8-1)+2) -> 0 | J199: =VLOOKUP($H199,P_All!$H$5:$M$204,($C$8-1)+2) -> 0 | K199: =VLOOKUP($H199,P_All!$O$5:$AD$204,3*($C$8-1)+2) -> 0.00024064 | L199: =VLOOKUP($H199,P_All!$O$5:$AD$204,3*($C$8-1)+3) -> 0.0027149 | M199: =VLOOKUP($H199,P_All!$O$5:$AD$204,3*($C$8-1)+4) -> 0.0074318 | O199: 13.58333333 | P199: =VLOOKUP($O199,P_All!$AF$5:$AP$244,$C$8+1) -> 0 | Q199: =VLOOKUP($O199,P_All!$AF$5:$AP$244,$C$8+6) -> 0 | R199: =VLOOKUP($O199,P_All!$AR$5:$BG$244,3*($C$8-1)+2) -> 0.0017895 | S199: =VLOOKUP($O199,P_All!$AR$5:$BG$244,3*($C$8-1)+3) -> 0.0089786 | T199: =VLOOKUP($O199,P_All!$AR$5:$BG$244,3*($C$8-1)+4) -> 0.022065
H200: 164 | I200: =VLOOKUP($H200,P_All!$A$5:$F$204,($C$8-1)+2) -> 0 | J200: =VLOOKUP($H200,P_All!$H$5:$M$204,($C$8-1)+2) -> 0 | K200: =VLOOKUP($H200,P_All!$O$5:$AD$204,3*($C$8-1)+2) -> 0.00027314 | L200: =VLOOKUP($H200,P_All!$O$5:$AD$204,3*($C$8-1)+3) -> 0.0026444 | M200: =VLOOKUP($H200,P_All!$O$5:$AD$204,3*($C$8-1)+4) -> 0.0074118 | O200: 13.66666667 | P200: =VLOOKUP($O200,P_All!$AF$5:$AP$244,$C$8+1) -> 0 | Q200: =VLOOKUP($O200,P_All!$AF$5:$AP$244,$C$8+6) -> 0 | R200: =VLOOKUP($O200,P_All!$AR$5:$BG$244,3*($C$8-1)+2) -> 0.0030399 | S200: =VLOOKUP($O200,P_All!$AR$5:$BG$244,3*($C$8-1)+3) -> 0.013162 | T200: =VLOOKUP($O200,P_All!$AR$5:$BG$244,3*($C$8-1)+4) -> 0.023946
H201: 165 | I201: =VLOOKUP($H201,P_All!$A$5:$F$204,($C$8-1)+2) -> 0 | J201: =VLOOKUP($H201,P_All!$H$5:$M$204,($C$8-1)+2) -> 0 | K201: =VLOOKUP($H201,P_All!$O$5:$AD$204,3*($C$8-1)+2) -> 0.00025546 | L201: =VLOOKUP($H201,P_All!$O$5:$AD$204,3*($C$8-1)+3) -> 0.0027098 | M201: =VLOOKUP($H201,P_All!$O$5:$AD$204,3*($C$8-1)+4) -> 0.0076039 | O201: 13.75 | P201: =VLOOKUP($O201,P_All!$AF$5:$AP$244,$C$8+1) -> 0 | Q201: =VLOOKUP($O201,P_All!$AF$5:$AP$244,$C$8+6) -> 0 | R201: =VLOOKUP($O201,P_All!$AR$5:$BG$244,3*($C$8-1)+2) -> 0.0032314 | S201: =VLOOKUP($O201,P_All!$AR$5:$BG$244,3*($C$8-1)+3) -> 0.013277 | T201: =VLOOKUP($O201,P_All!$AR$5:$BG$244,3*($C$8-1)+4) -> 0.029484
H202: 166 | I202: =VLOOKUP($H202,P_All!$A$5:$F$204,($C$8-1)+2) -> 0 | J202: =VLOOKUP($H202,P_All!$H$5:$M$204,($C$8-1)+2) -> 0 | K202: =VLOOKUP($H202,P_All!$O$5:$AD$204,3*($C$8-1)+2) -> 0.00027916 | L202: =VLOOKUP($H202,P_All!$O$5:$AD$204,3*($C$8-1)+3) -> 0.002473 | M202: =VLOOKUP($H202,P_All!$O$5:$AD$204,3*($C$8-1)+4) -> 0.0074369 | O202: 13.83333333 | P202: =VLOOKUP($O202,P_All!$AF$5:$AP$244,$C$8+1) -> 0 | Q202: =VLOOKUP($O202,P_All!$AF$5:$AP$244,$C$8+6) -> 0 | R202: =VLOOKUP($O202,P_All!$AR$5:$BG$244,3*($C$8-1)+2) -> 0.0035616 | S202: =VLOOKUP($O202,P_All!$AR$5:$BG$244,3*($C$8-1)+3) -> 0.011283 | T202: =VLOOKUP($O202,P_All!$AR$5:$BG$244,3*($C$8-1)+4) -> 0.023857
H203: 167 | I203: =VLOOKUP($H203,P_All!$A$5:$F$204,($C$8-1)+2) -> 0 | J203: =VLOOKUP($H203,P_All!$H$5:$M$204,($C$8-1)+2) -> 0 | K203: =VLOOKUP($H203,P_All!$O$5:$AD$204,3*($C$8-1)+2) -> 0.00028744 | L203: =VLOOKUP($H203,P_All!$O$5:$AD$204,3*($C$8-1)+3) -> 0.0025686 | M203: =VLOOKUP($H203,P_All!$O$5:$AD$204,3*($C$8-1)+4) -> 0.0077087 | O203: 13.91666667 | P203: =VLOOKUP($O203,P_All!$AF$5:$AP$244,$C$8+1) -> 0 | Q203: =VLOOKUP($O203,P_All!$AF$5:$AP$244,$C$8+6) -> 0 | R203: =VLOOKUP($O203,P_All!$AR$5:$BG$244,3*($C$8-1)+2) -> 0.0044468 | S203: =VLOOKUP($O203,P_All!$AR$5:$BG$244,3*($C$8-1)+3) -> 0.0098037 | T203: =VLOOKUP($O203,P_All!$AR$5:$BG$244,3*($C$8-1)+4) -> 0.017582
H204: 168 | I204: =VLOOKUP($H204,P_All!$A$5:$F$204,($C$8-1)+2) -> 0 | J204: =VLOOKUP($H204,P_All!$H$5:$M$204,($C$8-1)+2) -> 0 | K204: =VLOOKUP($H204,P_All!$O$5:$AD$204,3*($C$8-1)+2) -> 0.00033242 | L204: =VLOOKUP($H204,P_All!$O$5:$AD$204,3*($C$8-1)+3) -> 0.0026352 | M204: =VLOOKUP($H204,P_All!$O$5:$AD$204,3*($C$8-1)+4) -> 0.0074584 | O204: 14 | P204: =VLOOKUP($O204,P_All!$AF$5:$AP$244,$C$8+1) -> 0 | Q204: =VLOOKUP($O204,P_All!$AF$5:$AP$244,$C$8+6) -> 0 | R204: =VLOOKUP($O204,P_All!$AR$5:$BG$244,3*($C$8-1)+2) -> 0.0098216 | S204: =VLOOKUP($O204,P_All!$AR$5:$BG$244,3*($C$8-1)+3) -> 0.018158 | T204: =VLOOKUP($O204,P_All!$AR$5:$BG$244,3*($C$8-1)+4) -> 0.025829
H205: 169 | I205: =VLOOKUP($H205,P_All!$A$5:$F$204,($C$8-1)+2) -> 0 | J205: =VLOOKUP($H205,P_All!$H$5:$M$204,($C$8-1)+2) -> 0 | K205: =VLOOKUP($H205,P_All!$O$5:$AD$204,3*($C$8-1)+2) -> 0.00024493 | L205: =VLOOKUP($H205,P_All!$O$5:$AD$204,3*($C$8-1)+3) -> 0.0028184 | M205: =VLOOKUP($H205,P_All!$O$5:$AD$204,3*($C$8-1)+4) -> 0.0076517 | O205: 14.08333333 | P205: =VLOOKUP($O205,P_All!$AF$5:$AP$244,$C$8+1) -> 0 | Q205: =VLOOKUP($O205,P_All!$AF$5:$AP$244,$C$8+6) -> 0 | R205: =VLOOKUP($O205,P_All!$AR$5:$BG$244,3*($C$8-1)+2) -> 0.018511 | S205: =VLOOKUP($O205,P_All!$AR$5:$BG$244,3*($C$8-1)+3) -> 0.026535 | T205: =VLOOKUP($O205,P_All!$AR$5:$BG$244,3*($C$8-1)+4) -> 0.035381
H206: 170 | I206: =VLOOKUP($H206,P_All!$A$5:$F$204,($C$8-1)+2) -> 0 | J206: =VLOOKUP($H206,P_All!$H$5:$M$204,($C$8-1)+2) -> 0 | K206: =VLOOKUP($H206,P_All!$O$5:$AD$204,3*($C$8-1)+2) -> 0.00029382 | L206: =VLOOKUP($H206,P_All!$O$5:$AD$204,3*($C$8-1)+3) -> 0.0027465 | M206: =VLOOKUP($H206,P_All!$O$5:$AD$204,3*($C$8-1)+4) -> 0.0076269 | O206: 14.16666667 | P206: =VLOOKUP($O206,P_All!$AF$5:$AP$244,$C$8+1) -> 0 | Q206: =VLOOKUP($O206,P_All!$AF$5:$AP$244,$C$8+6) -> 0 | R206: =VLOOKUP($O206,P_All!$AR$5:$BG$244,3*($C$8-1)+2) -> 0.0225 | S206: =VLOOKUP($O206,P_All!$AR$5:$BG$244,3*($C$8-1)+3) -> 0.031025 | T206: =VLOOKUP($O206,P_All!$AR$5:$BG$244,3*($C$8-1)+4) -> 0.041991
H207: 171 | I207: =VLOOKUP($H207,P_All!$A$5:$F$204,($C$8-1)+2) -> 0 | J207: =VLOOKUP($H207,P_All!$H$5:$M$204,($C$8-1)+2) -> 0 | K207: =VLOOKUP($H207,P_All!$O$5:$AD$204,3*($C$8-1)+2) -> 0.00028076 | L207: =VLOOKUP($H207,P_All!$O$5:$AD$204,3*($C$8-1)+3) -> 0.0026609 | M207: =VLOOKUP($H207,P_All!$O$5:$AD$204,3*($C$8-1)+4) -> 0.0075055 | O207: 14.25 | P207: =VLOOKUP($O207,P_All!$AF$5:$AP$244,$C$8+1) -> 0 | Q207: =VLOOKUP($O207,P_All!$AF$5:$AP$244,$C$8+6) -> 0 | R207: =VLOOKUP($O207,P_All!$AR$5:$BG$244,3*($C$8-1)+2) -> 0.012023 | S207: =VLOOKUP($O207,P_All!$AR$5:$BG$244,3*($C$8-1)+3) -> 0.028563 | T207: =VLOOKUP($O207,P_All!$AR$5:$BG$244,3*($C$8-1)+4) -> 0.039027
H208: 172 | I208: =VLOOKUP($H208,P_All!$A$5:$F$204,($C$8-1)+2) -> 0 | J208: =VLOOKUP($H208,P_All!$H$5:$M$204,($C$8-1)+2) -> 0 | K208: =VLOOKUP($H208,P_All!$O$5:$AD$204,3*($C$8-1)+2) -> 0.0002777 | L208: =VLOOKUP($H208,P_All!$O$5:$AD$204,3*($C$8-1)+3) -> 0.0024582 | M208: =VLOOKUP($H208,P_All!$O$5:$AD$204,3*($C$8-1)+4) -> 0.0074882 | O208: 14.33333333 | P208: =VLOOKUP($O208,P_All!$AF$5:$AP$244,$C$8+1) -> 0 | Q208: =VLOOKUP($O208,P_All!$AF$5:$AP$244,$C$8+6) -> 0 | R208: =VLOOKUP($O208,P_All!$AR$5:$BG$244,3*($C$8-1)+2) -> 0.00097077 | S208: =VLOOKUP($O208,P_All!$AR$5:$BG$244,3*($C$8-1)+3) -> 0.002331 | T208: =VLOOKUP($O208,P_All!$AR$5:$BG$244,3*($C$8-1)+4) -> 0.016025
H209: 173 | I209: =VLOOKUP($H209,P_All!$A$5:$F$204,($C$8-1)+2) -> 0 | J209: =VLOOKUP($H209,P_All!$H$5:$M$204,($C$8-1)+2) -> 0 | K209: =VLOOKUP($H209,P_All!$O$5:$AD$204,3*($C$8-1)+2) -> 0.00028097 | L209: =VLOOKUP($H209,P_All!$O$5:$AD$204,3*($C$8-1)+3) -> 0.0027759 | M209: =VLOOKUP($H209,P_All!$O$5:$AD$204,3*($C$8-1)+4) -> 0.0077966 | O209: 14.41666667 | P209: =VLOOKUP($O209,P_All!$AF$5:$AP$244,$C$8+1) -> 0 | Q209: =VLOOKUP($O209,P_All!$AF$5:$AP$244,$C$8+6) -> 0 | R209: =VLOOKUP($O209,P_All!$AR$5:$BG$244,3*($C$8-1)+2) -> 0.0010714 | S209: =VLOOKUP($O209,P_All!$AR$5:$BG$244,3*($C$8-1)+3) -> 0.0026219 | T209: =VLOOKUP($O209,P_All!$AR$5:$BG$244,3*($C$8-1)+4) -> 0.0068674
H210: 174 | I210: =VLOOKUP($H210,P_All!$A$5:$F$204,($C$8-1)+2) -> 0 | J210: =VLOOKUP($H210,P_All!$H$5:$M$204,($C$8-1)+2) -> 0 | K210: =VLOOKUP($H210,P_All!$O$5:$AD$204,3*($C$8-1)+2) -> 0.00031531 | L210: =VLOOKUP($H210,P_All!$O$5:$AD$204,3*($C$8-1)+3) -> 0.002998 | M210: =VLOOKUP($H210,P_All!$O$5:$AD$204,3*($C$8-1)+4) -> 0.0079854 | O210: 14.5 | P210: =VLOOKUP($O210,P_All!$AF$5:$AP$244,$C$8+1) -> 0 | Q210: =VLOOKUP($O210,P_All!$AF$5:$AP$244,$C$8+6) -> 0 | R210: =VLOOKUP($O210,P_All!$AR$5:$BG$244,3*($C$8-1)+2) -> 0.00187 | S210: =VLOOKUP($O210,P_All!$AR$5:$BG$244,3*($C$8-1)+3) -> 0.0053753 | T210: =VLOOKUP($O210,P_All!$AR$5:$BG$244,3*($C$8-1)+4) -> 0.016684
H211: 175 | I211: =VLOOKUP($H211,P_All!$A$5:$F$204,($C$8-1)+2) -> 0 | J211: =VLOOKUP($H211,P_All!$H$5:$M$204,($C$8-1)+2) -> 0 | K211: =VLOOKUP($H211,P_All!$O$5:$AD$204,3*($C$8-1)+2) -> 0.00028137 | L211: =VLOOKUP($H211,P_All!$O$5:$AD$204,3*($C$8-1)+3) -> 0.0028444 | M211: =VLOOKUP($H211,P_All!$O$5:$AD$204,3*($C$8-1)+4) -> 0.0075818 | O211: 14.58333333 | P211: =VLOOKUP($O211,P_All!$AF$5:$AP$244,$C$8+1) -> 0 | Q211: =VLOOKUP($O211,P_All!$AF$5:$AP$244,$C$8+6) -> 0 | R211: =VLOOKUP($O211,P_All!$AR$5:$BG$244,3*($C$8-1)+2) -> 0.0017018 | S211: =VLOOKUP($O211,P_All!$AR$5:$BG$244,3*($C$8-1)+3) -> 0.0084337 | T211: =VLOOKUP($O211,P_All!$AR$5:$BG$244,3*($C$8-1)+4) -> 0.02038
H212: 176 | I212: =VLOOKUP($H212,P_All!$A$5:$F$204,($C$8-1)+2) -> 0 | J212: =VLOOKUP($H212,P_All!$H$5:$M$204,($C$8-1)+2) -> 0 | K212: =VLOOKUP($H212,P_All!$O$5:$AD$204,3*($C$8-1)+2) -> 0.00025411 | L212: =VLOOKUP($H212,P_All!$O$5:$AD$204,3*($C$8-1)+3) -> 0.0028227 | M212: =VLOOKUP($H212,P_All!$O$5:$AD$204,3*($C$8-1)+4) -> 0.0078254 | O212: 14.66666667 | P212: =VLOOKUP($O212,P_All!$AF$5:$AP$244,$C$8+1) -> 0 | Q212: =VLOOKUP($O212,P_All!$AF$5:$AP$244,$C$8+6) -> 0 | R212: =VLOOKUP($O212,P_All!$AR$5:$BG$244,3*($C$8-1)+2) -> 0.002998 | S212: =VLOOKUP($O212,P_All!$AR$5:$BG$244,3*($C$8-1)+3) -> 0.012002 | T212: =VLOOKUP($O212,P_All!$AR$5:$BG$244,3*($C$8-1)+4) -> 0.021751
H213: 177 | I213: =VLOOKUP($H213,P_All!$A$5:$F$204,($C$8-1)+2) -> 0 | J213: =VLOOKUP($H213,P_All!$H$5:$M$204,($C$8-1)+2) -> 0 | K213: =VLOOKUP($H213,P_All!$O$5:$AD$204,3*($C$8-1)+2) -> 0.00030968 | L213: =VLOOKUP($H213,P_All!$O$5:$AD$204,3*($C$8-1)+3) -> 0.0029069 | M213: =VLOOKUP($H213,P_All!$O$5:$AD$204,3*($C$8-1)+4) -> 0.0077139 | O213: 14.75 | P213: =VLOOKUP($O213,P_All!$AF$5:$AP$244,$C$8+1) -> 0 | Q213: =VLOOKUP($O213,P_All!$AF$5:$AP$244,$C$8+6) -> 0 | R213: =VLOOKUP($O213,P_All!$AR$5:$BG$244,3*($C$8-1)+2) -> 0.0029862 | S213: =VLOOKUP($O213,P_All!$AR$5:$BG$244,3*($C$8-1)+3) -> 0.010862 | T213: =VLOOKUP($O213,P_All!$AR$5:$BG$244,3*($C$8-1)+4) -> 0.026033
H214: 178 | I214: =VLOOKUP($H214,P_All!$A$5:$F$204,($C$8-1)+2) -> 0 | J214: =VLOOKUP($H214,P_All!$H$5:$M$204,($C$8-1)+2) -> 0 | K214: =VLOOKUP($H214,P_All!$O$5:$AD$204,3*($C$8-1)+2) -> 0.00029265 | L214: =VLOOKUP($H214,P_All!$O$5:$AD$204,3*($C$8-1)+3) -> 0.0026314 | M214: =VLOOKUP($H214,P_All!$O$5:$AD$204,3*($C$8-1)+4) -> 0.0078158 | O214: 14.83333333 | P214: =VLOOKUP($O214,P_All!$AF$5:$AP$244,$C$8+1) -> 0 | Q214: =VLOOKUP($O214,P_All!$AF$5:$AP$244,$C$8+6) -> 0 | R214: =VLOOKUP($O214,P_All!$AR$5:$BG$244,3*($C$8-1)+2) -> 0.0032406 | S214: =VLOOKUP($O214,P_All!$AR$5:$BG$244,3*($C$8-1)+3) -> 0.010573 | T214: =VLOOKUP($O214,P_All!$AR$5:$BG$244,3*($C$8-1)+4) -> 0.02145
H215: 179 | I215: =VLOOKUP($H215,P_All!$A$5:$F$204,($C$8-1)+2) -> 0 | J215: =VLOOKUP($H215,P_All!$H$5:$M$204,($C$8-1)+2) -> 0 | K215: =VLOOKUP($H215,P_All!$O$5:$AD$204,3*($C$8-1)+2) -> 0.00032258 | L215: =VLOOKUP($H215,P_All!$O$5:$AD$204,3*($C$8-1)+3) -> 0.0028173 | M215: =VLOOKUP($H215,P_All!$O$5:$AD$204,3*($C$8-1)+4) -> 0.0076985 | O215: 14.91666667 | P215: =VLOOKUP($O215,P_All!$AF$5:$AP$244,$C$8+1) -> 0 | Q215: =VLOOKUP($O215,P_All!$AF$5:$AP$244,$C$8+6) -> 0 | R215: =VLOOKUP($O215,P_All!$AR$5:$BG$244,3*($C$8-1)+2) -> 0.0035992 | S215: =VLOOKUP($O215,P_All!$AR$5:$BG$244,3*($C$8-1)+3) -> 0.0093154 | T215: =VLOOKUP($O215,P_All!$AR$5:$BG$244,3*($C$8-1)+4) -> 0.017233
... 60 more rows

Sheet P_All
B1: Values shown for constituent selected on PlotControl tab | I1: Values shown for constituent selected on PlotControl tab | P1: Values shown for constituent selected on PlotControl tab | AG1: Values shown for constituent selected on PlotControl tab | AS1: Values shown for constituent selected on PlotControl tab
B2: =TRANSPOSE(PlotControl!$A$15:$A$19) -> PM-13 | C2: MLC-3 | D2: TC-1 | E2: PM-11 | F2: PM-12 | I2: =TRANSPOSE(PlotControl!$A$15:$A$19) -> PM-13 | J2: MLC-3 | K2: TC-1 | L2: PM-11 | M2: PM-12 | P2: =PlotControl!$A$15 -> PM-13 | S2: =PlotControl!$A$16 -> MLC-3 | V2: =PlotControl!$A$17 -> TC-1 | Y2: =PlotControl!$A$18 -> PM-11 | AB2: =PlotControl!$A$19 -> PM-12 | AG2: =TRANSPOSE(PlotControl!$A$15:$A$19) -> PM-13 | AH2: MLC-3 | AI2: TC-1 | AJ2: PM-11 | AK2: PM-12 | AL2: =TRANSPOSE(PlotControl!$A$15:$A$19) -> PM-13 | AM2: MLC-3 | AN2: TC-1 | AO2: PM-11 | AP2: PM-12 | AS2: =PlotControl!$A$15 -> PM-13 | AV2: =PlotControl!$A$16 -> MLC-3 | AY2: =PlotControl!$A$17 -> TC-1 | BB2: =PlotControl!$A$18 -> PM-11 | BE2: =PlotControl!$A$19 -> PM-12
B3: Annual Project Results | I3: Annual Project Results | P3: Annual Results, % Assimilation Capacity Used | S3: Annual Results, % Assimilation Capacity Used | V3: Annual Results, % Assimilation Capacity Used | Y3: Annual Results, % Assimilation Capacity Used | AB3: Annual Results, % Assimilation Capacity Used | AG3: Monthly | AL3: Monthly | AS3: Annual Results, % Assimilation Capacity Used | AV3: Annual Results, % Assimilation Capacity Used | AY3: Annual Results, % Assimilation Capacity Used | BB3: Annual Results, % Assimilation Capacity Used | BE3: Annual Results, % Assimilation Capacity Used
A4: Time | B4: % Exceeding in Project Model | H4: Time | I4: % Exceeding in Project Model but not No-Act | O4: Time | P4: P10 | Q4: P50 | R4: P90 | S4: P10 | T4: P50 | U4: P90 | V4: P10 | W4: P50 | X4: P90 | Y4: P10 | Z4: P50 | AA4: P90 | AB4: P10 | AC4: P50 | AD4: P90 | AF4: Time | AG4: % Exceeding in Project Model | AL4: % Exceeding in Project Model when not in No Action model | AR4: Time | AS4: P10 | AT4: P50 | AU4: P90 | AV4: P10 | AW4: P50 | AX4: P90 | AY4: P10 | AZ4: P50 | BA4: P90 | BB4: P10 | BC4: P50 | BD4: P90 | BE4: P10 | BF4: P50 | BG4: P90
A5: 0 | B5: =IF(PlotControl!$B$4 = "Annual Max",MAX(OFFSET(P_Ex_PM13!$B$15,12*$A5,4*(PlotControl!$C$6-1),7,1)),AVERAGE(OFFSET(P_Ex_PM13!$B$15,12*$A5,4*(PlotControl!$C$6-1),7,1))) -> 0 | C5: =IF(PlotControl!$B$4 = "Annual Max",MAX(OFFSET(P_Ex_MLC3!$B$15,12*$A5,4*(PlotControl!$C$6-1),7,1)),AVERAGE(OFFSET(P_Ex_MLC3!$B$15,12*$A5,4*(PlotControl!$C$6-1),7,1))) -> 0 | D5: =IF(PlotControl!$B$4 = "Annual Max",MAX(OFFSET(P_Ex_TC1!$B$15,12*$A5,4*(PlotControl!$C$6-1),7,1)),AVERAGE(OFFSET(P_Ex_TC1!$B$15,12*$A5,4*(PlotControl!$C$6-1),7,1))) -> 0 | E5: =IF(PlotControl!$B$4 = "Annual Max",MAX(OFFSET(P_Ex_PM11!$B$15,12*$A5,4*(PlotControl!$C$6-1),7,1)),AVERAGE(OFFSET(P_Ex_PM11!$B$15,12*$A5,4*(PlotControl!$C$6-1),7,1))) -> 0 | F5: =IF(PlotControl!$B$4 = "Annual Max",MAX(OFFSET(P_Ex_PM12!$B$15,12*$A5,4*(PlotControl!$C$6-1),7,1)),AVERAGE(OFFSET(P_Ex_PM12!$B$15,12*$A5,4*(PlotControl!$C$6-1),7,1))) -> 0 | H5: 0 | I5: =IF(PlotControl!$B$4 = "Annual Max",MAX(OFFSET(P_notNA_PM13!$B$15,12*$H5,(PlotControl!$C$6-1),7,1)),AVERAGE(OFFSET(P_notNA_PM13!$B$15,12*$A5,(PlotControl!$C$6-1),7,1))) -> 0 | J5: =IF(PlotControl!$B$4 = "Annual Max",MAX(OFFSET(P_notNA_MLC3!$B$15,12*$H5,(PlotControl!$C$6-1),7,1)),AVERAGE(OFFSET(P_notNA_MLC3!$B$15,12*$A5,(PlotControl!$C$6-1),7,1))) -> 0 | K5: =IF(PlotControl!$B$4 = "Annual Max",MAX(OFFSET(P_notNA_TC1!$B$15,12*$H5,(PlotControl!$C$6-1),7,1)),AVERAGE(OFFSET(P_notNA_TC1!$B$15,12*$A5,(PlotControl!$C$6-1),7,1))) -> 0 | L5: =IF(PlotControl!$B$4 = "Annual Max",MAX(OFFSET(P_notNA_PM11!$B$15,12*$H5,(PlotControl!$C$6-1),7,1)),AVERAGE(OFFSET(P_notNA_PM11!$B$15,12*$A5,(PlotControl!$C$6-1),7,1))) -> 0 | M5: =IF(PlotControl!$B$4 = "Annual Max",MAX(OFFSET(P_notNA_PM12!$B$15,12*$H5,(PlotControl!$C$6-1),7,1)),AVERAGE(OFFSET(P_notNA_PM12!$B$15,12*$A5,(PlotControl!$C$6-1),7,1))) -> 0 | O5: 0 | P5: =IF(PlotControl!$B$4 = "Annual Max",MAX(OFFSET(AssimCap_PM13!$C$15,12*$O5,4*(PlotControl!$C$6-1),7,1)),AVERAGE(OFFSET(AssimCap_PM13!$C$15,12*$O5,4*(PlotControl!$C$6-1),7,1))) -> 0.00063505 | Q5: =IF(PlotControl!$B$4 = "Annual Max",MAX(OFFSET(AssimCap_PM13!$D$15,12*$O5,4*(PlotControl!$C$6-1),7,1)),AVERAGE(OFFSET(AssimCap_PM13!$D$15,12*$O5,4*(PlotControl!$C$6-1),7,1))) -> 0.002043 | R5: =IF(PlotControl!$B$4 = "Annual Max",MAX(OFFSET(AssimCap_PM13!$E$15,12*$O5,4*(PlotControl!$C$6-1),7,1)),AVERAGE(OFFSET(AssimCap_PM13!$E$15,12*$O5,4*(PlotControl!$C$6-1),7,1))) -> 0.0043621 | S5: =IF(PlotControl!$B$4 = "Annual Max",MAX(OFFSET(AssimCap_MLC3!$C$15,12*$O5,4*(PlotControl!$C$6-1),7,1)),AVERAGE(OFFSET(AssimCap_MLC3!$C$15,12*$O5,4*(PlotControl!$C$6-1),7,1))) -> -0.0078515 | T5: =IF(PlotControl!$B$4 = "Annual Max",MAX(OFFSET(AssimCap_MLC3!$D$15,12*$O5,4*(PlotControl!$C$6-1),7,1)),AVERAGE(OFFSET(AssimCap_MLC3!$D$15,12*$O5,4*(PlotControl!$C$6-1),7,1))) -> -0.0025103 | U5: =IF(PlotControl!$B$4 = "Annual Max",MAX(OFFSET(AssimCap_MLC3!$E$15,12*$O5,4*(PlotControl!$C$6-1),7,1)),AVERAGE(OFFSET(AssimCap_MLC3!$E$15,12*$O5,4*(PlotControl!$C$6-1),7,1))) -> 0.00069665 | V5: =IF(PlotControl!$B$4 = "Annual Max",MAX(OFFSET(AssimCap_TC1!$C$15,12*$O5,4*(PlotControl!$C$6-1),7,1)),AVERAGE(OFFSET(AssimCap_TC1!$C$15,12*$O5,4*(PlotControl!$C$6-1),7,1))) -> 0.0037842 | W5: =IF(PlotControl!$B$4 = "Annual Max",MAX(OFFSET(AssimCap_TC1!$D$15,12*$O5,4*(PlotControl!$C$6-1),7,1)),AVERAGE(OFFSET(AssimCap_TC1!$D$15,12*$O5,4*(PlotControl!$C$6-1),7,1))) -> 0.0068785 | X5: =IF(PlotControl!$B$4 = "Annual Max",MAX(OFFSET(AssimCap_TC1!$E$15,12*$O5,4*(PlotControl!$C$6-1),7,1)),AVERAGE(OFFSET(AssimCap_TC1!$E$15,12*$O5,4*(PlotControl!$C$6-1),7,1))) -> 0.0097667 | Y5: =IF(PlotControl!$B$4 = "Annual Max",MAX(OFFSET(AssimCap_PM11!$C$15,12*$O5,4*(PlotControl!$C$6-1),7,1)),AVERAGE(OFFSET(AssimCap_PM11!$C$15,12*$O5,4*(PlotControl!$C$6-1),7,1))) -> 0.014042 | Z5: =IF(PlotControl!$B$4 = "Annual Max",MAX(OFFSET(AssimCap_PM11!$D$15,12*$O5,4*(PlotControl!$C$6-1),7,1)),AVERAGE(OFFSET(AssimCap_PM11!$D$15,12*$O5,4*(PlotControl!$C$6-1),7,1))) -> 0.028996 | AA5: =IF(PlotControl!$B$4 = "Annual Max",MAX(OFFSET(AssimCap_PM11!$E$15,12*$O5,4*(PlotControl!$C$6-1),7,1)),AVERAGE(OFFSET(AssimCap_PM11!$E$15,12*$O5,4*(PlotControl!$C$6-1),7,1))) -> 0.037373 | AB5: =IF(PlotControl!$B$4 = "Annual Max",MAX(OFFSET(AssimCap_PM12!$C$15,12*$O5,4*(PlotControl!$C$6-1),7,1)),AVERAGE(OFFSET(AssimCap_PM12!$C$15,12*$O5,4*(PlotControl!$C$6-1),7,1))) -> -1.571e-17 | AC5: =IF(PlotControl!$B$4 = "Annual Max",MAX(OFFSET(AssimCap_PM12!$D$15,12*$O5,4*(PlotControl!$C$6-1),7,1)),AVERAGE(OFFSET(AssimCap_PM12!$D$15,12*$O5,4*(PlotControl!$C$6-1),7,1))) -> 0 | AD5: =IF(PlotControl!$B$4 = "Annual Max",MAX(OFFSET(AssimCap_PM12!$E$15,12*$O5,4*(PlotControl!$C$6-1),7,1)),AVERAGE(OFFSET(AssimCap_PM12!$E$15,12*$O5,4*(PlotControl!$C$6-1),7,1))) -> 2.0053e-14 | AF5: =PlotControl!$B$10 -> 0 | AG5: =OFFSET(P_Ex_PM13!$B$10,12*$AF5,4*(PlotControl!$C$6-1),1,1) -> 0 | AH5: =OFFSET(P_Ex_MLC3!$B$10,12*$AF5,4*(PlotControl!$C$6-1),1,1) -> 0 | AI5: =OFFSET(P_Ex_TC1!$B$10,12*$AF5,4*(PlotControl!$C$6-1),1,1) -> 0 | AJ5: =OFFSET(P_Ex_PM11!$B$10,12*$AF5,4*(PlotControl!$C$6-1),1,1) -> 0 | AK5: =OFFSET(P_Ex_PM12!$B$10,12*$AF5,4*(PlotControl!$C$6-1),1,1) -> 0 | AL5: =OFFSET(P_notNA_PM13!$B$10,12*$AF5,1*(PlotControl!$C$6-1),1,1) -> 0 | AM5: =OFFSET(P_notNA_MLC3!$B$10,12*$AF5,1*(PlotControl!$C$6-1),1,1) -> 0 | AN5: =OFFSET(P_notNA_TC1!$B$10,12*$AF5,1*(PlotControl!$C$6-1),1,1) -> 0 | AO5: =OFFSET(P_notNA_PM11!$B$10,12*$AF5,1*(PlotControl!$C$6-1),1,1) -> 0 | AP5: =OFFSET(P_notNA_PM12!$B$10,12*$AF5,1*(PlotControl!$C$6-1),1,1) -> 0 | AR5: =PlotControl!$B$10 -> 0 | AS5: =OFFSET(AssimCap_PM13!$C$15,12*$AR5,4*(PlotControl!$C$6-1),1,1) -> 0.00012364 | AT5: =OFFSET(AssimCap_PM13!$D$15,12*$AR5,4*(PlotControl!$C$6-1),1,1) -> 0.00042026 | AU5: =OFFSET(AssimCap_PM13!$E$15,12*$AR5,4*(PlotControl!$C$6-1),1,1) -> 0.0010629 | AV5: =OFFSET(AssimCap_MLC3!$C$15,12*$AR5,4*(PlotControl!$C$6-1),1,1) -> -0.0078515 | AW5: =OFFSET(AssimCap_MLC3!$D$15,12*$AR5,4*(PlotControl!$C$6-1),1,1) -> -0.0025103 | AX5: =OFFSET(AssimCap_MLC3!$E$15,12*$AR5,4*(PlotControl!$C$6-1),1,1) -> 0.00060679 | AY5: =OFFSET(AssimCap_TC1!$C$15,12*$AR5,4*(PlotControl!$C$6-1),1,1) -> 0.0022667 | AZ5: =OFFSET(AssimCap_TC1!$D$15,12*$AR5,4*(PlotControl!$C$6-1),1,1) -> 0.0045876 | BA5: =OFFSET(AssimCap_TC1!$E$15,12*$AR5,4*(PlotControl!$C$6-1),1,1) -> 0.0070201 | BB5: =OFFSET(AssimCap_PM11!$C$15,12*$AR5,4*(PlotControl!$C$6-1),1,1) -> 0.0034177 | BC5: =OFFSET(AssimCap_PM11!$D$15,12*$AR5,4*(PlotControl!$C$6-1),1,1) -> 0.0084834 | BD5: =OFFSET(AssimCap_PM11!$E$15,12*$AR5,4*(PlotControl!$C$6-1),1,1) -> 0.016722 | BE5: =OFFSET(AssimCap_PM12!$C$15,12*$AR5,4*(PlotControl!$C$6-1),1,1) -> -3.1783e-17 | BF5: =OFFSET(AssimCap_PM12!$D$15,12*$AR5,4*(PlotControl!$C$6-1),1,1) -> 0 | BG5: =OFFSET(AssimCap_PM12!$E$15,12*$AR5,4*(PlotControl!$C$6-1),1,1) -> 1.5654e-17
A6: 1 | B6: =IF(PlotControl!$B$4 = "Annual Max",MAX(OFFSET(P_Ex_PM13!$B$10,12*$A6,4*(PlotControl!$C$6-1),12,1)),AVERAGE(OFFSET(P_Ex_PM13!$B$10,12*$A6,4*(PlotControl!$C$6-1),12,1))) -> 0 | C6: =IF(PlotControl!$B$4 = "Annual Max",MAX(OFFSET(P_Ex_MLC3!$B$10,12*$A6,4*(PlotControl!$C$6-1),12,1)),AVERAGE(OFFSET(P_Ex_MLC3!$B$10,12*$A6,4*(PlotControl!$C$6-1),12,1))) -> 0 | D6: =IF(PlotControl!$B$4 = "Annual Max",MAX(OFFSET(P_Ex_TC1!$B$10,12*$A6,4*(PlotControl!$C$6-1),12,1)),AVERAGE(OFFSET(P_Ex_TC1!$B$10,12*$A6,4*(PlotControl!$C$6-1),12,1))) -> 0 | E6: =IF(PlotControl!$B$4 = "Annual Max",MAX(OFFSET(P_Ex_PM11!$B$10,12*$A6,4*(PlotControl!$C$6-1),12,1)),AVERAGE(OFFSET(P_Ex_PM11!$B$10,12*$A6,4*(PlotControl!$C$6-1),12,1))) -> 0 | F6: =IF(PlotControl!$B$4 = "Annual Max",MAX(OFFSET(P_Ex_PM12!$B$10,12*$A6,4*(PlotControl!$C$6-1),12,1)),AVERAGE(OFFSET(P_Ex_PM12!$B$10,12*$A6,4*(PlotControl!$C$6-1),12,1))) -> 0 | H6: 1 | I6: =IF(PlotControl!$B$4 = "Annual Max",MAX(OFFSET(P_notNA_PM13!$B$10,12*$H6,(PlotControl!$C$6-1),12,1)),AVERAGE(OFFSET(P_notNA_PM13!$B$10,12*$A6,(PlotControl!$C$6-1),12,1))) -> 0 | J6: =IF(PlotControl!$B$4 = "Annual Max",MAX(OFFSET(P_notNA_MLC3!$B$10,12*$H6,(PlotControl!$C$6-1),12,1)),AVERAGE(OFFSET(P_notNA_MLC3!$B$10,12*$A6,(PlotControl!$C$6-1),12,1))) -> 0 | K6: =IF(PlotControl!$B$4 = "Annual Max",MAX(OFFSET(P_notNA_TC1!$B$10,12*$H6,(PlotControl!$C$6-1),12,1)),AVERAGE(OFFSET(P_notNA_TC1!$B$10,12*$A6,(PlotControl!$C$6-1),12,1))) -> 0 | L6: =IF(PlotControl!$B$4 = "Annual Max",MAX(OFFSET(P_notNA_PM11!$B$10,12*$H6,(PlotControl!$C$6-1),12,1)),AVERAGE(OFFSET(P_notNA_PM11!$B$10,12*$A6,(PlotControl!$C$6-1),12,1))) -> 0 | M6: =IF(PlotControl!$B$4 = "Annual Max",MAX(OFFSET(P_notNA_PM12!$B$10,12*$H6,(PlotControl!$C$6-1),12,1)),AVERAGE(OFFSET(P_notNA_PM12!$B$10,12*$A6,(PlotControl!$C$6-1),12,1))) -> 0 | O6: 1 | P6: =IF(PlotControl!$B$4 = "Annual Max",MAX(OFFSET(AssimCap_PM13!$C$10,12*$O6,4*(PlotControl!$C$6-1),12,1)),AVERAGE(OFFSET(AssimCap_PM13!$C$10,12*$O6,4*(PlotControl!$C$6-1),12,1))) -> 0.00055812 | Q6: =IF(PlotControl!$B$4 = "Annual Max",MAX(OFFSET(AssimCap_PM13!$D$10,12*$O6,4*(PlotControl!$C$6-1),12,1)),AVERAGE(OFFSET(AssimCap_PM13!$D$10,12*$O6,4*(PlotControl!$C$6-1),12,1))) -> 0.0020543 | R6: =IF(PlotControl!$B$4 = "Annual Max",MAX(OFFSET(AssimCap_PM13!$E$10,12*$O6,4*(PlotControl!$C$6-1),12,1)),AVERAGE(OFFSET(AssimCap_PM13!$E$10,12*$O6,4*(PlotControl!$C$6-1),12,1))) -> 0.00459 | S6: =IF(PlotControl!$B$4 = "Annual Max",MAX(OFFSET(AssimCap_MLC3!$C$10,12*$O6,4*(PlotControl!$C$6-1),12,1)),AVERAGE(OFFSET(AssimCap_MLC3!$C$10,12*$O6,4*(PlotControl!$C$6-1),12,1))) -> -0.0079022 | T6: =IF(PlotControl!$B$4 = "Annual Max",MAX(OFFSET(AssimCap_MLC3!$D$10,12*$O6,4*(PlotControl!$C$6-1),12,1)),AVERAGE(OFFSET(AssimCap_MLC3!$D$10,12*$O6,4*(PlotControl!$C$6-1),12,1))) -> -0.0025929 | U6: =IF(PlotControl!$B$4 = "Annual Max",MAX(OFFSET(AssimCap_MLC3!$E$10,12*$O6,4*(PlotControl!$C$6-1),12,1)),AVERAGE(OFFSET(AssimCap_MLC3!$E$10,12*$O6,4*(PlotControl!$C$6-1),12,1))) -> 0.00050902 | V6: =IF(PlotControl!$B$4 = "Annual Max",MAX(OFFSET(AssimCap_TC1!$C$10,12*$O6,4*(PlotControl!$C$6-1),12,1)),AVERAGE(OFFSET(AssimCap_TC1!$C$10,12*$O6,4*(PlotControl!$C$6-1),12,1))) -> 0.0038447 | W6: =IF(PlotControl!$B$4 = "Annual Max",MAX(OFFSET(AssimCap_TC1!$D$10,12*$O6,4*(PlotControl!$C$6-1),12,1)),AVERAGE(OFFSET(AssimCap_TC1!$D$10,12*$O6,4*(PlotControl!$C$6-1),12,1))) -> 0.0066137 | X6: =IF(PlotControl!$B$4 = "Annual Max",MAX(OFFSET(AssimCap_TC1!$E$10,12*$O6,4*(PlotControl!$C$6-1),12,1)),AVERAGE(OFFSET(AssimCap_TC1!$E$10,12*$O6,4*(PlotControl!$C$6-1),12,1))) -> 0.0098948 | Y6: =IF(PlotControl!$B$4 = "Annual Max",MAX(OFFSET(AssimCap_PM11!$C$10,12*$O6,4*(PlotControl!$C$6-1),12,1)),AVERAGE(OFFSET(AssimCap_PM11!$C$10,12*$O6,4*(PlotControl!$C$6-1),12,1))) -> 0.017719 | Z6: =IF(PlotControl!$B$4 = "Annual Max",MAX(OFFSET(AssimCap_PM11!$D$10,12*$O6,4*(PlotControl!$C$6-1),12,1)),AVERAGE(OFFSET(AssimCap_PM11!$D$10,12*$O6,4*(PlotControl!$C$6-1),12,1))) -> 0.028458 | AA6: =IF(PlotControl!$B$4 = "Annual Max",MAX(OFFSET(AssimCap_PM11!$E$10,12*$O6,4*(PlotControl!$C$6-1),12,1)),AVERAGE(OFFSET(AssimCap_PM11!$E$10,12*$O6,4*(PlotControl!$C$6-1),12,1))) -> 0.037889 | AB6: =IF(PlotControl!$B$4 = "Annual Max",MAX(OFFSET(AssimCap_PM12!$C$10,12*$O6,4*(PlotControl!$C$6-1),12,1)),AVERAGE(OFFSET(AssimCap_PM12!$C$10,12*$O6,4*(PlotControl!$C$6-1),12,1))) -> -1.5701e-17 | AC6: =IF(PlotControl!$B$4 = "Annual Max",MAX(OFFSET(AssimCap_PM12!$D$10,12*$O6,4*(PlotControl!$C$6-1),12,1)),AVERAGE(OFFSET(AssimCap_PM12!$D$10,12*$O6,4*(PlotControl!$C$6-1),12,1))) -> 1.5276e-17 | AD6: =IF(PlotControl!$B$4 = "Annual Max",MAX(OFFSET(AssimCap_PM12!$E$10,12*$O6,4*(PlotControl!$C$6-1),12,1)),AVERAGE(OFFSET(AssimCap_PM12!$E$10,12*$O6,4*(PlotControl!$C$6-1),12,1))) -> 5.5069e-12 | AF6: =AF5+1/12 -> 0.08333333333 | AG6: =OFFSET(P_Ex_PM13!$B$10,12*$AF6,4*(PlotControl!$C$6-1),1,1) -> 0 | AH6: =OFFSET(P_Ex_MLC3!$B$10,12*$AF6,4*(PlotControl!$C$6-1),1,1) -> 0 | AI6: =OFFSET(P_Ex_TC1!$B$10,12*$AF6,4*(PlotControl!$C$6-1),1,1) -> 0 | AJ6: =OFFSET(P_Ex_PM11!$B$10,12*$AF6,4*(PlotControl!$C$6-1),1,1) -> 0 | AK6: =OFFSET(P_Ex_PM12!$B$10,12*$AF6,4*(PlotControl!$C$6-1),1,1) -> 0 | AL6: =OFFSET(P_notNA_PM13!$B$10,12*$AF6,1*(PlotControl!$C$6-1),1,1) -> 0 | AM6: =OFFSET(P_notNA_MLC3!$B$10,12*$AF6,1*(PlotControl!$C$6-1),1,1) -> 0 | AN6: =OFFSET(P_notNA_TC1!$B$10,12*$AF6,1*(PlotControl!$C$6-1),1,1) -> 0 | AO6: =OFFSET(P_notNA_PM11!$B$10,12*$AF6,1*(PlotControl!$C$6-1),1,1) -> 0 | AP6: =OFFSET(P_notNA_PM12!$B$10,12*$AF6,1*(PlotControl!$C$6-1),1,1) -> 0 | AR6: =AR5+1/12 -> 0.08333333333 | AS6: =OFFSET(AssimCap_PM13!$C$10,12*$AR6,4*(PlotControl!$C$6-1),1,1) -> -0.014232 | AT6: =OFFSET(AssimCap_PM13!$D$10,12*$AR6,4*(PlotControl!$C$6-1),1,1) -> -0.013437 | AU6: =OFFSET(AssimCap_PM13!$E$10,12*$AR6,4*(PlotControl!$C$6-1),1,1) -> -0.012066 | AV6: =OFFSET(AssimCap_MLC3!$C$10,12*$AR6,4*(PlotControl!$C$6-1),1,1) -> -0.027601 | AW6: =OFFSET(AssimCap_MLC3!$D$10,12*$AR6,4*(PlotControl!$C$6-1),1,1) -> -0.017134 | AX6: =OFFSET(AssimCap_MLC3!$E$10,12*$AR6,4*(PlotControl!$C$6-1),1,1) -> -0.0052512 | AY6: =OFFSET(AssimCap_TC1!$C$10,12*$AR6,4*(PlotControl!$C$6-1),1,1) -> -0.10925 | AZ6: =OFFSET(AssimCap_TC1!$D$10,12*$AR6,4*(PlotControl!$C$6-1),1,1) -> -0.1073 | BA6: =OFFSET(AssimCap_TC1!$E$10,12*$AR6,4*(PlotControl!$C$6-1),1,1) -> -0.10403 | BB6: =OFFSET(AssimCap_PM11!$C$10,12*$AR6,4*(PlotControl!$C$6-1),1,1) -> -0.054404 | BC6: =OFFSET(AssimCap_PM11!$D$10,12*$AR6,4*(PlotControl!$C$6-1),1,1) -> -0.049222 | BD6: =OFFSET(AssimCap_PM11!$E$10,12*$AR6,4*(PlotControl!$C$6-1),1,1) -> -0.041653 | BE6: =OFFSET(AssimCap_PM12!$C$10,12*$AR6,4*(PlotControl!$C$6-1),1,1) -> -3.0807e-17 | BF6: =OFFSET(AssimCap_PM12!$D$10,12*$AR6,4*(PlotControl!$C$6-1),1,1) -> 0 | BG6: =OFFSET(AssimCap_PM12!$E$10,12*$AR6,4*(PlotControl!$C$6-1),1,1) -> 3.0444e-17
A7: 2 | B7: =IF(PlotControl!$B$4 = "Annual Max",MAX(OFFSET(P_Ex_PM13!$B$10,12*$A7,4*(PlotControl!$C$6-1),12,1)),AVERAGE(OFFSET(P_Ex_PM13!$B$10,12*$A7,4*(PlotControl!$C$6-1),12,1))) -> 0 | C7: =IF(PlotControl!$B$4 = "Annual Max",MAX(OFFSET(P_Ex_MLC3!$B$10,12*$A7,4*(PlotControl!$C$6-1),12,1)),AVERAGE(OFFSET(P_Ex_MLC3!$B$10,12*$A7,4*(PlotControl!$C$6-1),12,1))) -> 0 | D7: =IF(PlotControl!$B$4 = "Annual Max",MAX(OFFSET(P_Ex_TC1!$B$10,12*$A7,4*(PlotControl!$C$6-1),12,1)),AVERAGE(OFFSET(P_Ex_TC1!$B$10,12*$A7,4*(PlotControl!$C$6-1),12,1))) -> 0 | E7: =IF(PlotControl!$B$4 = "Annual Max",MAX(OFFSET(P_Ex_PM11!$B$10,12*$A7,4*(PlotControl!$C$6-1),12,1)),AVERAGE(OFFSET(P_Ex_PM11!$B$10,12*$A7,4*(PlotControl!$C$6-1),12,1))) -> 0 | F7: =IF(PlotControl!$B$4 = "Annual Max",MAX(OFFSET(P_Ex_PM12!$B$10,12*$A7,4*(PlotControl!$C$6-1),12,1)),AVERAGE(OFFSET(P_Ex_PM12!$B$10,12*$A7,4*(PlotControl!$C$6-1),12,1))) -> 0 | H7: 2 | I7: =IF(PlotControl!$B$4 = "Annual Max",MAX(OFFSET(P_notNA_PM13!$B$10,12*$H7,(PlotControl!$C$6-1),12,1)),AVERAGE(OFFSET(P_notNA_PM13!$B$10,12*$A7,(PlotControl!$C$6-1),12,1))) -> 0 | J7: =IF(PlotControl!$B$4 = "Annual Max",MAX(OFFSET(P_notNA_MLC3!$B$10,12*$H7,(PlotControl!$C$6-1),12,1)),AVERAGE(OFFSET(P_notNA_MLC3!$B$10,12*$A7,(PlotControl!$C$6-1),12,1))) -> 0 | K7: =IF(PlotControl!$B$4 = "Annual Max",MAX(OFFSET(P_notNA_TC1!$B$10,12*$H7,(PlotControl!$C$6-1),12,1)),AVERAGE(OFFSET(P_notNA_TC1!$B$10,12*$A7,(PlotControl!$C$6-1),12,1))) -> 0 | L7: =IF(PlotControl!$B$4 = "Annual Max",MAX(OFFSET(P_notNA_PM11!$B$10,12*$H7,(PlotControl!$C$6-1),12,1)),AVERAGE(OFFSET(P_notNA_PM11!$B$10,12*$A7,(PlotControl!$C$6-1),12,1))) -> 0 | M7: =IF(PlotControl!$B$4 = "Annual Max",MAX(OFFSET(P_notNA_PM12!$B$10,12*$H7,(PlotControl!$C$6-1),12,1)),AVERAGE(OFFSET(P_notNA_PM12!$B$10,12*$A7,(PlotControl!$C$6-1),12,1))) -> 0 | O7: 2 | P7: =IF(PlotControl!$B$4 = "Annual Max",MAX(OFFSET(AssimCap_PM13!$C$10,12*$O7,4*(PlotControl!$C$6-1),12,1)),AVERAGE(OFFSET(AssimCap_PM13!$C$10,12*$O7,4*(PlotControl!$C$6-1),12,1))) -> 0.00049832 | Q7: =IF(PlotControl!$B$4 = "Annual Max",MAX(OFFSET(AssimCap_PM13!$D$10,12*$O7,4*(PlotControl!$C$6-1),12,1)),AVERAGE(OFFSET(AssimCap_PM13!$D$10,12*$O7,4*(PlotControl!$C$6-1),12,1))) -> 0.0019449 | R7: =IF(PlotControl!$B$4 = "Annual Max",MAX(OFFSET(AssimCap_PM13!$E$10,12*$O7,4*(PlotControl!$C$6-1),12,1)),AVERAGE(OFFSET(AssimCap_PM13!$E$10,12*$O7,4*(PlotControl!$C$6-1),12,1))) -> 0.0045779 | S7: =IF(PlotControl!$B$4 = "Annual Max",MAX(OFFSET(AssimCap_MLC3!$C$10,12*$O7,4*(PlotControl!$C$6-1),12,1)),AVERAGE(OFFSET(AssimCap_MLC3!$C$10,12*$O7,4*(PlotControl!$C$6-1),12,1))) -> -0.0082441 | T7: =IF(PlotControl!$B$4 = "Annual Max",MAX(OFFSET(AssimCap_MLC3!$D$10,12*$O7,4*(PlotControl!$C$6-1),12,1)),AVERAGE(OFFSET(AssimCap_MLC3!$D$10,12*$O7,4*(PlotControl!$C$6-1),12,1))) -> -0.0021913 | U7: =IF(PlotControl!$B$4 = "Annual Max",MAX(OFFSET(AssimCap_MLC3!$E$10,12*$O7,4*(PlotControl!$C$6-1),12,1)),AVERAGE(OFFSET(AssimCap_MLC3!$E$10,12*$O7,4*(PlotControl!$C$6-1),12,1))) -> 0.00079694 | V7: =IF(PlotControl!$B$4 = "Annual Max",MAX(OFFSET(AssimCap_TC1!$C$10,12*$O7,4*(PlotControl!$C$6-1),12,1)),AVERAGE(OFFSET(AssimCap_TC1!$C$10,12*$O7,4*(PlotControl!$C$6-1),12,1))) -> 0.0037246 | W7: =IF(PlotControl!$B$4 = "Annual Max",MAX(OFFSET(AssimCap_TC1!$D$10,12*$O7,4*(PlotControl!$C$6-1),12,1)),AVERAGE(OFFSET(AssimCap_TC1!$D$10,12*$O7,4*(PlotControl!$C$6-1),12,1))) -> 0.0063896 | X7: =IF(PlotControl!$B$4 = "Annual Max",MAX(OFFSET(AssimCap_TC1!$E$10,12*$O7,4*(PlotControl!$C$6-1),12,1)),AVERAGE(OFFSET(AssimCap_TC1!$E$10,12*$O7,4*(PlotControl!$C$6-1),12,1))) -> 0.0095239 | Y7: =IF(PlotControl!$B$4 = "Annual Max",MAX(OFFSET(AssimCap_PM11!$C$10,12*$O7,4*(PlotControl!$C$6-1),12,1)),AVERAGE(OFFSET(AssimCap_PM11!$C$10,12*$O7,4*(PlotControl!$C$6-1),12,1))) -> 0.017237 | Z7: =IF(PlotControl!$B$4 = "Annual Max",MAX(OFFSET(AssimCap_PM11!$D$10,12*$O7,4*(PlotControl!$C$6-1),12,1)),AVERAGE(OFFSET(AssimCap_PM11!$D$10,12*$O7,4*(PlotControl!$C$6-1),12,1))) -> 0.02747 | AA7: =IF(PlotControl!$B$4 = "Annual Max",MAX(OFFSET(AssimCap_PM11!$E$10,12*$O7,4*(PlotControl!$C$6-1),12,1)),AVERAGE(OFFSET(AssimCap_PM11!$E$10,12*$O7,4*(PlotControl!$C$6-1),12,1))) -> 0.037615 | AB7: =IF(PlotControl!$B$4 = "Annual Max",MAX(OFFSET(AssimCap_PM12!$C$10,12*$O7,4*(PlotControl!$C$6-1),12,1)),AVERAGE(OFFSET(AssimCap_PM12!$C$10,12*$O7,4*(PlotControl!$C$6-1),12,1))) -> -1.5671e-17 | AC7: =IF(PlotControl!$B$4 = "Annual Max",MAX(OFFSET(AssimCap_PM12!$D$10,12*$O7,4*(PlotControl!$C$6-1),12,1)),AVERAGE(OFFSET(AssimCap_PM12!$D$10,12*$O7,4*(PlotControl!$C$6-1),12,1))) -> 1.5214e-17 | AD7: =IF(PlotControl!$B$4 = "Annual Max",MAX(OFFSET(AssimCap_PM12!$E$10,12*$O7,4*(PlotControl!$C$6-1),12,1)),AVERAGE(OFFSET(AssimCap_PM12!$E$10,12*$O7,4*(PlotControl!$C$6-1),12,1))) -> 6.0295e-12 | AF7: =AF6+1/12 -> 0.1666666667 | AG7: =OFFSET(P_Ex_PM13!$B$10,12*$AF7,4*(PlotControl!$C$6-1),1,1) -> 0 | AH7: =OFFSET(P_Ex_MLC3!$B$10,12*$AF7,4*(PlotControl!$C$6-1),1,1) -> 0 | AI7: =OFFSET(P_Ex_TC1!$B$10,12*$AF7,4*(PlotControl!$C$6-1),1,1) -> 0 | AJ7: =OFFSET(P_Ex_PM11!$B$10,12*$AF7,4*(PlotControl!$C$6-1),1,1) -> 0 | AK7: =OFFSET(P_Ex_PM12!$B$10,12*$AF7,4*(PlotControl!$C$6-1),1,1) -> 0 | AL7: =OFFSET(P_notNA_PM13!$B$10,12*$AF7,1*(PlotControl!$C$6-1),1,1) -> 0 | AM7: =OFFSET(P_notNA_MLC3!$B$10,12*$AF7,1*(PlotControl!$C$6-1),1,1) -> 0 | AN7: =OFFSET(P_notNA_TC1!$B$10,12*$AF7,1*(PlotControl!$C$6-1),1,1) -> 0 | AO7: =OFFSET(P_notNA_PM11!$B$10,12*$AF7,1*(PlotControl!$C$6-1),1,1) -> 0 | AP7: =OFFSET(P_notNA_PM12!$B$10,12*$AF7,1*(PlotControl!$C$6-1),1,1) -> 0 | AR7: =AR6+1/12 -> 0.1666666667 | AS7: =OFFSET(AssimCap_PM13!$C$10,12*$AR7,4*(PlotControl!$C$6-1),1,1) -> -0.036865 | AT7: =OFFSET(AssimCap_PM13!$D$10,12*$AR7,4*(PlotControl!$C$6-1),1,1) -> -0.031597 | AU7: =OFFSET(AssimCap_PM13!$E$10,12*$AR7,4*(PlotControl!$C$6-1),1,1) -> -0.026374 | AV7: =OFFSET(AssimCap_MLC3!$C$10,12*$AR7,4*(PlotControl!$C$6-1),1,1) -> -0.050634 | AW7: =OFFSET(AssimCap_MLC3!$D$10,12*$AR7,4*(PlotControl!$C$6-1),1,1) -> -0.038892 | AX7: =OFFSET(AssimCap_MLC3!$E$10,12*$AR7,4*(PlotControl!$C$6-1),1,1) -> -0.027504 | AY7: =OFFSET(AssimCap_TC1!$C$10,12*$AR7,4*(PlotControl!$C$6-1),1,1) -> -0.13353 | AZ7: =OFFSET(AssimCap_TC1!$D$10,12*$AR7,4*(PlotControl!$C$6-1),1,1) -> -0.13245 | BA7: =OFFSET(AssimCap_TC1!$E$10,12*$AR7,4*(PlotControl!$C$6-1),1,1) -> -0.12964 | BB7: =OFFSET(AssimCap_PM11!$C$10,12*$AR7,4*(PlotControl!$C$6-1),1,1) -> -0.10168 | BC7: =OFFSET(AssimCap_PM11!$D$10,12*$AR7,4*(PlotControl!$C$6-1),1,1) -> -0.097359 | BD7: =OFFSET(AssimCap_PM11!$E$10,12*$AR7,4*(PlotControl!$C$6-1),1,1) -> -0.08798 | BE7: =OFFSET(AssimCap_PM12!$C$10,12*$AR7,4*(PlotControl!$C$6-1),1,1) -> -3.0745e-17 | BF7: =OFFSET(AssimCap_PM12!$D$10,12*$AR7,4*(PlotControl!$C$6-1),1,1) -> 0 | BG7: =OFFSET(AssimCap_PM12!$E$10,12*$AR7,4*(PlotControl!$C$6-1),1,1) -> 3.0481e-17
A8: 3 | B8: =IF(PlotControl!$B$4 = "Annual Max",MAX(OFFSET(P_Ex_PM13!$B$10,12*$A8,4*(PlotControl!$C$6-1),12,1)),AVERAGE(OFFSET(P_Ex_PM13!$B$10,12*$A8,4*(PlotControl!$C$6-1),12,1))) -> 0 | C8: =IF(PlotControl!$B$4 = "Annual Max",MAX(OFFSET(P_Ex_MLC3!$B$10,12*$A8,4*(PlotControl!$C$6-1),12,1)),AVERAGE(OFFSET(P_Ex_MLC3!$B$10,12*$A8,4*(PlotControl!$C$6-1),12,1))) -> 0 | D8: =IF(PlotControl!$B$4 = "Annual Max",MAX(OFFSET(P_Ex_TC1!$B$10,12*$A8,4*(PlotControl!$C$6-1),12,1)),AVERAGE(OFFSET(P_Ex_TC1!$B$10,12*$A8,4*(PlotControl!$C$6-1),12,1))) -> 0 | E8: =IF(PlotControl!$B$4 = "Annual Max",MAX(OFFSET(P_Ex_PM11!$B$10,12*$A8,4*(PlotControl!$C$6-1),12,1)),AVERAGE(OFFSET(P_Ex_PM11!$B$10,12*$A8,4*(PlotControl!$C$6-1),12,1))) -> 0 | F8: =IF(PlotControl!$B$4 = "Annual Max",MAX(OFFSET(P_Ex_PM12!$B$10,12*$A8,4*(PlotControl!$C$6-1),12,1)),AVERAGE(OFFSET(P_Ex_PM12!$B$10,12*$A8,4*(PlotControl!$C$6-1),12,1))) -> 0 | H8: 3 | I8: =IF(PlotControl!$B$4 = "Annual Max",MAX(OFFSET(P_notNA_PM13!$B$10,12*$H8,(PlotControl!$C$6-1),12,1)),AVERAGE(OFFSET(P_notNA_PM13!$B$10,12*$A8,(PlotControl!$C$6-1),12,1))) -> 0 | J8: =IF(PlotControl!$B$4 = "Annual Max",MAX(OFFSET(P_notNA_MLC3!$B$10,12*$H8,(PlotControl!$C$6-1),12,1)),AVERAGE(OFFSET(P_notNA_MLC3!$B$10,12*$A8,(PlotControl!$C$6-1),12,1))) -> 0 | K8: =IF(PlotControl!$B$4 = "Annual Max",MAX(OFFSET(P_notNA_TC1!$B$10,12*$H8,(PlotControl!$C$6-1),12,1)),AVERAGE(OFFSET(P_notNA_TC1!$B$10,12*$A8,(PlotControl!$C$6-1),12,1))) -> 0 | L8: =IF(PlotControl!$B$4 = "Annual Max",MAX(OFFSET(P_notNA_PM11!$B$10,12*$H8,(PlotControl!$C$6-1),12,1)),AVERAGE(OFFSET(P_notNA_PM11!$B$10,12*$A8,(PlotControl!$C$6-1),12,1))) -> 0 | M8: =IF(PlotControl!$B$4 = "Annual Max",MAX(OFFSET(P_notNA_PM12!$B$10,12*$H8,(PlotControl!$C$6-1),12,1)),AVERAGE(OFFSET(P_notNA_PM12!$B$10,12*$A8,(PlotControl!$C$6-1),12,1))) -> 0 | O8: 3 | P8: =IF(PlotControl!$B$4 = "Annual Max",MAX(OFFSET(AssimCap_PM13!$C$10,12*$O8,4*(PlotControl!$C$6-1),12,1)),AVERAGE(OFFSET(AssimCap_PM13!$C$10,12*$O8,4*(PlotControl!$C$6-1),12,1))) -> 0.0005847 | Q8: =IF(PlotControl!$B$4 = "Annual Max",MAX(OFFSET(AssimCap_PM13!$D$10,12*$O8,4*(PlotControl!$C$6-1),12,1)),AVERAGE(OFFSET(AssimCap_PM13!$D$10,12*$O8,4*(PlotControl!$C$6-1),12,1))) -> 0.0021478 | R8: =IF(PlotControl!$B$4 = "Annual Max",MAX(OFFSET(AssimCap_PM13!$E$10,12*$O8,4*(PlotControl!$C$6-1),12,1)),AVERAGE(OFFSET(AssimCap_PM13!$E$10,12*$O8,4*(PlotControl!$C$6-1),12,1))) -> 0.0046153 | S8: =IF(PlotControl!$B$4 = "Annual Max",MAX(OFFSET(AssimCap_MLC3!$C$10,12*$O8,4*(PlotControl!$C$6-1),12,1)),AVERAGE(OFFSET(AssimCap_MLC3!$C$10,12*$O8,4*(PlotControl!$C$6-1),12,1))) -> -0.007738 | T8: =IF(PlotControl!$B$4 = "Annual Max",MAX(OFFSET(AssimCap_MLC3!$D$10,12*$O8,4*(PlotControl!$C$6-1),12,1)),AVERAGE(OFFSET(AssimCap_MLC3!$D$10,12*$O8,4*(PlotControl!$C$6-1),12,1))) -> -0.0024032 | U8: =IF(PlotControl!$B$4 = "Annual Max",MAX(OFFSET(AssimCap_MLC3!$E$10,12*$O8,4*(PlotControl!$C$6-1),12,1)),AVERAGE(OFFSET(AssimCap_MLC3!$E$10,12*$O8,4*(PlotControl!$C$6-1),12,1))) -> 0.00097854 | V8: =IF(PlotControl!$B$4 = "Annual Max",MAX(OFFSET(AssimCap_TC1!$C$10,12*$O8,4*(PlotControl!$C$6-1),12,1)),AVERAGE(OFFSET(AssimCap_TC1!$C$10,12*$O8,4*(PlotControl!$C$6-1),12,1))) -> 0.0042953 | W8: =IF(PlotControl!$B$4 = "Annual Max",MAX(OFFSET(AssimCap_TC1!$D$10,12*$O8,4*(PlotControl!$C$6-1),12,1)),AVERAGE(OFFSET(AssimCap_TC1!$D$10,12*$O8,4*(PlotControl!$C$6-1),12,1))) -> 0.0074877 | X8: =IF(PlotControl!$B$4 = "Annual Max",MAX(OFFSET(AssimCap_TC1!$E$10,12*$O8,4*(PlotControl!$C$6-1),12,1)),AVERAGE(OFFSET(AssimCap_TC1!$E$10,12*$O8,4*(PlotControl!$C$6-1),12,1))) -> 0.011361 | Y8: =IF(PlotControl!$B$4 = "Annual Max",MAX(OFFSET(AssimCap_PM11!$C$10,12*$O8,4*(PlotControl!$C$6-1),12,1)),AVERAGE(OFFSET(AssimCap_PM11!$C$10,12*$O8,4*(PlotControl!$C$6-1),12,1))) -> 0.014469 | Z8: =IF(PlotControl!$B$4 = "Annual Max",MAX(OFFSET(AssimCap_PM11!$D$10,12*$O8,4*(PlotControl!$C$6-1),12,1)),AVERAGE(OFFSET(AssimCap_PM11!$D$10,12*$O8,4*(PlotControl!$C$6-1),12,1))) -> 0.027795 | AA8: =IF(PlotControl!$B$4 = "Annual Max",MAX(OFFSET(AssimCap_PM11!$E$10,12*$O8,4*(PlotControl!$C$6-1),12,1)),AVERAGE(OFFSET(AssimCap_PM11!$E$10,12*$O8,4*(PlotControl!$C$6-1),12,1))) -> 0.038239 | AB8: =IF(PlotControl!$B$4 = "Annual Max",MAX(OFFSET(AssimCap_PM12!$C$10,12*$O8,4*(PlotControl!$C$6-1),12,1)),AVERAGE(OFFSET(AssimCap_PM12!$C$10,12*$O8,4*(PlotControl!$C$6-1),12,1))) -> -1.5631e-17 | AC8: =IF(PlotControl!$B$4 = "Annual Max",MAX(OFFSET(AssimCap_PM12!$D$10,12*$O8,4*(PlotControl!$C$6-1),12,1)),AVERAGE(OFFSET(AssimCap_PM12!$D$10,12*$O8,4*(PlotControl!$C$6-1),12,1))) -> 1.5233e-17 | AD8: =IF(PlotControl!$B$4 = "Annual Max",MAX(OFFSET(AssimCap_PM12!$E$10,12*$O8,4*(PlotControl!$C$6-1),12,1)),AVERAGE(OFFSET(AssimCap_PM12!$E$10,12*$O8,4*(PlotControl!$C$6-1),12,1))) -> 4.3853e-12 | AF8: 0.25 | AG8: =OFFSET(P_Ex_PM13!$B$10,12*$AF8,4*(PlotControl!$C$6-1),1,1) -> 0 | AH8: =OFFSET(P_Ex_MLC3!$B$10,12*$AF8,4*(PlotControl!$C$6-1),1,1) -> 0 | AI8: =OFFSET(P_Ex_TC1!$B$10,12*$AF8,4*(PlotControl!$C$6-1),1,1) -> 0 | AJ8: =OFFSET(P_Ex_PM11!$B$10,12*$AF8,4*(PlotControl!$C$6-1),1,1) -> 0 | AK8: =OFFSET(P_Ex_PM12!$B$10,12*$AF8,4*(PlotControl!$C$6-1),1,1) -> 0 | AL8: =OFFSET(P_notNA_PM13!$B$10,12*$AF8,1*(PlotControl!$C$6-1),1,1) -> 0 | AM8: =OFFSET(P_notNA_MLC3!$B$10,12*$AF8,1*(PlotControl!$C$6-1),1,1) -> 0 | AN8: =OFFSET(P_notNA_TC1!$B$10,12*$AF8,1*(PlotControl!$C$6-1),1,1) -> 0 | AO8: =OFFSET(P_notNA_PM11!$B$10,12*$AF8,1*(PlotControl!$C$6-1),1,1) -> 0 | AP8: =OFFSET(P_notNA_PM12!$B$10,12*$AF8,1*(PlotControl!$C$6-1),1,1) -> 0 | AR8: 0.25 | AS8: =OFFSET(AssimCap_PM13!$C$10,12*$AR8,4*(PlotControl!$C$6-1),1,1) -> -0.026749 | AT8: =OFFSET(AssimCap_PM13!$D$10,12*$AR8,4*(PlotControl!$C$6-1),1,1) -> -0.018556 | AU8: =OFFSET(AssimCap_PM13!$E$10,12*$AR8,4*(PlotControl!$C$6-1),1,1) -> -0.001479 | AV8: =OFFSET(AssimCap_MLC3!$C$10,12*$AR8,4*(PlotControl!$C$6-1),1,1) -> -0.052945 | AW8: =OFFSET(AssimCap_MLC3!$D$10,12*$AR8,4*(PlotControl!$C$6-1),1,1) -> -0.037389 | AX8: =OFFSET(AssimCap_MLC3!$E$10,12*$AR8,4*(PlotControl!$C$6-1),1,1) -> -0.0080937 | AY8: =OFFSET(AssimCap_TC1!$C$10,12*$AR8,4*(PlotControl!$C$6-1),1,1) -> -0.0057176 | AZ8: =OFFSET(AssimCap_TC1!$D$10,12*$AR8,4*(PlotControl!$C$6-1),1,1) -> -0.0051492 | BA8: =OFFSET(AssimCap_TC1!$E$10,12*$AR8,4*(PlotControl!$C$6-1),1,1) -> -0.0041164 | BB8: =OFFSET(AssimCap_PM11!$C$10,12*$AR8,4*(PlotControl!$C$6-1),1,1) -> 0.003574 | BC8: =OFFSET(AssimCap_PM11!$D$10,12*$AR8,4*(PlotControl!$C$6-1),1,1) -> 0.005911 | BD8: =OFFSET(AssimCap_PM11!$E$10,12*$AR8,4*(PlotControl!$C$6-1),1,1) -> 0.0083778 | BE8: =OFFSET(AssimCap_PM12!$C$10,12*$AR8,4*(PlotControl!$C$6-1),1,1) -> -4.864e-14 | BF8: =OFFSET(AssimCap_PM12!$D$10,12*$AR8,4*(PlotControl!$C$6-1),1,1) -> 0 | BG8: =OFFSET(AssimCap_PM12!$E$10,12*$AR8,4*(PlotControl!$C$6-1),1,1) -> 2.2475e-12
A9: 4 | B9: =IF(PlotControl!$B$4 = "Annual Max",MAX(OFFSET(P_Ex_PM13!$B$10,12*$A9,4*(PlotControl!$C$6-1),12,1)),AVERAGE(OFFSET(P_Ex_PM13!$B$10,12*$A9,4*(PlotControl!$C$6-1),12,1))) -> 0 | C9: =IF(PlotControl!$B$4 = "Annual Max",MAX(OFFSET(P_Ex_MLC3!$B$10,12*$A9,4*(PlotControl!$C$6-1),12,1)),AVERAGE(OFFSET(P_Ex_MLC3!$B$10,12*$A9,4*(PlotControl!$C$6-1),12,1))) -> 0 | D9: =IF(PlotControl!$B$4 = "Annual Max",MAX(OFFSET(P_Ex_TC1!$B$10,12*$A9,4*(PlotControl!$C$6-1),12,1)),AVERAGE(OFFSET(P_Ex_TC1!$B$10,12*$A9,4*(PlotControl!$C$6-1),12,1))) -> 0 | E9: =IF(PlotControl!$B$4 = "Annual Max",MAX(OFFSET(P_Ex_PM11!$B$10,12*$A9,4*(PlotControl!$C$6-1),12,1)),AVERAGE(OFFSET(P_Ex_PM11!$B$10,12*$A9,4*(PlotControl!$C$6-1),12,1))) -> 0 | F9: =IF(PlotControl!$B$4 = "Annual Max",MAX(OFFSET(P_Ex_PM12!$B$10,12*$A9,4*(PlotControl!$C$6-1),12,1)),AVERAGE(OFFSET(P_Ex_PM12!$B$10,12*$A9,4*(PlotControl!$C$6-1),12,1))) -> 0 | H9: 4 | I9: =IF(PlotControl!$B$4 = "Annual Max",MAX(OFFSET(P_notNA_PM13!$B$10,12*$H9,(PlotControl!$C$6-1),12,1)),AVERAGE(OFFSET(P_notNA_PM13!$B$10,12*$A9,(PlotControl!$C$6-1),12,1))) -> 0 | J9: =IF(PlotControl!$B$4 = "Annual Max",MAX(OFFSET(P_notNA_MLC3!$B$10,12*$H9,(PlotControl!$C$6-1),12,1)),AVERAGE(OFFSET(P_notNA_MLC3!$B$10,12*$A9,(PlotControl!$C$6-1),12,1))) -> 0 | K9: =IF(PlotControl!$B$4 = "Annual Max",MAX(OFFSET(P_notNA_TC1!$B$10,12*$H9,(PlotControl!$C$6-1),12,1)),AVERAGE(OFFSET(P_notNA_TC1!$B$10,12*$A9,(PlotControl!$C$6-1),12,1))) -> 0 | L9: =IF(PlotControl!$B$4 = "Annual Max",MAX(OFFSET(P_notNA_PM11!$B$10,12*$H9,(PlotControl!$C$6-1),12,1)),AVERAGE(OFFSET(P_notNA_PM11!$B$10,12*$A9,(PlotControl!$C$6-1),12,1))) -> 0 | M9: =IF(PlotControl!$B$4 = "Annual Max",MAX(OFFSET(P_notNA_PM12!$B$10,12*$H9,(PlotControl!$C$6-1),12,1)),AVERAGE(OFFSET(P_notNA_PM12!$B$10,12*$A9,(PlotControl!$C$6-1),12,1))) -> 0 | O9: 4 | P9: =IF(PlotControl!$B$4 = "Annual Max",MAX(OFFSET(AssimCap_PM13!$C$10,12*$O9,4*(PlotControl!$C$6-1),12,1)),AVERAGE(OFFSET(AssimCap_PM13!$C$10,12*$O9,4*(PlotControl!$C$6-1),12,1))) -> 0.0027625 | Q9: =IF(PlotControl!$B$4 = "Annual Max",MAX(OFFSET(AssimCap_PM13!$D$10,12*$O9,4*(PlotControl!$C$6-1),12,1)),AVERAGE(OFFSET(AssimCap_PM13!$D$10,12*$O9,4*(PlotControl!$C$6-1),12,1))) -> 0.0056258 | R9: =IF(PlotControl!$B$4 = "Annual Max",MAX(OFFSET(AssimCap_PM13!$E$10,12*$O9,4*(PlotControl!$C$6-1),12,1)),AVERAGE(OFFSET(AssimCap_PM13!$E$10,12*$O9,4*(PlotControl!$C$6-1),12,1))) -> 0.011724 | S9: =IF(PlotControl!$B$4 = "Annual Max",MAX(OFFSET(AssimCap_MLC3!$C$10,12*$O9,4*(PlotControl!$C$6-1),12,1)),AVERAGE(OFFSET(AssimCap_MLC3!$C$10,12*$O9,4*(PlotControl!$C$6-1),12,1))) -> -0.0058973 | T9: =IF(PlotControl!$B$4 = "Annual Max",MAX(OFFSET(AssimCap_MLC3!$D$10,12*$O9,4*(PlotControl!$C$6-1),12,1)),AVERAGE(OFFSET(AssimCap_MLC3!$D$10,12*$O9,4*(PlotControl!$C$6-1),12,1))) -> -0.0016229 | U9: =IF(PlotControl!$B$4 = "Annual Max",MAX(OFFSET(AssimCap_MLC3!$E$10,12*$O9,4*(PlotControl!$C$6-1),12,1)),AVERAGE(OFFSET(AssimCap_MLC3!$E$10,12*$O9,4*(PlotControl!$C$6-1),12,1))) -> 0.0020092 | V9: =IF(PlotControl!$B$4 = "Annual Max",MAX(OFFSET(AssimCap_TC1!$C$10,12*$O9,4*(PlotControl!$C$6-1),12,1)),AVERAGE(OFFSET(AssimCap_TC1!$C$10,12*$O9,4*(PlotControl!$C$6-1),12,1))) -> 0.032892 | W9: =IF(PlotControl!$B$4 = "Annual Max",MAX(OFFSET(AssimCap_TC1!$D$10,12*$O9,4*(PlotControl!$C$6-1),12,1)),AVERAGE(OFFSET(AssimCap_TC1!$D$10,12*$O9,4*(PlotControl!$C$6-1),12,1))) -> 0.041103 | X9: =IF(PlotControl!$B$4 = "Annual Max",MAX(OFFSET(AssimCap_TC1!$E$10,12*$O9,4*(PlotControl!$C$6-1),12,1)),AVERAGE(OFFSET(AssimCap_TC1!$E$10,12*$O9,4*(PlotControl!$C$6-1),12,1))) -> 0.049633 | Y9: =IF(PlotControl!$B$4 = "Annual Max",MAX(OFFSET(AssimCap_PM11!$C$10,12*$O9,4*(PlotControl!$C$6-1),12,1)),AVERAGE(OFFSET(AssimCap_PM11!$C$10,12*$O9,4*(PlotControl!$C$6-1),12,1))) -> 0.027954 | Z9: =IF(PlotControl!$B$4 = "Annual Max",MAX(OFFSET(AssimCap_PM11!$D$10,12*$O9,4*(PlotControl!$C$6-1),12,1)),AVERAGE(OFFSET(AssimCap_PM11!$D$10,12*$O9,4*(PlotControl!$C$6-1),12,1))) -> 0.045923 | AA9: =IF(PlotControl!$B$4 = "Annual Max",MAX(OFFSET(AssimCap_PM11!$E$10,12*$O9,4*(PlotControl!$C$6-1),12,1)),AVERAGE(OFFSET(AssimCap_PM11!$E$10,12*$O9,4*(PlotControl!$C$6-1),12,1))) -> 0.066053 | AB9: =IF(PlotControl!$B$4 = "Annual Max",MAX(OFFSET(AssimCap_PM12!$C$10,12*$O9,4*(PlotControl!$C$6-1),12,1)),AVERAGE(OFFSET(AssimCap_PM12!$C$10,12*$O9,4*(PlotControl!$C$6-1),12,1))) -> -1.5633e-17 | AC9: =IF(PlotControl!$B$4 = "Annual Max",MAX(OFFSET(AssimCap_PM12!$D$10,12*$O9,4*(PlotControl!$C$6-1),12,1)),AVERAGE(OFFSET(AssimCap_PM12!$D$10,12*$O9,4*(PlotControl!$C$6-1),12,1))) -> 1.5376e-17 | AD9: =IF(PlotControl!$B$4 = "Annual Max",MAX(OFFSET(AssimCap_PM12!$E$10,12*$O9,4*(PlotControl!$C$6-1),12,1)),AVERAGE(OFFSET(AssimCap_PM12!$E$10,12*$O9,4*(PlotControl!$C$6-1),12,1))) -> 5.8854e-12 | AF9: 0.3333333333 | AG9: =OFFSET(P_Ex_PM13!$B$10,12*$AF9,4*(PlotControl!$C$6-1),1,1) -> 0 | AH9: =OFFSET(P_Ex_MLC3!$B$10,12*$AF9,4*(PlotControl!$C$6-1),1,1) -> 0 | AI9: =OFFSET(P_Ex_TC1!$B$10,12*$AF9,4*(PlotControl!$C$6-1),1,1) -> 0 | AJ9: =OFFSET(P_Ex_PM11!$B$10,12*$AF9,4*(PlotControl!$C$6-1),1,1) -> 0 | AK9: =OFFSET(P_Ex_PM12!$B$10,12*$AF9,4*(PlotControl!$C$6-1),1,1) -> 0 | AL9: =OFFSET(P_notNA_PM13!$B$10,12*$AF9,1*(PlotControl!$C$6-1),1,1) -> 0 | AM9: =OFFSET(P_notNA_MLC3!$B$10,12*$AF9,1*(PlotControl!$C$6-1),1,1) -> 0 | AN9: =OFFSET(P_notNA_TC1!$B$10,12*$AF9,1*(PlotControl!$C$6-1),1,1) -> 0 | AO9: =OFFSET(P_notNA_PM11!$B$10,12*$AF9,1*(PlotControl!$C$6-1),1,1) -> 0 | AP9: =OFFSET(P_notNA_PM12!$B$10,12*$AF9,1*(PlotControl!$C$6-1),1,1) -> 0 | AR9: 0.3333333333 | AS9: =OFFSET(AssimCap_PM13!$C$10,12*$AR9,4*(PlotControl!$C$6-1),1,1) -> -0.0013485 | AT9: =OFFSET(AssimCap_PM13!$D$10,12*$AR9,4*(PlotControl!$C$6-1),1,1) -> 0.00017192 | AU9: =OFFSET(AssimCap_PM13!$E$10,12*$AR9,4*(PlotControl!$C$6-1),1,1) -> 0.00059883 | AV9: =OFFSET(AssimCap_MLC3!$C$10,12*$AR9,4*(PlotControl!$C$6-1),1,1) -> -0.020989 | AW9: =OFFSET(AssimCap_MLC3!$D$10,12*$AR9,4*(PlotControl!$C$6-1),1,1) -> -0.0030002 | AX9: =OFFSET(AssimCap_MLC3!$E$10,12*$AR9,4*(PlotControl!$C$6-1),1,1) -> -0.00032059 | AY9: =OFFSET(AssimCap_TC1!$C$10,12*$AR9,4*(PlotControl!$C$6-1),1,1) -> 0.0015727 | AZ9: =OFFSET(AssimCap_TC1!$D$10,12*$AR9,4*(PlotControl!$C$6-1),1,1) -> 0.0035248 | BA9: =OFFSET(AssimCap_TC1!$E$10,12*$AR9,4*(PlotControl!$C$6-1),1,1) -> 0.0064224 | BB9: =OFFSET(AssimCap_PM11!$C$10,12*$AR9,4*(PlotControl!$C$6-1),1,1) -> 0.0023588 | BC9: =OFFSET(AssimCap_PM11!$D$10,12*$AR9,4*(PlotControl!$C$6-1),1,1) -> 0.0063546 | BD9: =OFFSET(AssimCap_PM11!$E$10,12*$AR9,4*(PlotControl!$C$6-1),1,1) -> 0.023794 | BE9: =OFFSET(AssimCap_PM12!$C$10,12*$AR9,4*(PlotControl!$C$6-1),1,1) -> -2.6377e-14 | BF9: =OFFSET(AssimCap_PM12!$D$10,12*$AR9,4*(PlotControl!$C$6-1),1,1) -> 0 | BG9: =OFFSET(AssimCap_PM12!$E$10,12*$AR9,4*(PlotControl!$C$6-1),1,1) -> 1.5583e-16
A10: 5 | B10: =IF(PlotControl!$B$4 = "Annual Max",MAX(OFFSET(P_Ex_PM13!$B$10,12*$A10,4*(PlotControl!$C$6-1),12,1)),AVERAGE(OFFSET(P_Ex_PM13!$B$10,12*$A10,4*(PlotControl!$C$6-1),12,1))) -> 0 | C10: =IF(PlotControl!$B$4 = "Annual Max",MAX(OFFSET(P_Ex_MLC3!$B$10,12*$A10,4*(PlotControl!$C$6-1),12,1)),AVERAGE(OFFSET(P_Ex_MLC3!$B$10,12*$A10,4*(PlotControl!$C$6-1),12,1))) -> 0 | D10: =IF(PlotControl!$B$4 = "Annual Max",MAX(OFFSET(P_Ex_TC1!$B$10,12*$A10,4*(PlotControl!$C$6-1),12,1)),AVERAGE(OFFSET(P_Ex_TC1!$B$10,12*$A10,4*(PlotControl!$C$6-1),12,1))) -> 0 | E10: =IF(PlotControl!$B$4 = "Annual Max",MAX(OFFSET(P_Ex_PM11!$B$10,12*$A10,4*(PlotControl!$C$6-1),12,1)),AVERAGE(OFFSET(P_Ex_PM11!$B$10,12*$A10,4*(PlotControl!$C$6-1),12,1))) -> 0 | F10: =IF(PlotControl!$B$4 = "Annual Max",MAX(OFFSET(P_Ex_PM12!$B$10,12*$A10,4*(PlotControl!$C$6-1),12,1)),AVERAGE(OFFSET(P_Ex_PM12!$B$10,12*$A10,4*(PlotControl!$C$6-1),12,1))) -> 0 | H10: 5 | I10: =IF(PlotControl!$B$4 = "Annual Max",MAX(OFFSET(P_notNA_PM13!$B$10,12*$H10,(PlotControl!$C$6-1),12,1)),AVERAGE(OFFSET(P_notNA_PM13!$B$10,12*$A10,(PlotControl!$C$6-1),12,1))) -> 0 | J10: =IF(PlotControl!$B$4 = "Annual Max",MAX(OFFSET(P_notNA_MLC3!$B$10,12*$H10,(PlotControl!$C$6-1),12,1)),AVERAGE(OFFSET(P_notNA_MLC3!$B$10,12*$A10,(PlotControl!$C$6-1),12,1))) -> 0 | K10: =IF(PlotControl!$B$4 = "Annual Max",MAX(OFFSET(P_notNA_TC1!$B$10,12*$H10,(PlotControl!$C$6-1),12,1)),AVERAGE(OFFSET(P_notNA_TC1!$B$10,12*$A10,(PlotControl!$C$6-1),12,1))) -> 0 | L10: =IF(PlotControl!$B$4 = "Annual Max",MAX(OFFSET(P_notNA_PM11!$B$10,12*$H10,(PlotControl!$C$6-1),12,1)),AVERAGE(OFFSET(P_notNA_PM11!$B$10,12*$A10,(PlotControl!$C$6-1),12,1))) -> 0 | M10: =IF(PlotControl!$B$4 = "Annual Max",MAX(OFFSET(P_notNA_PM12!$B$10,12*$H10,(PlotControl!$C$6-1),12,1)),AVERAGE(OFFSET(P_notNA_PM12!$B$10,12*$A10,(PlotControl!$C$6-1),12,1))) -> 0 | O10: 5 | P10: =IF(PlotControl!$B$4 = "Annual Max",MAX(OFFSET(AssimCap_PM13!$C$10,12*$O10,4*(PlotControl!$C$6-1),12,1)),AVERAGE(OFFSET(AssimCap_PM13!$C$10,12*$O10,4*(PlotControl!$C$6-1),12,1))) -> 0.015572 | Q10: =IF(PlotControl!$B$4 = "Annual Max",MAX(OFFSET(AssimCap_PM13!$D$10,12*$O10,4*(PlotControl!$C$6-1),12,1)),AVERAGE(OFFSET(AssimCap_PM13!$D$10,12*$O10,4*(PlotControl!$C$6-1),12,1))) -> 0.019712 | R10: =IF(PlotControl!$B$4 = "Annual Max",MAX(OFFSET(AssimCap_PM13!$E$10,12*$O10,4*(PlotControl!$C$6-1),12,1)),AVERAGE(OFFSET(AssimCap_PM13!$E$10,12*$O10,4*(PlotControl!$C$6-1),12,1))) -> 0.031467 | S10: =IF(PlotControl!$B$4 = "Annual Max",MAX(OFFSET(AssimCap_MLC3!$C$10,12*$O10,4*(PlotControl!$C$6-1),12,1)),AVERAGE(OFFSET(AssimCap_MLC3!$C$10,12*$O10,4*(PlotControl!$C$6-1),12,1))) -> -0.0066103 | T10: =IF(PlotControl!$B$4 = "Annual Max",MAX(OFFSET(AssimCap_MLC3!$D$10,12*$O10,4*(PlotControl!$C$6-1),12,1)),AVERAGE(OFFSET(AssimCap_MLC3!$D$10,12*$O10,4*(PlotControl!$C$6-1),12,1))) -> -0.0015402 | U10: =IF(PlotControl!$B$4 = "Annual Max",MAX(OFFSET(AssimCap_MLC3!$E$10,12*$O10,4*(PlotControl!$C$6-1),12,1)),AVERAGE(OFFSET(AssimCap_MLC3!$E$10,12*$O10,4*(PlotControl!$C$6-1),12,1))) -> 0.001813 | V10: =IF(PlotControl!$B$4 = "Annual Max",MAX(OFFSET(AssimCap_TC1!$C$10,12*$O10,4*(PlotControl!$C$6-1),12,1)),AVERAGE(OFFSET(AssimCap_TC1!$C$10,12*$O10,4*(PlotControl!$C$6-1),12,1))) -> 0.10598 | W10: =IF(PlotControl!$B$4 = "Annual Max",MAX(OFFSET(AssimCap_TC1!$D$10,12*$O10,4*(PlotControl!$C$6-1),12,1)),AVERAGE(OFFSET(AssimCap_TC1!$D$10,12*$O10,4*(PlotControl!$C$6-1),12,1))) -> 0.13458 | X10: =IF(PlotControl!$B$4 = "Annual Max",MAX(OFFSET(AssimCap_TC1!$E$10,12*$O10,4*(PlotControl!$C$6-1),12,1)),AVERAGE(OFFSET(AssimCap_TC1!$E$10,12*$O10,4*(PlotControl!$C$6-1),12,1))) -> 0.15198 | Y10: =IF(PlotControl!$B$4 = "Annual Max",MAX(OFFSET(AssimCap_PM11!$C$10,12*$O10,4*(PlotControl!$C$6-1),12,1)),AVERAGE(OFFSET(AssimCap_PM11!$C$10,12*$O10,4*(PlotControl!$C$6-1),12,1))) -> 0.073396 | Z10: =IF(PlotControl!$B$4 = "Annual Max",MAX(OFFSET(AssimCap_PM11!$D$10,12*$O10,4*(PlotControl!$C$6-1),12,1)),AVERAGE(OFFSET(AssimCap_PM11!$D$10,12*$O10,4*(PlotControl!$C$6-1),12,1))) -> 0.10519 | AA10: =IF(PlotControl!$B$4 = "Annual Max",MAX(OFFSET(AssimCap_PM11!$E$10,12*$O10,4*(PlotControl!$C$6-1),12,1)),AVERAGE(OFFSET(AssimCap_PM11!$E$10,12*$O10,4*(PlotControl!$C$6-1),12,1))) -> 0.14633 | AB10: =IF(PlotControl!$B$4 = "Annual Max",MAX(OFFSET(AssimCap_PM12!$C$10,12*$O10,4*(PlotControl!$C$6-1),12,1)),AVERAGE(OFFSET(AssimCap_PM12!$C$10,12*$O10,4*(PlotControl!$C$6-1),12,1))) -> -1.5631e-17 | AC10: =IF(PlotControl!$B$4 = "Annual Max",MAX(OFFSET(AssimCap_PM12!$D$10,12*$O10,4*(PlotControl!$C$6-1),12,1)),AVERAGE(OFFSET(AssimCap_PM12!$D$10,12*$O10,4*(PlotControl!$C$6-1),12,1))) -> 1.5358e-17 | AD10: =IF(PlotControl!$B$4 = "Annual Max",MAX(OFFSET(AssimCap_PM12!$E$10,12*$O10,4*(PlotControl!$C$6-1),12,1)),AVERAGE(OFFSET(AssimCap_PM12!$E$10,12*$O10,4*(PlotControl!$C$6-1),12,1))) -> 3.9878e-12 | AF10: 0.4166666667 | AG10: =OFFSET(P_Ex_PM13!$B$10,12*$AF10,4*(PlotControl!$C$6-1),1,1) -> 0 | AH10: =OFFSET(P_Ex_MLC3!$B$10,12*$AF10,4*(PlotControl!$C$6-1),1,1) -> 0 | AI10: =OFFSET(P_Ex_TC1!$B$10,12*$AF10,4*(PlotControl!$C$6-1),1,1) -> 0 | AJ10: =OFFSET(P_Ex_PM11!$B$10,12*$AF10,4*(PlotControl!$C$6-1),1,1) -> 0 | AK10: =OFFSET(P_Ex_PM12!$B$10,12*$AF10,4*(PlotControl!$C$6-1),1,1) -> 0 | AL10: =OFFSET(P_notNA_PM13!$B$10,12*$AF10,1*(PlotControl!$C$6-1),1,1) -> 0 | AM10: =OFFSET(P_notNA_MLC3!$B$10,12*$AF10,1*(PlotControl!$C$6-1),1,1) -> 0 | AN10: =OFFSET(P_notNA_TC1!$B$10,12*$AF10,1*(PlotControl!$C$6-1),1,1) -> 0 | AO10: =OFFSET(P_notNA_PM11!$B$10,12*$AF10,1*(PlotControl!$C$6-1),1,1) -> 0 | AP10: =OFFSET(P_notNA_PM12!$B$10,12*$AF10,1*(PlotControl!$C$6-1),1,1) -> 0 | AR10: 0.4166666667 | AS10: =OFFSET(AssimCap_PM13!$C$10,12*$AR10,4*(PlotControl!$C$6-1),1,1) -> 0.00012364 | AT10: =OFFSET(AssimCap_PM13!$D$10,12*$AR10,4*(PlotControl!$C$6-1),1,1) -> 0.00042026 | AU10: =OFFSET(AssimCap_PM13!$E$10,12*$AR10,4*(PlotControl!$C$6-1),1,1) -> 0.0010629 | AV10: =OFFSET(AssimCap_MLC3!$C$10,12*$AR10,4*(PlotControl!$C$6-1),1,1) -> -0.0078515 | AW10: =OFFSET(AssimCap_MLC3!$D$10,12*$AR10,4*(PlotControl!$C$6-1),1,1) -> -0.0025103 | AX10: =OFFSET(AssimCap_MLC3!$E$10,12*$AR10,4*(PlotControl!$C$6-1),1,1) -> 0.00060679 | AY10: =OFFSET(AssimCap_TC1!$C$10,12*$AR10,4*(PlotControl!$C$6-1),1,1) -> 0.0022667 | AZ10: =OFFSET(AssimCap_TC1!$D$10,12*$AR10,4*(PlotControl!$C$6-1),1,1) -> 0.0045876 | BA10: =OFFSET(AssimCap_TC1!$E$10,12*$AR10,4*(PlotControl!$C$6-1),1,1) -> 0.0070201 | BB10: =OFFSET(AssimCap_PM11!$C$10,12*$AR10,4*(PlotControl!$C$6-1),1,1) -> 0.0034177 | BC10: =OFFSET(AssimCap_PM11!$D$10,12*$AR10,4*(PlotControl!$C$6-1),1,1) -> 0.0084834 | BD10: =OFFSET(AssimCap_PM11!$E$10,12*$AR10,4*(PlotControl!$C$6-1),1,1) -> 0.016722 | BE10: =OFFSET(AssimCap_PM12!$C$10,12*$AR10,4*(PlotControl!$C$6-1),1,1) -> -3.1783e-17 | BF10: =OFFSET(AssimCap_PM12!$D$10,12*$AR10,4*(PlotControl!$C$6-1),1,1) -> 0 | BG10: =OFFSET(AssimCap_PM12!$E$10,12*$AR10,4*(PlotControl!$C$6-1),1,1) -> 1.5654e-17
A11: 6 | B11: =IF(PlotControl!$B$4 = "Annual Max",MAX(OFFSET(P_Ex_PM13!$B$10,12*$A11,4*(PlotControl!$C$6-1),12,1)),AVERAGE(OFFSET(P_Ex_PM13!$B$10,12*$A11,4*(PlotControl!$C$6-1),12,1))) -> 0 | C11: =IF(PlotControl!$B$4 = "Annual Max",MAX(OFFSET(P_Ex_MLC3!$B$10,12*$A11,4*(PlotControl!$C$6-1),12,1)),AVERAGE(OFFSET(P_Ex_MLC3!$B$10,12*$A11,4*(PlotControl!$C$6-1),12,1))) -> 0 | D11: =IF(PlotControl!$B$4 = "Annual Max",MAX(OFFSET(P_Ex_TC1!$B$10,12*$A11,4*(PlotControl!$C$6-1),12,1)),AVERAGE(OFFSET(P_Ex_TC1!$B$10,12*$A11,4*(PlotControl!$C$6-1),12,1))) -> 0 | E11: =IF(PlotControl!$B$4 = "Annual Max",MAX(OFFSET(P_Ex_PM11!$B$10,12*$A11,4*(PlotControl!$C$6-1),12,1)),AVERAGE(OFFSET(P_Ex_PM11!$B$10,12*$A11,4*(PlotControl!$C$6-1),12,1))) -> 0 | F11: =IF(PlotControl!$B$4 = "Annual Max",MAX(OFFSET(P_Ex_PM12!$B$10,12*$A11,4*(PlotControl!$C$6-1),12,1)),AVERAGE(OFFSET(P_Ex_PM12!$B$10,12*$A11,4*(PlotControl!$C$6-1),12,1))) -> 0 | H11: 6 | I11: =IF(PlotControl!$B$4 = "Annual Max",MAX(OFFSET(P_notNA_PM13!$B$10,12*$H11,(PlotControl!$C$6-1),12,1)),AVERAGE(OFFSET(P_notNA_PM13!$B$10,12*$A11,(PlotControl!$C$6-1),12,1))) -> 0 | J11: =IF(PlotControl!$B$4 = "Annual Max",MAX(OFFSET(P_notNA_MLC3!$B$10,12*$H11,(PlotControl!$C$6-1),12,1)),AVERAGE(OFFSET(P_notNA_MLC3!$B$10,12*$A11,(PlotControl!$C$6-1),12,1))) -> 0 | K11: =IF(PlotControl!$B$4 = "Annual Max",MAX(OFFSET(P_notNA_TC1!$B$10,12*$H11,(PlotControl!$C$6-1),12,1)),AVERAGE(OFFSET(P_notNA_TC1!$B$10,12*$A11,(PlotControl!$C$6-1),12,1))) -> 0 | L11: =IF(PlotControl!$B$4 = "Annual Max",MAX(OFFSET(P_notNA_PM11!$B$10,12*$H11,(PlotControl!$C$6-1),12,1)),AVERAGE(OFFSET(P_notNA_PM11!$B$10,12*$A11,(PlotControl!$C$6-1),12,1))) -> 0 | M11: =IF(PlotControl!$B$4 = "Annual Max",MAX(OFFSET(P_notNA_PM12!$B$10,12*$H11,(PlotControl!$C$6-1),12,1)),AVERAGE(OFFSET(P_notNA_PM12!$B$10,12*$A11,(PlotControl!$C$6-1),12,1))) -> 0 | O11: 6 | P11: =IF(PlotControl!$B$4 = "Annual Max",MAX(OFFSET(AssimCap_PM13!$C$10,12*$O11,4*(PlotControl!$C$6-1),12,1)),AVERAGE(OFFSET(AssimCap_PM13!$C$10,12*$O11,4*(PlotControl!$C$6-1),12,1))) -> 0.038621 | Q11: =IF(PlotControl!$B$4 = "Annual Max",MAX(OFFSET(AssimCap_PM13!$D$10,12*$O11,4*(PlotControl!$C$6-1),12,1)),AVERAGE(OFFSET(AssimCap_PM13!$D$10,12*$O11,4*(PlotControl!$C$6-1),12,1))) -> 0.051749 | R11: =IF(PlotControl!$B$4 = "Annual Max",MAX(OFFSET(AssimCap_PM13!$E$10,12*$O11,4*(PlotControl!$C$6-1),12,1)),AVERAGE(OFFSET(AssimCap_PM13!$E$10,12*$O11,4*(PlotControl!$C$6-1),12,1))) -> 0.064486 | S11: =IF(PlotControl!$B$4 = "Annual Max",MAX(OFFSET(AssimCap_MLC3!$C$10,12*$O11,4*(PlotControl!$C$6-1),12,1)),AVERAGE(OFFSET(AssimCap_MLC3!$C$10,12*$O11,4*(PlotControl!$C$6-1),12,1))) -> -0.0065356 | T11: =IF(PlotControl!$B$4 = "Annual Max",MAX(OFFSET(AssimCap_MLC3!$D$10,12*$O11,4*(PlotControl!$C$6-1),12,1)),AVERAGE(OFFSET(AssimCap_MLC3!$D$10,12*$O11,4*(PlotControl!$C$6-1),12,1))) -> -0.0018326 | U11: =IF(PlotControl!$B$4 = "Annual Max",MAX(OFFSET(AssimCap_MLC3!$E$10,12*$O11,4*(PlotControl!$C$6-1),12,1)),AVERAGE(OFFSET(AssimCap_MLC3!$E$10,12*$O11,4*(PlotControl!$C$6-1),12,1))) -> 0.0019805 | V11: =IF(PlotControl!$B$4 = "Annual Max",MAX(OFFSET(AssimCap_TC1!$C$10,12*$O11,4*(PlotControl!$C$6-1),12,1)),AVERAGE(OFFSET(AssimCap_TC1!$C$10,12*$O11,4*(PlotControl!$C$6-1),12,1))) -> 0.16389 | W11: =IF(PlotControl!$B$4 = "Annual Max",MAX(OFFSET(AssimCap_TC1!$D$10,12*$O11,4*(PlotControl!$C$6-1),12,1)),AVERAGE(OFFSET(AssimCap_TC1!$D$10,12*$O11,4*(PlotControl!$C$6-1),12,1))) -> 0.20479 | X11: =IF(PlotControl!$B$4 = "Annual Max",MAX(OFFSET(AssimCap_TC1!$E$10,12*$O11,4*(PlotControl!$C$6-1),12,1)),AVERAGE(OFFSET(AssimCap_TC1!$E$10,12*$O11,4*(PlotControl!$C$6-1),12,1))) -> 0.22961 | Y11: =IF(PlotControl!$B$4 = "Annual Max",MAX(OFFSET(AssimCap_PM11!$C$10,12*$O11,4*(PlotControl!$C$6-1),12,1)),AVERAGE(OFFSET(AssimCap_PM11!$C$10,12*$O11,4*(PlotControl!$C$6-1),12,1))) -> 0.16138 | Z11: =IF(PlotControl!$B$4 = "Annual Max",MAX(OFFSET(AssimCap_PM11!$D$10,12*$O11,4*(PlotControl!$C$6-1),12,1)),AVERAGE(OFFSET(AssimCap_PM11!$D$10,12*$O11,4*(PlotControl!$C$6-1),12,1))) -> 0.18621 | AA11: =IF(PlotControl!$B$4 = "Annual Max",MAX(OFFSET(AssimCap_PM11!$E$10,12*$O11,4*(PlotControl!$C$6-1),12,1)),AVERAGE(OFFSET(AssimCap_PM11!$E$10,12*$O11,4*(PlotControl!$C$6-1),12,1))) -> 0.23675 | AB11: =IF(PlotControl!$B$4 = "Annual Max",MAX(OFFSET(AssimCap_PM12!$C$10,12*$O11,4*(PlotControl!$C$6-1),12,1)),AVERAGE(OFFSET(AssimCap_PM12!$C$10,12*$O11,4*(PlotControl!$C$6-1),12,1))) -> -1.562e-17 | AC11: =IF(PlotControl!$B$4 = "Annual Max",MAX(OFFSET(AssimCap_PM12!$D$10,12*$O11,4*(PlotControl!$C$6-1),12,1)),AVERAGE(OFFSET(AssimCap_PM12!$D$10,12*$O11,4*(PlotControl!$C$6-1),12,1))) -> 1.5453e-17 | AD11: =IF(PlotControl!$B$4 = "Annual Max",MAX(OFFSET(AssimCap_PM12!$E$10,12*$O11,4*(PlotControl!$C$6-1),12,1)),AVERAGE(OFFSET(AssimCap_PM12!$E$10,12*$O11,4*(PlotControl!$C$6-1),12,1))) -> 4.8405e-12 | AF11: 0.5 | AG11: =OFFSET(P_Ex_PM13!$B$10,12*$AF11,4*(PlotControl!$C$6-1),1,1) -> 0 | AH11: =OFFSET(P_Ex_MLC3!$B$10,12*$AF11,4*(PlotControl!$C$6-1),1,1) -> 0 | AI11: =OFFSET(P_Ex_TC1!$B$10,12*$AF11,4*(PlotControl!$C$6-1),1,1) -> 0 | AJ11: =OFFSET(P_Ex_PM11!$B$10,12*$AF11,4*(PlotControl!$C$6-1),1,1) -> 0 | AK11: =OFFSET(P_Ex_PM12!$B$10,12*$AF11,4*(PlotControl!$C$6-1),1,1) -> 0 | AL11: =OFFSET(P_notNA_PM13!$B$10,12*$AF11,1*(PlotControl!$C$6-1),1,1) -> 0 | AM11: =OFFSET(P_notNA_MLC3!$B$10,12*$AF11,1*(PlotControl!$C$6-1),1,1) -> 0 | AN11: =OFFSET(P_notNA_TC1!$B$10,12*$AF11,1*(PlotControl!$C$6-1),1,1) -> 0 | AO11: =OFFSET(P_notNA_PM11!$B$10,12*$AF11,1*(PlotControl!$C$6-1),1,1) -> 0 | AP11: =OFFSET(P_notNA_PM12!$B$10,12*$AF11,1*(PlotControl!$C$6-1),1,1) -> 0 | AR11: 0.5 | AS11: =OFFSET(AssimCap_PM13!$C$10,12*$AR11,4*(PlotControl!$C$6-1),1,1) -> 0.00012364 | AT11: =OFFSET(AssimCap_PM13!$D$10,12*$AR11,4*(PlotControl!$C$6-1),1,1) -> 0.00042026 | AU11: =OFFSET(AssimCap_PM13!$E$10,12*$AR11,4*(PlotControl!$C$6-1),1,1) -> 0.0010629 | AV11: =OFFSET(AssimCap_MLC3!$C$10,12*$AR11,4*(PlotControl!$C$6-1),1,1) -> -0.0078515 | AW11: =OFFSET(AssimCap_MLC3!$D$10,12*$AR11,4*(PlotControl!$C$6-1),1,1) -> -0.0025103 | AX11: =OFFSET(AssimCap_MLC3!$E$10,12*$AR11,4*(PlotControl!$C$6-1),1,1) -> 0.00060679 | AY11: =OFFSET(AssimCap_TC1!$C$10,12*$AR11,4*(PlotControl!$C$6-1),1,1) -> 0.0022667 | AZ11: =OFFSET(AssimCap_TC1!$D$10,12*$AR11,4*(PlotControl!$C$6-1),1,1) -> 0.0045876 | BA11: =OFFSET(AssimCap_TC1!$E$10,12*$AR11,4*(PlotControl!$C$6-1),1,1) -> 0.0070201 | BB11: =OFFSET(AssimCap_PM11!$C$10,12*$AR11,4*(PlotControl!$C$6-1),1,1) -> 0.0034177 | BC11: =OFFSET(AssimCap_PM11!$D$10,12*$AR11,4*(PlotControl!$C$6-1),1,1) -> 0.0084834 | BD11: =OFFSET(AssimCap_PM11!$E$10,12*$AR11,4*(PlotControl!$C$6-1),1,1) -> 0.016722 | BE11: =OFFSET(AssimCap_PM12!$C$10,12*$AR11,4*(PlotControl!$C$6-1),1,1) -> -3.1783e-17 | BF11: =OFFSET(AssimCap_PM12!$D$10,12*$AR11,4*(PlotControl!$C$6-1),1,1) -> 0 | BG11: =OFFSET(AssimCap_PM12!$E$10,12*$AR11,4*(PlotControl!$C$6-1),1,1) -> 1.5654e-17
A12: 7 | B12: =IF(PlotControl!$B$4 = "Annual Max",MAX(OFFSET(P_Ex_PM13!$B$10,12*$A12,4*(PlotControl!$C$6-1),12,1)),AVERAGE(OFFSET(P_Ex_PM13!$B$10,12*$A12,4*(PlotControl!$C$6-1),12,1))) -> 0 | C12: =IF(PlotControl!$B$4 = "Annual Max",MAX(OFFSET(P_Ex_MLC3!$B$10,12*$A12,4*(PlotControl!$C$6-1),12,1)),AVERAGE(OFFSET(P_Ex_MLC3!$B$10,12*$A12,4*(PlotControl!$C$6-1),12,1))) -> 0 | D12: =IF(PlotControl!$B$4 = "Annual Max",MAX(OFFSET(P_Ex_TC1!$B$10,12*$A12,4*(PlotControl!$C$6-1),12,1)),AVERAGE(OFFSET(P_Ex_TC1!$B$10,12*$A12,4*(PlotControl!$C$6-1),12,1))) -> 0 | E12: =IF(PlotControl!$B$4 = "Annual Max",MAX(OFFSET(P_Ex_PM11!$B$10,12*$A12,4*(PlotControl!$C$6-1),12,1)),AVERAGE(OFFSET(P_Ex_PM11!$B$10,12*$A12,4*(PlotControl!$C$6-1),12,1))) -> 0 | F12: =IF(PlotControl!$B$4 = "Annual Max",MAX(OFFSET(P_Ex_PM12!$B$10,12*$A12,4*(PlotControl!$C$6-1),12,1)),AVERAGE(OFFSET(P_Ex_PM12!$B$10,12*$A12,4*(PlotControl!$C$6-1),12,1))) -> 0 | H12: 7 | I12: =IF(PlotControl!$B$4 = "Annual Max",MAX(OFFSET(P_notNA_PM13!$B$10,12*$H12,(PlotControl!$C$6-1),12,1)),AVERAGE(OFFSET(P_notNA_PM13!$B$10,12*$A12,(PlotControl!$C$6-1),12,1))) -> 0 | J12: =IF(PlotControl!$B$4 = "Annual Max",MAX(OFFSET(P_notNA_MLC3!$B$10,12*$H12,(PlotControl!$C$6-1),12,1)),AVERAGE(OFFSET(P_notNA_MLC3!$B$10,12*$A12,(PlotControl!$C$6-1),12,1))) -> 0 | K12: =IF(PlotControl!$B$4 = "Annual Max",MAX(OFFSET(P_notNA_TC1!$B$10,12*$H12,(PlotControl!$C$6-1),12,1)),AVERAGE(OFFSET(P_notNA_TC1!$B$10,12*$A12,(PlotControl!$C$6-1),12,1))) -> 0 | L12: =IF(PlotControl!$B$4 = "Annual Max",MAX(OFFSET(P_notNA_PM11!$B$10,12*$H12,(PlotControl!$C$6-1),12,1)),AVERAGE(OFFSET(P_notNA_PM11!$B$10,12*$A12,(PlotControl!$C$6-1),12,1))) -> 0 | M12: =IF(PlotControl!$B$4 = "Annual Max",MAX(OFFSET(P_notNA_PM12!$B$10,12*$H12,(PlotControl!$C$6-1),12,1)),AVERAGE(OFFSET(P_notNA_PM12!$B$10,12*$A12,(PlotControl!$C$6-1),12,1))) -> 0 | O12: 7 | P12: =IF(PlotControl!$B$4 = "Annual Max",MAX(OFFSET(AssimCap_PM13!$C$10,12*$O12,4*(PlotControl!$C$6-1),12,1)),AVERAGE(OFFSET(AssimCap_PM13!$C$10,12*$O12,4*(PlotControl!$C$6-1),12,1))) -> 0.051311 | Q12: =IF(PlotControl!$B$4 = "Annual Max",MAX(OFFSET(AssimCap_PM13!$D$10,12*$O12,4*(PlotControl!$C$6-1),12,1)),AVERAGE(OFFSET(AssimCap_PM13!$D$10,12*$O12,4*(PlotControl!$C$6-1),12,1))) -> 0.06842 | R12: =IF(PlotControl!$B$4 = "Annual Max",MAX(OFFSET(AssimCap_PM13!$E$10,12*$O12,4*(PlotControl!$C$6-1),12,1)),AVERAGE(OFFSET(AssimCap_PM13!$E$10,12*$O12,4*(PlotControl!$C$6-1),12,1))) -> 0.085308 | S12: =IF(PlotControl!$B$4 = "Annual Max",MAX(OFFSET(AssimCap_MLC3!$C$10,12*$O12,4*(PlotControl!$C$6-1),12,1)),AVERAGE(OFFSET(AssimCap_MLC3!$C$10,12*$O12,4*(PlotControl!$C$6-1),12,1))) -> -0.0074909 | T12: =IF(PlotControl!$B$4 = "Annual Max",MAX(OFFSET(AssimCap_MLC3!$D$10,12*$O12,4*(PlotControl!$C$6-1),12,1)),AVERAGE(OFFSET(AssimCap_MLC3!$D$10,12*$O12,4*(PlotControl!$C$6-1),12,1))) -> -0.0016606 | U12: =IF(PlotControl!$B$4 = "Annual Max",MAX(OFFSET(AssimCap_MLC3!$E$10,12*$O12,4*(PlotControl!$C$6-1),12,1)),AVERAGE(OFFSET(AssimCap_MLC3!$E$10,12*$O12,4*(PlotControl!$C$6-1),12,1))) -> 0.0026899 | V12: =IF(PlotControl!$B$4 = "Annual Max",MAX(OFFSET(AssimCap_TC1!$C$10,12*$O12,4*(PlotControl!$C$6-1),12,1)),AVERAGE(OFFSET(AssimCap_TC1!$C$10,12*$O12,4*(PlotControl!$C$6-1),12,1))) -> 0.21392 | W12: =IF(PlotControl!$B$4 = "Annual Max",MAX(OFFSET(AssimCap_TC1!$D$10,12*$O12,4*(PlotControl!$C$6-1),12,1)),AVERAGE(OFFSET(AssimCap_TC1!$D$10,12*$O12,4*(PlotControl!$C$6-1),12,1))) -> 0.2255 | X12: =IF(PlotControl!$B$4 = "Annual Max",MAX(OFFSET(AssimCap_TC1!$E$10,12*$O12,4*(PlotControl!$C$6-1),12,1)),AVERAGE(OFFSET(AssimCap_TC1!$E$10,12*$O12,4*(PlotControl!$C$6-1),12,1))) -> 0.24555 | Y12: =IF(PlotControl!$B$4 = "Annual Max",MAX(OFFSET(AssimCap_PM11!$C$10,12*$O12,4*(PlotControl!$C$6-1),12,1)),AVERAGE(OFFSET(AssimCap_PM11!$C$10,12*$O12,4*(PlotControl!$C$6-1),12,1))) -> 0.20655 | Z12: =IF(PlotControl!$B$4 = "Annual Max",MAX(OFFSET(AssimCap_PM11!$D$10,12*$O12,4*(PlotControl!$C$6-1),12,1)),AVERAGE(OFFSET(AssimCap_PM11!$D$10,12*$O12,4*(PlotControl!$C$6-1),12,1))) -> 0.23062 | AA12: =IF(PlotControl!$B$4 = "Annual Max",MAX(OFFSET(AssimCap_PM11!$E$10,12*$O12,4*(PlotControl!$C$6-1),12,1)),AVERAGE(OFFSET(AssimCap_PM11!$E$10,12*$O12,4*(PlotControl!$C$6-1),12,1))) -> 0.24837 | AB12: =IF(PlotControl!$B$4 = "Annual Max",MAX(OFFSET(AssimCap_PM12!$C$10,12*$O12,4*(PlotControl!$C$6-1),12,1)),AVERAGE(OFFSET(AssimCap_PM12!$C$10,12*$O12,4*(PlotControl!$C$6-1),12,1))) -> -1.559e-17 | AC12: =IF(PlotControl!$B$4 = "Annual Max",MAX(OFFSET(AssimCap_PM12!$D$10,12*$O12,4*(PlotControl!$C$6-1),12,1)),AVERAGE(OFFSET(AssimCap_PM12!$D$10,12*$O12,4*(PlotControl!$C$6-1),12,1))) -> 0 | AD12: =IF(PlotControl!$B$4 = "Annual Max",MAX(OFFSET(AssimCap_PM12!$E$10,12*$O12,4*(PlotControl!$C$6-1),12,1)),AVERAGE(OFFSET(AssimCap_PM12!$E$10,12*$O12,4*(PlotControl!$C$6-1),12,1))) -> 3.065e-12 | AF12: 0.5833333333 | AG12: =OFFSET(P_Ex_PM13!$B$10,12*$AF12,4*(PlotControl!$C$6-1),1,1) -> 0 | AH12: =OFFSET(P_Ex_MLC3!$B$10,12*$AF12,4*(PlotControl!$C$6-1),1,1) -> 0 | AI12: =OFFSET(P_Ex_TC1!$B$10,12*$AF12,4*(PlotControl!$C$6-1),1,1) -> 0 | AJ12: =OFFSET(P_Ex_PM11!$B$10,12*$AF12,4*(PlotControl!$C$6-1),1,1) -> 0 | AK12: =OFFSET(P_Ex_PM12!$B$10,12*$AF12,4*(PlotControl!$C$6-1),1,1) -> 0 | AL12: =OFFSET(P_notNA_PM13!$B$10,12*$AF12,1*(PlotControl!$C$6-1),1,1) -> 0 | AM12: =OFFSET(P_notNA_MLC3!$B$10,12*$AF12,1*(PlotControl!$C$6-1),1,1) -> 0 | AN12: =OFFSET(P_notNA_TC1!$B$10,12*$AF12,1*(PlotControl!$C$6-1),1,1) -> 0 | AO12: =OFFSET(P_notNA_PM11!$B$10,12*$AF12,1*(PlotControl!$C$6-1),1,1) -> 0 | AP12: =OFFSET(P_notNA_PM12!$B$10,12*$AF12,1*(PlotControl!$C$6-1),1,1) -> 0 | AR12: 0.5833333333 | AS12: =OFFSET(AssimCap_PM13!$C$10,12*$AR12,4*(PlotControl!$C$6-1),1,1) -> 0.00029701 | AT12: =OFFSET(AssimCap_PM13!$D$10,12*$AR12,4*(PlotControl!$C$6-1),1,1) -> 0.00097125 | AU12: =OFFSET(AssimCap_PM13!$E$10,12*$AR12,4*(PlotControl!$C$6-1),1,1) -> 0.0027733 | AV12: =OFFSET(AssimCap_MLC3!$C$10,12*$AR12,4*(PlotControl!$C$6-1),1,1) -> -0.012327 | AW12: =OFFSET(AssimCap_MLC3!$D$10,12*$AR12,4*(PlotControl!$C$6-1),1,1) -> -0.0032896 | AX12: =OFFSET(AssimCap_MLC3!$E$10,12*$AR12,4*(PlotControl!$C$6-1),1,1) -> 0.00069665 | AY12: =OFFSET(AssimCap_TC1!$C$10,12*$AR12,4*(PlotControl!$C$6-1),1,1) -> 0.0037607 | AZ12: =OFFSET(AssimCap_TC1!$D$10,12*$AR12,4*(PlotControl!$C$6-1),1,1) -> 0.0068785 | BA12: =OFFSET(AssimCap_TC1!$E$10,12*$AR12,4*(PlotControl!$C$6-1),1,1) -> 0.0097667 | BB12: =OFFSET(AssimCap_PM11!$C$10,12*$AR12,4*(PlotControl!$C$6-1),1,1) -> 0.0067065 | BC12: =OFFSET(AssimCap_PM11!$D$10,12*$AR12,4*(PlotControl!$C$6-1),1,1) -> 0.016163 | BD12: =OFFSET(AssimCap_PM11!$E$10,12*$AR12,4*(PlotControl!$C$6-1),1,1) -> 0.031312 | BE12: =OFFSET(AssimCap_PM12!$C$10,12*$AR12,4*(PlotControl!$C$6-1),1,1) -> -1.571e-17 | BF12: =OFFSET(AssimCap_PM12!$D$10,12*$AR12,4*(PlotControl!$C$6-1),1,1) -> 0 | BG12: =OFFSET(AssimCap_PM12!$E$10,12*$AR12,4*(PlotControl!$C$6-1),1,1) -> 1.5682e-17
A13: 8 | B13: =IF(PlotControl!$B$4 = "Annual Max",MAX(OFFSET(P_Ex_PM13!$B$10,12*$A13,4*(PlotControl!$C$6-1),12,1)),AVERAGE(OFFSET(P_Ex_PM13!$B$10,12*$A13,4*(PlotControl!$C$6-1),12,1))) -> 0 | C13: =IF(PlotControl!$B$4 = "Annual Max",MAX(OFFSET(P_Ex_MLC3!$B$10,12*$A13,4*(PlotControl!$C$6-1),12,1)),AVERAGE(OFFSET(P_Ex_MLC3!$B$10,12*$A13,4*(PlotControl!$C$6-1),12,1))) -> 0 | D13: =IF(PlotControl!$B$4 = "Annual Max",MAX(OFFSET(P_Ex_TC1!$B$10,12*$A13,4*(PlotControl!$C$6-1),12,1)),AVERAGE(OFFSET(P_Ex_TC1!$B$10,12*$A13,4*(PlotControl!$C$6-1),12,1))) -> 0 | E13: =IF(PlotControl!$B$4 = "Annual Max",MAX(OFFSET(P_Ex_PM11!$B$10,12*$A13,4*(PlotControl!$C$6-1),12,1)),AVERAGE(OFFSET(P_Ex_PM11!$B$10,12*$A13,4*(PlotControl!$C$6-1),12,1))) -> 0 | F13: =IF(PlotControl!$B$4 = "Annual Max",MAX(OFFSET(P_Ex_PM12!$B$10,12*$A13,4*(PlotControl!$C$6-1),12,1)),AVERAGE(OFFSET(P_Ex_PM12!$B$10,12*$A13,4*(PlotControl!$C$6-1),12,1))) -> 0 | H13: 8 | I13: =IF(PlotControl!$B$4 = "Annual Max",MAX(OFFSET(P_notNA_PM13!$B$10,12*$H13,(PlotControl!$C$6-1),12,1)),AVERAGE(OFFSET(P_notNA_PM13!$B$10,12*$A13,(PlotControl!$C$6-1),12,1))) -> 0 | J13: =IF(PlotControl!$B$4 = "Annual Max",MAX(OFFSET(P_notNA_MLC3!$B$10,12*$H13,(PlotControl!$C$6-1),12,1)),AVERAGE(OFFSET(P_notNA_MLC3!$B$10,12*$A13,(PlotControl!$C$6-1),12,1))) -> 0 | K13: =IF(PlotControl!$B$4 = "Annual Max",MAX(OFFSET(P_notNA_TC1!$B$10,12*$H13,(PlotControl!$C$6-1),12,1)),AVERAGE(OFFSET(P_notNA_TC1!$B$10,12*$A13,(PlotControl!$C$6-1),12,1))) -> 0 | L13: =IF(PlotControl!$B$4 = "Annual Max",MAX(OFFSET(P_notNA_PM11!$B$10,12*$H13,(PlotControl!$C$6-1),12,1)),AVERAGE(OFFSET(P_notNA_PM11!$B$10,12*$A13,(PlotControl!$C$6-1),12,1))) -> 0 | M13: =IF(PlotControl!$B$4 = "Annual Max",MAX(OFFSET(P_notNA_PM12!$B$10,12*$H13,(PlotControl!$C$6-1),12,1)),AVERAGE(OFFSET(P_notNA_PM12!$B$10,12*$A13,(PlotControl!$C$6-1),12,1))) -> 0 | O13: 8 | P13: =IF(PlotControl!$B$4 = "Annual Max",MAX(OFFSET(AssimCap_PM13!$C$10,12*$O13,4*(PlotControl!$C$6-1),12,1)),AVERAGE(OFFSET(AssimCap_PM13!$C$10,12*$O13,4*(PlotControl!$C$6-1),12,1))) -> 0.044072 | Q13: =IF(PlotControl!$B$4 = "Annual Max",MAX(OFFSET(AssimCap_PM13!$D$10,12*$O13,4*(PlotControl!$C$6-1),12,1)),AVERAGE(OFFSET(AssimCap_PM13!$D$10,12*$O13,4*(PlotControl!$C$6-1),12,1))) -> 0.059796 | R13: =IF(PlotControl!$B$4 = "Annual Max",MAX(OFFSET(AssimCap_PM13!$E$10,12*$O13,4*(PlotControl!$C$6-1),12,1)),AVERAGE(OFFSET(AssimCap_PM13!$E$10,12*$O13,4*(PlotControl!$C$6-1),12,1))) -> 0.078352 | S13: =IF(PlotControl!$B$4 = "Annual Max",MAX(OFFSET(AssimCap_MLC3!$C$10,12*$O13,4*(PlotControl!$C$6-1),12,1)),AVERAGE(OFFSET(AssimCap_MLC3!$C$10,12*$O13,4*(PlotControl!$C$6-1),12,1))) -> -0.0082761 | T13: =IF(PlotControl!$B$4 = "Annual Max",MAX(OFFSET(AssimCap_MLC3!$D$10,12*$O13,4*(PlotControl!$C$6-1),12,1)),AVERAGE(OFFSET(AssimCap_MLC3!$D$10,12*$O13,4*(PlotControl!$C$6-1),12,1))) -> -0.001592 | U13: =IF(PlotControl!$B$4 = "Annual Max",MAX(OFFSET(AssimCap_MLC3!$E$10,12*$O13,4*(PlotControl!$C$6-1),12,1)),AVERAGE(OFFSET(AssimCap_MLC3!$E$10,12*$O13,4*(PlotControl!$C$6-1),12,1))) -> 0.0021927 | V13: =IF(PlotControl!$B$4 = "Annual Max",MAX(OFFSET(AssimCap_TC1!$C$10,12*$O13,4*(PlotControl!$C$6-1),12,1)),AVERAGE(OFFSET(AssimCap_TC1!$C$10,12*$O13,4*(PlotControl!$C$6-1),12,1))) -> 0.13999 | W13: =IF(PlotControl!$B$4 = "Annual Max",MAX(OFFSET(AssimCap_TC1!$D$10,12*$O13,4*(PlotControl!$C$6-1),12,1)),AVERAGE(OFFSET(AssimCap_TC1!$D$10,12*$O13,4*(PlotControl!$C$6-1),12,1))) -> 0.17982 | X13: =IF(PlotControl!$B$4 = "Annual Max",MAX(OFFSET(AssimCap_TC1!$E$10,12*$O13,4*(PlotControl!$C$6-1),12,1)),AVERAGE(OFFSET(AssimCap_TC1!$E$10,12*$O13,4*(PlotControl!$C$6-1),12,1))) -> 0.197 | Y13: =IF(PlotControl!$B$4 = "Annual Max",MAX(OFFSET(AssimCap_PM11!$C$10,12*$O13,4*(PlotControl!$C$6-1),12,1)),AVERAGE(OFFSET(AssimCap_PM11!$C$10,12*$O13,4*(PlotControl!$C$6-1),12,1))) -> 0.14183 | Z13: =IF(PlotControl!$B$4 = "Annual Max",MAX(OFFSET(AssimCap_PM11!$D$10,12*$O13,4*(PlotControl!$C$6-1),12,1)),AVERAGE(OFFSET(AssimCap_PM11!$D$10,12*$O13,4*(PlotControl!$C$6-1),12,1))) -> 0.17892 | AA13: =IF(PlotControl!$B$4 = "Annual Max",MAX(OFFSET(AssimCap_PM11!$E$10,12*$O13,4*(PlotControl!$C$6-1),12,1)),AVERAGE(OFFSET(AssimCap_PM11!$E$10,12*$O13,4*(PlotControl!$C$6-1),12,1))) -> 0.20206 | AB13: =IF(PlotControl!$B$4 = "Annual Max",MAX(OFFSET(AssimCap_PM12!$C$10,12*$O13,4*(PlotControl!$C$6-1),12,1)),AVERAGE(OFFSET(AssimCap_PM12!$C$10,12*$O13,4*(PlotControl!$C$6-1),12,1))) -> -1.5574e-17 | AC13: =IF(PlotControl!$B$4 = "Annual Max",MAX(OFFSET(AssimCap_PM12!$D$10,12*$O13,4*(PlotControl!$C$6-1),12,1)),AVERAGE(OFFSET(AssimCap_PM12!$D$10,12*$O13,4*(PlotControl!$C$6-1),12,1))) -> 1.5504e-17 | AD13: =IF(PlotControl!$B$4 = "Annual Max",MAX(OFFSET(AssimCap_PM12!$E$10,12*$O13,4*(PlotControl!$C$6-1),12,1)),AVERAGE(OFFSET(AssimCap_PM12!$E$10,12*$O13,4*(PlotControl!$C$6-1),12,1))) -> 5.4284e-12 | AF13: 0.6666666667 | AG13: =OFFSET(P_Ex_PM13!$B$10,12*$AF13,4*(PlotControl!$C$6-1),1,1) -> 0 | AH13: =OFFSET(P_Ex_MLC3!$B$10,12*$AF13,4*(PlotControl!$C$6-1),1,1) -> 0 | AI13: =OFFSET(P_Ex_TC1!$B$10,12*$AF13,4*(PlotControl!$C$6-1),1,1) -> 0 | AJ13: =OFFSET(P_Ex_PM11!$B$10,12*$AF13,4*(PlotControl!$C$6-1),1,1) -> 0 | AK13: =OFFSET(P_Ex_PM12!$B$10,12*$AF13,4*(PlotControl!$C$6-1),1,1) -> 0 | AL13: =OFFSET(P_notNA_PM13!$B$10,12*$AF13,1*(PlotControl!$C$6-1),1,1) -> 0 | AM13: =OFFSET(P_notNA_MLC3!$B$10,12*$AF13,1*(PlotControl!$C$6-1),1,1) -> 0 | AN13: =OFFSET(P_notNA_TC1!$B$10,12*$AF13,1*(PlotControl!$C$6-1),1,1) -> 0 | AO13: =OFFSET(P_notNA_PM11!$B$10,12*$AF13,1*(PlotControl!$C$6-1),1,1) -> 0 | AP13: =OFFSET(P_notNA_PM12!$B$10,12*$AF13,1*(PlotControl!$C$6-1),1,1) -> 0 | AR13: 0.6666666667 | AS13: =OFFSET(AssimCap_PM13!$C$10,12*$AR13,4*(PlotControl!$C$6-1),1,1) -> 0.00063505 | AT13: =OFFSET(AssimCap_PM13!$D$10,12*$AR13,4*(PlotControl!$C$6-1),1,1) -> 0.002043 | AU13: =OFFSET(AssimCap_PM13!$E$10,12*$AR13,4*(PlotControl!$C$6-1),1,1) -> 0.0043621 | AV13: =OFFSET(AssimCap_MLC3!$C$10,12*$AR13,4*(PlotControl!$C$6-1),1,1) -> -0.031652 | AW13: =OFFSET(AssimCap_MLC3!$D$10,12*$AR13,4*(PlotControl!$C$6-1),1,1) -> -0.013902 | AX13: =OFFSET(AssimCap_MLC3!$E$10,12*$AR13,4*(PlotControl!$C$6-1),1,1) -> -0.0020219 | AY13: =OFFSET(AssimCap_TC1!$C$10,12*$AR13,4*(PlotControl!$C$6-1),1,1) -> 0.0028942 | AZ13: =OFFSET(AssimCap_TC1!$D$10,12*$AR13,4*(PlotControl!$C$6-1),1,1) -> 0.0044427 | BA13: =OFFSET(AssimCap_TC1!$E$10,12*$AR13,4*(PlotControl!$C$6-1),1,1) -> 0.00594 | BB13: =OFFSET(AssimCap_PM11!$C$10,12*$AR13,4*(PlotControl!$C$6-1),1,1) -> 0.014042 | BC13: =OFFSET(AssimCap_PM11!$D$10,12*$AR13,4*(PlotControl!$C$6-1),1,1) -> 0.028996 | BD13: =OFFSET(AssimCap_PM11!$E$10,12*$AR13,4*(PlotControl!$C$6-1),1,1) -> 0.036844 | BE13: =OFFSET(AssimCap_PM12!$C$10,12*$AR13,4*(PlotControl!$C$6-1),1,1) -> -1.5737e-17 | BF13: =OFFSET(AssimCap_PM12!$D$10,12*$AR13,4*(PlotControl!$C$6-1),1,1) -> 0 | BG13: =OFFSET(AssimCap_PM12!$E$10,12*$AR13,4*(PlotControl!$C$6-1),1,1) -> 6.207e-17
A14: 9 | B14: =IF(PlotControl!$B$4 = "Annual Max",MAX(OFFSET(P_Ex_PM13!$B$10,12*$A14,4*(PlotControl!$C$6-1),12,1)),AVERAGE(OFFSET(P_Ex_PM13!$B$10,12*$A14,4*(PlotControl!$C$6-1),12,1))) -> 0 | C14: =IF(PlotControl!$B$4 = "Annual Max",MAX(OFFSET(P_Ex_MLC3!$B$10,12*$A14,4*(PlotControl!$C$6-1),12,1)),AVERAGE(OFFSET(P_Ex_MLC3!$B$10,12*$A14,4*(PlotControl!$C$6-1),12,1))) -> 0 | D14: =IF(PlotControl!$B$4 = "Annual Max",MAX(OFFSET(P_Ex_TC1!$B$10,12*$A14,4*(PlotControl!$C$6-1),12,1)),AVERAGE(OFFSET(P_Ex_TC1!$B$10,12*$A14,4*(PlotControl!$C$6-1),12,1))) -> 0 | E14: =IF(PlotControl!$B$4 = "Annual Max",MAX(OFFSET(P_Ex_PM11!$B$10,12*$A14,4*(PlotControl!$C$6-1),12,1)),AVERAGE(OFFSET(P_Ex_PM11!$B$10,12*$A14,4*(PlotControl!$C$6-1),12,1))) -> 0 | F14: =IF(PlotControl!$B$4 = "Annual Max",MAX(OFFSET(P_Ex_PM12!$B$10,12*$A14,4*(PlotControl!$C$6-1),12,1)),AVERAGE(OFFSET(P_Ex_PM12!$B$10,12*$A14,4*(PlotControl!$C$6-1),12,1))) -> 0 | H14: 9 | I14: =IF(PlotControl!$B$4 = "Annual Max",MAX(OFFSET(P_notNA_PM13!$B$10,12*$H14,(PlotControl!$C$6-1),12,1)),AVERAGE(OFFSET(P_notNA_PM13!$B$10,12*$A14,(PlotControl!$C$6-1),12,1))) -> 0 | J14: =IF(PlotControl!$B$4 = "Annual Max",MAX(OFFSET(P_notNA_MLC3!$B$10,12*$H14,(PlotControl!$C$6-1),12,1)),AVERAGE(OFFSET(P_notNA_MLC3!$B$10,12*$A14,(PlotControl!$C$6-1),12,1))) -> 0 | K14: =IF(PlotControl!$B$4 = "Annual Max",MAX(OFFSET(P_notNA_TC1!$B$10,12*$H14,(PlotControl!$C$6-1),12,1)),AVERAGE(OFFSET(P_notNA_TC1!$B$10,12*$A14,(PlotControl!$C$6-1),12,1))) -> 0 | L14: =IF(PlotControl!$B$4 = "Annual Max",MAX(OFFSET(P_notNA_PM11!$B$10,12*$H14,(PlotControl!$C$6-1),12,1)),AVERAGE(OFFSET(P_notNA_PM11!$B$10,12*$A14,(PlotControl!$C$6-1),12,1))) -> 0 | M14: =IF(PlotControl!$B$4 = "Annual Max",MAX(OFFSET(P_notNA_PM12!$B$10,12*$H14,(PlotControl!$C$6-1),12,1)),AVERAGE(OFFSET(P_notNA_PM12!$B$10,12*$A14,(PlotControl!$C$6-1),12,1))) -> 0 | O14: 9 | P14: =IF(PlotControl!$B$4 = "Annual Max",MAX(OFFSET(AssimCap_PM13!$C$10,12*$O14,4*(PlotControl!$C$6-1),12,1)),AVERAGE(OFFSET(AssimCap_PM13!$C$10,12*$O14,4*(PlotControl!$C$6-1),12,1))) -> 0.035488 | Q14: =IF(PlotControl!$B$4 = "Annual Max",MAX(OFFSET(AssimCap_PM13!$D$10,12*$O14,4*(PlotControl!$C$6-1),12,1)),AVERAGE(OFFSET(AssimCap_PM13!$D$10,12*$O14,4*(PlotControl!$C$6-1),12,1))) -> 0.047504 | R14: =IF(PlotControl!$B$4 = "Annual Max",MAX(OFFSET(AssimCap_PM13!$E$10,12*$O14,4*(PlotControl!$C$6-1),12,1)),AVERAGE(OFFSET(AssimCap_PM13!$E$10,12*$O14,4*(PlotControl!$C$6-1),12,1))) -> 0.060855 | S14: =IF(PlotControl!$B$4 = "Annual Max",MAX(OFFSET(AssimCap_MLC3!$C$10,12*$O14,4*(PlotControl!$C$6-1),12,1)),AVERAGE(OFFSET(AssimCap_MLC3!$C$10,12*$O14,4*(PlotControl!$C$6-1),12,1))) -> -0.0081658 | T14: =IF(PlotControl!$B$4 = "Annual Max",MAX(OFFSET(AssimCap_MLC3!$D$10,12*$O14,4*(PlotControl!$C$6-1),12,1)),AVERAGE(OFFSET(AssimCap_MLC3!$D$10,12*$O14,4*(PlotControl!$C$6-1),12,1))) -> -0.0013738 | U14: =IF(PlotControl!$B$4 = "Annual Max",MAX(OFFSET(AssimCap_MLC3!$E$10,12*$O14,4*(PlotControl!$C$6-1),12,1)),AVERAGE(OFFSET(AssimCap_MLC3!$E$10,12*$O14,4*(PlotControl!$C$6-1),12,1))) -> 0.0024092 | V14: =IF(PlotControl!$B$4 = "Annual Max",MAX(OFFSET(AssimCap_TC1!$C$10,12*$O14,4*(PlotControl!$C$6-1),12,1)),AVERAGE(OFFSET(AssimCap_TC1!$C$10,12*$O14,4*(PlotControl!$C$6-1),12,1))) -> 0.097363 | W14: =IF(PlotControl!$B$4 = "Annual Max",MAX(OFFSET(AssimCap_TC1!$D$10,12*$O14,4*(PlotControl!$C$6-1),12,1)),AVERAGE(OFFSET(AssimCap_TC1!$D$10,12*$O14,4*(PlotControl!$C$6-1),12,1))) -> 0.12186 | X14: =IF(PlotControl!$B$4 = "Annual Max",MAX(OFFSET(AssimCap_TC1!$E$10,12*$O14,4*(PlotControl!$C$6-1),12,1)),AVERAGE(OFFSET(AssimCap_TC1!$E$10,12*$O14,4*(PlotControl!$C$6-1),12,1))) -> 0.14105 | Y14: =IF(PlotControl!$B$4 = "Annual Max",MAX(OFFSET(AssimCap_PM11!$C$10,12*$O14,4*(PlotControl!$C$6-1),12,1)),AVERAGE(OFFSET(AssimCap_PM11!$C$10,12*$O14,4*(PlotControl!$C$6-1),12,1))) -> 0.10393 | Z14: =IF(PlotControl!$B$4 = "Annual Max",MAX(OFFSET(AssimCap_PM11!$D$10,12*$O14,4*(PlotControl!$C$6-1),12,1)),AVERAGE(OFFSET(AssimCap_PM11!$D$10,12*$O14,4*(PlotControl!$C$6-1),12,1))) -> 0.12748 | AA14: =IF(PlotControl!$B$4 = "Annual Max",MAX(OFFSET(AssimCap_PM11!$E$10,12*$O14,4*(PlotControl!$C$6-1),12,1)),AVERAGE(OFFSET(AssimCap_PM11!$E$10,12*$O14,4*(PlotControl!$C$6-1),12,1))) -> 0.14866 | AB14: =IF(PlotControl!$B$4 = "Annual Max",MAX(OFFSET(AssimCap_PM12!$C$10,12*$O14,4*(PlotControl!$C$6-1),12,1)),AVERAGE(OFFSET(AssimCap_PM12!$C$10,12*$O14,4*(PlotControl!$C$6-1),12,1))) -> -1.5701e-17 | AC14: =IF(PlotControl!$B$4 = "Annual Max",MAX(OFFSET(AssimCap_PM12!$D$10,12*$O14,4*(PlotControl!$C$6-1),12,1)),AVERAGE(OFFSET(AssimCap_PM12!$D$10,12*$O14,4*(PlotControl!$C$6-1),12,1))) -> 1.5444e-17 | AD14: =IF(PlotControl!$B$4 = "Annual Max",MAX(OFFSET(AssimCap_PM12!$E$10,12*$O14,4*(PlotControl!$C$6-1),12,1)),AVERAGE(OFFSET(AssimCap_PM12!$E$10,12*$O14,4*(PlotControl!$C$6-1),12,1))) -> 4.2951e-12 | AF14: 0.75 | AG14: =OFFSET(P_Ex_PM13!$B$10,12*$AF14,4*(PlotControl!$C$6-1),1,1) -> 0 | AH14: =OFFSET(P_Ex_MLC3!$B$10,12*$AF14,4*(PlotControl!$C$6-1),1,1) -> 0 | AI14: =OFFSET(P_Ex_TC1!$B$10,12*$AF14,4*(PlotControl!$C$6-1),1,1) -> 0 | AJ14: =OFFSET(P_Ex_PM11!$B$10,12*$AF14,4*(PlotControl!$C$6-1),1,1) -> 0 | AK14: =OFFSET(P_Ex_PM12!$B$10,12*$AF14,4*(PlotControl!$C$6-1),1,1) -> 0 | AL14: =OFFSET(P_notNA_PM13!$B$10,12*$AF14,1*(PlotControl!$C$6-1),1,1) -> 0 | AM14: =OFFSET(P_notNA_MLC3!$B$10,12*$AF14,1*(PlotControl!$C$6-1),1,1) -> 0 | AN14: =OFFSET(P_notNA_TC1!$B$10,12*$AF14,1*(PlotControl!$C$6-1),1,1) -> 0 | AO14: =OFFSET(P_notNA_PM11!$B$10,12*$AF14,1*(PlotControl!$C$6-1),1,1) -> 0 | AP14: =OFFSET(P_notNA_PM12!$B$10,12*$AF14,1*(PlotControl!$C$6-1),1,1) -> 0 | AR14: 0.75 | AS14: =OFFSET(AssimCap_PM13!$C$10,12*$AR14,4*(PlotControl!$C$6-1),1,1) -> 0.00034272 | AT14: =OFFSET(AssimCap_PM13!$D$10,12*$AR14,4*(PlotControl!$C$6-1),1,1) -> 0.0015683 | AU14: =OFFSET(AssimCap_PM13!$E$10,12*$AR14,4*(PlotControl!$C$6-1),1,1) -> 0.0039396 | AV14: =OFFSET(AssimCap_MLC3!$C$10,12*$AR14,4*(PlotControl!$C$6-1),1,1) -> -0.028773 | AW14: =OFFSET(AssimCap_MLC3!$D$10,12*$AR14,4*(PlotControl!$C$6-1),1,1) -> -0.009324 | AX14: =OFFSET(AssimCap_MLC3!$E$10,12*$AR14,4*(PlotControl!$C$6-1),1,1) -> -0.00035986 | AY14: =OFFSET(AssimCap_TC1!$C$10,12*$AR14,4*(PlotControl!$C$6-1),1,1) -> 0.0025035 | AZ14: =OFFSET(AssimCap_TC1!$D$10,12*$AR14,4*(PlotControl!$C$6-1),1,1) -> 0.0045694 | BA14: =OFFSET(AssimCap_TC1!$E$10,12*$AR14,4*(PlotControl!$C$6-1),1,1) -> 0.0062404 | BB14: =OFFSET(AssimCap_PM11!$C$10,12*$AR14,4*(PlotControl!$C$6-1),1,1) -> 0.0085091 | BC14: =OFFSET(AssimCap_PM11!$D$10,12*$AR14,4*(PlotControl!$C$6-1),1,1) -> 0.024779 | BD14: =OFFSET(AssimCap_PM11!$E$10,12*$AR14,4*(PlotControl!$C$6-1),1,1) -> 0.035872 | BE14: =OFFSET(AssimCap_PM12!$C$10,12*$AR14,4*(PlotControl!$C$6-1),1,1) -> -3.1493e-17 | BF14: =OFFSET(AssimCap_PM12!$D$10,12*$AR14,4*(PlotControl!$C$6-1),1,1) -> 0 | BG14: =OFFSET(AssimCap_PM12!$E$10,12*$AR14,4*(PlotControl!$C$6-1),1,1) -> 2.0053e-14
A15: 10 | B15: =IF(PlotControl!$B$4 = "Annual Max",MAX(OFFSET(P_Ex_PM13!$B$10,12*$A15,4*(PlotControl!$C$6-1),12,1)),AVERAGE(OFFSET(P_Ex_PM13!$B$10,12*$A15,4*(PlotControl!$C$6-1),12,1))) -> 0 | C15: =IF(PlotControl!$B$4 = "Annual Max",MAX(OFFSET(P_Ex_MLC3!$B$10,12*$A15,4*(PlotControl!$C$6-1),12,1)),AVERAGE(OFFSET(P_Ex_MLC3!$B$10,12*$A15,4*(PlotControl!$C$6-1),12,1))) -> 0 | D15: =IF(PlotControl!$B$4 = "Annual Max",MAX(OFFSET(P_Ex_TC1!$B$10,12*$A15,4*(PlotControl!$C$6-1),12,1)),AVERAGE(OFFSET(P_Ex_TC1!$B$10,12*$A15,4*(PlotControl!$C$6-1),12,1))) -> 0 | E15: =IF(PlotControl!$B$4 = "Annual Max",MAX(OFFSET(P_Ex_PM11!$B$10,12*$A15,4*(PlotControl!$C$6-1),12,1)),AVERAGE(OFFSET(P_Ex_PM11!$B$10,12*$A15,4*(PlotControl!$C$6-1),12,1))) -> 0 | F15: =IF(PlotControl!$B$4 = "Annual Max",MAX(OFFSET(P_Ex_PM12!$B$10,12*$A15,4*(PlotControl!$C$6-1),12,1)),AVERAGE(OFFSET(P_Ex_PM12!$B$10,12*$A15,4*(PlotControl!$C$6-1),12,1))) -> 0 | H15: 10 | I15: =IF(PlotControl!$B$4 = "Annual Max",MAX(OFFSET(P_notNA_PM13!$B$10,12*$H15,(PlotControl!$C$6-1),12,1)),AVERAGE(OFFSET(P_notNA_PM13!$B$10,12*$A15,(PlotControl!$C$6-1),12,1))) -> 0 | J15: =IF(PlotControl!$B$4 = "Annual Max",MAX(OFFSET(P_notNA_MLC3!$B$10,12*$H15,(PlotControl!$C$6-1),12,1)),AVERAGE(OFFSET(P_notNA_MLC3!$B$10,12*$A15,(PlotControl!$C$6-1),12,1))) -> 0 | K15: =IF(PlotControl!$B$4 = "Annual Max",MAX(OFFSET(P_notNA_TC1!$B$10,12*$H15,(PlotControl!$C$6-1),12,1)),AVERAGE(OFFSET(P_notNA_TC1!$B$10,12*$A15,(PlotControl!$C$6-1),12,1))) -> 0 | L15: =IF(PlotControl!$B$4 = "Annual Max",MAX(OFFSET(P_notNA_PM11!$B$10,12*$H15,(PlotControl!$C$6-1),12,1)),AVERAGE(OFFSET(P_notNA_PM11!$B$10,12*$A15,(PlotControl!$C$6-1),12,1))) -> 0 | M15: =IF(PlotControl!$B$4 = "Annual Max",MAX(OFFSET(P_notNA_PM12!$B$10,12*$H15,(PlotControl!$C$6-1),12,1)),AVERAGE(OFFSET(P_notNA_PM12!$B$10,12*$A15,(PlotControl!$C$6-1),12,1))) -> 0 | O15: 10 | P15: =IF(PlotControl!$B$4 = "Annual Max",MAX(OFFSET(AssimCap_PM13!$C$10,12*$O15,4*(PlotControl!$C$6-1),12,1)),AVERAGE(OFFSET(AssimCap_PM13!$C$10,12*$O15,4*(PlotControl!$C$6-1),12,1))) -> 0.024869 | Q15: =IF(PlotControl!$B$4 = "Annual Max",MAX(OFFSET(AssimCap_PM13!$D$10,12*$O15,4*(PlotControl!$C$6-1),12,1)),AVERAGE(OFFSET(AssimCap_PM13!$D$10,12*$O15,4*(PlotControl!$C$6-1),12,1))) -> 0.034737 | R15: =IF(PlotControl!$B$4 = "Annual Max",MAX(OFFSET(AssimCap_PM13!$E$10,12*$O15,4*(PlotControl!$C$6-1),12,1)),AVERAGE(OFFSET(AssimCap_PM13!$E$10,12*$O15,4*(PlotControl!$C$6-1),12,1))) -> 0.044475 | S15: =IF(PlotControl!$B$4 = "Annual Max",MAX(OFFSET(AssimCap_MLC3!$C$10,12*$O15,4*(PlotControl!$C$6-1),12,1)),AVERAGE(OFFSET(AssimCap_MLC3!$C$10,12*$O15,4*(PlotControl!$C$6-1),12,1))) -> -0.0087873 | T15: =IF(PlotControl!$B$4 = "Annual Max",MAX(OFFSET(AssimCap_MLC3!$D$10,12*$O15,4*(PlotControl!$C$6-1),12,1)),AVERAGE(OFFSET(AssimCap_MLC3!$D$10,12*$O15,4*(PlotControl!$C$6-1),12,1))) -> -0.0018078 | U15: =IF(PlotControl!$B$4 = "Annual Max",MAX(OFFSET(AssimCap_MLC3!$E$10,12*$O15,4*(PlotControl!$C$6-1),12,1)),AVERAGE(OFFSET(AssimCap_MLC3!$E$10,12*$O15,4*(PlotControl!$C$6-1),12,1))) -> 0.0023742 | V15: =IF(PlotControl!$B$4 = "Annual Max",MAX(OFFSET(AssimCap_TC1!$C$10,12*$O15,4*(PlotControl!$C$6-1),12,1)),AVERAGE(OFFSET(AssimCap_TC1!$C$10,12*$O15,4*(PlotControl!$C$6-1),12,1))) -> 0.070248 | W15: =IF(PlotControl!$B$4 = "Annual Max",MAX(OFFSET(AssimCap_TC1!$D$10,12*$O15,4*(PlotControl!$C$6-1),12,1)),AVERAGE(OFFSET(AssimCap_TC1!$D$10,12*$O15,4*(PlotControl!$C$6-1),12,1))) -> 0.089265 | X15: =IF(PlotControl!$B$4 = "Annual Max",MAX(OFFSET(AssimCap_TC1!$E$10,12*$O15,4*(PlotControl!$C$6-1),12,1)),AVERAGE(OFFSET(AssimCap_TC1!$E$10,12*$O15,4*(PlotControl!$C$6-1),12,1))) -> 0.10779 | Y15: =IF(PlotControl!$B$4 = "Annual Max",MAX(OFFSET(AssimCap_PM11!$C$10,12*$O15,4*(PlotControl!$C$6-1),12,1)),AVERAGE(OFFSET(AssimCap_PM11!$C$10,12*$O15,4*(PlotControl!$C$6-1),12,1))) -> 0.07686 | Z15: =IF(PlotControl!$B$4 = "Annual Max",MAX(OFFSET(AssimCap_PM11!$D$10,12*$O15,4*(PlotControl!$C$6-1),12,1)),AVERAGE(OFFSET(AssimCap_PM11!$D$10,12*$O15,4*(PlotControl!$C$6-1),12,1))) -> 0.099705 | AA15: =IF(PlotControl!$B$4 = "Annual Max",MAX(OFFSET(AssimCap_PM11!$E$10,12*$O15,4*(PlotControl!$C$6-1),12,1)),AVERAGE(OFFSET(AssimCap_PM11!$E$10,12*$O15,4*(PlotControl!$C$6-1),12,1))) -> 0.11976 | AB15: =IF(PlotControl!$B$4 = "Annual Max",MAX(OFFSET(AssimCap_PM12!$C$10,12*$O15,4*(PlotControl!$C$6-1),12,1)),AVERAGE(OFFSET(AssimCap_PM12!$C$10,12*$O15,4*(PlotControl!$C$6-1),12,1))) -> -1.5607e-17 | AC15: =IF(PlotControl!$B$4 = "Annual Max",MAX(OFFSET(AssimCap_PM12!$D$10,12*$O15,4*(PlotControl!$C$6-1),12,1)),AVERAGE(OFFSET(AssimCap_PM12!$D$10,12*$O15,4*(PlotControl!$C$6-1),12,1))) -> 1.5444e-17 | AD15: =IF(PlotControl!$B$4 = "Annual Max",MAX(OFFSET(AssimCap_PM12!$E$10,12*$O15,4*(PlotControl!$C$6-1),12,1)),AVERAGE(OFFSET(AssimCap_PM12!$E$10,12*$O15,4*(PlotControl!$C$6-1),12,1))) -> 4.0387e-12 | AF15: 0.8333333333 | AG15: =OFFSET(P_Ex_PM13!$B$10,12*$AF15,4*(PlotControl!$C$6-1),1,1) -> 0 | AH15: =OFFSET(P_Ex_MLC3!$B$10,12*$AF15,4*(PlotControl!$C$6-1),1,1) -> 0 | AI15: =OFFSET(P_Ex_TC1!$B$10,12*$AF15,4*(PlotControl!$C$6-1),1,1) -> 0 | AJ15: =OFFSET(P_Ex_PM11!$B$10,12*$AF15,4*(PlotControl!$C$6-1),1,1) -> 0 | AK15: =OFFSET(P_Ex_PM12!$B$10,12*$AF15,4*(PlotControl!$C$6-1),1,1) -> 0 | AL15: =OFFSET(P_notNA_PM13!$B$10,12*$AF15,1*(PlotControl!$C$6-1),1,1) -> 0 | AM15: =OFFSET(P_notNA_MLC3!$B$10,12*$AF15,1*(PlotControl!$C$6-1),1,1) -> 0 | AN15: =OFFSET(P_notNA_TC1!$B$10,12*$AF15,1*(PlotControl!$C$6-1),1,1) -> 0 | AO15: =OFFSET(P_notNA_PM11!$B$10,12*$AF15,1*(PlotControl!$C$6-1),1,1) -> 0 | AP15: =OFFSET(P_notNA_PM12!$B$10,12*$AF15,1*(PlotControl!$C$6-1),1,1) -> 0 | AR15: 0.8333333333 | AS15: =OFFSET(AssimCap_PM13!$C$10,12*$AR15,4*(PlotControl!$C$6-1),1,1) -> 0.00026261 | AT15: =OFFSET(AssimCap_PM13!$D$10,12*$AR15,4*(PlotControl!$C$6-1),1,1) -> 0.0010036 | AU15: =OFFSET(AssimCap_PM13!$E$10,12*$AR15,4*(PlotControl!$C$6-1),1,1) -> 0.002393 | AV15: =OFFSET(AssimCap_MLC3!$C$10,12*$AR15,4*(PlotControl!$C$6-1),1,1) -> -0.025039 | AW15: =OFFSET(AssimCap_MLC3!$D$10,12*$AR15,4*(PlotControl!$C$6-1),1,1) -> -0.0097884 | AX15: =OFFSET(AssimCap_MLC3!$E$10,12*$AR15,4*(PlotControl!$C$6-1),1,1) -> -0.00094058 | AY15: =OFFSET(AssimCap_TC1!$C$10,12*$AR15,4*(PlotControl!$C$6-1),1,1) -> 0.0014095 | AZ15: =OFFSET(AssimCap_TC1!$D$10,12*$AR15,4*(PlotControl!$C$6-1),1,1) -> 0.0029212 | BA15: =OFFSET(AssimCap_TC1!$E$10,12*$AR15,4*(PlotControl!$C$6-1),1,1) -> 0.0041548 | BB15: =OFFSET(AssimCap_PM11!$C$10,12*$AR15,4*(PlotControl!$C$6-1),1,1) -> 0.0079288 | BC15: =OFFSET(AssimCap_PM11!$D$10,12*$AR15,4*(PlotControl!$C$6-1),1,1) -> 0.019121 | BD15: =OFFSET(AssimCap_PM11!$E$10,12*$AR15,4*(PlotControl!$C$6-1),1,1) -> 0.028998 | BE15: =OFFSET(AssimCap_PM12!$C$10,12*$AR15,4*(PlotControl!$C$6-1),1,1) -> -3.1434e-17 | BF15: =OFFSET(AssimCap_PM12!$D$10,12*$AR15,4*(PlotControl!$C$6-1),1,1) -> 0 | BG15: =OFFSET(AssimCap_PM12!$E$10,12*$AR15,4*(PlotControl!$C$6-1),1,1) -> 1.8812e-15
A16: 11 | B16: =IF(PlotControl!$B$4 = "Annual Max",MAX(OFFSET(P_Ex_PM13!$B$10,12*$A16,4*(PlotControl!$C$6-1),12,1)),AVERAGE(OFFSET(P_Ex_PM13!$B$10,12*$A16,4*(PlotControl!$C$6-1),12,1))) -> 0 | C16: =IF(PlotControl!$B$4 = "Annual Max",MAX(OFFSET(P_Ex_MLC3!$B$10,12*$A16,4*(PlotControl!$C$6-1),12,1)),AVERAGE(OFFSET(P_Ex_MLC3!$B$10,12*$A16,4*(PlotControl!$C$6-1),12,1))) -> 0 | D16: =IF(PlotControl!$B$4 = "Annual Max",MAX(OFFSET(P_Ex_TC1!$B$10,12*$A16,4*(PlotControl!$C$6-1),12,1)),AVERAGE(OFFSET(P_Ex_TC1!$B$10,12*$A16,4*(PlotControl!$C$6-1),12,1))) -> 0 | E16: =IF(PlotControl!$B$4 = "Annual Max",MAX(OFFSET(P_Ex_PM11!$B$10,12*$A16,4*(PlotControl!$C$6-1),12,1)),AVERAGE(OFFSET(P_Ex_PM11!$B$10,12*$A16,4*(PlotControl!$C$6-1),12,1))) -> 0 | F16: =IF(PlotControl!$B$4 = "Annual Max",MAX(OFFSET(P_Ex_PM12!$B$10,12*$A16,4*(PlotControl!$C$6-1),12,1)),AVERAGE(OFFSET(P_Ex_PM12!$B$10,12*$A16,4*(PlotControl!$C$6-1),12,1))) -> 0 | H16: 11 | I16: =IF(PlotControl!$B$4 = "Annual Max",MAX(OFFSET(P_notNA_PM13!$B$10,12*$H16,(PlotControl!$C$6-1),12,1)),AVERAGE(OFFSET(P_notNA_PM13!$B$10,12*$A16,(PlotControl!$C$6-1),12,1))) -> 0 | J16: =IF(PlotControl!$B$4 = "Annual Max",MAX(OFFSET(P_notNA_MLC3!$B$10,12*$H16,(PlotControl!$C$6-1),12,1)),AVERAGE(OFFSET(P_notNA_MLC3!$B$10,12*$A16,(PlotControl!$C$6-1),12,1))) -> 0 | K16: =IF(PlotControl!$B$4 = "Annual Max",MAX(OFFSET(P_notNA_TC1!$B$10,12*$H16,(PlotControl!$C$6-1),12,1)),AVERAGE(OFFSET(P_notNA_TC1!$B$10,12*$A16,(PlotControl!$C$6-1),12,1))) -> 0 | L16: =IF(PlotControl!$B$4 = "Annual Max",MAX(OFFSET(P_notNA_PM11!$B$10,12*$H16,(PlotControl!$C$6-1),12,1)),AVERAGE(OFFSET(P_notNA_PM11!$B$10,12*$A16,(PlotControl!$C$6-1),12,1))) -> 0 | M16: =IF(PlotControl!$B$4 = "Annual Max",MAX(OFFSET(P_notNA_PM12!$B$10,12*$H16,(PlotControl!$C$6-1),12,1)),AVERAGE(OFFSET(P_notNA_PM12!$B$10,12*$A16,(PlotControl!$C$6-1),12,1))) -> 0 | O16: 11 | P16: =IF(PlotControl!$B$4 = "Annual Max",MAX(OFFSET(AssimCap_PM13!$C$10,12*$O16,4*(PlotControl!$C$6-1),12,1)),AVERAGE(OFFSET(AssimCap_PM13!$C$10,12*$O16,4*(PlotControl!$C$6-1),12,1))) -> 0.023852 | Q16: =IF(PlotControl!$B$4 = "Annual Max",MAX(OFFSET(AssimCap_PM13!$D$10,12*$O16,4*(PlotControl!$C$6-1),12,1)),AVERAGE(OFFSET(AssimCap_PM13!$D$10,12*$O16,4*(PlotControl!$C$6-1),12,1))) -> 0.034574 | R16: =IF(PlotControl!$B$4 = "Annual Max",MAX(OFFSET(AssimCap_PM13!$E$10,12*$O16,4*(PlotControl!$C$6-1),12,1)),AVERAGE(OFFSET(AssimCap_PM13!$E$10,12*$O16,4*(PlotControl!$C$6-1),12,1))) -> 0.04468 | S16: =IF(PlotControl!$B$4 = "Annual Max",MAX(OFFSET(AssimCap_MLC3!$C$10,12*$O16,4*(PlotControl!$C$6-1),12,1)),AVERAGE(OFFSET(AssimCap_MLC3!$C$10,12*$O16,4*(PlotControl!$C$6-1),12,1))) -> -0.01003 | T16: =IF(PlotControl!$B$4 = "Annual Max",MAX(OFFSET(AssimCap_MLC3!$D$10,12*$O16,4*(PlotControl!$C$6-1),12,1)),AVERAGE(OFFSET(AssimCap_MLC3!$D$10,12*$O16,4*(PlotControl!$C$6-1),12,1))) -> -0.0015202 | U16: =IF(PlotControl!$B$4 = "Annual Max",MAX(OFFSET(AssimCap_MLC3!$E$10,12*$O16,4*(PlotControl!$C$6-1),12,1)),AVERAGE(OFFSET(AssimCap_MLC3!$E$10,12*$O16,4*(PlotControl!$C$6-1),12,1))) -> 0.0028235 | V16: =IF(PlotControl!$B$4 = "Annual Max",MAX(OFFSET(AssimCap_TC1!$C$10,12*$O16,4*(PlotControl!$C$6-1),12,1)),AVERAGE(OFFSET(AssimCap_TC1!$C$10,12*$O16,4*(PlotControl!$C$6-1),12,1))) -> 0.069624 | W16: =IF(PlotControl!$B$4 = "Annual Max",MAX(OFFSET(AssimCap_TC1!$D$10,12*$O16,4*(PlotControl!$C$6-1),12,1)),AVERAGE(OFFSET(AssimCap_TC1!$D$10,12*$O16,4*(PlotControl!$C$6-1),12,1))) -> 0.085544 | X16: =IF(PlotControl!$B$4 = "Annual Max",MAX(OFFSET(AssimCap_TC1!$E$10,12*$O16,4*(PlotControl!$C$6-1),12,1)),AVERAGE(OFFSET(AssimCap_TC1!$E$10,12*$O16,4*(PlotControl!$C$6-1),12,1))) -> 0.098006 | Y16: =IF(PlotControl!$B$4 = "Annual Max",MAX(OFFSET(AssimCap_PM11!$C$10,12*$O16,4*(PlotControl!$C$6-1),12,1)),AVERAGE(OFFSET(AssimCap_PM11!$C$10,12*$O16,4*(PlotControl!$C$6-1),12,1))) -> 0.076111 | Z16: =IF(PlotControl!$B$4 = "Annual Max",MAX(OFFSET(AssimCap_PM11!$D$10,12*$O16,4*(PlotControl!$C$6-1),12,1)),AVERAGE(OFFSET(AssimCap_PM11!$D$10,12*$O16,4*(PlotControl!$C$6-1),12,1))) -> 0.094098 | AA16: =IF(PlotControl!$B$4 = "Annual Max",MAX(OFFSET(AssimCap_PM11!$E$10,12*$O16,4*(PlotControl!$C$6-1),12,1)),AVERAGE(OFFSET(AssimCap_PM11!$E$10,12*$O16,4*(PlotControl!$C$6-1),12,1))) -> 0.11038 | AB16: =IF(PlotControl!$B$4 = "Annual Max",MAX(OFFSET(AssimCap_PM12!$C$10,12*$O16,4*(PlotControl!$C$6-1),12,1)),AVERAGE(OFFSET(AssimCap_PM12!$C$10,12*$O16,4*(PlotControl!$C$6-1),12,1))) -> -1.5579e-17 | AC16: =IF(PlotControl!$B$4 = "Annual Max",MAX(OFFSET(AssimCap_PM12!$D$10,12*$O16,4*(PlotControl!$C$6-1),12,1)),AVERAGE(OFFSET(AssimCap_PM12!$D$10,12*$O16,4*(PlotControl!$C$6-1),12,1))) -> 1.5211e-17 | AD16: =IF(PlotControl!$B$4 = "Annual Max",MAX(OFFSET(AssimCap_PM12!$E$10,12*$O16,4*(PlotControl!$C$6-1),12,1)),AVERAGE(OFFSET(AssimCap_PM12!$E$10,12*$O16,4*(PlotControl!$C$6-1),12,1))) -> 3.7967e-12 | AF16: 0.9166666667 | AG16: =OFFSET(P_Ex_PM13!$B$10,12*$AF16,4*(PlotControl!$C$6-1),1,1) -> 0 | AH16: =OFFSET(P_Ex_MLC3!$B$10,12*$AF16,4*(PlotControl!$C$6-1),1,1) -> 0 | AI16: =OFFSET(P_Ex_TC1!$B$10,12*$AF16,4*(PlotControl!$C$6-1),1,1) -> 0 | AJ16: =OFFSET(P_Ex_PM11!$B$10,12*$AF16,4*(PlotControl!$C$6-1),1,1) -> 0 | AK16: =OFFSET(P_Ex_PM12!$B$10,12*$AF16,4*(PlotControl!$C$6-1),1,1) -> 0 | AL16: =OFFSET(P_notNA_PM13!$B$10,12*$AF16,1*(PlotControl!$C$6-1),1,1) -> 0 | AM16: =OFFSET(P_notNA_MLC3!$B$10,12*$AF16,1*(PlotControl!$C$6-1),1,1) -> 0 | AN16: =OFFSET(P_notNA_TC1!$B$10,12*$AF16,1*(PlotControl!$C$6-1),1,1) -> 0 | AO16: =OFFSET(P_notNA_PM11!$B$10,12*$AF16,1*(PlotControl!$C$6-1),1,1) -> 0 | AP16: =OFFSET(P_notNA_PM12!$B$10,12*$AF16,1*(PlotControl!$C$6-1),1,1) -> 0 | AR16: 0.9166666667 | AS16: =OFFSET(AssimCap_PM13!$C$10,12*$AR16,4*(PlotControl!$C$6-1),1,1) -> 4.2919e-05 | AT16: =OFFSET(AssimCap_PM13!$D$10,12*$AR16,4*(PlotControl!$C$6-1),1,1) -> 0.00047924 | AU16: =OFFSET(AssimCap_PM13!$E$10,12*$AR16,4*(PlotControl!$C$6-1),1,1) -> 0.0011136 | AV16: =OFFSET(AssimCap_MLC3!$C$10,12*$AR16,4*(PlotControl!$C$6-1),1,1) -> -0.021278 | AW16: =OFFSET(AssimCap_MLC3!$D$10,12*$AR16,4*(PlotControl!$C$6-1),1,1) -> -0.010959 | AX16: =OFFSET(AssimCap_MLC3!$E$10,12*$AR16,4*(PlotControl!$C$6-1),1,1) -> -0.002794 | AY16: =OFFSET(AssimCap_TC1!$C$10,12*$AR16,4*(PlotControl!$C$6-1),1,1) -> -0.00074709 | AZ16: =OFFSET(AssimCap_TC1!$D$10,12*$AR16,4*(PlotControl!$C$6-1),1,1) -> 0.00064238 | BA16: =OFFSET(AssimCap_TC1!$E$10,12*$AR16,4*(PlotControl!$C$6-1),1,1) -> 0.0018394 | BB16: =OFFSET(AssimCap_PM11!$C$10,12*$AR16,4*(PlotControl!$C$6-1),1,1) -> 0.0083938 | BC16: =OFFSET(AssimCap_PM11!$D$10,12*$AR16,4*(PlotControl!$C$6-1),1,1) -> 0.013664 | BD16: =OFFSET(AssimCap_PM11!$E$10,12*$AR16,4*(PlotControl!$C$6-1),1,1) -> 0.018467 | BE16: =OFFSET(AssimCap_PM12!$C$10,12*$AR16,4*(PlotControl!$C$6-1),1,1) -> -1.5729e-17 | BF16: =OFFSET(AssimCap_PM12!$D$10,12*$AR16,4*(PlotControl!$C$6-1),1,1) -> 0 | BG16: =OFFSET(AssimCap_PM12!$E$10,12*$AR16,4*(PlotControl!$C$6-1),1,1) -> 2.7128e-16
A17: 12 | B17: =IF(PlotControl!$B$4 = "Annual Max",MAX(OFFSET(P_Ex_PM13!$B$10,12*$A17,4*(PlotControl!$C$6-1),12,1)),AVERAGE(OFFSET(P_Ex_PM13!$B$10,12*$A17,4*(PlotControl!$C$6-1),12,1))) -> 0 | C17: =IF(PlotControl!$B$4 = "Annual Max",MAX(OFFSET(P_Ex_MLC3!$B$10,12*$A17,4*(PlotControl!$C$6-1),12,1)),AVERAGE(OFFSET(P_Ex_MLC3!$B$10,12*$A17,4*(PlotControl!$C$6-1),12,1))) -> 0 | D17: =IF(PlotControl!$B$4 = "Annual Max",MAX(OFFSET(P_Ex_TC1!$B$10,12*$A17,4*(PlotControl!$C$6-1),12,1)),AVERAGE(OFFSET(P_Ex_TC1!$B$10,12*$A17,4*(PlotControl!$C$6-1),12,1))) -> 0 | E17: =IF(PlotControl!$B$4 = "Annual Max",MAX(OFFSET(P_Ex_PM11!$B$10,12*$A17,4*(PlotControl!$C$6-1),12,1)),AVERAGE(OFFSET(P_Ex_PM11!$B$10,12*$A17,4*(PlotControl!$C$6-1),12,1))) -> 0 | F17: =IF(PlotControl!$B$4 = "Annual Max",MAX(OFFSET(P_Ex_PM12!$B$10,12*$A17,4*(PlotControl!$C$6-1),12,1)),AVERAGE(OFFSET(P_Ex_PM12!$B$10,12*$A17,4*(PlotControl!$C$6-1),12,1))) -> 0 | H17: 12 | I17: =IF(PlotControl!$B$4 = "Annual Max",MAX(OFFSET(P_notNA_PM13!$B$10,12*$H17,(PlotControl!$C$6-1),12,1)),AVERAGE(OFFSET(P_notNA_PM13!$B$10,12*$A17,(PlotControl!$C$6-1),12,1))) -> 0 | J17: =IF(PlotControl!$B$4 = "Annual Max",MAX(OFFSET(P_notNA_MLC3!$B$10,12*$H17,(PlotControl!$C$6-1),12,1)),AVERAGE(OFFSET(P_notNA_MLC3!$B$10,12*$A17,(PlotControl!$C$6-1),12,1))) -> 0 | K17: =IF(PlotControl!$B$4 = "Annual Max",MAX(OFFSET(P_notNA_TC1!$B$10,12*$H17,(PlotControl!$C$6-1),12,1)),AVERAGE(OFFSET(P_notNA_TC1!$B$10,12*$A17,(PlotControl!$C$6-1),12,1))) -> 0 | L17: =IF(PlotControl!$B$4 = "Annual Max",MAX(OFFSET(P_notNA_PM11!$B$10,12*$H17,(PlotControl!$C$6-1),12,1)),AVERAGE(OFFSET(P_notNA_PM11!$B$10,12*$A17,(PlotControl!$C$6-1),12,1))) -> 0 | M17: =IF(PlotControl!$B$4 = "Annual Max",MAX(OFFSET(P_notNA_PM12!$B$10,12*$H17,(PlotControl!$C$6-1),12,1)),AVERAGE(OFFSET(P_notNA_PM12!$B$10,12*$A17,(PlotControl!$C$6-1),12,1))) -> 0 | O17: 12 | P17: =IF(PlotControl!$B$4 = "Annual Max",MAX(OFFSET(AssimCap_PM13!$C$10,12*$O17,4*(PlotControl!$C$6-1),12,1)),AVERAGE(OFFSET(AssimCap_PM13!$C$10,12*$O17,4*(PlotControl!$C$6-1),12,1))) -> 0.023942 | Q17: =IF(PlotControl!$B$4 = "Annual Max",MAX(OFFSET(AssimCap_PM13!$D$10,12*$O17,4*(PlotControl!$C$6-1),12,1)),AVERAGE(OFFSET(AssimCap_PM13!$D$10,12*$O17,4*(PlotControl!$C$6-1),12,1))) -> 0.033002 | R17: =IF(PlotControl!$B$4 = "Annual Max",MAX(OFFSET(AssimCap_PM13!$E$10,12*$O17,4*(PlotControl!$C$6-1),12,1)),AVERAGE(OFFSET(AssimCap_PM13!$E$10,12*$O17,4*(PlotControl!$C$6-1),12,1))) -> 0.042828 | S17: =IF(PlotControl!$B$4 = "Annual Max",MAX(OFFSET(AssimCap_MLC3!$C$10,12*$O17,4*(PlotControl!$C$6-1),12,1)),AVERAGE(OFFSET(AssimCap_MLC3!$C$10,12*$O17,4*(PlotControl!$C$6-1),12,1))) -> -0.01026 | T17: =IF(PlotControl!$B$4 = "Annual Max",MAX(OFFSET(AssimCap_MLC3!$D$10,12*$O17,4*(PlotControl!$C$6-1),12,1)),AVERAGE(OFFSET(AssimCap_MLC3!$D$10,12*$O17,4*(PlotControl!$C$6-1),12,1))) -> -0.001289 | U17: =IF(PlotControl!$B$4 = "Annual Max",MAX(OFFSET(AssimCap_MLC3!$E$10,12*$O17,4*(PlotControl!$C$6-1),12,1)),AVERAGE(OFFSET(AssimCap_MLC3!$E$10,12*$O17,4*(PlotControl!$C$6-1),12,1))) -> 0.0036064 | V17: =IF(PlotControl!$B$4 = "Annual Max",MAX(OFFSET(AssimCap_TC1!$C$10,12*$O17,4*(PlotControl!$C$6-1),12,1)),AVERAGE(OFFSET(AssimCap_TC1!$C$10,12*$O17,4*(PlotControl!$C$6-1),12,1))) -> 0.065582 | W17: =IF(PlotControl!$B$4 = "Annual Max",MAX(OFFSET(AssimCap_TC1!$D$10,12*$O17,4*(PlotControl!$C$6-1),12,1)),AVERAGE(OFFSET(AssimCap_TC1!$D$10,12*$O17,4*(PlotControl!$C$6-1),12,1))) -> 0.083758 | X17: =IF(PlotControl!$B$4 = "Annual Max",MAX(OFFSET(AssimCap_TC1!$E$10,12*$O17,4*(PlotControl!$C$6-1),12,1)),AVERAGE(OFFSET(AssimCap_TC1!$E$10,12*$O17,4*(PlotControl!$C$6-1),12,1))) -> 0.096022 | Y17: =IF(PlotControl!$B$4 = "Annual Max",MAX(OFFSET(AssimCap_PM11!$C$10,12*$O17,4*(PlotControl!$C$6-1),12,1)),AVERAGE(OFFSET(AssimCap_PM11!$C$10,12*$O17,4*(PlotControl!$C$6-1),12,1))) -> 0.071539 | Z17: =IF(PlotControl!$B$4 = "Annual Max",MAX(OFFSET(AssimCap_PM11!$D$10,12*$O17,4*(PlotControl!$C$6-1),12,1)),AVERAGE(OFFSET(AssimCap_PM11!$D$10,12*$O17,4*(PlotControl!$C$6-1),12,1))) -> 0.091734 | AA17: =IF(PlotControl!$B$4 = "Annual Max",MAX(OFFSET(AssimCap_PM11!$E$10,12*$O17,4*(PlotControl!$C$6-1),12,1)),AVERAGE(OFFSET(AssimCap_PM11!$E$10,12*$O17,4*(PlotControl!$C$6-1),12,1))) -> 0.11021 | AB17: =IF(PlotControl!$B$4 = "Annual Max",MAX(OFFSET(AssimCap_PM12!$C$10,12*$O17,4*(PlotControl!$C$6-1),12,1)),AVERAGE(OFFSET(AssimCap_PM12!$C$10,12*$O17,4*(PlotControl!$C$6-1),12,1))) -> -1.5646e-17 | AC17: =IF(PlotControl!$B$4 = "Annual Max",MAX(OFFSET(AssimCap_PM12!$D$10,12*$O17,4*(PlotControl!$C$6-1),12,1)),AVERAGE(OFFSET(AssimCap_PM12!$D$10,12*$O17,4*(PlotControl!$C$6-1),12,1))) -> 1.5225e-17 | AD17: =IF(PlotControl!$B$4 = "Annual Max",MAX(OFFSET(AssimCap_PM12!$E$10,12*$O17,4*(PlotControl!$C$6-1),12,1)),AVERAGE(OFFSET(AssimCap_PM12!$E$10,12*$O17,4*(PlotControl!$C$6-1),12,1))) -> 3.7998e-12 | AF17: 1 | AG17: =OFFSET(P_Ex_PM13!$B$10,12*$AF17,4*(PlotControl!$C$6-1),1,1) -> 0 | AH17: =OFFSET(P_Ex_MLC3!$B$10,12*$AF17,4*(PlotControl!$C$6-1),1,1) -> 0 | AI17: =OFFSET(P_Ex_TC1!$B$10,12*$AF17,4*(PlotControl!$C$6-1),1,1) -> 0 | AJ17: =OFFSET(P_Ex_PM11!$B$10,12*$AF17,4*(PlotControl!$C$6-1),1,1) -> 0 | AK17: =OFFSET(P_Ex_PM12!$B$10,12*$AF17,4*(PlotControl!$C$6-1),1,1) -> 0 | AL17: =OFFSET(P_notNA_PM13!$B$10,12*$AF17,1*(PlotControl!$C$6-1),1,1) -> 0 | AM17: =OFFSET(P_notNA_MLC3!$B$10,12*$AF17,1*(PlotControl!$C$6-1),1,1) -> 0 | AN17: =OFFSET(P_notNA_TC1!$B$10,12*$AF17,1*(PlotControl!$C$6-1),1,1) -> 0 | AO17: =OFFSET(P_notNA_PM11!$B$10,12*$AF17,1*(PlotControl!$C$6-1),1,1) -> 0 | AP17: =OFFSET(P_notNA_PM12!$B$10,12*$AF17,1*(PlotControl!$C$6-1),1,1) -> 0 | AR17: 1 | AS17: =OFFSET(AssimCap_PM13!$C$10,12*$AR17,4*(PlotControl!$C$6-1),1,1) -> -3.6775e-05 | AT17: =OFFSET(AssimCap_PM13!$D$10,12*$AR17,4*(PlotControl!$C$6-1),1,1) -> 0.00050129 | AU17: =OFFSET(AssimCap_PM13!$E$10,12*$AR17,4*(PlotControl!$C$6-1),1,1) -> 0.0012574 | AV17: =OFFSET(AssimCap_MLC3!$C$10,12*$AR17,4*(PlotControl!$C$6-1),1,1) -> -0.031669 | AW17: =OFFSET(AssimCap_MLC3!$D$10,12*$AR17,4*(PlotControl!$C$6-1),1,1) -> -0.019955 | AX17: =OFFSET(AssimCap_MLC3!$E$10,12*$AR17,4*(PlotControl!$C$6-1),1,1) -> -0.0091323 | AY17: =OFFSET(AssimCap_TC1!$C$10,12*$AR17,4*(PlotControl!$C$6-1),1,1) -> 0.00031404 | AZ17: =OFFSET(AssimCap_TC1!$D$10,12*$AR17,4*(PlotControl!$C$6-1),1,1) -> 0.0014889 | BA17: =OFFSET(AssimCap_TC1!$E$10,12*$AR17,4*(PlotControl!$C$6-1),1,1) -> 0.0025644 | BB17: =OFFSET(AssimCap_PM11!$C$10,12*$AR17,4*(PlotControl!$C$6-1),1,1) -> 0.011635 | BC17: =OFFSET(AssimCap_PM11!$D$10,12*$AR17,4*(PlotControl!$C$6-1),1,1) -> 0.015731 | BD17: =OFFSET(AssimCap_PM11!$E$10,12*$AR17,4*(PlotControl!$C$6-1),1,1) -> 0.018931 | BE17: =OFFSET(AssimCap_PM12!$C$10,12*$AR17,4*(PlotControl!$C$6-1),1,1) -> -3.0876e-17 | BF17: =OFFSET(AssimCap_PM12!$D$10,12*$AR17,4*(PlotControl!$C$6-1),1,1) -> 0 | BG17: =OFFSET(AssimCap_PM12!$E$10,12*$AR17,4*(PlotControl!$C$6-1),1,1) -> 1.1996e-14
A18: 13 | B18: =IF(PlotControl!$B$4 = "Annual Max",MAX(OFFSET(P_Ex_PM13!$B$10,12*$A18,4*(PlotControl!$C$6-1),12,1)),AVERAGE(OFFSET(P_Ex_PM13!$B$10,12*$A18,4*(PlotControl!$C$6-1),12,1))) -> 0 | C18: =IF(PlotControl!$B$4 = "Annual Max",MAX(OFFSET(P_Ex_MLC3!$B$10,12*$A18,4*(PlotControl!$C$6-1),12,1)),AVERAGE(OFFSET(P_Ex_MLC3!$B$10,12*$A18,4*(PlotControl!$C$6-1),12,1))) -> 0 | D18: =IF(PlotControl!$B$4 = "Annual Max",MAX(OFFSET(P_Ex_TC1!$B$10,12*$A18,4*(PlotControl!$C$6-1),12,1)),AVERAGE(OFFSET(P_Ex_TC1!$B$10,12*$A18,4*(PlotControl!$C$6-1),12,1))) -> 0 | E18: =IF(PlotControl!$B$4 = "Annual Max",MAX(OFFSET(P_Ex_PM11!$B$10,12*$A18,4*(PlotControl!$C$6-1),12,1)),AVERAGE(OFFSET(P_Ex_PM11!$B$10,12*$A18,4*(PlotControl!$C$6-1),12,1))) -> 0 | F18: =IF(PlotControl!$B$4 = "Annual Max",MAX(OFFSET(P_Ex_PM12!$B$10,12*$A18,4*(PlotControl!$C$6-1),12,1)),AVERAGE(OFFSET(P_Ex_PM12!$B$10,12*$A18,4*(PlotControl!$C$6-1),12,1))) -> 0 | H18: 13 | I18: =IF(PlotControl!$B$4 = "Annual Max",MAX(OFFSET(P_notNA_PM13!$B$10,12*$H18,(PlotControl!$C$6-1),12,1)),AVERAGE(OFFSET(P_notNA_PM13!$B$10,12*$A18,(PlotControl!$C$6-1),12,1))) -> 0 | J18: =IF(PlotControl!$B$4 = "Annual Max",MAX(OFFSET(P_notNA_MLC3!$B$10,12*$H18,(PlotControl!$C$6-1),12,1)),AVERAGE(OFFSET(P_notNA_MLC3!$B$10,12*$A18,(PlotControl!$C$6-1),12,1))) -> 0 | K18: =IF(PlotControl!$B$4 = "Annual Max",MAX(OFFSET(P_notNA_TC1!$B$10,12*$H18,(PlotControl!$C$6-1),12,1)),AVERAGE(OFFSET(P_notNA_TC1!$B$10,12*$A18,(PlotControl!$C$6-1),12,1))) -> 0 | L18: =IF(PlotControl!$B$4 = "Annual Max",MAX(OFFSET(P_notNA_PM11!$B$10,12*$H18,(PlotControl!$C$6-1),12,1)),AVERAGE(OFFSET(P_notNA_PM11!$B$10,12*$A18,(PlotControl!$C$6-1),12,1))) -> 0 | M18: =IF(PlotControl!$B$4 = "Annual Max",MAX(OFFSET(P_notNA_PM12!$B$10,12*$H18,(PlotControl!$C$6-1),12,1)),AVERAGE(OFFSET(P_notNA_PM12!$B$10,12*$A18,(PlotControl!$C$6-1),12,1))) -> 0 | O18: 13 | P18: =IF(PlotControl!$B$4 = "Annual Max",MAX(OFFSET(AssimCap_PM13!$C$10,12*$O18,4*(PlotControl!$C$6-1),12,1)),AVERAGE(OFFSET(AssimCap_PM13!$C$10,12*$O18,4*(PlotControl!$C$6-1),12,1))) -> 0.02372 | Q18: =IF(PlotControl!$B$4 = "Annual Max",MAX(OFFSET(AssimCap_PM13!$D$10,12*$O18,4*(PlotControl!$C$6-1),12,1)),AVERAGE(OFFSET(AssimCap_PM13!$D$10,12*$O18,4*(PlotControl!$C$6-1),12,1))) -> 0.033555 | R18: =IF(PlotControl!$B$4 = "Annual Max",MAX(OFFSET(AssimCap_PM13!$E$10,12*$O18,4*(PlotControl!$C$6-1),12,1)),AVERAGE(OFFSET(AssimCap_PM13!$E$10,12*$O18,4*(PlotControl!$C$6-1),12,1))) -> 0.043227 | S18: =IF(PlotControl!$B$4 = "Annual Max",MAX(OFFSET(AssimCap_MLC3!$C$10,12*$O18,4*(PlotControl!$C$6-1),12,1)),AVERAGE(OFFSET(AssimCap_MLC3!$C$10,12*$O18,4*(PlotControl!$C$6-1),12,1))) -> -0.0104 | T18: =IF(PlotControl!$B$4 = "Annual Max",MAX(OFFSET(AssimCap_MLC3!$D$10,12*$O18,4*(PlotControl!$C$6-1),12,1)),AVERAGE(OFFSET(AssimCap_MLC3!$D$10,12*$O18,4*(PlotControl!$C$6-1),12,1))) -> -0.0015944 | U18: =IF(PlotControl!$B$4 = "Annual Max",MAX(OFFSET(AssimCap_MLC3!$E$10,12*$O18,4*(PlotControl!$C$6-1),12,1)),AVERAGE(OFFSET(AssimCap_MLC3!$E$10,12*$O18,4*(PlotControl!$C$6-1),12,1))) -> 0.0040118 | V18: =IF(PlotControl!$B$4 = "Annual Max",MAX(OFFSET(AssimCap_TC1!$C$10,12*$O18,4*(PlotControl!$C$6-1),12,1)),AVERAGE(OFFSET(AssimCap_TC1!$C$10,12*$O18,4*(PlotControl!$C$6-1),12,1))) -> 0.070511 | W18: =IF(PlotControl!$B$4 = "Annual Max",MAX(OFFSET(AssimCap_TC1!$D$10,12*$O18,4*(PlotControl!$C$6-1),12,1)),AVERAGE(OFFSET(AssimCap_TC1!$D$10,12*$O18,4*(PlotControl!$C$6-1),12,1))) -> 0.08644 | X18: =IF(PlotControl!$B$4 = "Annual Max",MAX(OFFSET(AssimCap_TC1!$E$10,12*$O18,4*(PlotControl!$C$6-1),12,1)),AVERAGE(OFFSET(AssimCap_TC1!$E$10,12*$O18,4*(PlotControl!$C$6-1),12,1))) -> 0.10062 | Y18: =IF(PlotControl!$B$4 = "Annual Max",MAX(OFFSET(AssimCap_PM11!$C$10,12*$O18,4*(PlotControl!$C$6-1),12,1)),AVERAGE(OFFSET(AssimCap_PM11!$C$10,12*$O18,4*(PlotControl!$C$6-1),12,1))) -> 0.074133 | Z18: =IF(PlotControl!$B$4 = "Annual Max",MAX(OFFSET(AssimCap_PM11!$D$10,12*$O18,4*(PlotControl!$C$6-1),12,1)),AVERAGE(OFFSET(AssimCap_PM11!$D$10,12*$O18,4*(PlotControl!$C$6-1),12,1))) -> 0.094826 | AA18: =IF(PlotControl!$B$4 = "Annual Max",MAX(OFFSET(AssimCap_PM11!$E$10,12*$O18,4*(PlotControl!$C$6-1),12,1)),AVERAGE(OFFSET(AssimCap_PM11!$E$10,12*$O18,4*(PlotControl!$C$6-1),12,1))) -> 0.11239 | AB18: =IF(PlotControl!$B$4 = "Annual Max",MAX(OFFSET(AssimCap_PM12!$C$10,12*$O18,4*(PlotControl!$C$6-1),12,1)),AVERAGE(OFFSET(AssimCap_PM12!$C$10,12*$O18,4*(PlotControl!$C$6-1),12,1))) -> -1.5656e-17 | AC18: =IF(PlotControl!$B$4 = "Annual Max",MAX(OFFSET(AssimCap_PM12!$D$10,12*$O18,4*(PlotControl!$C$6-1),12,1)),AVERAGE(OFFSET(AssimCap_PM12!$D$10,12*$O18,4*(PlotControl!$C$6-1),12,1))) -> 1.5373e-17 | AD18: =IF(PlotControl!$B$4 = "Annual Max",MAX(OFFSET(AssimCap_PM12!$E$10,12*$O18,4*(PlotControl!$C$6-1),12,1)),AVERAGE(OFFSET(AssimCap_PM12!$E$10,12*$O18,4*(PlotControl!$C$6-1),12,1))) -> 4.0984e-12 | AF18: 1.083333333 | AG18: =OFFSET(P_Ex_PM13!$B$10,12*$AF18,4*(PlotControl!$C$6-1),1,1) -> 0 | AH18: =OFFSET(P_Ex_MLC3!$B$10,12*$AF18,4*(PlotControl!$C$6-1),1,1) -> 0 | AI18: =OFFSET(P_Ex_TC1!$B$10,12*$AF18,4*(PlotControl!$C$6-1),1,1) -> 0 | AJ18: =OFFSET(P_Ex_PM11!$B$10,12*$AF18,4*(PlotControl!$C$6-1),1,1) -> 0 | AK18: =OFFSET(P_Ex_PM12!$B$10,12*$AF18,4*(PlotControl!$C$6-1),1,1) -> 0 | AL18: =OFFSET(P_notNA_PM13!$B$10,12*$AF18,1*(PlotControl!$C$6-1),1,1) -> 0 | AM18: =OFFSET(P_notNA_MLC3!$B$10,12*$AF18,1*(PlotControl!$C$6-1),1,1) -> 0 | AN18: =OFFSET(P_notNA_TC1!$B$10,12*$AF18,1*(PlotControl!$C$6-1),1,1) -> 0 | AO18: =OFFSET(P_notNA_PM11!$B$10,12*$AF18,1*(PlotControl!$C$6-1),1,1) -> 0 | AP18: =OFFSET(P_notNA_PM12!$B$10,12*$AF18,1*(PlotControl!$C$6-1),1,1) -> 0 | AR18: 1.083333333 | AS18: =OFFSET(AssimCap_PM13!$C$10,12*$AR18,4*(PlotControl!$C$6-1),1,1) -> -9.334e-05 | AT18: =OFFSET(AssimCap_PM13!$D$10,12*$AR18,4*(PlotControl!$C$6-1),1,1) -> 0.00067958 | AU18: =OFFSET(AssimCap_PM13!$E$10,12*$AR18,4*(PlotControl!$C$6-1),1,1) -> 0.0016433 | AV18: =OFFSET(AssimCap_MLC3!$C$10,12*$AR18,4*(PlotControl!$C$6-1),1,1) -> -0.042896 | AW18: =OFFSET(AssimCap_MLC3!$D$10,12*$AR18,4*(PlotControl!$C$6-1),1,1) -> -0.03113 | AX18: =OFFSET(AssimCap_MLC3!$E$10,12*$AR18,4*(PlotControl!$C$6-1),1,1) -> -0.020396 | AY18: =OFFSET(AssimCap_TC1!$C$10,12*$AR18,4*(PlotControl!$C$6-1),1,1) -> 0.0023105 | AZ18: =OFFSET(AssimCap_TC1!$D$10,12*$AR18,4*(PlotControl!$C$6-1),1,1) -> 0.003463 | BA18: =OFFSET(AssimCap_TC1!$E$10,12*$AR18,4*(PlotControl!$C$6-1),1,1) -> 0.0045796 | BB18: =OFFSET(AssimCap_PM11!$C$10,12*$AR18,4*(PlotControl!$C$6-1),1,1) -> 0.01621 | BC18: =OFFSET(AssimCap_PM11!$D$10,12*$AR18,4*(PlotControl!$C$6-1),1,1) -> 0.019093 | BD18: =OFFSET(AssimCap_PM11!$E$10,12*$AR18,4*(PlotControl!$C$6-1),1,1) -> 0.021751 | BE18: =OFFSET(AssimCap_PM12!$C$10,12*$AR18,4*(PlotControl!$C$6-1),1,1) -> -3.0937e-17 | BF18: =OFFSET(AssimCap_PM12!$D$10,12*$AR18,4*(PlotControl!$C$6-1),1,1) -> 0 | BG18: =OFFSET(AssimCap_PM12!$E$10,12*$AR18,4*(PlotControl!$C$6-1),1,1) -> 3.9074e-12
A19: 14 | B19: =IF(PlotControl!$B$4 = "Annual Max",MAX(OFFSET(P_Ex_PM13!$B$10,12*$A19,4*(PlotControl!$C$6-1),12,1)),AVERAGE(OFFSET(P_Ex_PM13!$B$10,12*$A19,4*(PlotControl!$C$6-1),12,1))) -> 0 | C19: =IF(PlotControl!$B$4 = "Annual Max",MAX(OFFSET(P_Ex_MLC3!$B$10,12*$A19,4*(PlotControl!$C$6-1),12,1)),AVERAGE(OFFSET(P_Ex_MLC3!$B$10,12*$A19,4*(PlotControl!$C$6-1),12,1))) -> 0 | D19: =IF(PlotControl!$B$4 = "Annual Max",MAX(OFFSET(P_Ex_TC1!$B$10,12*$A19,4*(PlotControl!$C$6-1),12,1)),AVERAGE(OFFSET(P_Ex_TC1!$B$10,12*$A19,4*(PlotControl!$C$6-1),12,1))) -> 0 | E19: =IF(PlotControl!$B$4 = "Annual Max",MAX(OFFSET(P_Ex_PM11!$B$10,12*$A19,4*(PlotControl!$C$6-1),12,1)),AVERAGE(OFFSET(P_Ex_PM11!$B$10,12*$A19,4*(PlotControl!$C$6-1),12,1))) -> 0 | F19: =IF(PlotControl!$B$4 = "Annual Max",MAX(OFFSET(P_Ex_PM12!$B$10,12*$A19,4*(PlotControl!$C$6-1),12,1)),AVERAGE(OFFSET(P_Ex_PM12!$B$10,12*$A19,4*(PlotControl!$C$6-1),12,1))) -> 0 | H19: 14 | I19: =IF(PlotControl!$B$4 = "Annual Max",MAX(OFFSET(P_notNA_PM13!$B$10,12*$H19,(PlotControl!$C$6-1),12,1)),AVERAGE(OFFSET(P_notNA_PM13!$B$10,12*$A19,(PlotControl!$C$6-1),12,1))) -> 0 | J19: =IF(PlotControl!$B$4 = "Annual Max",MAX(OFFSET(P_notNA_MLC3!$B$10,12*$H19,(PlotControl!$C$6-1),12,1)),AVERAGE(OFFSET(P_notNA_MLC3!$B$10,12*$A19,(PlotControl!$C$6-1),12,1))) -> 0 | K19: =IF(PlotControl!$B$4 = "Annual Max",MAX(OFFSET(P_notNA_TC1!$B$10,12*$H19,(PlotControl!$C$6-1),12,1)),AVERAGE(OFFSET(P_notNA_TC1!$B$10,12*$A19,(PlotControl!$C$6-1),12,1))) -> 0 | L19: =IF(PlotControl!$B$4 = "Annual Max",MAX(OFFSET(P_notNA_PM11!$B$10,12*$H19,(PlotControl!$C$6-1),12,1)),AVERAGE(OFFSET(P_notNA_PM11!$B$10,12*$A19,(PlotControl!$C$6-1),12,1))) -> 0 | M19: =IF(PlotControl!$B$4 = "Annual Max",MAX(OFFSET(P_notNA_PM12!$B$10,12*$H19,(PlotControl!$C$6-1),12,1)),AVERAGE(OFFSET(P_notNA_PM12!$B$10,12*$A19,(PlotControl!$C$6-1),12,1))) -> 0 | O19: 14 | P19: =IF(PlotControl!$B$4 = "Annual Max",MAX(OFFSET(AssimCap_PM13!$C$10,12*$O19,4*(PlotControl!$C$6-1),12,1)),AVERAGE(OFFSET(AssimCap_PM13!$C$10,12*$O19,4*(PlotControl!$C$6-1),12,1))) -> 0.0225 | Q19: =IF(PlotControl!$B$4 = "Annual Max",MAX(OFFSET(AssimCap_PM13!$D$10,12*$O19,4*(PlotControl!$C$6-1),12,1)),AVERAGE(OFFSET(AssimCap_PM13!$D$10,12*$O19,4*(PlotControl!$C$6-1),12,1))) -> 0.031025 | R19: =IF(PlotControl!$B$4 = "Annual Max",MAX(OFFSET(AssimCap_PM13!$E$10,12*$O19,4*(PlotControl!$C$6-1),12,1)),AVERAGE(OFFSET(AssimCap_PM13!$E$10,12*$O19,4*(PlotControl!$C$6-1),12,1))) -> 0.041991 | S19: =IF(PlotControl!$B$4 = "Annual Max",MAX(OFFSET(AssimCap_MLC3!$C$10,12*$O19,4*(PlotControl!$C$6-1),12,1)),AVERAGE(OFFSET(AssimCap_MLC3!$C$10,12*$O19,4*(PlotControl!$C$6-1),12,1))) -> -0.011049 | T19: =IF(PlotControl!$B$4 = "Annual Max",MAX(OFFSET(AssimCap_MLC3!$D$10,12*$O19,4*(PlotControl!$C$6-1),12,1)),AVERAGE(OFFSET(AssimCap_MLC3!$D$10,12*$O19,4*(PlotControl!$C$6-1),12,1))) -> -0.0012662 | U19: =IF(PlotControl!$B$4 = "Annual Max",MAX(OFFSET(AssimCap_MLC3!$E$10,12*$O19,4*(PlotControl!$C$6-1),12,1)),AVERAGE(OFFSET(AssimCap_MLC3!$E$10,12*$O19,4*(PlotControl!$C$6-1),12,1))) -> 0.0044229 | V19: =IF(PlotControl!$B$4 = "Annual Max",MAX(OFFSET(AssimCap_TC1!$C$10,12*$O19,4*(PlotControl!$C$6-1),12,1)),AVERAGE(OFFSET(AssimCap_TC1!$C$10,12*$O19,4*(PlotControl!$C$6-1),12,1))) -> 0.065229 | W19: =IF(PlotControl!$B$4 = "Annual Max",MAX(OFFSET(AssimCap_TC1!$D$10,12*$O19,4*(PlotControl!$C$6-1),12,1)),AVERAGE(OFFSET(AssimCap_TC1!$D$10,12*$O19,4*(PlotControl!$C$6-1),12,1))) -> 0.08078 | X19: =IF(PlotControl!$B$4 = "Annual Max",MAX(OFFSET(AssimCap_TC1!$E$10,12*$O19,4*(PlotControl!$C$6-1),12,1)),AVERAGE(OFFSET(AssimCap_TC1!$E$10,12*$O19,4*(PlotControl!$C$6-1),12,1))) -> 0.099493 | Y19: =IF(PlotControl!$B$4 = "Annual Max",MAX(OFFSET(AssimCap_PM11!$C$10,12*$O19,4*(PlotControl!$C$6-1),12,1)),AVERAGE(OFFSET(AssimCap_PM11!$C$10,12*$O19,4*(PlotControl!$C$6-1),12,1))) -> 0.065882 | Z19: =IF(PlotControl!$B$4 = "Annual Max",MAX(OFFSET(AssimCap_PM11!$D$10,12*$O19,4*(PlotControl!$C$6-1),12,1)),AVERAGE(OFFSET(AssimCap_PM11!$D$10,12*$O19,4*(PlotControl!$C$6-1),12,1))) -> 0.088658 | AA19: =IF(PlotControl!$B$4 = "Annual Max",MAX(OFFSET(AssimCap_PM11!$E$10,12*$O19,4*(PlotControl!$C$6-1),12,1)),AVERAGE(OFFSET(AssimCap_PM11!$E$10,12*$O19,4*(PlotControl!$C$6-1),12,1))) -> 0.11158 | AB19: =IF(PlotControl!$B$4 = "Annual Max",MAX(OFFSET(AssimCap_PM12!$C$10,12*$O19,4*(PlotControl!$C$6-1),12,1)),AVERAGE(OFFSET(AssimCap_PM12!$C$10,12*$O19,4*(PlotControl!$C$6-1),12,1))) -> -1.5696e-17 | AC19: =IF(PlotControl!$B$4 = "Annual Max",MAX(OFFSET(AssimCap_PM12!$D$10,12*$O19,4*(PlotControl!$C$6-1),12,1)),AVERAGE(OFFSET(AssimCap_PM12!$D$10,12*$O19,4*(PlotControl!$C$6-1),12,1))) -> 1.5362e-17 | AD19: =IF(PlotControl!$B$4 = "Annual Max",MAX(OFFSET(AssimCap_PM12!$E$10,12*$O19,4*(PlotControl!$C$6-1),12,1)),AVERAGE(OFFSET(AssimCap_PM12!$E$10,12*$O19,4*(PlotControl!$C$6-1),12,1))) -> 5.5501e-12 | AF19: 1.166666667 | AG19: =OFFSET(P_Ex_PM13!$B$10,12*$AF19,4*(PlotControl!$C$6-1),1,1) -> 0 | AH19: =OFFSET(P_Ex_MLC3!$B$10,12*$AF19,4*(PlotControl!$C$6-1),1,1) -> 0 | AI19: =OFFSET(P_Ex_TC1!$B$10,12*$AF19,4*(PlotControl!$C$6-1),1,1) -> 0 | AJ19: =OFFSET(P_Ex_PM11!$B$10,12*$AF19,4*(PlotControl!$C$6-1),1,1) -> 0 | AK19: =OFFSET(P_Ex_PM12!$B$10,12*$AF19,4*(PlotControl!$C$6-1),1,1) -> 0 | AL19: =OFFSET(P_notNA_PM13!$B$10,12*$AF19,1*(PlotControl!$C$6-1),1,1) -> 0 | AM19: =OFFSET(P_notNA_MLC3!$B$10,12*$AF19,1*(PlotControl!$C$6-1),1,1) -> 0 | AN19: =OFFSET(P_notNA_TC1!$B$10,12*$AF19,1*(PlotControl!$C$6-1),1,1) -> 0 | AO19: =OFFSET(P_notNA_PM11!$B$10,12*$AF19,1*(PlotControl!$C$6-1),1,1) -> 0 | AP19: =OFFSET(P_notNA_PM12!$B$10,12*$AF19,1*(PlotControl!$C$6-1),1,1) -> 0 | AR19: 1.166666667 | AS19: =OFFSET(AssimCap_PM13!$C$10,12*$AR19,4*(PlotControl!$C$6-1),1,1) -> -9.334e-05 | AT19: =OFFSET(AssimCap_PM13!$D$10,12*$AR19,4*(PlotControl!$C$6-1),1,1) -> 0.00067958 | AU19: =OFFSET(AssimCap_PM13!$E$10,12*$AR19,4*(PlotControl!$C$6-1),1,1) -> 0.0016433 | AV19: =OFFSET(AssimCap_MLC3!$C$10,12*$AR19,4*(PlotControl!$C$6-1),1,1) -> -0.042896 | AW19: =OFFSET(AssimCap_MLC3!$D$10,12*$AR19,4*(PlotControl!$C$6-1),1,1) -> -0.03113 | AX19: =OFFSET(AssimCap_MLC3!$E$10,12*$AR19,4*(PlotControl!$C$6-1),1,1) -> -0.020396 | AY19: =OFFSET(AssimCap_TC1!$C$10,12*$AR19,4*(PlotControl!$C$6-1),1,1) -> 0.0023105 | AZ19: =OFFSET(AssimCap_TC1!$D$10,12*$AR19,4*(PlotControl!$C$6-1),1,1) -> 0.003463 | BA19: =OFFSET(AssimCap_TC1!$E$10,12*$AR19,4*(PlotControl!$C$6-1),1,1) -> 0.0045796 | BB19: =OFFSET(AssimCap_PM11!$C$10,12*$AR19,4*(PlotControl!$C$6-1),1,1) -> 0.01621 | BC19: =OFFSET(AssimCap_PM11!$D$10,12*$AR19,4*(PlotControl!$C$6-1),1,1) -> 0.019093 | BD19: =OFFSET(AssimCap_PM11!$E$10,12*$AR19,4*(PlotControl!$C$6-1),1,1) -> 0.021751 | BE19: =OFFSET(AssimCap_PM12!$C$10,12*$AR19,4*(PlotControl!$C$6-1),1,1) -> -3.0937e-17 | BF19: =OFFSET(AssimCap_PM12!$D$10,12*$AR19,4*(PlotControl!$C$6-1),1,1) -> 0 | BG19: =OFFSET(AssimCap_PM12!$E$10,12*$AR19,4*(PlotControl!$C$6-1),1,1) -> 3.9074e-12
A20: 15 | B20: =IF(PlotControl!$B$4 = "Annual Max",MAX(OFFSET(P_Ex_PM13!$B$10,12*$A20,4*(PlotControl!$C$6-1),12,1)),AVERAGE(OFFSET(P_Ex_PM13!$B$10,12*$A20,4*(PlotControl!$C$6-1),12,1))) -> 0 | C20: =IF(PlotControl!$B$4 = "Annual Max",MAX(OFFSET(P_Ex_MLC3!$B$10,12*$A20,4*(PlotControl!$C$6-1),12,1)),AVERAGE(OFFSET(P_Ex_MLC3!$B$10,12*$A20,4*(PlotControl!$C$6-1),12,1))) -> 0 | D20: =IF(PlotControl!$B$4 = "Annual Max",MAX(OFFSET(P_Ex_TC1!$B$10,12*$A20,4*(PlotControl!$C$6-1),12,1)),AVERAGE(OFFSET(P_Ex_TC1!$B$10,12*$A20,4*(PlotControl!$C$6-1),12,1))) -> 0 | E20: =IF(PlotControl!$B$4 = "Annual Max",MAX(OFFSET(P_Ex_PM11!$B$10,12*$A20,4*(PlotControl!$C$6-1),12,1)),AVERAGE(OFFSET(P_Ex_PM11!$B$10,12*$A20,4*(PlotControl!$C$6-1),12,1))) -> 0 | F20: =IF(PlotControl!$B$4 = "Annual Max",MAX(OFFSET(P_Ex_PM12!$B$10,12*$A20,4*(PlotControl!$C$6-1),12,1)),AVERAGE(OFFSET(P_Ex_PM12!$B$10,12*$A20,4*(PlotControl!$C$6-1),12,1))) -> 0 | H20: 15 | I20: =IF(PlotControl!$B$4 = "Annual Max",MAX(OFFSET(P_notNA_PM13!$B$10,12*$H20,(PlotControl!$C$6-1),12,1)),AVERAGE(OFFSET(P_notNA_PM13!$B$10,12*$A20,(PlotControl!$C$6-1),12,1))) -> 0 | J20: =IF(PlotControl!$B$4 = "Annual Max",MAX(OFFSET(P_notNA_MLC3!$B$10,12*$H20,(PlotControl!$C$6-1),12,1)),AVERAGE(OFFSET(P_notNA_MLC3!$B$10,12*$A20,(PlotControl!$C$6-1),12,1))) -> 0 | K20: =IF(PlotControl!$B$4 = "Annual Max",MAX(OFFSET(P_notNA_TC1!$B$10,12*$H20,(PlotControl!$C$6-1),12,1)),AVERAGE(OFFSET(P_notNA_TC1!$B$10,12*$A20,(PlotControl!$C$6-1),12,1))) -> 0 | L20: =IF(PlotControl!$B$4 = "Annual Max",MAX(OFFSET(P_notNA_PM11!$B$10,12*$H20,(PlotControl!$C$6-1),12,1)),AVERAGE(OFFSET(P_notNA_PM11!$B$10,12*$A20,(PlotControl!$C$6-1),12,1))) -> 0 | M20: =IF(PlotControl!$B$4 = "Annual Max",MAX(OFFSET(P_notNA_PM12!$B$10,12*$H20,(PlotControl!$C$6-1),12,1)),AVERAGE(OFFSET(P_notNA_PM12!$B$10,12*$A20,(PlotControl!$C$6-1),12,1))) -> 0 | O20: 15 | P20: =IF(PlotControl!$B$4 = "Annual Max",MAX(OFFSET(AssimCap_PM13!$C$10,12*$O20,4*(PlotControl!$C$6-1),12,1)),AVERAGE(OFFSET(AssimCap_PM13!$C$10,12*$O20,4*(PlotControl!$C$6-1),12,1))) -> 0.012566 | Q20: =IF(PlotControl!$B$4 = "Annual Max",MAX(OFFSET(AssimCap_PM13!$D$10,12*$O20,4*(PlotControl!$C$6-1),12,1)),AVERAGE(OFFSET(AssimCap_PM13!$D$10,12*$O20,4*(PlotControl!$C$6-1),12,1))) -> 0.024172 | R20: =IF(PlotControl!$B$4 = "Annual Max",MAX(OFFSET(AssimCap_PM13!$E$10,12*$O20,4*(PlotControl!$C$6-1),12,1)),AVERAGE(OFFSET(AssimCap_PM13!$E$10,12*$O20,4*(PlotControl!$C$6-1),12,1))) -> 0.033328 | S20: =IF(PlotControl!$B$4 = "Annual Max",MAX(OFFSET(AssimCap_MLC3!$C$10,12*$O20,4*(PlotControl!$C$6-1),12,1)),AVERAGE(OFFSET(AssimCap_MLC3!$C$10,12*$O20,4*(PlotControl!$C$6-1),12,1))) -> -0.012021 | T20: =IF(PlotControl!$B$4 = "Annual Max",MAX(OFFSET(AssimCap_MLC3!$D$10,12*$O20,4*(PlotControl!$C$6-1),12,1)),AVERAGE(OFFSET(AssimCap_MLC3!$D$10,12*$O20,4*(PlotControl!$C$6-1),12,1))) -> -0.0011635 | U20: =IF(PlotControl!$B$4 = "Annual Max",MAX(OFFSET(AssimCap_MLC3!$E$10,12*$O20,4*(PlotControl!$C$6-1),12,1)),AVERAGE(OFFSET(AssimCap_MLC3!$E$10,12*$O20,4*(PlotControl!$C$6-1),12,1))) -> 0.0045858 | V20: =IF(PlotControl!$B$4 = "Annual Max",MAX(OFFSET(AssimCap_TC1!$C$10,12*$O20,4*(PlotControl!$C$6-1),12,1)),AVERAGE(OFFSET(AssimCap_TC1!$C$10,12*$O20,4*(PlotControl!$C$6-1),12,1))) -> 0.069263 | W20: =IF(PlotControl!$B$4 = "Annual Max",MAX(OFFSET(AssimCap_TC1!$D$10,12*$O20,4*(PlotControl!$C$6-1),12,1)),AVERAGE(OFFSET(AssimCap_TC1!$D$10,12*$O20,4*(PlotControl!$C$6-1),12,1))) -> 0.097703 | X20: =IF(PlotControl!$B$4 = "Annual Max",MAX(OFFSET(AssimCap_TC1!$E$10,12*$O20,4*(PlotControl!$C$6-1),12,1)),AVERAGE(OFFSET(AssimCap_TC1!$E$10,12*$O20,4*(PlotControl!$C$6-1),12,1))) -> 0.10838 | Y20: =IF(PlotControl!$B$4 = "Annual Max",MAX(OFFSET(AssimCap_PM11!$C$10,12*$O20,4*(PlotControl!$C$6-1),12,1)),AVERAGE(OFFSET(AssimCap_PM11!$C$10,12*$O20,4*(PlotControl!$C$6-1),12,1))) -> 0.052896 | Z20: =IF(PlotControl!$B$4 = "Annual Max",MAX(OFFSET(AssimCap_PM11!$D$10,12*$O20,4*(PlotControl!$C$6-1),12,1)),AVERAGE(OFFSET(AssimCap_PM11!$D$10,12*$O20,4*(PlotControl!$C$6-1),12,1))) -> 0.10358 | AA20: =IF(PlotControl!$B$4 = "Annual Max",MAX(OFFSET(AssimCap_PM11!$E$10,12*$O20,4*(PlotControl!$C$6-1),12,1)),AVERAGE(OFFSET(AssimCap_PM11!$E$10,12*$O20,4*(PlotControl!$C$6-1),12,1))) -> 0.12598 | AB20: =IF(PlotControl!$B$4 = "Annual Max",MAX(OFFSET(AssimCap_PM12!$C$10,12*$O20,4*(PlotControl!$C$6-1),12,1)),AVERAGE(OFFSET(AssimCap_PM12!$C$10,12*$O20,4*(PlotControl!$C$6-1),12,1))) -> -1.5634e-17 | AC20: =IF(PlotControl!$B$4 = "Annual Max",MAX(OFFSET(AssimCap_PM12!$D$10,12*$O20,4*(PlotControl!$C$6-1),12,1)),AVERAGE(OFFSET(AssimCap_PM12!$D$10,12*$O20,4*(PlotControl!$C$6-1),12,1))) -> 1.5392e-17 | AD20: =IF(PlotControl!$B$4 = "Annual Max",MAX(OFFSET(AssimCap_PM12!$E$10,12*$O20,4*(PlotControl!$C$6-1),12,1)),AVERAGE(OFFSET(AssimCap_PM12!$E$10,12*$O20,4*(PlotControl!$C$6-1),12,1))) -> 5.5634e-12 | AF20: 1.25 | AG20: =OFFSET(P_Ex_PM13!$B$10,12*$AF20,4*(PlotControl!$C$6-1),1,1) -> 0 | AH20: =OFFSET(P_Ex_MLC3!$B$10,12*$AF20,4*(PlotControl!$C$6-1),1,1) -> 0 | AI20: =OFFSET(P_Ex_TC1!$B$10,12*$AF20,4*(PlotControl!$C$6-1),1,1) -> 0 | AJ20: =OFFSET(P_Ex_PM11!$B$10,12*$AF20,4*(PlotControl!$C$6-1),1,1) -> 0 | AK20: =OFFSET(P_Ex_PM12!$B$10,12*$AF20,4*(PlotControl!$C$6-1),1,1) -> 0 | AL20: =OFFSET(P_notNA_PM13!$B$10,12*$AF20,1*(PlotControl!$C$6-1),1,1) -> 0 | AM20: =OFFSET(P_notNA_MLC3!$B$10,12*$AF20,1*(PlotControl!$C$6-1),1,1) -> 0 | AN20: =OFFSET(P_notNA_TC1!$B$10,12*$AF20,1*(PlotControl!$C$6-1),1,1) -> 0 | AO20: =OFFSET(P_notNA_PM11!$B$10,12*$AF20,1*(PlotControl!$C$6-1),1,1) -> 0 | AP20: =OFFSET(P_notNA_PM12!$B$10,12*$AF20,1*(PlotControl!$C$6-1),1,1) -> 0 | AR20: 1.25 | AS20: =OFFSET(AssimCap_PM13!$C$10,12*$AR20,4*(PlotControl!$C$6-1),1,1) -> -0.00044175 | AT20: =OFFSET(AssimCap_PM13!$D$10,12*$AR20,4*(PlotControl!$C$6-1),1,1) -> 0.00046321 | AU20: =OFFSET(AssimCap_PM13!$E$10,12*$AR20,4*(PlotControl!$C$6-1),1,1) -> 0.0014831 | AV20: =OFFSET(AssimCap_MLC3!$C$10,12*$AR20,4*(PlotControl!$C$6-1),1,1) -> -0.049464 | AW20: =OFFSET(AssimCap_MLC3!$D$10,12*$AR20,4*(PlotControl!$C$6-1),1,1) -> -0.038572 | AX20: =OFFSET(AssimCap_MLC3!$E$10,12*$AR20,4*(PlotControl!$C$6-1),1,1) -> -0.028733 | AY20: =OFFSET(AssimCap_TC1!$C$10,12*$AR20,4*(PlotControl!$C$6-1),1,1) -> 0.0033437 | AZ20: =OFFSET(AssimCap_TC1!$D$10,12*$AR20,4*(PlotControl!$C$6-1),1,1) -> 0.0041602 | BA20: =OFFSET(AssimCap_TC1!$E$10,12*$AR20,4*(PlotControl!$C$6-1),1,1) -> 0.0050658 | BB20: =OFFSET(AssimCap_PM11!$C$10,12*$AR20,4*(PlotControl!$C$6-1),1,1) -> 0.017719 | BC20: =OFFSET(AssimCap_PM11!$D$10,12*$AR20,4*(PlotControl!$C$6-1),1,1) -> 0.019713 | BD20: =OFFSET(AssimCap_PM11!$E$10,12*$AR20,4*(PlotControl!$C$6-1),1,1) -> 0.021825 | BE20: =OFFSET(AssimCap_PM12!$C$10,12*$AR20,4*(PlotControl!$C$6-1),1,1) -> -1.337e-13 | BF20: =OFFSET(AssimCap_PM12!$D$10,12*$AR20,4*(PlotControl!$C$6-1),1,1) -> 0 | BG20: =OFFSET(AssimCap_PM12!$E$10,12*$AR20,4*(PlotControl!$C$6-1),1,1) -> 5.5069e-12
A21: 16 | B21: =IF(PlotControl!$B$4 = "Annual Max",MAX(OFFSET(P_Ex_PM13!$B$10,12*$A21,4*(PlotControl!$C$6-1),12,1)),AVERAGE(OFFSET(P_Ex_PM13!$B$10,12*$A21,4*(PlotControl!$C$6-1),12,1))) -> 0 | C21: =IF(PlotControl!$B$4 = "Annual Max",MAX(OFFSET(P_Ex_MLC3!$B$10,12*$A21,4*(PlotControl!$C$6-1),12,1)),AVERAGE(OFFSET(P_Ex_MLC3!$B$10,12*$A21,4*(PlotControl!$C$6-1),12,1))) -> 0 | D21: =IF(PlotControl!$B$4 = "Annual Max",MAX(OFFSET(P_Ex_TC1!$B$10,12*$A21,4*(PlotControl!$C$6-1),12,1)),AVERAGE(OFFSET(P_Ex_TC1!$B$10,12*$A21,4*(PlotControl!$C$6-1),12,1))) -> 0 | E21: =IF(PlotControl!$B$4 = "Annual Max",MAX(OFFSET(P_Ex_PM11!$B$10,12*$A21,4*(PlotControl!$C$6-1),12,1)),AVERAGE(OFFSET(P_Ex_PM11!$B$10,12*$A21,4*(PlotControl!$C$6-1),12,1))) -> 0 | F21: =IF(PlotControl!$B$4 = "Annual Max",MAX(OFFSET(P_Ex_PM12!$B$10,12*$A21,4*(PlotControl!$C$6-1),12,1)),AVERAGE(OFFSET(P_Ex_PM12!$B$10,12*$A21,4*(PlotControl!$C$6-1),12,1))) -> 0 | H21: 16 | I21: =IF(PlotControl!$B$4 = "Annual Max",MAX(OFFSET(P_notNA_PM13!$B$10,12*$H21,(PlotControl!$C$6-1),12,1)),AVERAGE(OFFSET(P_notNA_PM13!$B$10,12*$A21,(PlotControl!$C$6-1),12,1))) -> 0 | J21: =IF(PlotControl!$B$4 = "Annual Max",MAX(OFFSET(P_notNA_MLC3!$B$10,12*$H21,(PlotControl!$C$6-1),12,1)),AVERAGE(OFFSET(P_notNA_MLC3!$B$10,12*$A21,(PlotControl!$C$6-1),12,1))) -> 0 | K21: =IF(PlotControl!$B$4 = "Annual Max",MAX(OFFSET(P_notNA_TC1!$B$10,12*$H21,(PlotControl!$C$6-1),12,1)),AVERAGE(OFFSET(P_notNA_TC1!$B$10,12*$A21,(PlotControl!$C$6-1),12,1))) -> 0 | L21: =IF(PlotControl!$B$4 = "Annual Max",MAX(OFFSET(P_notNA_PM11!$B$10,12*$H21,(PlotControl!$C$6-1),12,1)),AVERAGE(OFFSET(P_notNA_PM11!$B$10,12*$A21,(PlotControl!$C$6-1),12,1))) -> 0 | M21: =IF(PlotControl!$B$4 = "Annual Max",MAX(OFFSET(P_notNA_PM12!$B$10,12*$H21,(PlotControl!$C$6-1),12,1)),AVERAGE(OFFSET(P_notNA_PM12!$B$10,12*$A21,(PlotControl!$C$6-1),12,1))) -> 0 | O21: 16 | P21: =IF(PlotControl!$B$4 = "Annual Max",MAX(OFFSET(AssimCap_PM13!$C$10,12*$O21,4*(PlotControl!$C$6-1),12,1)),AVERAGE(OFFSET(AssimCap_PM13!$C$10,12*$O21,4*(PlotControl!$C$6-1),12,1))) -> 0.011894 | Q21: =IF(PlotControl!$B$4 = "Annual Max",MAX(OFFSET(AssimCap_PM13!$D$10,12*$O21,4*(PlotControl!$C$6-1),12,1)),AVERAGE(OFFSET(AssimCap_PM13!$D$10,12*$O21,4*(PlotControl!$C$6-1),12,1))) -> 0.025118 | R21: =IF(PlotControl!$B$4 = "Annual Max",MAX(OFFSET(AssimCap_PM13!$E$10,12*$O21,4*(PlotControl!$C$6-1),12,1)),AVERAGE(OFFSET(AssimCap_PM13!$E$10,12*$O21,4*(PlotControl!$C$6-1),12,1))) -> 0.036774 | S21: =IF(PlotControl!$B$4 = "Annual Max",MAX(OFFSET(AssimCap_MLC3!$C$10,12*$O21,4*(PlotControl!$C$6-1),12,1)),AVERAGE(OFFSET(AssimCap_MLC3!$C$10,12*$O21,4*(PlotControl!$C$6-1),12,1))) -> -0.011452 | T21: =IF(PlotControl!$B$4 = "Annual Max",MAX(OFFSET(AssimCap_MLC3!$D$10,12*$O21,4*(PlotControl!$C$6-1),12,1)),AVERAGE(OFFSET(AssimCap_MLC3!$D$10,12*$O21,4*(PlotControl!$C$6-1),12,1))) -> -0.00088564 | U21: =IF(PlotControl!$B$4 = "Annual Max",MAX(OFFSET(AssimCap_MLC3!$E$10,12*$O21,4*(PlotControl!$C$6-1),12,1)),AVERAGE(OFFSET(AssimCap_MLC3!$E$10,12*$O21,4*(PlotControl!$C$6-1),12,1))) -> 0.005522 | V21: =IF(PlotControl!$B$4 = "Annual Max",MAX(OFFSET(AssimCap_TC1!$C$10,12*$O21,4*(PlotControl!$C$6-1),12,1)),AVERAGE(OFFSET(AssimCap_TC1!$C$10,12*$O21,4*(PlotControl!$C$6-1),12,1))) -> 0.065278 | W21: =IF(PlotControl!$B$4 = "Annual Max",MAX(OFFSET(AssimCap_TC1!$D$10,12*$O21,4*(PlotControl!$C$6-1),12,1)),AVERAGE(OFFSET(AssimCap_TC1!$D$10,12*$O21,4*(PlotControl!$C$6-1),12,1))) -> 0.092452 | X21: =IF(PlotControl!$B$4 = "Annual Max",MAX(OFFSET(AssimCap_TC1!$E$10,12*$O21,4*(PlotControl!$C$6-1),12,1)),AVERAGE(OFFSET(AssimCap_TC1!$E$10,12*$O21,4*(PlotControl!$C$6-1),12,1))) -> 0.10466 | Y21: =IF(PlotControl!$B$4 = "Annual Max",MAX(OFFSET(AssimCap_PM11!$C$10,12*$O21,4*(PlotControl!$C$6-1),12,1)),AVERAGE(OFFSET(AssimCap_PM11!$C$10,12*$O21,4*(PlotControl!$C$6-1),12,1))) -> 0.052812 | Z21: =IF(PlotControl!$B$4 = "Annual Max",MAX(OFFSET(AssimCap_PM11!$D$10,12*$O21,4*(PlotControl!$C$6-1),12,1)),AVERAGE(OFFSET(AssimCap_PM11!$D$10,12*$O21,4*(PlotControl!$C$6-1),12,1))) -> 0.10426 | AA21: =IF(PlotControl!$B$4 = "Annual Max",MAX(OFFSET(AssimCap_PM11!$E$10,12*$O21,4*(PlotControl!$C$6-1),12,1)),AVERAGE(OFFSET(AssimCap_PM11!$E$10,12*$O21,4*(PlotControl!$C$6-1),12,1))) -> 0.12503 | AB21: =IF(PlotControl!$B$4 = "Annual Max",MAX(OFFSET(AssimCap_PM12!$C$10,12*$O21,4*(PlotControl!$C$6-1),12,1)),AVERAGE(OFFSET(AssimCap_PM12!$C$10,12*$O21,4*(PlotControl!$C$6-1),12,1))) -> -1.5582e-17 | AC21: =IF(PlotControl!$B$4 = "Annual Max",MAX(OFFSET(AssimCap_PM12!$D$10,12*$O21,4*(PlotControl!$C$6-1),12,1)),AVERAGE(OFFSET(AssimCap_PM12!$D$10,12*$O21,4*(PlotControl!$C$6-1),12,1))) -> 1.5372e-17 | AD21: =IF(PlotControl!$B$4 = "Annual Max",MAX(OFFSET(AssimCap_PM12!$E$10,12*$O21,4*(PlotControl!$C$6-1),12,1)),AVERAGE(OFFSET(AssimCap_PM12!$E$10,12*$O21,4*(PlotControl!$C$6-1),12,1))) -> 3.6008e-12 | AF21: 1.333333333 | AG21: =OFFSET(P_Ex_PM13!$B$10,12*$AF21,4*(PlotControl!$C$6-1),1,1) -> 0 | AH21: =OFFSET(P_Ex_MLC3!$B$10,12*$AF21,4*(PlotControl!$C$6-1),1,1) -> 0 | AI21: =OFFSET(P_Ex_TC1!$B$10,12*$AF21,4*(PlotControl!$C$6-1),1,1) -> 0 | AJ21: =OFFSET(P_Ex_PM11!$B$10,12*$AF21,4*(PlotControl!$C$6-1),1,1) -> 0 | AK21: =OFFSET(P_Ex_PM12!$B$10,12*$AF21,4*(PlotControl!$C$6-1),1,1) -> 0 | AL21: =OFFSET(P_notNA_PM13!$B$10,12*$AF21,1*(PlotControl!$C$6-1),1,1) -> 0 | AM21: =OFFSET(P_notNA_MLC3!$B$10,12*$AF21,1*(PlotControl!$C$6-1),1,1) -> 0 | AN21: =OFFSET(P_notNA_TC1!$B$10,12*$AF21,1*(PlotControl!$C$6-1),1,1) -> 0 | AO21: =OFFSET(P_notNA_PM11!$B$10,12*$AF21,1*(PlotControl!$C$6-1),1,1) -> 0 | AP21: =OFFSET(P_notNA_PM12!$B$10,12*$AF21,1*(PlotControl!$C$6-1),1,1) -> 0 | AR21: 1.333333333 | AS21: =OFFSET(AssimCap_PM13!$C$10,12*$AR21,4*(PlotControl!$C$6-1),1,1) -> -0.00030448 | AT21: =OFFSET(AssimCap_PM13!$D$10,12*$AR21,4*(PlotControl!$C$6-1),1,1) -> 0.00044338 | AU21: =OFFSET(AssimCap_PM13!$E$10,12*$AR21,4*(PlotControl!$C$6-1),1,1) -> 0.0013876 | AV21: =OFFSET(AssimCap_MLC3!$C$10,12*$AR21,4*(PlotControl!$C$6-1),1,1) -> -0.053001 | AW21: =OFFSET(AssimCap_MLC3!$D$10,12*$AR21,4*(PlotControl!$C$6-1),1,1) -> -0.03793 | AX21: =OFFSET(AssimCap_MLC3!$E$10,12*$AR21,4*(PlotControl!$C$6-1),1,1) -> -0.0078238 | AY21: =OFFSET(AssimCap_TC1!$C$10,12*$AR21,4*(PlotControl!$C$6-1),1,1) -> 0.0038447 | AZ21: =OFFSET(AssimCap_TC1!$D$10,12*$AR21,4*(PlotControl!$C$6-1),1,1) -> 0.0050168 | BA21: =OFFSET(AssimCap_TC1!$E$10,12*$AR21,4*(PlotControl!$C$6-1),1,1) -> 0.0056171 | BB21: =OFFSET(AssimCap_PM11!$C$10,12*$AR21,4*(PlotControl!$C$6-1),1,1) -> 0.012709 | BC21: =OFFSET(AssimCap_PM11!$D$10,12*$AR21,4*(PlotControl!$C$6-1),1,1) -> 0.021775 | BD21: =OFFSET(AssimCap_PM11!$E$10,12*$AR21,4*(PlotControl!$C$6-1),1,1) -> 0.024575 | BE21: =OFFSET(AssimCap_PM12!$C$10,12*$AR21,4*(PlotControl!$C$6-1),1,1) -> -2.5004e-13 | BF21: =OFFSET(AssimCap_PM12!$D$10,12*$AR21,4*(PlotControl!$C$6-1),1,1) -> 1.5276e-17 | BG21: =OFFSET(AssimCap_PM12!$E$10,12*$AR21,4*(PlotControl!$C$6-1),1,1) -> 3.8292e-12
A22: 17 | B22: =IF(PlotControl!$B$4 = "Annual Max",MAX(OFFSET(P_Ex_PM13!$B$10,12*$A22,4*(PlotControl!$C$6-1),12,1)),AVERAGE(OFFSET(P_Ex_PM13!$B$10,12*$A22,4*(PlotControl!$C$6-1),12,1))) -> 0 | C22: =IF(PlotControl!$B$4 = "Annual Max",MAX(OFFSET(P_Ex_MLC3!$B$10,12*$A22,4*(PlotControl!$C$6-1),12,1)),AVERAGE(OFFSET(P_Ex_MLC3!$B$10,12*$A22,4*(PlotControl!$C$6-1),12,1))) -> 0 | D22: =IF(PlotControl!$B$4 = "Annual Max",MAX(OFFSET(P_Ex_TC1!$B$10,12*$A22,4*(PlotControl!$C$6-1),12,1)),AVERAGE(OFFSET(P_Ex_TC1!$B$10,12*$A22,4*(PlotControl!$C$6-1),12,1))) -> 0 | E22: =IF(PlotControl!$B$4 = "Annual Max",MAX(OFFSET(P_Ex_PM11!$B$10,12*$A22,4*(PlotControl!$C$6-1),12,1)),AVERAGE(OFFSET(P_Ex_PM11!$B$10,12*$A22,4*(PlotControl!$C$6-1),12,1))) -> 0 | F22: =IF(PlotControl!$B$4 = "Annual Max",MAX(OFFSET(P_Ex_PM12!$B$10,12*$A22,4*(PlotControl!$C$6-1),12,1)),AVERAGE(OFFSET(P_Ex_PM12!$B$10,12*$A22,4*(PlotControl!$C$6-1),12,1))) -> 0 | H22: 17 | I22: =IF(PlotControl!$B$4 = "Annual Max",MAX(OFFSET(P_notNA_PM13!$B$10,12*$H22,(PlotControl!$C$6-1),12,1)),AVERAGE(OFFSET(P_notNA_PM13!$B$10,12*$A22,(PlotControl!$C$6-1),12,1))) -> 0 | J22: =IF(PlotControl!$B$4 = "Annual Max",MAX(OFFSET(P_notNA_MLC3!$B$10,12*$H22,(PlotControl!$C$6-1),12,1)),AVERAGE(OFFSET(P_notNA_MLC3!$B$10,12*$A22,(PlotControl!$C$6-1),12,1))) -> 0 | K22: =IF(PlotControl!$B$4 = "Annual Max",MAX(OFFSET(P_notNA_TC1!$B$10,12*$H22,(PlotControl!$C$6-1),12,1)),AVERAGE(OFFSET(P_notNA_TC1!$B$10,12*$A22,(PlotControl!$C$6-1),12,1))) -> 0 | L22: =IF(PlotControl!$B$4 = "Annual Max",MAX(OFFSET(P_notNA_PM11!$B$10,12*$H22,(PlotControl!$C$6-1),12,1)),AVERAGE(OFFSET(P_notNA_PM11!$B$10,12*$A22,(PlotControl!$C$6-1),12,1))) -> 0 | M22: =IF(PlotControl!$B$4 = "Annual Max",MAX(OFFSET(P_notNA_PM12!$B$10,12*$H22,(PlotControl!$C$6-1),12,1)),AVERAGE(OFFSET(P_notNA_PM12!$B$10,12*$A22,(PlotControl!$C$6-1),12,1))) -> 0 | O22: 17 | P22: =IF(PlotControl!$B$4 = "Annual Max",MAX(OFFSET(AssimCap_PM13!$C$10,12*$O22,4*(PlotControl!$C$6-1),12,1)),AVERAGE(OFFSET(AssimCap_PM13!$C$10,12*$O22,4*(PlotControl!$C$6-1),12,1))) -> 0.007537 | Q22: =IF(PlotControl!$B$4 = "Annual Max",MAX(OFFSET(AssimCap_PM13!$D$10,12*$O22,4*(PlotControl!$C$6-1),12,1)),AVERAGE(OFFSET(AssimCap_PM13!$D$10,12*$O22,4*(PlotControl!$C$6-1),12,1))) -> 0.024285 | R22: =IF(PlotControl!$B$4 = "Annual Max",MAX(OFFSET(AssimCap_PM13!$E$10,12*$O22,4*(PlotControl!$C$6-1),12,1)),AVERAGE(OFFSET(AssimCap_PM13!$E$10,12*$O22,4*(PlotControl!$C$6-1),12,1))) -> 0.035185 | S22: =IF(PlotControl!$B$4 = "Annual Max",MAX(OFFSET(AssimCap_MLC3!$C$10,12*$O22,4*(PlotControl!$C$6-1),12,1)),AVERAGE(OFFSET(AssimCap_MLC3!$C$10,12*$O22,4*(PlotControl!$C$6-1),12,1))) -> -0.011563 | T22: =IF(PlotControl!$B$4 = "Annual Max",MAX(OFFSET(AssimCap_MLC3!$D$10,12*$O22,4*(PlotControl!$C$6-1),12,1)),AVERAGE(OFFSET(AssimCap_MLC3!$D$10,12*$O22,4*(PlotControl!$C$6-1),12,1))) -> -0.00086539 | U22: =IF(PlotControl!$B$4 = "Annual Max",MAX(OFFSET(AssimCap_MLC3!$E$10,12*$O22,4*(PlotControl!$C$6-1),12,1)),AVERAGE(OFFSET(AssimCap_MLC3!$E$10,12*$O22,4*(PlotControl!$C$6-1),12,1))) -> 0.0055515 | V22: =IF(PlotControl!$B$4 = "Annual Max",MAX(OFFSET(AssimCap_TC1!$C$10,12*$O22,4*(PlotControl!$C$6-1),12,1)),AVERAGE(OFFSET(AssimCap_TC1!$C$10,12*$O22,4*(PlotControl!$C$6-1),12,1))) -> 0.051955 | W22: =IF(PlotControl!$B$4 = "Annual Max",MAX(OFFSET(AssimCap_TC1!$D$10,12*$O22,4*(PlotControl!$C$6-1),12,1)),AVERAGE(OFFSET(AssimCap_TC1!$D$10,12*$O22,4*(PlotControl!$C$6-1),12,1))) -> 0.087678 | X22: =IF(PlotControl!$B$4 = "Annual Max",MAX(OFFSET(AssimCap_TC1!$E$10,12*$O22,4*(PlotControl!$C$6-1),12,1)),AVERAGE(OFFSET(AssimCap_TC1!$E$10,12*$O22,4*(PlotControl!$C$6-1),12,1))) -> 0.10224 | Y22: =IF(PlotControl!$B$4 = "Annual Max",MAX(OFFSET(AssimCap_PM11!$C$10,12*$O22,4*(PlotControl!$C$6-1),12,1)),AVERAGE(OFFSET(AssimCap_PM11!$C$10,12*$O22,4*(PlotControl!$C$6-1),12,1))) -> 0.03575 | Z22: =IF(PlotControl!$B$4 = "Annual Max",MAX(OFFSET(AssimCap_PM11!$D$10,12*$O22,4*(PlotControl!$C$6-1),12,1)),AVERAGE(OFFSET(AssimCap_PM11!$D$10,12*$O22,4*(PlotControl!$C$6-1),12,1))) -> 0.098482 | AA22: =IF(PlotControl!$B$4 = "Annual Max",MAX(OFFSET(AssimCap_PM11!$E$10,12*$O22,4*(PlotControl!$C$6-1),12,1)),AVERAGE(OFFSET(AssimCap_PM11!$E$10,12*$O22,4*(PlotControl!$C$6-1),12,1))) -> 0.12472 | AB22: =IF(PlotControl!$B$4 = "Annual Max",MAX(OFFSET(AssimCap_PM12!$C$10,12*$O22,4*(PlotControl!$C$6-1),12,1)),AVERAGE(OFFSET(AssimCap_PM12!$C$10,12*$O22,4*(PlotControl!$C$6-1),12,1))) -> -1.5673e-17 | AC22: =IF(PlotControl!$B$4 = "Annual Max",MAX(OFFSET(AssimCap_PM12!$D$10,12*$O22,4*(PlotControl!$C$6-1),12,1)),AVERAGE(OFFSET(AssimCap_PM12!$D$10,12*$O22,4*(PlotControl!$C$6-1),12,1))) -> 1.53e-17 | AD22: =IF(PlotControl!$B$4 = "Annual Max",MAX(OFFSET(AssimCap_PM12!$E$10,12*$O22,4*(PlotControl!$C$6-1),12,1)),AVERAGE(OFFSET(AssimCap_PM12!$E$10,12*$O22,4*(PlotControl!$C$6-1),12,1))) -> 3.7432e-12 | AF22: 1.416666667 | AG22: =OFFSET(P_Ex_PM13!$B$10,12*$AF22,4*(PlotControl!$C$6-1),1,1) -> 0 | AH22: =OFFSET(P_Ex_MLC3!$B$10,12*$AF22,4*(PlotControl!$C$6-1),1,1) -> 0 | AI22: =OFFSET(P_Ex_TC1!$B$10,12*$AF22,4*(PlotControl!$C$6-1),1,1) -> 0 | AJ22: =OFFSET(P_Ex_PM11!$B$10,12*$AF22,4*(PlotControl!$C$6-1),1,1) -> 0 | AK22: =OFFSET(P_Ex_PM12!$B$10,12*$AF22,4*(PlotControl!$C$6-1),1,1) -> 0 | AL22: =OFFSET(P_notNA_PM13!$B$10,12*$AF22,1*(PlotControl!$C$6-1),1,1) -> 0 | AM22: =OFFSET(P_notNA_MLC3!$B$10,12*$AF22,1*(PlotControl!$C$6-1),1,1) -> 0 | AN22: =OFFSET(P_notNA_TC1!$B$10,12*$AF22,1*(PlotControl!$C$6-1),1,1) -> 0 | AO22: =OFFSET(P_notNA_PM11!$B$10,12*$AF22,1*(PlotControl!$C$6-1),1,1) -> 0 | AP22: =OFFSET(P_notNA_PM12!$B$10,12*$AF22,1*(PlotControl!$C$6-1),1,1) -> 0 | AR22: 1.416666667 | AS22: =OFFSET(AssimCap_PM13!$C$10,12*$AR22,4*(PlotControl!$C$6-1),1,1) -> 7.4778e-05 | AT22: =OFFSET(AssimCap_PM13!$D$10,12*$AR22,4*(PlotControl!$C$6-1),1,1) -> 0.00026183 | AU22: =OFFSET(AssimCap_PM13!$E$10,12*$AR22,4*(PlotControl!$C$6-1),1,1) -> 0.0011239 | AV22: =OFFSET(AssimCap_MLC3!$C$10,12*$AR22,4*(PlotControl!$C$6-1),1,1) -> -0.025252 | AW22: =OFFSET(AssimCap_MLC3!$D$10,12*$AR22,4*(PlotControl!$C$6-1),1,1) -> -0.0034099 | AX22: =OFFSET(AssimCap_MLC3!$E$10,12*$AR22,4*(PlotControl!$C$6-1),1,1) -> -0.00023457 | AY22: =OFFSET(AssimCap_TC1!$C$10,12*$AR22,4*(PlotControl!$C$6-1),1,1) -> 0.0017062 | AZ22: =OFFSET(AssimCap_TC1!$D$10,12*$AR22,4*(PlotControl!$C$6-1),1,1) -> 0.0036021 | BA22: =OFFSET(AssimCap_TC1!$E$10,12*$AR22,4*(PlotControl!$C$6-1),1,1) -> 0.0066333 | BB22: =OFFSET(AssimCap_PM11!$C$10,12*$AR22,4*(PlotControl!$C$6-1),1,1) -> 0.0025124 | BC22: =OFFSET(AssimCap_PM11!$D$10,12*$AR22,4*(PlotControl!$C$6-1),1,1) -> 0.0065228 | BD22: =OFFSET(AssimCap_PM11!$E$10,12*$AR22,4*(PlotControl!$C$6-1),1,1) -> 0.025289 | BE22: =OFFSET(AssimCap_PM12!$C$10,12*$AR22,4*(PlotControl!$C$6-1),1,1) -> -1.2809e-15 | BF22: =OFFSET(AssimCap_PM12!$D$10,12*$AR22,4*(PlotControl!$C$6-1),1,1) -> 0 | BG22: =OFFSET(AssimCap_PM12!$E$10,12*$AR22,4*(PlotControl!$C$6-1),1,1) -> 2.7722e-15
A23: 18 | B23: =IF(PlotControl!$B$4 = "Annual Max",MAX(OFFSET(P_Ex_PM13!$B$10,12*$A23,4*(PlotControl!$C$6-1),12,1)),AVERAGE(OFFSET(P_Ex_PM13!$B$10,12*$A23,4*(PlotControl!$C$6-1),12,1))) -> 0 | C23: =IF(PlotControl!$B$4 = "Annual Max",MAX(OFFSET(P_Ex_MLC3!$B$10,12*$A23,4*(PlotControl!$C$6-1),12,1)),AVERAGE(OFFSET(P_Ex_MLC3!$B$10,12*$A23,4*(PlotControl!$C$6-1),12,1))) -> 0 | D23: =IF(PlotControl!$B$4 = "Annual Max",MAX(OFFSET(P_Ex_TC1!$B$10,12*$A23,4*(PlotControl!$C$6-1),12,1)),AVERAGE(OFFSET(P_Ex_TC1!$B$10,12*$A23,4*(PlotControl!$C$6-1),12,1))) -> 0 | E23: =IF(PlotControl!$B$4 = "Annual Max",MAX(OFFSET(P_Ex_PM11!$B$10,12*$A23,4*(PlotControl!$C$6-1),12,1)),AVERAGE(OFFSET(P_Ex_PM11!$B$10,12*$A23,4*(PlotControl!$C$6-1),12,1))) -> 0 | F23: =IF(PlotControl!$B$4 = "Annual Max",MAX(OFFSET(P_Ex_PM12!$B$10,12*$A23,4*(PlotControl!$C$6-1),12,1)),AVERAGE(OFFSET(P_Ex_PM12!$B$10,12*$A23,4*(PlotControl!$C$6-1),12,1))) -> 0 | H23: 18 | I23: =IF(PlotControl!$B$4 = "Annual Max",MAX(OFFSET(P_notNA_PM13!$B$10,12*$H23,(PlotControl!$C$6-1),12,1)),AVERAGE(OFFSET(P_notNA_PM13!$B$10,12*$A23,(PlotControl!$C$6-1),12,1))) -> 0 | J23: =IF(PlotControl!$B$4 = "Annual Max",MAX(OFFSET(P_notNA_MLC3!$B$10,12*$H23,(PlotControl!$C$6-1),12,1)),AVERAGE(OFFSET(P_notNA_MLC3!$B$10,12*$A23,(PlotControl!$C$6-1),12,1))) -> 0 | K23: =IF(PlotControl!$B$4 = "Annual Max",MAX(OFFSET(P_notNA_TC1!$B$10,12*$H23,(PlotControl!$C$6-1),12,1)),AVERAGE(OFFSET(P_notNA_TC1!$B$10,12*$A23,(PlotControl!$C$6-1),12,1))) -> 0 | L23: =IF(PlotControl!$B$4 = "Annual Max",MAX(OFFSET(P_notNA_PM11!$B$10,12*$H23,(PlotControl!$C$6-1),12,1)),AVERAGE(OFFSET(P_notNA_PM11!$B$10,12*$A23,(PlotControl!$C$6-1),12,1))) -> 0 | M23: =IF(PlotControl!$B$4 = "Annual Max",MAX(OFFSET(P_notNA_PM12!$B$10,12*$H23,(PlotControl!$C$6-1),12,1)),AVERAGE(OFFSET(P_notNA_PM12!$B$10,12*$A23,(PlotControl!$C$6-1),12,1))) -> 0 | O23: 18 | P23: =IF(PlotControl!$B$4 = "Annual Max",MAX(OFFSET(AssimCap_PM13!$C$10,12*$O23,4*(PlotControl!$C$6-1),12,1)),AVERAGE(OFFSET(AssimCap_PM13!$C$10,12*$O23,4*(PlotControl!$C$6-1),12,1))) -> 0.017997 | Q23: =IF(PlotControl!$B$4 = "Annual Max",MAX(OFFSET(AssimCap_PM13!$D$10,12*$O23,4*(PlotControl!$C$6-1),12,1)),AVERAGE(OFFSET(AssimCap_PM13!$D$10,12*$O23,4*(PlotControl!$C$6-1),12,1))) -> 0.035861 | R23: =IF(PlotControl!$B$4 = "Annual Max",MAX(OFFSET(AssimCap_PM13!$E$10,12*$O23,4*(PlotControl!$C$6-1),12,1)),AVERAGE(OFFSET(AssimCap_PM13!$E$10,12*$O23,4*(PlotControl!$C$6-1),12,1))) -> 0.047719 | S23: =IF(PlotControl!$B$4 = "Annual Max",MAX(OFFSET(AssimCap_MLC3!$C$10,12*$O23,4*(PlotControl!$C$6-1),12,1)),AVERAGE(OFFSET(AssimCap_MLC3!$C$10,12*$O23,4*(PlotControl!$C$6-1),12,1))) -> -0.013338 | T23: =IF(PlotControl!$B$4 = "Annual Max",MAX(OFFSET(AssimCap_MLC3!$D$10,12*$O23,4*(PlotControl!$C$6-1),12,1)),AVERAGE(OFFSET(AssimCap_MLC3!$D$10,12*$O23,4*(PlotControl!$C$6-1),12,1))) -> -0.00095865 | U23: =IF(PlotControl!$B$4 = "Annual Max",MAX(OFFSET(AssimCap_MLC3!$E$10,12*$O23,4*(PlotControl!$C$6-1),12,1)),AVERAGE(OFFSET(AssimCap_MLC3!$E$10,12*$O23,4*(PlotControl!$C$6-1),12,1))) -> 0.0071592 | V23: =IF(PlotControl!$B$4 = "Annual Max",MAX(OFFSET(AssimCap_TC1!$C$10,12*$O23,4*(PlotControl!$C$6-1),12,1)),AVERAGE(OFFSET(AssimCap_TC1!$C$10,12*$O23,4*(PlotControl!$C$6-1),12,1))) -> 0.046845 | W23: =IF(PlotControl!$B$4 = "Annual Max",MAX(OFFSET(AssimCap_TC1!$D$10,12*$O23,4*(PlotControl!$C$6-1),12,1)),AVERAGE(OFFSET(AssimCap_TC1!$D$10,12*$O23,4*(PlotControl!$C$6-1),12,1))) -> 0.085809 | X23: =IF(PlotControl!$B$4 = "Annual Max",MAX(OFFSET(AssimCap_TC1!$E$10,12*$O23,4*(PlotControl!$C$6-1),12,1)),AVERAGE(OFFSET(AssimCap_TC1!$E$10,12*$O23,4*(PlotControl!$C$6-1),12,1))) -> 0.10039 | Y23: =IF(PlotControl!$B$4 = "Annual Max",MAX(OFFSET(AssimCap_PM11!$C$10,12*$O23,4*(PlotControl!$C$6-1),12,1)),AVERAGE(OFFSET(AssimCap_PM11!$C$10,12*$O23,4*(PlotControl!$C$6-1),12,1))) -> 0.029536 | Z23: =IF(PlotControl!$B$4 = "Annual Max",MAX(OFFSET(AssimCap_PM11!$D$10,12*$O23,4*(PlotControl!$C$6-1),12,1)),AVERAGE(OFFSET(AssimCap_PM11!$D$10,12*$O23,4*(PlotControl!$C$6-1),12,1))) -> 0.10084 | AA23: =IF(PlotControl!$B$4 = "Annual Max",MAX(OFFSET(AssimCap_PM11!$E$10,12*$O23,4*(PlotControl!$C$6-1),12,1)),AVERAGE(OFFSET(AssimCap_PM11!$E$10,12*$O23,4*(PlotControl!$C$6-1),12,1))) -> 0.12415 | AB23: =IF(PlotControl!$B$4 = "Annual Max",MAX(OFFSET(AssimCap_PM12!$C$10,12*$O23,4*(PlotControl!$C$6-1),12,1)),AVERAGE(OFFSET(AssimCap_PM12!$C$10,12*$O23,4*(PlotControl!$C$6-1),12,1))) -> -1.5655e-17 | AC23: =IF(PlotControl!$B$4 = "Annual Max",MAX(OFFSET(AssimCap_PM12!$D$10,12*$O23,4*(PlotControl!$C$6-1),12,1)),AVERAGE(OFFSET(AssimCap_PM12!$D$10,12*$O23,4*(PlotControl!$C$6-1),12,1))) -> 1.5308e-17 | AD23: =IF(PlotControl!$B$4 = "Annual Max",MAX(OFFSET(AssimCap_PM12!$E$10,12*$O23,4*(PlotControl!$C$6-1),12,1)),AVERAGE(OFFSET(AssimCap_PM12!$E$10,12*$O23,4*(PlotControl!$C$6-1),12,1))) -> 4.0208e-12 | AF23: 1.5 | AG23: =OFFSET(P_Ex_PM13!$B$10,12*$AF23,4*(PlotControl!$C$6-1),1,1) -> 0 | AH23: =OFFSET(P_Ex_MLC3!$B$10,12*$AF23,4*(PlotControl!$C$6-1),1,1) -> 0 | AI23: =OFFSET(P_Ex_TC1!$B$10,12*$AF23,4*(PlotControl!$C$6-1),1,1) -> 0 | AJ23: =OFFSET(P_Ex_PM11!$B$10,12*$AF23,4*(PlotControl!$C$6-1),1,1) -> 0 | AK23: =OFFSET(P_Ex_PM12!$B$10,12*$AF23,4*(PlotControl!$C$6-1),1,1) -> 0 | AL23: =OFFSET(P_notNA_PM13!$B$10,12*$AF23,1*(PlotControl!$C$6-1),1,1) -> 0 | AM23: =OFFSET(P_notNA_MLC3!$B$10,12*$AF23,1*(PlotControl!$C$6-1),1,1) -> 0 | AN23: =OFFSET(P_notNA_TC1!$B$10,12*$AF23,1*(PlotControl!$C$6-1),1,1) -> 0 | AO23: =OFFSET(P_notNA_PM11!$B$10,12*$AF23,1*(PlotControl!$C$6-1),1,1) -> 0 | AP23: =OFFSET(P_notNA_PM12!$B$10,12*$AF23,1*(PlotControl!$C$6-1),1,1) -> 0 | AR23: 1.5 | AS23: =OFFSET(AssimCap_PM13!$C$10,12*$AR23,4*(PlotControl!$C$6-1),1,1) -> 0.00013013 | AT23: =OFFSET(AssimCap_PM13!$D$10,12*$AR23,4*(PlotControl!$C$6-1),1,1) -> 0.00043704 | AU23: =OFFSET(AssimCap_PM13!$E$10,12*$AR23,4*(PlotControl!$C$6-1),1,1) -> 0.0011205 | AV23: =OFFSET(AssimCap_MLC3!$C$10,12*$AR23,4*(PlotControl!$C$6-1),1,1) -> -0.0079022 | AW23: =OFFSET(AssimCap_MLC3!$D$10,12*$AR23,4*(PlotControl!$C$6-1),1,1) -> -0.0025929 | AX23: =OFFSET(AssimCap_MLC3!$E$10,12*$AR23,4*(PlotControl!$C$6-1),1,1) -> 0.00025627 | AY23: =OFFSET(AssimCap_TC1!$C$10,12*$AR23,4*(PlotControl!$C$6-1),1,1) -> 0.002233 | AZ23: =OFFSET(AssimCap_TC1!$D$10,12*$AR23,4*(PlotControl!$C$6-1),1,1) -> 0.0047568 | BA23: =OFFSET(AssimCap_TC1!$E$10,12*$AR23,4*(PlotControl!$C$6-1),1,1) -> 0.0072943 | BB23: =OFFSET(AssimCap_PM11!$C$10,12*$AR23,4*(PlotControl!$C$6-1),1,1) -> 0.003349 | BC23: =OFFSET(AssimCap_PM11!$D$10,12*$AR23,4*(PlotControl!$C$6-1),1,1) -> 0.0087948 | BD23: =OFFSET(AssimCap_PM11!$E$10,12*$AR23,4*(PlotControl!$C$6-1),1,1) -> 0.017752 | BE23: =OFFSET(AssimCap_PM12!$C$10,12*$AR23,4*(PlotControl!$C$6-1),1,1) -> -3.1559e-17 | BF23: =OFFSET(AssimCap_PM12!$D$10,12*$AR23,4*(PlotControl!$C$6-1),1,1) -> 0 | BG23: =OFFSET(AssimCap_PM12!$E$10,12*$AR23,4*(PlotControl!$C$6-1),1,1) -> 1.5691e-17
A24: 19 | B24: =IF(PlotControl!$B$4 = "Annual Max",MAX(OFFSET(P_Ex_PM13!$B$10,12*$A24,4*(PlotControl!$C$6-1),12,1)),AVERAGE(OFFSET(P_Ex_PM13!$B$10,12*$A24,4*(PlotControl!$C$6-1),12,1))) -> 0 | C24: =IF(PlotControl!$B$4 = "Annual Max",MAX(OFFSET(P_Ex_MLC3!$B$10,12*$A24,4*(PlotControl!$C$6-1),12,1)),AVERAGE(OFFSET(P_Ex_MLC3!$B$10,12*$A24,4*(PlotControl!$C$6-1),12,1))) -> 0 | D24: =IF(PlotControl!$B$4 = "Annual Max",MAX(OFFSET(P_Ex_TC1!$B$10,12*$A24,4*(PlotControl!$C$6-1),12,1)),AVERAGE(OFFSET(P_Ex_TC1!$B$10,12*$A24,4*(PlotControl!$C$6-1),12,1))) -> 0 | E24: =IF(PlotControl!$B$4 = "Annual Max",MAX(OFFSET(P_Ex_PM11!$B$10,12*$A24,4*(PlotControl!$C$6-1),12,1)),AVERAGE(OFFSET(P_Ex_PM11!$B$10,12*$A24,4*(PlotControl!$C$6-1),12,1))) -> 0 | F24: =IF(PlotControl!$B$4 = "Annual Max",MAX(OFFSET(P_Ex_PM12!$B$10,12*$A24,4*(PlotControl!$C$6-1),12,1)),AVERAGE(OFFSET(P_Ex_PM12!$B$10,12*$A24,4*(PlotControl!$C$6-1),12,1))) -> 0 | H24: 19 | I24: =IF(PlotControl!$B$4 = "Annual Max",MAX(OFFSET(P_notNA_PM13!$B$10,12*$H24,(PlotControl!$C$6-1),12,1)),AVERAGE(OFFSET(P_notNA_PM13!$B$10,12*$A24,(PlotControl!$C$6-1),12,1))) -> 0 | J24: =IF(PlotControl!$B$4 = "Annual Max",MAX(OFFSET(P_notNA_MLC3!$B$10,12*$H24,(PlotControl!$C$6-1),12,1)),AVERAGE(OFFSET(P_notNA_MLC3!$B$10,12*$A24,(PlotControl!$C$6-1),12,1))) -> 0 | K24: =IF(PlotControl!$B$4 = "Annual Max",MAX(OFFSET(P_notNA_TC1!$B$10,12*$H24,(PlotControl!$C$6-1),12,1)),AVERAGE(OFFSET(P_notNA_TC1!$B$10,12*$A24,(PlotControl!$C$6-1),12,1))) -> 0 | L24: =IF(PlotControl!$B$4 = "Annual Max",MAX(OFFSET(P_notNA_PM11!$B$10,12*$H24,(PlotControl!$C$6-1),12,1)),AVERAGE(OFFSET(P_notNA_PM11!$B$10,12*$A24,(PlotControl!$C$6-1),12,1))) -> 0 | M24: =IF(PlotControl!$B$4 = "Annual Max",MAX(OFFSET(P_notNA_PM12!$B$10,12*$H24,(PlotControl!$C$6-1),12,1)),AVERAGE(OFFSET(P_notNA_PM12!$B$10,12*$A24,(PlotControl!$C$6-1),12,1))) -> 0 | O24: 19 | P24: =IF(PlotControl!$B$4 = "Annual Max",MAX(OFFSET(AssimCap_PM13!$C$10,12*$O24,4*(PlotControl!$C$6-1),12,1)),AVERAGE(OFFSET(AssimCap_PM13!$C$10,12*$O24,4*(PlotControl!$C$6-1),12,1))) -> 0.0041448 | Q24: =IF(PlotControl!$B$4 = "Annual Max",MAX(OFFSET(AssimCap_PM13!$D$10,12*$O24,4*(PlotControl!$C$6-1),12,1)),AVERAGE(OFFSET(AssimCap_PM13!$D$10,12*$O24,4*(PlotControl!$C$6-1),12,1))) -> 0.022289 | R24: =IF(PlotControl!$B$4 = "Annual Max",MAX(OFFSET(AssimCap_PM13!$E$10,12*$O24,4*(PlotControl!$C$6-1),12,1)),AVERAGE(OFFSET(AssimCap_PM13!$E$10,12*$O24,4*(PlotControl!$C$6-1),12,1))) -> 0.03488 | S24: =IF(PlotControl!$B$4 = "Annual Max",MAX(OFFSET(AssimCap_MLC3!$C$10,12*$O24,4*(PlotControl!$C$6-1),12,1)),AVERAGE(OFFSET(AssimCap_MLC3!$C$10,12*$O24,4*(PlotControl!$C$6-1),12,1))) -> -0.014779 | T24: =IF(PlotControl!$B$4 = "Annual Max",MAX(OFFSET(AssimCap_MLC3!$D$10,12*$O24,4*(PlotControl!$C$6-1),12,1)),AVERAGE(OFFSET(AssimCap_MLC3!$D$10,12*$O24,4*(PlotControl!$C$6-1),12,1))) -> -0.00061159 | U24: =IF(PlotControl!$B$4 = "Annual Max",MAX(OFFSET(AssimCap_MLC3!$E$10,12*$O24,4*(PlotControl!$C$6-1),12,1)),AVERAGE(OFFSET(AssimCap_MLC3!$E$10,12*$O24,4*(PlotControl!$C$6-1),12,1))) -> 0.0061319 | V24: =IF(PlotControl!$B$4 = "Annual Max",MAX(OFFSET(AssimCap_TC1!$C$10,12*$O24,4*(PlotControl!$C$6-1),12,1)),AVERAGE(OFFSET(AssimCap_TC1!$C$10,12*$O24,4*(PlotControl!$C$6-1),12,1))) -> 0.040804 | W24: =IF(PlotControl!$B$4 = "Annual Max",MAX(OFFSET(AssimCap_TC1!$D$10,12*$O24,4*(PlotControl!$C$6-1),12,1)),AVERAGE(OFFSET(AssimCap_TC1!$D$10,12*$O24,4*(PlotControl!$C$6-1),12,1))) -> 0.08159 | X24: =IF(PlotControl!$B$4 = "Annual Max",MAX(OFFSET(AssimCap_TC1!$E$10,12*$O24,4*(PlotControl!$C$6-1),12,1)),AVERAGE(OFFSET(AssimCap_TC1!$E$10,12*$O24,4*(PlotControl!$C$6-1),12,1))) -> 0.10041 | Y24: =IF(PlotControl!$B$4 = "Annual Max",MAX(OFFSET(AssimCap_PM11!$C$10,12*$O24,4*(PlotControl!$C$6-1),12,1)),AVERAGE(OFFSET(AssimCap_PM11!$C$10,12*$O24,4*(PlotControl!$C$6-1),12,1))) -> 0.01873 | Z24: =IF(PlotControl!$B$4 = "Annual Max",MAX(OFFSET(AssimCap_PM11!$D$10,12*$O24,4*(PlotControl!$C$6-1),12,1)),AVERAGE(OFFSET(AssimCap_PM11!$D$10,12*$O24,4*(PlotControl!$C$6-1),12,1))) -> 0.093621 | AA24: =IF(PlotControl!$B$4 = "Annual Max",MAX(OFFSET(AssimCap_PM11!$E$10,12*$O24,4*(PlotControl!$C$6-1),12,1)),AVERAGE(OFFSET(AssimCap_PM11!$E$10,12*$O24,4*(PlotControl!$C$6-1),12,1))) -> 0.12416 | AB24: =IF(PlotControl!$B$4 = "Annual Max",MAX(OFFSET(AssimCap_PM12!$C$10,12*$O24,4*(PlotControl!$C$6-1),12,1)),AVERAGE(OFFSET(AssimCap_PM12!$C$10,12*$O24,4*(PlotControl!$C$6-1),12,1))) -> -1.5622e-17 | AC24: =IF(PlotControl!$B$4 = "Annual Max",MAX(OFFSET(AssimCap_PM12!$D$10,12*$O24,4*(PlotControl!$C$6-1),12,1)),AVERAGE(OFFSET(AssimCap_PM12!$D$10,12*$O24,4*(PlotControl!$C$6-1),12,1))) -> 1.5203e-17 | AD24: =IF(PlotControl!$B$4 = "Annual Max",MAX(OFFSET(AssimCap_PM12!$E$10,12*$O24,4*(PlotControl!$C$6-1),12,1)),AVERAGE(OFFSET(AssimCap_PM12!$E$10,12*$O24,4*(PlotControl!$C$6-1),12,1))) -> 4.4913e-12 | AF24: 1.583333333 | AG24: =OFFSET(P_Ex_PM13!$B$10,12*$AF24,4*(PlotControl!$C$6-1),1,1) -> 0 | AH24: =OFFSET(P_Ex_MLC3!$B$10,12*$AF24,4*(PlotControl!$C$6-1),1,1) -> 0 | AI24: =OFFSET(P_Ex_TC1!$B$10,12*$AF24,4*(PlotControl!$C$6-1),1,1) -> 0 | AJ24: =OFFSET(P_Ex_PM11!$B$10,12*$AF24,4*(PlotControl!$C$6-1),1,1) -> 0 | AK24: =OFFSET(P_Ex_PM12!$B$10,12*$AF24,4*(PlotControl!$C$6-1),1,1) -> 0 | AL24: =OFFSET(P_notNA_PM13!$B$10,12*$AF24,1*(PlotControl!$C$6-1),1,1) -> 0 | AM24: =OFFSET(P_notNA_MLC3!$B$10,12*$AF24,1*(PlotControl!$C$6-1),1,1) -> 0 | AN24: =OFFSET(P_notNA_TC1!$B$10,12*$AF24,1*(PlotControl!$C$6-1),1,1) -> 0 | AO24: =OFFSET(P_notNA_PM11!$B$10,12*$AF24,1*(PlotControl!$C$6-1),1,1) -> 0 | AP24: =OFFSET(P_notNA_PM12!$B$10,12*$AF24,1*(PlotControl!$C$6-1),1,1) -> 0 | AR24: 1.583333333 | AS24: =OFFSET(AssimCap_PM13!$C$10,12*$AR24,4*(PlotControl!$C$6-1),1,1) -> 0.00027693 | AT24: =OFFSET(AssimCap_PM13!$D$10,12*$AR24,4*(PlotControl!$C$6-1),1,1) -> 0.00087183 | AU24: =OFFSET(AssimCap_PM13!$E$10,12*$AR24,4*(PlotControl!$C$6-1),1,1) -> 0.0030524 | AV24: =OFFSET(AssimCap_MLC3!$C$10,12*$AR24,4*(PlotControl!$C$6-1),1,1) -> -0.013636 | AW24: =OFFSET(AssimCap_MLC3!$D$10,12*$AR24,4*(PlotControl!$C$6-1),1,1) -> -0.003679 | AX24: =OFFSET(AssimCap_MLC3!$E$10,12*$AR24,4*(PlotControl!$C$6-1),1,1) -> 0.00050902 | AY24: =OFFSET(AssimCap_TC1!$C$10,12*$AR24,4*(PlotControl!$C$6-1),1,1) -> 0.0035498 | AZ24: =OFFSET(AssimCap_TC1!$D$10,12*$AR24,4*(PlotControl!$C$6-1),1,1) -> 0.0066137 | BA24: =OFFSET(AssimCap_TC1!$E$10,12*$AR24,4*(PlotControl!$C$6-1),1,1) -> 0.0098948 | BB24: =OFFSET(AssimCap_PM11!$C$10,12*$AR24,4*(PlotControl!$C$6-1),1,1) -> 0.0061035 | BC24: =OFFSET(AssimCap_PM11!$D$10,12*$AR24,4*(PlotControl!$C$6-1),1,1) -> 0.01524 | BD24: =OFFSET(AssimCap_PM11!$E$10,12*$AR24,4*(PlotControl!$C$6-1),1,1) -> 0.033704 | BE24: =OFFSET(AssimCap_PM12!$C$10,12*$AR24,4*(PlotControl!$C$6-1),1,1) -> -1.5701e-17 | BF24: =OFFSET(AssimCap_PM12!$D$10,12*$AR24,4*(PlotControl!$C$6-1),1,1) -> 0 | BG24: =OFFSET(AssimCap_PM12!$E$10,12*$AR24,4*(PlotControl!$C$6-1),1,1) -> 1.5678e-17
A25: 20 | B25: =IF(PlotControl!$B$4 = "Annual Max",MAX(OFFSET(P_Ex_PM13!$B$10,12*$A25,4*(PlotControl!$C$6-1),12,1)),AVERAGE(OFFSET(P_Ex_PM13!$B$10,12*$A25,4*(PlotControl!$C$6-1),12,1))) -> 0 | C25: =IF(PlotControl!$B$4 = "Annual Max",MAX(OFFSET(P_Ex_MLC3!$B$10,12*$A25,4*(PlotControl!$C$6-1),12,1)),AVERAGE(OFFSET(P_Ex_MLC3!$B$10,12*$A25,4*(PlotControl!$C$6-1),12,1))) -> 0 | D25: =IF(PlotControl!$B$4 = "Annual Max",MAX(OFFSET(P_Ex_TC1!$B$10,12*$A25,4*(PlotControl!$C$6-1),12,1)),AVERAGE(OFFSET(P_Ex_TC1!$B$10,12*$A25,4*(PlotControl!$C$6-1),12,1))) -> 0 | E25: =IF(PlotControl!$B$4 = "Annual Max",MAX(OFFSET(P_Ex_PM11!$B$10,12*$A25,4*(PlotControl!$C$6-1),12,1)),AVERAGE(OFFSET(P_Ex_PM11!$B$10,12*$A25,4*(PlotControl!$C$6-1),12,1))) -> 0 | F25: =IF(PlotControl!$B$4 = "Annual Max",MAX(OFFSET(P_Ex_PM12!$B$10,12*$A25,4*(PlotControl!$C$6-1),12,1)),AVERAGE(OFFSET(P_Ex_PM12!$B$10,12*$A25,4*(PlotControl!$C$6-1),12,1))) -> 0 | H25: 20 | I25: =IF(PlotControl!$B$4 = "Annual Max",MAX(OFFSET(P_notNA_PM13!$B$10,12*$H25,(PlotControl!$C$6-1),12,1)),AVERAGE(OFFSET(P_notNA_PM13!$B$10,12*$A25,(PlotControl!$C$6-1),12,1))) -> 0 | J25: =IF(PlotControl!$B$4 = "Annual Max",MAX(OFFSET(P_notNA_MLC3!$B$10,12*$H25,(PlotControl!$C$6-1),12,1)),AVERAGE(OFFSET(P_notNA_MLC3!$B$10,12*$A25,(PlotControl!$C$6-1),12,1))) -> 0 | K25: =IF(PlotControl!$B$4 = "Annual Max",MAX(OFFSET(P_notNA_TC1!$B$10,12*$H25,(PlotControl!$C$6-1),12,1)),AVERAGE(OFFSET(P_notNA_TC1!$B$10,12*$A25,(PlotControl!$C$6-1),12,1))) -> 0 | L25: =IF(PlotControl!$B$4 = "Annual Max",MAX(OFFSET(P_notNA_PM11!$B$10,12*$H25,(PlotControl!$C$6-1),12,1)),AVERAGE(OFFSET(P_notNA_PM11!$B$10,12*$A25,(PlotControl!$C$6-1),12,1))) -> 0 | M25: =IF(PlotControl!$B$4 = "Annual Max",MAX(OFFSET(P_notNA_PM12!$B$10,12*$H25,(PlotControl!$C$6-1),12,1)),AVERAGE(OFFSET(P_notNA_PM12!$B$10,12*$A25,(PlotControl!$C$6-1),12,1))) -> 0 | O25: 20 | P25: =IF(PlotControl!$B$4 = "Annual Max",MAX(OFFSET(AssimCap_PM13!$C$10,12*$O25,4*(PlotControl!$C$6-1),12,1)),AVERAGE(OFFSET(AssimCap_PM13!$C$10,12*$O25,4*(PlotControl!$C$6-1),12,1))) -> 0.0017176 | Q25: =IF(PlotControl!$B$4 = "Annual Max",MAX(OFFSET(AssimCap_PM13!$D$10,12*$O25,4*(PlotControl!$C$6-1),12,1)),AVERAGE(OFFSET(AssimCap_PM13!$D$10,12*$O25,4*(PlotControl!$C$6-1),12,1))) -> 0.023144 | R25: =IF(PlotControl!$B$4 = "Annual Max",MAX(OFFSET(AssimCap_PM13!$E$10,12*$O25,4*(PlotControl!$C$6-1),12,1)),AVERAGE(OFFSET(AssimCap_PM13!$E$10,12*$O25,4*(PlotControl!$C$6-1),12,1))) -> 0.033562 | S25: =IF(PlotControl!$B$4 = "Annual Max",MAX(OFFSET(AssimCap_MLC3!$C$10,12*$O25,4*(PlotControl!$C$6-1),12,1)),AVERAGE(OFFSET(AssimCap_MLC3!$C$10,12*$O25,4*(PlotControl!$C$6-1),12,1))) -> -0.014872 | T25: =IF(PlotControl!$B$4 = "Annual Max",MAX(OFFSET(AssimCap_MLC3!$D$10,12*$O25,4*(PlotControl!$C$6-1),12,1)),AVERAGE(OFFSET(AssimCap_MLC3!$D$10,12*$O25,4*(PlotControl!$C$6-1),12,1))) -> -0.00056015 | U25: =IF(PlotControl!$B$4 = "Annual Max",MAX(OFFSET(AssimCap_MLC3!$E$10,12*$O25,4*(PlotControl!$C$6-1),12,1)),AVERAGE(OFFSET(AssimCap_MLC3!$E$10,12*$O25,4*(PlotControl!$C$6-1),12,1))) -> 0.0066216 | V25: =IF(PlotControl!$B$4 = "Annual Max",MAX(OFFSET(AssimCap_TC1!$C$10,12*$O25,4*(PlotControl!$C$6-1),12,1)),AVERAGE(OFFSET(AssimCap_TC1!$C$10,12*$O25,4*(PlotControl!$C$6-1),12,1))) -> 0.035988 | W25: =IF(PlotControl!$B$4 = "Annual Max",MAX(OFFSET(AssimCap_TC1!$D$10,12*$O25,4*(PlotControl!$C$6-1),12,1)),AVERAGE(OFFSET(AssimCap_TC1!$D$10,12*$O25,4*(PlotControl!$C$6-1),12,1))) -> 0.081889 | X25: =IF(PlotControl!$B$4 = "Annual Max",MAX(OFFSET(AssimCap_TC1!$E$10,12*$O25,4*(PlotControl!$C$6-1),12,1)),AVERAGE(OFFSET(AssimCap_TC1!$E$10,12*$O25,4*(PlotControl!$C$6-1),12,1))) -> 0.099367 | Y25: =IF(PlotControl!$B$4 = "Annual Max",MAX(OFFSET(AssimCap_PM11!$C$10,12*$O25,4*(PlotControl!$C$6-1),12,1)),AVERAGE(OFFSET(AssimCap_PM11!$C$10,12*$O25,4*(PlotControl!$C$6-1),12,1))) -> 0.016432 | Z25: =IF(PlotControl!$B$4 = "Annual Max",MAX(OFFSET(AssimCap_PM11!$D$10,12*$O25,4*(PlotControl!$C$6-1),12,1)),AVERAGE(OFFSET(AssimCap_PM11!$D$10,12*$O25,4*(PlotControl!$C$6-1),12,1))) -> 0.09568 | AA25: =IF(PlotControl!$B$4 = "Annual Max",MAX(OFFSET(AssimCap_PM11!$E$10,12*$O25,4*(PlotControl!$C$6-1),12,1)),AVERAGE(OFFSET(AssimCap_PM11!$E$10,12*$O25,4*(PlotControl!$C$6-1),12,1))) -> 0.12361 | AB25: =IF(PlotControl!$B$4 = "Annual Max",MAX(OFFSET(AssimCap_PM12!$C$10,12*$O25,4*(PlotControl!$C$6-1),12,1)),AVERAGE(OFFSET(AssimCap_PM12!$C$10,12*$O25,4*(PlotControl!$C$6-1),12,1))) -> -1.5648e-17 | AC25: =IF(PlotControl!$B$4 = "Annual Max",MAX(OFFSET(AssimCap_PM12!$D$10,12*$O25,4*(PlotControl!$C$6-1),12,1)),AVERAGE(OFFSET(AssimCap_PM12!$D$10,12*$O25,4*(PlotControl!$C$6-1),12,1))) -> 1.5287e-17 | AD25: =IF(PlotControl!$B$4 = "Annual Max",MAX(OFFSET(AssimCap_PM12!$E$10,12*$O25,4*(PlotControl!$C$6-1),12,1)),AVERAGE(OFFSET(AssimCap_PM12!$E$10,12*$O25,4*(PlotControl!$C$6-1),12,1))) -> 3.8975e-12 | AF25: 1.666666667 | AG25: =OFFSET(P_Ex_PM13!$B$10,12*$AF25,4*(PlotControl!$C$6-1),1,1) -> 0 | AH25: =OFFSET(P_Ex_MLC3!$B$10,12*$AF25,4*(PlotControl!$C$6-1),1,1) -> 0 | AI25: =OFFSET(P_Ex_TC1!$B$10,12*$AF25,4*(PlotControl!$C$6-1),1,1) -> 0 | AJ25: =OFFSET(P_Ex_PM11!$B$10,12*$AF25,4*(PlotControl!$C$6-1),1,1) -> 0 | AK25: =OFFSET(P_Ex_PM12!$B$10,12*$AF25,4*(PlotControl!$C$6-1),1,1) -> 0 | AL25: =OFFSET(P_notNA_PM13!$B$10,12*$AF25,1*(PlotControl!$C$6-1),1,1) -> 0 | AM25: =OFFSET(P_notNA_MLC3!$B$10,12*$AF25,1*(PlotControl!$C$6-1),1,1) -> 0 | AN25: =OFFSET(P_notNA_TC1!$B$10,12*$AF25,1*(PlotControl!$C$6-1),1,1) -> 0 | AO25: =OFFSET(P_notNA_PM11!$B$10,12*$AF25,1*(PlotControl!$C$6-1),1,1) -> 0 | AP25: =OFFSET(P_notNA_PM12!$B$10,12*$AF25,1*(PlotControl!$C$6-1),1,1) -> 0 | AR25: 1.666666667 | AS25: =OFFSET(AssimCap_PM13!$C$10,12*$AR25,4*(PlotControl!$C$6-1),1,1) -> 0.00038904 | AT25: =OFFSET(AssimCap_PM13!$D$10,12*$AR25,4*(PlotControl!$C$6-1),1,1) -> 0.001673 | AU25: =OFFSET(AssimCap_PM13!$E$10,12*$AR25,4*(PlotControl!$C$6-1),1,1) -> 0.004125 | AV25: =OFFSET(AssimCap_MLC3!$C$10,12*$AR25,4*(PlotControl!$C$6-1),1,1) -> -0.024515 | AW25: =OFFSET(AssimCap_MLC3!$D$10,12*$AR25,4*(PlotControl!$C$6-1),1,1) -> -0.0081654 | AX25: =OFFSET(AssimCap_MLC3!$E$10,12*$AR25,4*(PlotControl!$C$6-1),1,1) -> -0.00043045 | AY25: =OFFSET(AssimCap_TC1!$C$10,12*$AR25,4*(PlotControl!$C$6-1),1,1) -> 0.0032565 | AZ25: =OFFSET(AssimCap_TC1!$D$10,12*$AR25,4*(PlotControl!$C$6-1),1,1) -> 0.00599 | BA25: =OFFSET(AssimCap_TC1!$E$10,12*$AR25,4*(PlotControl!$C$6-1),1,1) -> 0.0080846 | BB25: =OFFSET(AssimCap_PM11!$C$10,12*$AR25,4*(PlotControl!$C$6-1),1,1) -> 0.009004 | BC25: =OFFSET(AssimCap_PM11!$D$10,12*$AR25,4*(PlotControl!$C$6-1),1,1) -> 0.024356 | BD25: =OFFSET(AssimCap_PM11!$E$10,12*$AR25,4*(PlotControl!$C$6-1),1,1) -> 0.037683 | BE25: =OFFSET(AssimCap_PM12!$C$10,12*$AR25,4*(PlotControl!$C$6-1),1,1) -> -1.5709e-17 | BF25: =OFFSET(AssimCap_PM12!$D$10,12*$AR25,4*(PlotControl!$C$6-1),1,1) -> 0 | BG25: =OFFSET(AssimCap_PM12!$E$10,12*$AR25,4*(PlotControl!$C$6-1),1,1) -> 1.5727e-17
A26: 21 | B26: =IF(PlotControl!$B$4 = "Annual Max",MAX(OFFSET(P_Ex_PM13!$B$10,12*$A26,4*(PlotControl!$C$6-1),12,1)),AVERAGE(OFFSET(P_Ex_PM13!$B$10,12*$A26,4*(PlotControl!$C$6-1),12,1))) -> 0 | C26: =IF(PlotControl!$B$4 = "Annual Max",MAX(OFFSET(P_Ex_MLC3!$B$10,12*$A26,4*(PlotControl!$C$6-1),12,1)),AVERAGE(OFFSET(P_Ex_MLC3!$B$10,12*$A26,4*(PlotControl!$C$6-1),12,1))) -> 0 | D26: =IF(PlotControl!$B$4 = "Annual Max",MAX(OFFSET(P_Ex_TC1!$B$10,12*$A26,4*(PlotControl!$C$6-1),12,1)),AVERAGE(OFFSET(P_Ex_TC1!$B$10,12*$A26,4*(PlotControl!$C$6-1),12,1))) -> 0 | E26: =IF(PlotControl!$B$4 = "Annual Max",MAX(OFFSET(P_Ex_PM11!$B$10,12*$A26,4*(PlotControl!$C$6-1),12,1)),AVERAGE(OFFSET(P_Ex_PM11!$B$10,12*$A26,4*(PlotControl!$C$6-1),12,1))) -> 0 | F26: =IF(PlotControl!$B$4 = "Annual Max",MAX(OFFSET(P_Ex_PM12!$B$10,12*$A26,4*(PlotControl!$C$6-1),12,1)),AVERAGE(OFFSET(P_Ex_PM12!$B$10,12*$A26,4*(PlotControl!$C$6-1),12,1))) -> 0 | H26: 21 | I26: =IF(PlotControl!$B$4 = "Annual Max",MAX(OFFSET(P_notNA_PM13!$B$10,12*$H26,(PlotControl!$C$6-1),12,1)),AVERAGE(OFFSET(P_notNA_PM13!$B$10,12*$A26,(PlotControl!$C$6-1),12,1))) -> 0 | J26: =IF(PlotControl!$B$4 = "Annual Max",MAX(OFFSET(P_notNA_MLC3!$B$10,12*$H26,(PlotControl!$C$6-1),12,1)),AVERAGE(OFFSET(P_notNA_MLC3!$B$10,12*$A26,(PlotControl!$C$6-1),12,1))) -> 0 | K26: =IF(PlotControl!$B$4 = "Annual Max",MAX(OFFSET(P_notNA_TC1!$B$10,12*$H26,(PlotControl!$C$6-1),12,1)),AVERAGE(OFFSET(P_notNA_TC1!$B$10,12*$A26,(PlotControl!$C$6-1),12,1))) -> 0 | L26: =IF(PlotControl!$B$4 = "Annual Max",MAX(OFFSET(P_notNA_PM11!$B$10,12*$H26,(PlotControl!$C$6-1),12,1)),AVERAGE(OFFSET(P_notNA_PM11!$B$10,12*$A26,(PlotControl!$C$6-1),12,1))) -> 0 | M26: =IF(PlotControl!$B$4 = "Annual Max",MAX(OFFSET(P_notNA_PM12!$B$10,12*$H26,(PlotControl!$C$6-1),12,1)),AVERAGE(OFFSET(P_notNA_PM12!$B$10,12*$A26,(PlotControl!$C$6-1),12,1))) -> 0 | O26: 21 | P26: =IF(PlotControl!$B$4 = "Annual Max",MAX(OFFSET(AssimCap_PM13!$C$10,12*$O26,4*(PlotControl!$C$6-1),12,1)),AVERAGE(OFFSET(AssimCap_PM13!$C$10,12*$O26,4*(PlotControl!$C$6-1),12,1))) -> 0.00093559 | Q26: =IF(PlotControl!$B$4 = "Annual Max",MAX(OFFSET(AssimCap_PM13!$D$10,12*$O26,4*(PlotControl!$C$6-1),12,1)),AVERAGE(OFFSET(AssimCap_PM13!$D$10,12*$O26,4*(PlotControl!$C$6-1),12,1))) -> 0.017628 | R26: =IF(PlotControl!$B$4 = "Annual Max",MAX(OFFSET(AssimCap_PM13!$E$10,12*$O26,4*(PlotControl!$C$6-1),12,1)),AVERAGE(OFFSET(AssimCap_PM13!$E$10,12*$O26,4*(PlotControl!$C$6-1),12,1))) -> 0.026624 | S26: =IF(PlotControl!$B$4 = "Annual Max",MAX(OFFSET(AssimCap_MLC3!$C$10,12*$O26,4*(PlotControl!$C$6-1),12,1)),AVERAGE(OFFSET(AssimCap_MLC3!$C$10,12*$O26,4*(PlotControl!$C$6-1),12,1))) -> -0.013026 | T26: =IF(PlotControl!$B$4 = "Annual Max",MAX(OFFSET(AssimCap_MLC3!$D$10,12*$O26,4*(PlotControl!$C$6-1),12,1)),AVERAGE(OFFSET(AssimCap_MLC3!$D$10,12*$O26,4*(PlotControl!$C$6-1),12,1))) -> -0.00048511 | U26: =IF(PlotControl!$B$4 = "Annual Max",MAX(OFFSET(AssimCap_MLC3!$E$10,12*$O26,4*(PlotControl!$C$6-1),12,1)),AVERAGE(OFFSET(AssimCap_MLC3!$E$10,12*$O26,4*(PlotControl!$C$6-1),12,1))) -> 0.006488 | V26: =IF(PlotControl!$B$4 = "Annual Max",MAX(OFFSET(AssimCap_TC1!$C$10,12*$O26,4*(PlotControl!$C$6-1),12,1)),AVERAGE(OFFSET(AssimCap_TC1!$C$10,12*$O26,4*(PlotControl!$C$6-1),12,1))) -> 0.036591 | W26: =IF(PlotControl!$B$4 = "Annual Max",MAX(OFFSET(AssimCap_TC1!$D$10,12*$O26,4*(PlotControl!$C$6-1),12,1)),AVERAGE(OFFSET(AssimCap_TC1!$D$10,12*$O26,4*(PlotControl!$C$6-1),12,1))) -> 0.060863 | X26: =IF(PlotControl!$B$4 = "Annual Max",MAX(OFFSET(AssimCap_TC1!$E$10,12*$O26,4*(PlotControl!$C$6-1),12,1)),AVERAGE(OFFSET(AssimCap_TC1!$E$10,12*$O26,4*(PlotControl!$C$6-1),12,1))) -> 0.081501 | Y26: =IF(PlotControl!$B$4 = "Annual Max",MAX(OFFSET(AssimCap_PM11!$C$10,12*$O26,4*(PlotControl!$C$6-1),12,1)),AVERAGE(OFFSET(AssimCap_PM11!$C$10,12*$O26,4*(PlotControl!$C$6-1),12,1))) -> 0.012733 | Z26: =IF(PlotControl!$B$4 = "Annual Max",MAX(OFFSET(AssimCap_PM11!$D$10,12*$O26,4*(PlotControl!$C$6-1),12,1)),AVERAGE(OFFSET(AssimCap_PM11!$D$10,12*$O26,4*(PlotControl!$C$6-1),12,1))) -> 0.078185 | AA26: =IF(PlotControl!$B$4 = "Annual Max",MAX(OFFSET(AssimCap_PM11!$E$10,12*$O26,4*(PlotControl!$C$6-1),12,1)),AVERAGE(OFFSET(AssimCap_PM11!$E$10,12*$O26,4*(PlotControl!$C$6-1),12,1))) -> 0.10679 | AB26: =IF(PlotControl!$B$4 = "Annual Max",MAX(OFFSET(AssimCap_PM12!$C$10,12*$O26,4*(PlotControl!$C$6-1),12,1)),AVERAGE(OFFSET(AssimCap_PM12!$C$10,12*$O26,4*(PlotControl!$C$6-1),12,1))) -> -1.5609e-17 | AC26: =IF(PlotControl!$B$4 = "Annual Max",MAX(OFFSET(AssimCap_PM12!$D$10,12*$O26,4*(PlotControl!$C$6-1),12,1)),AVERAGE(OFFSET(AssimCap_PM12!$D$10,12*$O26,4*(PlotControl!$C$6-1),12,1))) -> 1.5305e-17 | AD26: =IF(PlotControl!$B$4 = "Annual Max",MAX(OFFSET(AssimCap_PM12!$E$10,12*$O26,4*(PlotControl!$C$6-1),12,1)),AVERAGE(OFFSET(AssimCap_PM12!$E$10,12*$O26,4*(PlotControl!$C$6-1),12,1))) -> 3.3871e-12 | AF26: 1.75 | AG26: =OFFSET(P_Ex_PM13!$B$10,12*$AF26,4*(PlotControl!$C$6-1),1,1) -> 0 | AH26: =OFFSET(P_Ex_MLC3!$B$10,12*$AF26,4*(PlotControl!$C$6-1),1,1) -> 0 | AI26: =OFFSET(P_Ex_TC1!$B$10,12*$AF26,4*(PlotControl!$C$6-1),1,1) -> 0 | AJ26: =OFFSET(P_Ex_PM11!$B$10,12*$AF26,4*(PlotControl!$C$6-1),1,1) -> 0 | AK26: =OFFSET(P_Ex_PM12!$B$10,12*$AF26,4*(PlotControl!$C$6-1),1,1) -> 0 | AL26: =OFFSET(P_notNA_PM13!$B$10,12*$AF26,1*(PlotControl!$C$6-1),1,1) -> 0 | AM26: =OFFSET(P_notNA_MLC3!$B$10,12*$AF26,1*(PlotControl!$C$6-1),1,1) -> 0 | AN26: =OFFSET(P_notNA_TC1!$B$10,12*$AF26,1*(PlotControl!$C$6-1),1,1) -> 0 | AO26: =OFFSET(P_notNA_PM11!$B$10,12*$AF26,1*(PlotControl!$C$6-1),1,1) -> 0 | AP26: =OFFSET(P_notNA_PM12!$B$10,12*$AF26,1*(PlotControl!$C$6-1),1,1) -> 0 | AR26: 1.75 | AS26: =OFFSET(AssimCap_PM13!$C$10,12*$AR26,4*(PlotControl!$C$6-1),1,1) -> 0.00055812 | AT26: =OFFSET(AssimCap_PM13!$D$10,12*$AR26,4*(PlotControl!$C$6-1),1,1) -> 0.0020543 | AU26: =OFFSET(AssimCap_PM13!$E$10,12*$AR26,4*(PlotControl!$C$6-1),1,1) -> 0.00459 | AV26: =OFFSET(AssimCap_MLC3!$C$10,12*$AR26,4*(PlotControl!$C$6-1),1,1) -> -0.032764 | AW26: =OFFSET(AssimCap_MLC3!$D$10,12*$AR26,4*(PlotControl!$C$6-1),1,1) -> -0.014009 | AX26: =OFFSET(AssimCap_MLC3!$E$10,12*$AR26,4*(PlotControl!$C$6-1),1,1) -> -0.0016318 | AY26: =OFFSET(AssimCap_TC1!$C$10,12*$AR26,4*(PlotControl!$C$6-1),1,1) -> 0.002534 | AZ26: =OFFSET(AssimCap_TC1!$D$10,12*$AR26,4*(PlotControl!$C$6-1),1,1) -> 0.0044545 | BA26: =OFFSET(AssimCap_TC1!$E$10,12*$AR26,4*(PlotControl!$C$6-1),1,1) -> 0.0061371 | BB26: =OFFSET(AssimCap_PM11!$C$10,12*$AR26,4*(PlotControl!$C$6-1),1,1) -> 0.012814 | BC26: =OFFSET(AssimCap_PM11!$D$10,12*$AR26,4*(PlotControl!$C$6-1),1,1) -> 0.028458 | BD26: =OFFSET(AssimCap_PM11!$E$10,12*$AR26,4*(PlotControl!$C$6-1),1,1) -> 0.037889 | BE26: =OFFSET(AssimCap_PM12!$C$10,12*$AR26,4*(PlotControl!$C$6-1),1,1) -> -3.0826e-17 | BF26: =OFFSET(AssimCap_PM12!$D$10,12*$AR26,4*(PlotControl!$C$6-1),1,1) -> 0 | BG26: =OFFSET(AssimCap_PM12!$E$10,12*$AR26,4*(PlotControl!$C$6-1),1,1) -> 2.1726e-16
A27: 22 | B27: =IF(PlotControl!$B$4 = "Annual Max",MAX(OFFSET(P_Ex_PM13!$B$10,12*$A27,4*(PlotControl!$C$6-1),12,1)),AVERAGE(OFFSET(P_Ex_PM13!$B$10,12*$A27,4*(PlotControl!$C$6-1),12,1))) -> 0 | C27: =IF(PlotControl!$B$4 = "Annual Max",MAX(OFFSET(P_Ex_MLC3!$B$10,12*$A27,4*(PlotControl!$C$6-1),12,1)),AVERAGE(OFFSET(P_Ex_MLC3!$B$10,12*$A27,4*(PlotControl!$C$6-1),12,1))) -> 0 | D27: =IF(PlotControl!$B$4 = "Annual Max",MAX(OFFSET(P_Ex_TC1!$B$10,12*$A27,4*(PlotControl!$C$6-1),12,1)),AVERAGE(OFFSET(P_Ex_TC1!$B$10,12*$A27,4*(PlotControl!$C$6-1),12,1))) -> 0 | E27: =IF(PlotControl!$B$4 = "Annual Max",MAX(OFFSET(P_Ex_PM11!$B$10,12*$A27,4*(PlotControl!$C$6-1),12,1)),AVERAGE(OFFSET(P_Ex_PM11!$B$10,12*$A27,4*(PlotControl!$C$6-1),12,1))) -> 0 | F27: =IF(PlotControl!$B$4 = "Annual Max",MAX(OFFSET(P_Ex_PM12!$B$10,12*$A27,4*(PlotControl!$C$6-1),12,1)),AVERAGE(OFFSET(P_Ex_PM12!$B$10,12*$A27,4*(PlotControl!$C$6-1),12,1))) -> 0 | H27: 22 | I27: =IF(PlotControl!$B$4 = "Annual Max",MAX(OFFSET(P_notNA_PM13!$B$10,12*$H27,(PlotControl!$C$6-1),12,1)),AVERAGE(OFFSET(P_notNA_PM13!$B$10,12*$A27,(PlotControl!$C$6-1),12,1))) -> 0 | J27: =IF(PlotControl!$B$4 = "Annual Max",MAX(OFFSET(P_notNA_MLC3!$B$10,12*$H27,(PlotControl!$C$6-1),12,1)),AVERAGE(OFFSET(P_notNA_MLC3!$B$10,12*$A27,(PlotControl!$C$6-1),12,1))) -> 0 | K27: =IF(PlotControl!$B$4 = "Annual Max",MAX(OFFSET(P_notNA_TC1!$B$10,12*$H27,(PlotControl!$C$6-1),12,1)),AVERAGE(OFFSET(P_notNA_TC1!$B$10,12*$A27,(PlotControl!$C$6-1),12,1))) -> 0 | L27: =IF(PlotControl!$B$4 = "Annual Max",MAX(OFFSET(P_notNA_PM11!$B$10,12*$H27,(PlotControl!$C$6-1),12,1)),AVERAGE(OFFSET(P_notNA_PM11!$B$10,12*$A27,(PlotControl!$C$6-1),12,1))) -> 0 | M27: =IF(PlotControl!$B$4 = "Annual Max",MAX(OFFSET(P_notNA_PM12!$B$10,12*$H27,(PlotControl!$C$6-1),12,1)),AVERAGE(OFFSET(P_notNA_PM12!$B$10,12*$A27,(PlotControl!$C$6-1),12,1))) -> 0 | O27: 22 | P27: =IF(PlotControl!$B$4 = "Annual Max",MAX(OFFSET(AssimCap_PM13!$C$10,12*$O27,4*(PlotControl!$C$6-1),12,1)),AVERAGE(OFFSET(AssimCap_PM13!$C$10,12*$O27,4*(PlotControl!$C$6-1),12,1))) -> 0.00028144 | Q27: =IF(PlotControl!$B$4 = "Annual Max",MAX(OFFSET(AssimCap_PM13!$D$10,12*$O27,4*(PlotControl!$C$6-1),12,1)),AVERAGE(OFFSET(AssimCap_PM13!$D$10,12*$O27,4*(PlotControl!$C$6-1),12,1))) -> 0.016663 | R27: =IF(PlotControl!$B$4 = "Annual Max",MAX(OFFSET(AssimCap_PM13!$E$10,12*$O27,4*(PlotControl!$C$6-1),12,1)),AVERAGE(OFFSET(AssimCap_PM13!$E$10,12*$O27,4*(PlotControl!$C$6-1),12,1))) -> 0.024884 | S27: =IF(PlotControl!$B$4 = "Annual Max",MAX(OFFSET(AssimCap_MLC3!$C$10,12*$O27,4*(PlotControl!$C$6-1),12,1)),AVERAGE(OFFSET(AssimCap_MLC3!$C$10,12*$O27,4*(PlotControl!$C$6-1),12,1))) -> -0.0136 | T27: =IF(PlotControl!$B$4 = "Annual Max",MAX(OFFSET(AssimCap_MLC3!$D$10,12*$O27,4*(PlotControl!$C$6-1),12,1)),AVERAGE(OFFSET(AssimCap_MLC3!$D$10,12*$O27,4*(PlotControl!$C$6-1),12,1))) -> -0.00071417 | U27: =IF(PlotControl!$B$4 = "Annual Max",MAX(OFFSET(AssimCap_MLC3!$E$10,12*$O27,4*(PlotControl!$C$6-1),12,1)),AVERAGE(OFFSET(AssimCap_MLC3!$E$10,12*$O27,4*(PlotControl!$C$6-1),12,1))) -> 0.0068879 | V27: =IF(PlotControl!$B$4 = "Annual Max",MAX(OFFSET(AssimCap_TC1!$C$10,12*$O27,4*(PlotControl!$C$6-1),12,1)),AVERAGE(OFFSET(AssimCap_TC1!$C$10,12*$O27,4*(PlotControl!$C$6-1),12,1))) -> 0.033493 | W27: =IF(PlotControl!$B$4 = "Annual Max",MAX(OFFSET(AssimCap_TC1!$D$10,12*$O27,4*(PlotControl!$C$6-1),12,1)),AVERAGE(OFFSET(AssimCap_TC1!$D$10,12*$O27,4*(PlotControl!$C$6-1),12,1))) -> 0.058443 | X27: =IF(PlotControl!$B$4 = "Annual Max",MAX(OFFSET(AssimCap_TC1!$E$10,12*$O27,4*(PlotControl!$C$6-1),12,1)),AVERAGE(OFFSET(AssimCap_TC1!$E$10,12*$O27,4*(PlotControl!$C$6-1),12,1))) -> 0.074874 | Y27: =IF(PlotControl!$B$4 = "Annual Max",MAX(OFFSET(AssimCap_PM11!$C$10,12*$O27,4*(PlotControl!$C$6-1),12,1)),AVERAGE(OFFSET(AssimCap_PM11!$C$10,12*$O27,4*(PlotControl!$C$6-1),12,1))) -> 0.0065168 | Z27: =IF(PlotControl!$B$4 = "Annual Max",MAX(OFFSET(AssimCap_PM11!$D$10,12*$O27,4*(PlotControl!$C$6-1),12,1)),AVERAGE(OFFSET(AssimCap_PM11!$D$10,12*$O27,4*(PlotControl!$C$6-1),12,1))) -> 0.076002 | AA27: =IF(PlotControl!$B$4 = "Annual Max",MAX(OFFSET(AssimCap_PM11!$E$10,12*$O27,4*(PlotControl!$C$6-1),12,1)),AVERAGE(OFFSET(AssimCap_PM11!$E$10,12*$O27,4*(PlotControl!$C$6-1),12,1))) -> 0.098961 | AB27: =IF(PlotControl!$B$4 = "Annual Max",MAX(OFFSET(AssimCap_PM12!$C$10,12*$O27,4*(PlotControl!$C$6-1),12,1)),AVERAGE(OFFSET(AssimCap_PM12!$C$10,12*$O27,4*(PlotControl!$C$6-1),12,1))) -> -1.5659e-17 | AC27: =IF(PlotControl!$B$4 = "Annual Max",MAX(OFFSET(AssimCap_PM12!$D$10,12*$O27,4*(PlotControl!$C$6-1),12,1)),AVERAGE(OFFSET(AssimCap_PM12!$D$10,12*$O27,4*(PlotControl!$C$6-1),12,1))) -> 0 | AD27: =IF(PlotControl!$B$4 = "Annual Max",MAX(OFFSET(AssimCap_PM12!$E$10,12*$O27,4*(PlotControl!$C$6-1),12,1)),AVERAGE(OFFSET(AssimCap_PM12!$E$10,12*$O27,4*(PlotControl!$C$6-1),12,1))) -> 4.2945e-12 | AF27: 1.833333333 | AG27: =OFFSET(P_Ex_PM13!$B$10,12*$AF27,4*(PlotControl!$C$6-1),1,1) -> 0 | AH27: =OFFSET(P_Ex_MLC3!$B$10,12*$AF27,4*(PlotControl!$C$6-1),1,1) -> 0 | AI27: =OFFSET(P_Ex_TC1!$B$10,12*$AF27,4*(PlotControl!$C$6-1),1,1) -> 0 | AJ27: =OFFSET(P_Ex_PM11!$B$10,12*$AF27,4*(PlotControl!$C$6-1),1,1) -> 0 | AK27: =OFFSET(P_Ex_PM12!$B$10,12*$AF27,4*(PlotControl!$C$6-1),1,1) -> 0 | AL27: =OFFSET(P_notNA_PM13!$B$10,12*$AF27,1*(PlotControl!$C$6-1),1,1) -> 0 | AM27: =OFFSET(P_notNA_MLC3!$B$10,12*$AF27,1*(PlotControl!$C$6-1),1,1) -> 0 | AN27: =OFFSET(P_notNA_TC1!$B$10,12*$AF27,1*(PlotControl!$C$6-1),1,1) -> 0 | AO27: =OFFSET(P_notNA_PM11!$B$10,12*$AF27,1*(PlotControl!$C$6-1),1,1) -> 0 | AP27: =OFFSET(P_notNA_PM12!$B$10,12*$AF27,1*(PlotControl!$C$6-1),1,1) -> 0 | AR27: 1.833333333 | AS27: =OFFSET(AssimCap_PM13!$C$10,12*$AR27,4*(PlotControl!$C$6-1),1,1) -> 0.00037745 | AT27: =OFFSET(AssimCap_PM13!$D$10,12*$AR27,4*(PlotControl!$C$6-1),1,1) -> 0.0014607 | AU27: =OFFSET(AssimCap_PM13!$E$10,12*$AR27,4*(PlotControl!$C$6-1),1,1) -> 0.0039748 | AV27: =OFFSET(AssimCap_MLC3!$C$10,12*$AR27,4*(PlotControl!$C$6-1),1,1) -> -0.029706 | AW27: =OFFSET(AssimCap_MLC3!$D$10,12*$AR27,4*(PlotControl!$C$6-1),1,1) -> -0.0088639 | AX27: =OFFSET(AssimCap_MLC3!$E$10,12*$AR27,4*(PlotControl!$C$6-1),1,1) -> -0.00051041 | AY27: =OFFSET(AssimCap_TC1!$C$10,12*$AR27,4*(PlotControl!$C$6-1),1,1) -> 0.0026803 | AZ27: =OFFSET(AssimCap_TC1!$D$10,12*$AR27,4*(PlotControl!$C$6-1),1,1) -> 0.0045339 | BA27: =OFFSET(AssimCap_TC1!$E$10,12*$AR27,4*(PlotControl!$C$6-1),1,1) -> 0.0064042 | BB27: =OFFSET(AssimCap_PM11!$C$10,12*$AR27,4*(PlotControl!$C$6-1),1,1) -> 0.0093893 | BC27: =OFFSET(AssimCap_PM11!$D$10,12*$AR27,4*(PlotControl!$C$6-1),1,1) -> 0.023495 | BD27: =OFFSET(AssimCap_PM11!$E$10,12*$AR27,4*(PlotControl!$C$6-1),1,1) -> 0.037041 | BE27: =OFFSET(AssimCap_PM12!$C$10,12*$AR27,4*(PlotControl!$C$6-1),1,1) -> -3.1554e-17 | BF27: =OFFSET(AssimCap_PM12!$D$10,12*$AR27,4*(PlotControl!$C$6-1),1,1) -> 0 | BG27: =OFFSET(AssimCap_PM12!$E$10,12*$AR27,4*(PlotControl!$C$6-1),1,1) -> 1.0244e-14
A28: 23 | B28: =IF(PlotControl!$B$4 = "Annual Max",MAX(OFFSET(P_Ex_PM13!$B$10,12*$A28,4*(PlotControl!$C$6-1),12,1)),AVERAGE(OFFSET(P_Ex_PM13!$B$10,12*$A28,4*(PlotControl!$C$6-1),12,1))) -> 0 | C28: =IF(PlotControl!$B$4 = "Annual Max",MAX(OFFSET(P_Ex_MLC3!$B$10,12*$A28,4*(PlotControl!$C$6-1),12,1)),AVERAGE(OFFSET(P_Ex_MLC3!$B$10,12*$A28,4*(PlotControl!$C$6-1),12,1))) -> 0 | D28: =IF(PlotControl!$B$4 = "Annual Max",MAX(OFFSET(P_Ex_TC1!$B$10,12*$A28,4*(PlotControl!$C$6-1),12,1)),AVERAGE(OFFSET(P_Ex_TC1!$B$10,12*$A28,4*(PlotControl!$C$6-1),12,1))) -> 0 | E28: =IF(PlotControl!$B$4 = "Annual Max",MAX(OFFSET(P_Ex_PM11!$B$10,12*$A28,4*(PlotControl!$C$6-1),12,1)),AVERAGE(OFFSET(P_Ex_PM11!$B$10,12*$A28,4*(PlotControl!$C$6-1),12,1))) -> 0 | F28: =IF(PlotControl!$B$4 = "Annual Max",MAX(OFFSET(P_Ex_PM12!$B$10,12*$A28,4*(PlotControl!$C$6-1),12,1)),AVERAGE(OFFSET(P_Ex_PM12!$B$10,12*$A28,4*(PlotControl!$C$6-1),12,1))) -> 0 | H28: 23 | I28: =IF(PlotControl!$B$4 = "Annual Max",MAX(OFFSET(P_notNA_PM13!$B$10,12*$H28,(PlotControl!$C$6-1),12,1)),AVERAGE(OFFSET(P_notNA_PM13!$B$10,12*$A28,(PlotControl!$C$6-1),12,1))) -> 0 | J28: =IF(PlotControl!$B$4 = "Annual Max",MAX(OFFSET(P_notNA_MLC3!$B$10,12*$H28,(PlotControl!$C$6-1),12,1)),AVERAGE(OFFSET(P_notNA_MLC3!$B$10,12*$A28,(PlotControl!$C$6-1),12,1))) -> 0 | K28: =IF(PlotControl!$B$4 = "Annual Max",MAX(OFFSET(P_notNA_TC1!$B$10,12*$H28,(PlotControl!$C$6-1),12,1)),AVERAGE(OFFSET(P_notNA_TC1!$B$10,12*$A28,(PlotControl!$C$6-1),12,1))) -> 0 | L28: =IF(PlotControl!$B$4 = "Annual Max",MAX(OFFSET(P_notNA_PM11!$B$10,12*$H28,(PlotControl!$C$6-1),12,1)),AVERAGE(OFFSET(P_notNA_PM11!$B$10,12*$A28,(PlotControl!$C$6-1),12,1))) -> 0 | M28: =IF(PlotControl!$B$4 = "Annual Max",MAX(OFFSET(P_notNA_PM12!$B$10,12*$H28,(PlotControl!$C$6-1),12,1)),AVERAGE(OFFSET(P_notNA_PM12!$B$10,12*$A28,(PlotControl!$C$6-1),12,1))) -> 0 | O28: 23 | P28: =IF(PlotControl!$B$4 = "Annual Max",MAX(OFFSET(AssimCap_PM13!$C$10,12*$O28,4*(PlotControl!$C$6-1),12,1)),AVERAGE(OFFSET(AssimCap_PM13!$C$10,12*$O28,4*(PlotControl!$C$6-1),12,1))) -> 0.00011701 | Q28: =IF(PlotControl!$B$4 = "Annual Max",MAX(OFFSET(AssimCap_PM13!$D$10,12*$O28,4*(PlotControl!$C$6-1),12,1)),AVERAGE(OFFSET(AssimCap_PM13!$D$10,12*$O28,4*(PlotControl!$C$6-1),12,1))) -> 0.016757 | R28: =IF(PlotControl!$B$4 = "Annual Max",MAX(OFFSET(AssimCap_PM13!$E$10,12*$O28,4*(PlotControl!$C$6-1),12,1)),AVERAGE(OFFSET(AssimCap_PM13!$E$10,12*$O28,4*(PlotControl!$C$6-1),12,1))) -> 0.024807 | S28: =IF(PlotControl!$B$4 = "Annual Max",MAX(OFFSET(AssimCap_MLC3!$C$10,12*$O28,4*(PlotControl!$C$6-1),12,1)),AVERAGE(OFFSET(AssimCap_MLC3!$C$10,12*$O28,4*(PlotControl!$C$6-1),12,1))) -> -0.013712 | T28: =IF(PlotControl!$B$4 = "Annual Max",MAX(OFFSET(AssimCap_MLC3!$D$10,12*$O28,4*(PlotControl!$C$6-1),12,1)),AVERAGE(OFFSET(AssimCap_MLC3!$D$10,12*$O28,4*(PlotControl!$C$6-1),12,1))) -> -0.00055219 | U28: =IF(PlotControl!$B$4 = "Annual Max",MAX(OFFSET(AssimCap_MLC3!$E$10,12*$O28,4*(PlotControl!$C$6-1),12,1)),AVERAGE(OFFSET(AssimCap_MLC3!$E$10,12*$O28,4*(PlotControl!$C$6-1),12,1))) -> 0.007037 | V28: =IF(PlotControl!$B$4 = "Annual Max",MAX(OFFSET(AssimCap_TC1!$C$10,12*$O28,4*(PlotControl!$C$6-1),12,1)),AVERAGE(OFFSET(AssimCap_TC1!$C$10,12*$O28,4*(PlotControl!$C$6-1),12,1))) -> 0.030748 | W28: =IF(PlotControl!$B$4 = "Annual Max",MAX(OFFSET(AssimCap_TC1!$D$10,12*$O28,4*(PlotControl!$C$6-1),12,1)),AVERAGE(OFFSET(AssimCap_TC1!$D$10,12*$O28,4*(PlotControl!$C$6-1),12,1))) -> 0.055848 | X28: =IF(PlotControl!$B$4 = "Annual Max",MAX(OFFSET(AssimCap_TC1!$E$10,12*$O28,4*(PlotControl!$C$6-1),12,1)),AVERAGE(OFFSET(AssimCap_TC1!$E$10,12*$O28,4*(PlotControl!$C$6-1),12,1))) -> 0.069525 | Y28: =IF(PlotControl!$B$4 = "Annual Max",MAX(OFFSET(AssimCap_PM11!$C$10,12*$O28,4*(PlotControl!$C$6-1),12,1)),AVERAGE(OFFSET(AssimCap_PM11!$C$10,12*$O28,4*(PlotControl!$C$6-1),12,1))) -> 0.0030742 | Z28: =IF(PlotControl!$B$4 = "Annual Max",MAX(OFFSET(AssimCap_PM11!$D$10,12*$O28,4*(PlotControl!$C$6-1),12,1)),AVERAGE(OFFSET(AssimCap_PM11!$D$10,12*$O28,4*(PlotControl!$C$6-1),12,1))) -> 0.073998 | AA28: =IF(PlotControl!$B$4 = "Annual Max",MAX(OFFSET(AssimCap_PM11!$E$10,12*$O28,4*(PlotControl!$C$6-1),12,1)),AVERAGE(OFFSET(AssimCap_PM11!$E$10,12*$O28,4*(PlotControl!$C$6-1),12,1))) -> 0.095884 | AB28: =IF(PlotControl!$B$4 = "Annual Max",MAX(OFFSET(AssimCap_PM12!$C$10,12*$O28,4*(PlotControl!$C$6-1),12,1)),AVERAGE(OFFSET(AssimCap_PM12!$C$10,12*$O28,4*(PlotControl!$C$6-1),12,1))) -> -1.5651e-17 | AC28: =IF(PlotControl!$B$4 = "Annual Max",MAX(OFFSET(AssimCap_PM12!$D$10,12*$O28,4*(PlotControl!$C$6-1),12,1)),AVERAGE(OFFSET(AssimCap_PM12!$D$10,12*$O28,4*(PlotControl!$C$6-1),12,1))) -> 0 | AD28: =IF(PlotControl!$B$4 = "Annual Max",MAX(OFFSET(AssimCap_PM12!$E$10,12*$O28,4*(PlotControl!$C$6-1),12,1)),AVERAGE(OFFSET(AssimCap_PM12!$E$10,12*$O28,4*(PlotControl!$C$6-1),12,1))) -> 3.7713e-12 | AF28: 1.916666667 | AG28: =OFFSET(P_Ex_PM13!$B$10,12*$AF28,4*(PlotControl!$C$6-1),1,1) -> 0 | AH28: =OFFSET(P_Ex_MLC3!$B$10,12*$AF28,4*(PlotControl!$C$6-1),1,1) -> 0 | AI28: =OFFSET(P_Ex_TC1!$B$10,12*$AF28,4*(PlotControl!$C$6-1),1,1) -> 0 | AJ28: =OFFSET(P_Ex_PM11!$B$10,12*$AF28,4*(PlotControl!$C$6-1),1,1) -> 0 | AK28: =OFFSET(P_Ex_PM12!$B$10,12*$AF28,4*(PlotControl!$C$6-1),1,1) -> 0 | AL28: =OFFSET(P_notNA_PM13!$B$10,12*$AF28,1*(PlotControl!$C$6-1),1,1) -> 0 | AM28: =OFFSET(P_notNA_MLC3!$B$10,12*$AF28,1*(PlotControl!$C$6-1),1,1) -> 0 | AN28: =OFFSET(P_notNA_TC1!$B$10,12*$AF28,1*(PlotControl!$C$6-1),1,1) -> 0 | AO28: =OFFSET(P_notNA_PM11!$B$10,12*$AF28,1*(PlotControl!$C$6-1),1,1) -> 0 | AP28: =OFFSET(P_notNA_PM12!$B$10,12*$AF28,1*(PlotControl!$C$6-1),1,1) -> 0 | AR28: 1.916666667 | AS28: =OFFSET(AssimCap_PM13!$C$10,12*$AR28,4*(PlotControl!$C$6-1),1,1) -> 0.00026942 | AT28: =OFFSET(AssimCap_PM13!$D$10,12*$AR28,4*(PlotControl!$C$6-1),1,1) -> 0.00096952 | AU28: =OFFSET(AssimCap_PM13!$E$10,12*$AR28,4*(PlotControl!$C$6-1),1,1) -> 0.0023564 | AV28: =OFFSET(AssimCap_MLC3!$C$10,12*$AR28,4*(PlotControl!$C$6-1),1,1) -> -0.023124 | AW28: =OFFSET(AssimCap_MLC3!$D$10,12*$AR28,4*(PlotControl!$C$6-1),1,1) -> -0.0092167 | AX28: =OFFSET(AssimCap_MLC3!$E$10,12*$AR28,4*(PlotControl!$C$6-1),1,1) -> -0.0012432 | AY28: =OFFSET(AssimCap_TC1!$C$10,12*$AR28,4*(PlotControl!$C$6-1),1,1) -> 0.0014475 | AZ28: =OFFSET(AssimCap_TC1!$D$10,12*$AR28,4*(PlotControl!$C$6-1),1,1) -> 0.0028262 | BA28: =OFFSET(AssimCap_TC1!$E$10,12*$AR28,4*(PlotControl!$C$6-1),1,1) -> 0.0043414 | BB28: =OFFSET(AssimCap_PM11!$C$10,12*$AR28,4*(PlotControl!$C$6-1),1,1) -> 0.0080742 | BC28: =OFFSET(AssimCap_PM11!$D$10,12*$AR28,4*(PlotControl!$C$6-1),1,1) -> 0.019047 | BD28: =OFFSET(AssimCap_PM11!$E$10,12*$AR28,4*(PlotControl!$C$6-1),1,1) -> 0.02802 | BE28: =OFFSET(AssimCap_PM12!$C$10,12*$AR28,4*(PlotControl!$C$6-1),1,1) -> -3.1334e-17 | BF28: =OFFSET(AssimCap_PM12!$D$10,12*$AR28,4*(PlotControl!$C$6-1),1,1) -> 0 | BG28: =OFFSET(AssimCap_PM12!$E$10,12*$AR28,4*(PlotControl!$C$6-1),1,1) -> 4.3163e-15
A29: 24 | B29: =IF(PlotControl!$B$4 = "Annual Max",MAX(OFFSET(P_Ex_PM13!$B$10,12*$A29,4*(PlotControl!$C$6-1),12,1)),AVERAGE(OFFSET(P_Ex_PM13!$B$10,12*$A29,4*(PlotControl!$C$6-1),12,1))) -> 0 | C29: =IF(PlotControl!$B$4 = "Annual Max",MAX(OFFSET(P_Ex_MLC3!$B$10,12*$A29,4*(PlotControl!$C$6-1),12,1)),AVERAGE(OFFSET(P_Ex_MLC3!$B$10,12*$A29,4*(PlotControl!$C$6-1),12,1))) -> 0 | D29: =IF(PlotControl!$B$4 = "Annual Max",MAX(OFFSET(P_Ex_TC1!$B$10,12*$A29,4*(PlotControl!$C$6-1),12,1)),AVERAGE(OFFSET(P_Ex_TC1!$B$10,12*$A29,4*(PlotControl!$C$6-1),12,1))) -> 0 | E29: =IF(PlotControl!$B$4 = "Annual Max",MAX(OFFSET(P_Ex_PM11!$B$10,12*$A29,4*(PlotControl!$C$6-1),12,1)),AVERAGE(OFFSET(P_Ex_PM11!$B$10,12*$A29,4*(PlotControl!$C$6-1),12,1))) -> 0 | F29: =IF(PlotControl!$B$4 = "Annual Max",MAX(OFFSET(P_Ex_PM12!$B$10,12*$A29,4*(PlotControl!$C$6-1),12,1)),AVERAGE(OFFSET(P_Ex_PM12!$B$10,12*$A29,4*(PlotControl!$C$6-1),12,1))) -> 0 | H29: 24 | I29: =IF(PlotControl!$B$4 = "Annual Max",MAX(OFFSET(P_notNA_PM13!$B$10,12*$H29,(PlotControl!$C$6-1),12,1)),AVERAGE(OFFSET(P_notNA_PM13!$B$10,12*$A29,(PlotControl!$C$6-1),12,1))) -> 0 | J29: =IF(PlotControl!$B$4 = "Annual Max",MAX(OFFSET(P_notNA_MLC3!$B$10,12*$H29,(PlotControl!$C$6-1),12,1)),AVERAGE(OFFSET(P_notNA_MLC3!$B$10,12*$A29,(PlotControl!$C$6-1),12,1))) -> 0 | K29: =IF(PlotControl!$B$4 = "Annual Max",MAX(OFFSET(P_notNA_TC1!$B$10,12*$H29,(PlotControl!$C$6-1),12,1)),AVERAGE(OFFSET(P_notNA_TC1!$B$10,12*$A29,(PlotControl!$C$6-1),12,1))) -> 0 | L29: =IF(PlotControl!$B$4 = "Annual Max",MAX(OFFSET(P_notNA_PM11!$B$10,12*$H29,(PlotControl!$C$6-1),12,1)),AVERAGE(OFFSET(P_notNA_PM11!$B$10,12*$A29,(PlotControl!$C$6-1),12,1))) -> 0 | M29: =IF(PlotControl!$B$4 = "Annual Max",MAX(OFFSET(P_notNA_PM12!$B$10,12*$H29,(PlotControl!$C$6-1),12,1)),AVERAGE(OFFSET(P_notNA_PM12!$B$10,12*$A29,(PlotControl!$C$6-1),12,1))) -> 0 | O29: 24 | P29: =IF(PlotControl!$B$4 = "Annual Max",MAX(OFFSET(AssimCap_PM13!$C$10,12*$O29,4*(PlotControl!$C$6-1),12,1)),AVERAGE(OFFSET(AssimCap_PM13!$C$10,12*$O29,4*(PlotControl!$C$6-1),12,1))) -> 8.9154e-05 | Q29: =IF(PlotControl!$B$4 = "Annual Max",MAX(OFFSET(AssimCap_PM13!$D$10,12*$O29,4*(PlotControl!$C$6-1),12,1)),AVERAGE(OFFSET(AssimCap_PM13!$D$10,12*$O29,4*(PlotControl!$C$6-1),12,1))) -> 0.015255 | R29: =IF(PlotControl!$B$4 = "Annual Max",MAX(OFFSET(AssimCap_PM13!$E$10,12*$O29,4*(PlotControl!$C$6-1),12,1)),AVERAGE(OFFSET(AssimCap_PM13!$E$10,12*$O29,4*(PlotControl!$C$6-1),12,1))) -> 0.024005 | S29: =IF(PlotControl!$B$4 = "Annual Max",MAX(OFFSET(AssimCap_MLC3!$C$10,12*$O29,4*(PlotControl!$C$6-1),12,1)),AVERAGE(OFFSET(AssimCap_MLC3!$C$10,12*$O29,4*(PlotControl!$C$6-1),12,1))) -> -0.013922 | T29: =IF(PlotControl!$B$4 = "Annual Max",MAX(OFFSET(AssimCap_MLC3!$D$10,12*$O29,4*(PlotControl!$C$6-1),12,1)),AVERAGE(OFFSET(AssimCap_MLC3!$D$10,12*$O29,4*(PlotControl!$C$6-1),12,1))) -> -0.00021601 | U29: =IF(PlotControl!$B$4 = "Annual Max",MAX(OFFSET(AssimCap_MLC3!$E$10,12*$O29,4*(PlotControl!$C$6-1),12,1)),AVERAGE(OFFSET(AssimCap_MLC3!$E$10,12*$O29,4*(PlotControl!$C$6-1),12,1))) -> 0.0083397 | V29: =IF(PlotControl!$B$4 = "Annual Max",MAX(OFFSET(AssimCap_TC1!$C$10,12*$O29,4*(PlotControl!$C$6-1),12,1)),AVERAGE(OFFSET(AssimCap_TC1!$C$10,12*$O29,4*(PlotControl!$C$6-1),12,1))) -> 0.02606 | W29: =IF(PlotControl!$B$4 = "Annual Max",MAX(OFFSET(AssimCap_TC1!$D$10,12*$O29,4*(PlotControl!$C$6-1),12,1)),AVERAGE(OFFSET(AssimCap_TC1!$D$10,12*$O29,4*(PlotControl!$C$6-1),12,1))) -> 0.0522 | X29: =IF(PlotControl!$B$4 = "Annual Max",MAX(OFFSET(AssimCap_TC1!$E$10,12*$O29,4*(PlotControl!$C$6-1),12,1)),AVERAGE(OFFSET(AssimCap_TC1!$E$10,12*$O29,4*(PlotControl!$C$6-1),12,1))) -> 0.064009 | Y29: =IF(PlotControl!$B$4 = "Annual Max",MAX(OFFSET(AssimCap_PM11!$C$10,12*$O29,4*(PlotControl!$C$6-1),12,1)),AVERAGE(OFFSET(AssimCap_PM11!$C$10,12*$O29,4*(PlotControl!$C$6-1),12,1))) -> 0.0026995 | Z29: =IF(PlotControl!$B$4 = "Annual Max",MAX(OFFSET(AssimCap_PM11!$D$10,12*$O29,4*(PlotControl!$C$6-1),12,1)),AVERAGE(OFFSET(AssimCap_PM11!$D$10,12*$O29,4*(PlotControl!$C$6-1),12,1))) -> 0.070917 | AA29: =IF(PlotControl!$B$4 = "Annual Max",MAX(OFFSET(AssimCap_PM11!$E$10,12*$O29,4*(PlotControl!$C$6-1),12,1)),AVERAGE(OFFSET(AssimCap_PM11!$E$10,12*$O29,4*(PlotControl!$C$6-1),12,1))) -> 0.0937 | AB29: =IF(PlotControl!$B$4 = "Annual Max",MAX(OFFSET(AssimCap_PM12!$C$10,12*$O29,4*(PlotControl!$C$6-1),12,1)),AVERAGE(OFFSET(AssimCap_PM12!$C$10,12*$O29,4*(PlotControl!$C$6-1),12,1))) -> -1.5686e-17 | AC29: =IF(PlotControl!$B$4 = "Annual Max",MAX(OFFSET(AssimCap_PM12!$D$10,12*$O29,4*(PlotControl!$C$6-1),12,1)),AVERAGE(OFFSET(AssimCap_PM12!$D$10,12*$O29,4*(PlotControl!$C$6-1),12,1))) -> 0 | AD29: =IF(PlotControl!$B$4 = "Annual Max",MAX(OFFSET(AssimCap_PM12!$E$10,12*$O29,4*(PlotControl!$C$6-1),12,1)),AVERAGE(OFFSET(AssimCap_PM12!$E$10,12*$O29,4*(PlotControl!$C$6-1),12,1))) -> 3.7626e-12 | AF29: 2 | AG29: =OFFSET(P_Ex_PM13!$B$10,12*$AF29,4*(PlotControl!$C$6-1),1,1) -> 0 | AH29: =OFFSET(P_Ex_MLC3!$B$10,12*$AF29,4*(PlotControl!$C$6-1),1,1) -> 0 | AI29: =OFFSET(P_Ex_TC1!$B$10,12*$AF29,4*(PlotControl!$C$6-1),1,1) -> 0 | AJ29: =OFFSET(P_Ex_PM11!$B$10,12*$AF29,4*(PlotControl!$C$6-1),1,1) -> 0 | AK29: =OFFSET(P_Ex_PM12!$B$10,12*$AF29,4*(PlotControl!$C$6-1),1,1) -> 0 | AL29: =OFFSET(P_notNA_PM13!$B$10,12*$AF29,1*(PlotControl!$C$6-1),1,1) -> 0 | AM29: =OFFSET(P_notNA_MLC3!$B$10,12*$AF29,1*(PlotControl!$C$6-1),1,1) -> 0 | AN29: =OFFSET(P_notNA_TC1!$B$10,12*$AF29,1*(PlotControl!$C$6-1),1,1) -> 0 | AO29: =OFFSET(P_notNA_PM11!$B$10,12*$AF29,1*(PlotControl!$C$6-1),1,1) -> 0 | AP29: =OFFSET(P_notNA_PM12!$B$10,12*$AF29,1*(PlotControl!$C$6-1),1,1) -> 0 | AR29: 2 | AS29: =OFFSET(AssimCap_PM13!$C$10,12*$AR29,4*(PlotControl!$C$6-1),1,1) -> 4.2582e-05 | AT29: =OFFSET(AssimCap_PM13!$D$10,12*$AR29,4*(PlotControl!$C$6-1),1,1) -> 0.00048858 | AU29: =OFFSET(AssimCap_PM13!$E$10,12*$AR29,4*(PlotControl!$C$6-1),1,1) -> 0.0011545 | AV29: =OFFSET(AssimCap_MLC3!$C$10,12*$AR29,4*(PlotControl!$C$6-1),1,1) -> -0.022865 | AW29: =OFFSET(AssimCap_MLC3!$D$10,12*$AR29,4*(PlotControl!$C$6-1),1,1) -> -0.011076 | AX29: =OFFSET(AssimCap_MLC3!$E$10,12*$AR29,4*(PlotControl!$C$6-1),1,1) -> -0.002872 | AY29: =OFFSET(AssimCap_TC1!$C$10,12*$AR29,4*(PlotControl!$C$6-1),1,1) -> -0.0010342 | AZ29: =OFFSET(AssimCap_TC1!$D$10,12*$AR29,4*(PlotControl!$C$6-1),1,1) -> 0.00070396 | BA29: =OFFSET(AssimCap_TC1!$E$10,12*$AR29,4*(PlotControl!$C$6-1),1,1) -> 0.0019047 | BB29: =OFFSET(AssimCap_PM11!$C$10,12*$AR29,4*(PlotControl!$C$6-1),1,1) -> 0.0083708 | BC29: =OFFSET(AssimCap_PM11!$D$10,12*$AR29,4*(PlotControl!$C$6-1),1,1) -> 0.014075 | BD29: =OFFSET(AssimCap_PM11!$E$10,12*$AR29,4*(PlotControl!$C$6-1),1,1) -> 0.01944 | BE29: =OFFSET(AssimCap_PM12!$C$10,12*$AR29,4*(PlotControl!$C$6-1),1,1) -> -3.1568e-17 | BF29: =OFFSET(AssimCap_PM12!$D$10,12*$AR29,4*(PlotControl!$C$6-1),1,1) -> 0 | BG29: =OFFSET(AssimCap_PM12!$E$10,12*$AR29,4*(PlotControl!$C$6-1),1,1) -> 5.9438e-16
